Workbook

Sheet Main
B1: Social Care Statistics, December 2017 update
B3: This spreadsheet presents the latest national figures for Home Care, Community Alarm/Telecare and Direct Payments (SDS option 1) provided or purchased by local authorities in Scotland. It is provided in addition to the Social Care Services publication, which was updated in December 2017. All Home Care figures relate to a census week, which is usually the last week in March. Community Alarm/Telecare figures relate to the census week up to 2014 and the financial year ending 31 March from 2015/16. Direct Payments figures are for the financial year.
B5: This spreadsheet has also been updated to include the indicators on the proportions of people with high level of care needs who receive care at home, which were previously included in the Health & Social Care "dashboard" (see Tables 8 and 9).
B7: Contents | I7: Links
B10: Home Care Services
B12: Table 1 - | C12: Number of home care clients and hours provided/purchased, 1998-2017 | I12: =>
C13: Times series data of the total number of home care clients and hours of care received. Also provides data on clients age 65 and over. Data available for Scotland or by Local Authority and is presented in a table and line charts.
B14: Table 2 - | C14: Home care clients or hours by sector provider, 1998-2017 | I14: =>
C15: Times series data on the number of home care clients or the hours of care received by sector provider. Data available for Scotland or by Local Authority and is presented in a table and bar chart.
B16: Table 3 - | C16: Age breakdown of all clients receiving home care, 1998-2017 | I16: =>
C17: Times series data on the number of home care clients by age group. Allows for data to be presented by Local Authority and is presented in a table and bar chart.
B18: Table 4 - | C18: Age breakdown of all clients receiving Home Care, by Local Authority | I18: =>
C19: Number of home care clients by age group and Local Authority. Allows for data to be presented by client group and/or year and is presented in a table.
B20: Table 5 - | C20: Distribution of home care hours received by all clients, by Local Authority | I20: =>
C21: Number of home care clients by hours received and Local Authority. Allows for data to be presented by age group (under 65 or 65 plus only) and/or year and is presented in a table.
B22: Table 6 - | C22: Distribution of home care hours received by clients, 1998-2017 | I22: =>
C23: Time series data on the number of home care clients by hours received. Allows for data to be presented by age group (under 65 or 65 plus only) and/or Local Authority and is presented in a table and bar chart.
B24: Table 7 - | C24: Client group breakdown of all clients receiving Home Care, by Local Authority | I24: =>
C25: Number of home care clients by client group and Local Authority. Allows for data to be presented by year and is presented in a table.
B26: Table 8 - | C26: Client group breakdown of all clients receiving Home Care, 1998-2017 | I26: =>
C27: Time series data on the number of home care clients by client group. Allows for data to be presented by Local Authority and is presented in a table and bar chart.
B29: People with high level of care needs
B31: Table 9 - | C31: Percentage of people aged 18 and over with long-term care needs who receiving personal care at home | I31: =>
C32: Includes data from the ISD Continuing Care Census, Scottish Government Quarterly Monitoring Return and the Scottish Government Social Care Survey. Data going back to 2009.
B33: Table 10 - | C33: Percentage of people aged 65 and over with long-term care needs receiving 10+ hrs of home care | I33: =>
C34: Includes data from the ISD Continuing Care Census, Scottish Government Quarterly Monitoring Return and the Scottish Government Social Care Survey. Data going back to 2006.
B35: Community Alarms / Telecare
B37: Table 11 - | C37: Breakdown of type of telecare received, 2011-2017 Only | I37: =>
C38: Number of telecare clients by type of telecare and Local Authority. Allows for data to be presented by client type and/or year and is presented in a table.
B39: Table 12 - | C39: Age breakdown of all clients receiving a telecare service, 2011-2017 | I39: =>
C40: Number of telecare clients by age group and Local Authority. Allows for data to be presented by client type and/or year and is presented in a table.
B42: Direct Payments (now Self-Directed Support "Option 1")
B44: Table 13 - | C44: Age breakdown of Direct Payment Clients & Expenditure, by Local Authority, 2012-13 to 2016-17 | I44: =>
C45: Number of people receiving Direct Payments, and value of Direct Payments, by age group. A further breakdown is available for gender. Presented as a table.
B46: Table 14 - | C46: Rates of Direct Payments clients & expenditure, with local authority comparison, 2004-05 to 2016-17 | I46: =>
C47: Rates per population for people receiving Direct Payments, and value of Direct Payments, with Local Authority comparison. Presented as tables/charts.
B49: Problem with drop down lists
B51: If the drop down lists are not working please ensure that you select "Enable editing" and "Enable Macros" should the boxes appear upon opening the file. If you have any problems accessing the data please contact:
B52: SWStat@gov.scot

Sheet Calc-HC1 (hidden)
B3: * | C3: * | D3: * | E3: 4 | F3: 5 | G3: 6 | H3: 7 | I3: 8 | J3: 9 | K3: 10 | L3: 11 | M3: 12 | N3: 13 | O3: 14 | P3: 15 | Q3: 16 | R3: 17 | S3: 18 | T3: 19 | U3: 20 | V3: 21 | W3: 22 | X3: 23 | Y3: 24 | Z3: 25 | AA3: 26 | AB3: 27 | AC3: 28 | AD3: 29 | AE3: 30
F4: Clients | L4: Total | M4: Hours | S4: Total | T4: 2hours or less | V4: 2-4 hours | X4: 4-10 hours | Z4: >10 hours | AB4: Client check | AC4: Under 65 | AD4: Over 65
D5: Year | E5: LA | F5: LA Only | G5: Voluntary only | H5: Private only | I5: LA & Private | J5: LA & Voluntary | K5: Other | L5: No. Clients | M5: LA Only | N5: Voluntary only | O5: Private only | P5: LA & Private | Q5: LA & Voluntary | R5: Other | S5: No. Hours | T5: No. Clients | U5: % | V5: No. Clients | W5: % | X5: No. Clients | Y5: % | Z5: No. Clients | AA5: % | AC5: 10+ Hours | AD5: 10+ Hours | AE5: Pop 65+
B6: =D6&E6 -> 1998Aberdeen City | D6: 1998 | E6: Aberdeen City | F6: 4097 | G6: 25 | H6: 187 | I6: 57 | J6: 7 | K6: 18 | L6: 4391.043309 | M6: 17351 | N6: 279 | O6: 1958 | P6: 593 | Q6: 66 | R6: 233 | S6: 20480 | T6: 1570 | U6: 0.36 | V6: 1558 | W6: 0.35 | X6: 870 | Y6: 0.2 | Z6: 393 | AA6: 0.09 | AC6: 73 | AD6: 320 | AE6: 32174
B7: =D7&E7 -> 1998Aberdeenshire | D7: 1998 | E7: Aberdeenshire | F7: 1891 | G7: 124 | H7: 305 | I7: 24 | J7: 32 | K7: 8 | L7: 2384 | M7: 13868 | N7: 910 | O7: 2237 | P7: 175 | Q7: 236 | R7: 62 | S7: 17488 | T7: 395 | U7: 0.17 | V7: 829 | W7: 0.35 | X7: 779 | Y7: 0.33 | Z7: 380.9582648 | AA7: 0.16 | AC7: 70.95826484 | AD7: 310 | AE7: 30718
B8: 1998Angus | D8: 1998 | E8: Angus | F8: 1555 | G8: 72 | H8: 0 | I8: 0 | J8: 251 | K8: 0 | L8: 1878 | M8: 4350 | N8: 138 | O8: 0 | P8: 0 | Q8: 1282 | R8: 0 | S8: 5770 | T8: 986 | U8: 0.53 | V8: 527 | W8: 0.28 | X8: 261 | Y8: 0.14 | Z8: 104 | AA8: 0.06 | AB8: OK | AC8: 19 | AD8: 85 | AE8: 19103
B9: 1998Argyll & Bute | D9: 1998 | E9: Argyll & Bute | F9: 1027.992233 | G9: 0 | H9: * | I9: * | J9: 0 | K9: 0 | L9: 1032 | M9: 6217 | N9: 0 | O9: 39 | P9: 14 | Q9: 0 | R9: 0 | S9: 6270 | T9: 123 | U9: 0.12 | V9: 232 | W9: 0.22 | X9: 498.979146 | Y9: 0.48 | Z9: 178 | AA9: 0.17 | AC9: 33 | AD9: 145 | AE9: 16425
B10: 1998Clackmannanshire | D10: 1998 | E10: Clackmannanshire | F10: 549 | G10: 37 | H10: 0 | I10: 0 | J10: 0 | K10: 0 | L10: 586 | M10: 2725 | N10: 335 | O10: 0 | P10: 0 | Q10: 0 | R10: 0 | S10: 3060 | T10: 231 | U10: 0.39 | V10: 131 | W10: 0.22 | X10: 149 | Y10: 0.25 | Z10: 75 | AA10: 0.13 | AB10: OK | AC10: 14 | AD10: 61 | AE10: 6894
B11: 1998Dumfries & Galloway | D11: 1998 | E11: Dumfries & Galloway | F11: 1614 | G11: 169 | H11: 198 | I11: 31 | J11: 44 | K11: 19 | L11: 2075 | M11: 8742 | N11: 785 | O11: 3838 | P11: 752 | Q11: 541 | R11: 540 | S11: 15198 | T11: 519 | U11: 0.25 | V11: 526 | W11: 0.25 | X11: 631 | Y11: 0.3 | Z11: 399 | AA11: 0.19 | AB11: OK | AC11: 74 | AD11: 325 | AE11: 27500
B12: 1998Dundee City | D12: 1998 | E12: Dundee City | F12: 3103 | G12: 90 | H12: * | I12: * | J12: 39 | K12: 0 | L12: 3240 | M12: 8392 | N12: 156 | O12: 28 | P12: 75 | Q12: 429 | R12: 0 | S12: 9080 | T12: 1756 | U12: 0.54 | V12: 1065 | W12: 0.33 | X12: 290 | Y12: 0.09 | Z12: 129 | AA12: 0.04 | AB12: OK | AC12: 24 | AD12: 105 | AE12: 25786
B13: 1998East Ayrshire | D13: 1998 | E13: East Ayrshire | F13: 1417.962253 | G13: 28 | H13: 26 | I13: 15 | J13: 20 | K13: 5 | L13: 1511.962253 | M13: 10755 | N13: 214 | O13: 195 | P13: 114 | Q13: 155 | R13: 40 | S13: 11473 | T13: 310 | U13: 0.21 | V13: 351 | W13: 0.23 | X13: 546 | Y13: 0.36 | Z13: 305 | AA13: 0.2 | AC13: 57 | AD13: 248 | AE13: 19099
B14: 1998East Dunbartonshire | D14: 1998 | E14: East Dunbartonshire | F14: 1150 | G14: 6 | H14: 22 | I14: 11 | J14: 13 | K14: 5 | L14: 1207 | M14: 5077 | N14: 100 | O14: 360 | P14: 340 | Q14: 299 | R14: 75 | S14: 6251 | T14: 421 | U14: 0.35 | V14: 363 | W14: 0.3 | X14: 307 | Y14: 0.25 | Z14: 116 | AA14: 0.1 | AB14: OK | AC14: 21 | AD14: 95 | AE14: 15817
B15: 1998East Lothian | D15: 1998 | E15: East Lothian | F15: 1386 | G15: * | H15: 10 | I15: * | J15: 0 | K15: 0 | L15: 1408 | M15: 9035 | N15: 84 | O15: 503 | P15: 172 | Q15: 0 | R15: 0 | S15: 9794 | T15: 334 | U15: 0.24 | V15: 483 | W15: 0.34 | X15: 396 | Y15: 0.28 | Z15: 195 | AA15: 0.14 | AB15: OK | AC15: 36 | AD15: 159 | AE15: 15149
B16: 1998East Renfrewshire | D16: 1998 | E16: East Renfrewshire | F16: 862.021542 | G16: 0 | H16: * | I16: * | J16: 0 | K16: 0 | L16: 881 | M16: 4589 | N16: 0 | O16: 14 | P16: 222 | Q16: 0 | R16: 0 | S16: 4825 | T16: 347 | U16: 0.39 | V16: 181 | W16: 0.21 | X16: 209 | Y16: 0.24 | Z16: 144 | AA16: 0.16 | AB16: OK | AC16: 27 | AD16: 117 | AE16: 13329
B17: 1998Edinburgh, City of | D17: 1998 | E17: Edinburgh, City of | F17: 7327 | G17: 138 | H17: 243 | I17: * | J17: 0 | K17: * | L17: 7719.015698 | M17: 33783 | N17: 637 | O17: 1122 | P17: 5 | Q17: 0 | R17: 46 | S17: 35593 | T17: 2661 | U17: 0.34 | V17: 2565 | W17: 0.33 | X17: 1849 | Y17: 0.24 | Z17: 643.9813033 | AA17: 0.08 | AC17: 118.9813033 | AD17: 525 | AE17: 69653
B18: 1998Falkirk | D18: 1998 | E18: Falkirk | F18: 2521 | G18: 54 | H18: 0 | I18: 0 | J18: 44 | K18: 74 | L18: 2693 | M18: 10377 | N18: 208 | O18: 0 | P18: 0 | Q18: 539 | R18: 570 | S18: 11694 | T18: 797 | U18: 0.3 | V18: 727 | W18: 0.27 | X18: 791 | Y18: 0.29 | Z18: 378 | AA18: 0.14 | AB18: OK | AC18: 70 | AD18: 308 | AE18: 21751
B19: 1998Fife | D19: 1998 | E19: Fife | F19: 7794 | G19: 148 | H19: 0 | I19: 0 | J19: 0 | K19: 0 | L19: 7942 | M19: 37155 | N19: 707 | O19: 0 | P19: 0 | Q19: 0 | R19: 0 | S19: 37862 | T19: 4567 | U19: 0.58 | V19: 1672 | W19: 0.21 | X19: 1414 | Y19: 0.18 | Z19: 289 | AA19: 0.04 | AB19: OK | AC19: 54 | AD19: 235 | AE19: 55647
B20: 1998Glasgow City | D20: 1998 | E20: Glasgow City | F20: 10765 | G20: 84 | H20: 18 | I20: 22 | J20: 257 | K20: 112 | L20: 11258 | M20: 56420 | N20: 453 | O20: 142 | P20: 196 | Q20: 1955 | R20: 392 | S20: 59558 | T20: 2394 | U20: 0.21 | V20: 3233 | W20: 0.29 | X20: 4067 | Y20: 0.36 | Z20: 1564 | AA20: 0.14 | AB20: OK | AC20: 290 | AD20: 1274 | AE20: 93841
B21: 1998Highland | D21: 1998 | E21: Highland | F21: 2916 | G21: 6 | H21: 19 | I21: * | J21: * | K21: 0 | L21: 2946 | M21: 11346 | N21: 46 | O21: 515 | P21: 314 | Q21: 21 | R21: 0 | S21: 12242 | T21: 958 | U21: 0.33 | V21: 858 | W21: 0.29 | X21: 896 | Y21: 0.3 | Z21: 234 | AA21: 0.08 | AB21: OK | AC21: 43 | AD21: 191 | AE21: 33490
B22: 1998Inverclyde | D22: 1998 | E22: Inverclyde | F22: 1231 | G22: 25 | H22: 22 | I22: 13 | J22: 18 | K22: 5 | L22: 1314 | M22: 5429 | N22: 109 | O22: 98.02117818 | P22: 57 | Q22: 78 | R22: 21 | S22: 5792.021178 | T22: 531 | U22: 0.4 | V22: 310 | W22: 0.24 | X22: 323 | Y22: 0.25 | Z22: 150 | AA22: 0.11 | AB22: OK | AC22: 28 | AD22: 122 | AE22: 13962
B23: 1998Midlothian | D23: 1998 | E23: Midlothian | F23: 1201 | G23: 26 | H23: 26 | I23: 0 | J23: 0 | K23: 0 | L23: 1253 | M23: 5201 | N23: 69 | O23: 295 | P23: 0 | Q23: 0 | R23: 0 | S23: 5565 | T23: 556 | U23: 0.44 | V23: 285 | W23: 0.23 | X23: 317 | Y23: 0.25 | Z23: 95 | AA23: 0.08 | AB23: OK | AC23: 18 | AD23: 77 | AE23: 11555
B24: 1998Moray | D24: 1998 | E24: Moray | F24: 1084 | G24: 35 | H24: 42 | I24: 0 | J24: 0 | K24: 0 | L24: 1161 | M24: 5870 | N24: 1141 | O24: 1274 | P24: 0 | Q24: 0 | R24: 0 | S24: 8285 | T24: 340 | U24: 0.29 | V24: 309 | W24: 0.27 | X24: 343 | Y24: 0.3 | Z24: 169 | AA24: 0.15 | AB24: OK | AC24: 31 | AD24: 138 | AE24: 13621
B25: 1998North Ayrshire | D25: 1998 | E25: North Ayrshire | F25: 2032 | G25: * | H25: * | I25: 131 | J25: * | K25: 0 | L25: 2167 | M25: 7306 | N25: * | O25: 32 | P25: 1156 | Q25: * | R25: 0 | S25: 8515 | T25: 696 | U25: 0.32 | V25: 514 | W25: 0.24 | X25: 763 | Y25: 0.35 | Z25: 194 | AA25: 0.09 | AB25: OK | AC25: 36 | AD25: 158 | AE25: 21345
B26: 1998North Lanarkshire | D26: 1998 | E26: North Lanarkshire | F26: 2653 | G26: 240 | H26: 12 | I26: 150 | J26: 78 | K26: 0 | L26: 3133 | M26: 13971 | N26: 1152 | O26: 50 | P26: 960 | Q26: 608 | R26: 0 | S26: 16741 | T26: 846 | U26: 0.27 | V26: 862 | W26: 0.28 | X26: 1049 | Y26: 0.33 | Z26: 376 | AA26: 0.12 | AB26: OK | AC26: 70 | AD26: 306 | AE26: 43517
B27: 1998Orkney Islands | D27: 1998 | E27: Orkney Islands | F27: 376 | G27: 0 | H27: 0 | I27: 0 | J27: 0 | K27: 0 | L27: 376 | M27: 2482 | N27: 0 | O27: 0 | P27: 0 | Q27: 0 | R27: 0 | S27: 2482 | T27: 12.02452316 | U27: 0.03 | V27: 68 | W27: 0.18 | X27: 99.98092643 | Y27: 0.27 | Z27: 196.0054496 | AA27: 0.52 | AC27: 36.00544959 | AD27: 160 | AE27: 3173
B28: 1998Perth & Kinross | D28: 1998 | E28: Perth & Kinross | F28: 1425 | G28: 0 | H28: 0 | I28: 0 | J28: 0 | K28: 0 | L28: 1425 | M28: 4696 | N28: 0 | O28: 0 | P28: 0 | Q28: 0 | R28: 0 | S28: 4696 | T28: 845 | U28: 0.59 | V28: 311 | W28: 0.22 | X28: 215 | Y28: 0.15 | Z28: 54 | AA28: 0.04 | AB28: OK | AC28: 10 | AD28: 44 | AE28: 24433
B29: 1998Renfrewshire | D29: 1998 | E29: Renfrewshire | F29: 2697 | G29: 24 | H29: * | I29: 17 | J29: 14 | K29: * | L29: 2762 | M29: 12933 | N29: 296 | O29: 120 | P29: 524 | Q29: 366 | R29: 21 | S29: 14260 | T29: 849 | U29: 0.31 | V29: 748 | W29: 0.27 | X29: 826 | Y29: 0.3 | Z29: 339 | AA29: 0.12 | AB29: OK | AC29: 63 | AD29: 276 | AE29: 25995
B30: 1998Scottish Borders | D30: 1998 | E30: Scottish Borders | F30: 1377 | G30: 126 | H30: 42 | I30: 6 | J30: 12 | K30: 0 | L30: 1563 | M30: 5631 | N30: 599 | O30: 195 | P30: 71 | Q30: 198 | R30: 0 | S30: 6694 | T30: 706 | U30: 0.45 | V30: 352 | W30: 0.23 | X30: 367.955243 | Y30: 0.24 | Z30: 136.9814578 | AA30: 0.09 | AC30: 24.9814578 | AD30: 112 | AE30: 19942
B31: 1998Shetland Islands | D31: 1998 | E31: Shetland Islands | F31: 488 | G31: 21 | H31: 0 | I31: 0 | J31: 18 | K31: 0 | L31: 527 | M31: 1770 | N31: 352 | O31: 0 | P31: 0 | Q31: 401 | R31: 0 | S31: 2523 | T31: 205 | U31: 0.39 | V31: 166 | W31: 0.31 | X31: 100 | Y31: 0.19 | Z31: 56 | AA31: 0.11 | AB31: OK | AC31: 10 | AD31: 46 | AE31: 2967
B32: 1998South Ayrshire | D32: 1998 | E32: South Ayrshire | F32: 1100 | G32: 0 | H32: 13 | I32: 234 | J32: 130 | K32: 8 | L32: 1485 | M32: 6095 | N32: 0 | O32: 210 | P32: 1113 | Q32: 304 | R32: 104 | S32: 7826 | T32: 304 | U32: 0.2 | V32: 323 | W32: 0.22 | X32: 560 | Y32: 0.38 | Z32: 298 | AA32: 0.2 | AB32: OK | AC32: 55 | AD32: 243 | AE32: 21012
B33: 1998South Lanarkshire | D33: 1998 | E33: South Lanarkshire | F33: 2741 | G33: 55 | H33: 50 | I33: 29 | J33: 39 | K33: 10 | L33: 2924 | M33: 19980 | N33: 398 | O33: 361 | P33: 213 | Q33: 287 | R33: 75 | S33: 21314 | T33: 496 | U33: 0.17 | V33: 775 | W33: 0.27 | X33: 1179 | Y33: 0.4 | Z33: 474 | AA33: 0.16 | AB33: OK | AC33: 88 | AD33: 386 | AE33: 44378
B34: 1998Stirling | D34: 1998 | E34: Stirling | F34: 1343 | G34: 32 | H34: 29 | I34: * | J34: 15 | K34: * | L34: 1427 | M34: 3799 | N34: 141 | O34: 1892 | P34: 251 | Q34: 142 | R34: 173 | S34: 6398 | T34: 469 | U34: 0.33 | V34: 413 | W34: 0.29 | X34: 369 | Y34: 0.26 | Z34: 176 | AA34: 0.12 | AB34: OK | AC34: 33 | AD34: 143 | AE34: 13001
B35: 1998West Dunbartonshire | D35: 1998 | E35: West Dunbartonshire | F35: 1664 | G35: * | H35: * | I35: * | J35: 24 | K35: 0 | L35: 1699 | M35: 9163 | N35: * | O35: 363 | P35: 71 | Q35: * | R35: 0 | S35: 9750 | T35: 101 | U35: 0.06 | V35: 470 | W35: 0.28 | X35: 890 | Y35: 0.52 | Z35: 238 | AA35: 0.14 | AB35: OK | AC35: 44 | AD35: 194 | AE35: 14810
B36: 1998West Lothian | D36: 1998 | E36: West Lothian | F36: 1874 | G36: 0 | H36: 0 | I36: 19 | J36: 26 | K36: 7 | L36: 1925.815147 | M36: 7669 | N36: 0 | O36: 0 | P36: 79 | Q36: 106 | R36: 28 | S36: 7882 | T36: 169 | U36: 0.09 | V36: 817 | W36: 0.42 | X36: 808 | Y36: 0.42 | Z36: 131.9501634 | AA36: 0.07 | AC36: 23.95016336 | AD36: 108 | AE36: 17276
B37: 1998Eilean Siar | D37: 1998 | E37: Eilean Siar | F37: 937 | G37: 19 | H37: 17 | I37: 10 | J37: * | K37: * | L37: 1000 | M37: 5498 | N37: 110 | O37: 99 | P37: 59 | Q37: 79 | R37: 21 | S37: 5866 | T37: 154 | U37: 0.15 | V37: 249 | W37: 0.25 | X37: 427 | Y37: 0.43 | Z37: 169.9872216 | AA37: 0.17 | AC37: 31.98722159 | AD37: 138 | AE37: 5216
B38: 1999Aberdeen City | D38: 1999 | E38: Aberdeen City | F38: 4056 | G38: 84 | H38: 626 | I38: 0 | J38: 0 | K38: 0 | L38: 4766 | M38: 17428 | N38: 362 | O38: 2689 | P38: 0 | Q38: 0 | R38: 0 | S38: 20479 | T38: 1650 | U38: 0.35 | V38: 1847 | W38: 0.39 | X38: 949 | Y38: 0.2 | Z38: 320 | AA38: 0.07 | AB38: OK | AC38: 61 | AD38: 259 | AE38: 32274
B39: 1999Aberdeenshire | D39: 1999 | E39: Aberdeenshire | F39: 1968 | G39: 29 | H39: 44 | I39: 0 | J39: 0 | K39: 0 | L39: 2041 | M39: 14801 | N39: 267 | O39: 406 | P39: 0 | Q39: 0 | R39: 0 | S39: 15474 | T39: 338 | U39: 0.17 | V39: 709 | W39: 0.35 | X39: 667 | Y39: 0.33 | Z39: 327 | AA39: 0.16 | AB39: OK | AC39: 62 | AD39: 265 | AE39: 31165
B40: 1999Angus | D40: 1999 | E40: Angus | F40: 1494 | G40: 94 | H40: 0 | I40: 0 | J40: 279 | K40: 0 | L40: 1867 | M40: 4205 | N40: 200 | O40: 0 | P40: 0 | Q40: 1971 | R40: 0 | S40: 6376 | T40: 1129 | U40: 0.6 | V40: 374 | W40: 0.2 | X40: 258 | Y40: 0.14 | Z40: 106 | AA40: 0.06 | AB40: OK | AC40: 20 | AD40: 86 | AE40: 19143
B41: 1999Argyll & Bute | D41: 1999 | E41: Argyll & Bute | F41: * | G41: 0 | H41: * | I41: 0 | J41: 0 | K41: 0 | L41: 950 | M41: 6481 | N41: 0 | O41: 4 | P41: 0 | Q41: 0 | R41: 0 | S41: 6485 | T41: 59 | U41: 0.06 | V41: 210 | W41: 0.22 | X41: 509 | Y41: 0.54 | Z41: 172 | AA41: 0.18 | AB41: OK | AC41: 33 | AD41: 139 | AE41: 16475
B42: 1999Clackmannanshire | D42: 1999 | E42: Clackmannanshire | F42: 279 | G42: 15 | H42: 295 | I42: 6 | J42: * | K42: * | L42: 601 | M42: 1293 | N42: 103 | O42: 2399 | P42: 134 | Q42: 69 | R42: 46 | S42: 4044 | T42: 200 | U42: 0.33 | V42: 135 | W42: 0.22 | X42: 154 | Y42: 0.26 | Z42: 112 | AA42: 0.19 | AB42: OK | AC42: 21 | AD42: 91 | AE42: 6917
B43: 1999Dumfries & Galloway | D43: 1999 | E43: Dumfries & Galloway | F43: 1422 | G43: * | H43: 400 | I43: 38 | J43: * | K43: 0 | L43: 1880 | M43: 7983 | N43: 99 | O43: 4712 | P43: 697 | Q43: 13 | R43: 0 | S43: 13504 | T43: 349 | U43: 0.19 | V43: 419 | W43: 0.22 | X43: 592 | Y43: 0.31 | Z43: 520 | AA43: 0.28 | AB43: OK | AC43: 99 | AD43: 421 | AE43: 27765
B44: 1999Dundee City | D44: 1999 | E44: Dundee City | F44: 2855 | G44: 76 | H44: 0 | I44: * | J44: 40 | K44: * | L44: 2978 | M44: 8718 | N44: 1141 | O44: 0 | P44: 185.27 | Q44: 788.29 | R44: 33 | S44: 10865.56 | T44: 1480 | U44: 0.5 | V44: 992 | W44: 0.33 | X44: 311 | Y44: 0.1 | Z44: 195 | AA44: 0.07 | AB44: OK | AC44: 37 | AD44: 158 | AE44: 25802
B45: 1999East Ayrshire | D45: 1999 | E45: East Ayrshire | F45: 1269 | G45: * | H45: * | I45: 70 | J45: 54 | K45: 0 | L45: 1398 | M45: 7949 | N45: 33 | O45: 34 | P45: 1189 | Q45: 936 | R45: 0 | S45: 10141 | T45: 252 | U45: 0.18 | V45: 328 | W45: 0.23 | X45: 492 | Y45: 0.35 | Z45: 326 | AA45: 0.23 | AB45: OK | AC45: 62 | AD45: 264 | AE45: 19105
B46: 1999East Dunbartonshire | D46: 1999 | E46: East Dunbartonshire | F46: 947 | G46: * | H46: 19 | I46: 26 | J46: 9 | K46: * | L46: 1010 | M46: 4650 | N46: 61 | O46: 171 | P46: 680.75 | Q46: 126 | R46: 19 | S46: 5707.75 | T46: 386 | U46: 0.38 | V46: 256 | W46: 0.25 | X46: 253 | Y46: 0.25 | Z46: 115 | AA46: 0.11 | AB46: OK | AC46: 22 | AD46: 93 | AE46: 16139
B47: 1999East Lothian | D47: 1999 | E47: East Lothian | F47: 1110 | G47: 12 | H47: 74 | I47: 0 | J47: 0 | K47: 0 | L47: 1196 | M47: 5688 | N47: 235 | O47: 365 | P47: 0 | Q47: 0 | R47: 0 | S47: 6288 | T47: 320 | U47: 0.27 | V47: 396 | W47: 0.33 | X47: 339 | Y47: 0.28 | Z47: 141 | AA47: 0.12 | AB47: OK | AC47: 27 | AD47: 114 | AE47: 15295
B48: 1999East Renfrewshire | D48: 1999 | E48: East Renfrewshire | F48: 744 | G48: * | H48: 45 | I48: 21 | J48: * | K48: 0 | L48: 820 | M48: 4219 | N48: 175 | O48: 225 | P48: 63 | Q48: 76 | R48: 0 | S48: 4758 | T48: 261 | U48: 0.32 | V48: 203 | W48: 0.25 | X48: 243 | Y48: 0.3 | Z48: 113 | AA48: 0.14 | AB48: OK | AC48: 21 | AD48: 92 | AE48: 13505
B49: 1999Edinburgh, City of | D49: 1999 | E49: Edinburgh, City of | F49: 6889 | G49: 142 | H49: 223 | I49: 0 | J49: * | K49: * | L49: 7261 | M49: 29809 | N49: 614 | O49: 966 | P49: 0 | Q49: 4 | R49: 26 | S49: 31419 | T49: 2589 | U49: 0.36 | V49: 2261 | W49: 0.31 | X49: 1761 | Y49: 0.24 | Z49: 650 | AA49: 0.09 | AB49: OK | AC49: 123 | AD49: 527 | AE49: 69475
B50: 1999Falkirk | D50: 1999 | E50: Falkirk | F50: 2002 | G50: 125 | H50: 19 | I50: 18 | J50: 65 | K50: 191 | L50: 2420 | M50: 10350 | N50: 573 | O50: 419 | P50: 449 | Q50: 538 | R50: 986 | S50: 13315 | T50: 384 | U50: 0.16 | V50: 938 | W50: 0.39 | X50: 784 | Y50: 0.32 | Z50: 314 | AA50: 0.13 | AB50: OK | AC50: 60 | AD50: 254 | AE50: 21936
B51: 1999Fife | D51: 1999 | E51: Fife | F51: 7266 | G51: 225 | H51: 0 | I51: 0 | J51: 0 | K51: 0 | L51: 7491 | M51: 24319 | N51: 750 | O51: 0 | P51: 0 | Q51: 0 | R51: 0 | S51: 25069 | T51: 4151 | U51: 0.55 | V51: 1631 | W51: 0.22 | X51: 1408 | Y51: 0.19 | Z51: 301 | AA51: 0.04 | AB51: OK | AC51: 57 | AD51: 244 | AE51: 55833
B52: 1999Glasgow City | D52: 1999 | E52: Glasgow City | F52: 9678 | G52: 41 | H52: 41 | I52: 56 | J52: 222 | K52: 10 | L52: 10048 | M52: 44780 | N52: 250 | O52: 409 | P52: 940 | Q52: 2670 | R52: 223 | S52: 49272 | T52: 2447 | U52: 0.24 | V52: 2776 | W52: 0.28 | X52: 3251 | Y52: 0.32 | Z52: 1574 | AA52: 0.16 | AB52: OK | AC52: 299 | AD52: 1275 | AE52: 92299
B53: 1999Highland | D53: 1999 | E53: Highland | F53: 2979 | G53: * | H53: 10 | I53: * | J53: 0 | K53: 0 | L53: 2999 | M53: 11831 | N53: 26 | O53: 221 | P53: 84 | Q53: 0 | R53: 0 | S53: 12162 | T53: 1090 | U53: 0.36 | V53: 719 | W53: 0.24 | X53: 975 | Y53: 0.33 | Z53: 215 | AA53: 0.07 | AB53: OK | AC53: 41 | AD53: 174 | AE53: 33886
B54: 1999Inverclyde | D54: 1999 | E54: Inverclyde | F54: 1311 | G54: 0 | H54: 0 | I54: 0 | J54: 0 | K54: 0 | L54: 1311 | M54: 5744 | N54: 0 | O54: 0 | P54: 0 | Q54: 0 | R54: 0 | S54: 5744 | T54: 529 | U54: 0.4 | V54: 345 | W54: 0.26 | X54: 301 | Y54: 0.23 | Z54: 136 | AA54: 0.1 | AB54: OK | AC54: 26 | AD54: 110 | AE54: 13980
B55: 1999Midlothian | D55: 1999 | E55: Midlothian | F55: 1201 | G55: 26 | H55: 26 | I55: 0 | J55: 0 | K55: 0 | L55: 1253 | M55: 5201 | N55: 69 | O55: 295 | P55: 0 | Q55: 0 | R55: 0 | S55: 5565 | T55: 556 | U55: 0.44 | V55: 285 | W55: 0.23 | X55: 317 | Y55: 0.25 | Z55: 95 | AA55: 0.08 | AB55: OK | AC55: 18 | AD55: 77 | AE55: 11717
B56: 1999Moray | D56: 1999 | E56: Moray | F56: 1112 | G56: 28 | H56: 18 | I56: 5 | J56: 0 | K56: 0 | L56: 1163 | M56: 5969 | N56: 209 | O56: 334 | P56: 18 | Q56: 0 | R56: 0 | S56: 6530 | T56: 331 | U56: 0.28 | V56: 344 | W56: 0.3 | X56: 336 | Y56: 0.29 | Z56: 152 | AA56: 0.13 | AB56: OK | AC56: 29 | AD56: 123 | AE56: 13846
B57: 1999North Ayrshire | D57: 1999 | E57: North Ayrshire | F57: 1522 | G57: 0 | H57: 18 | I57: 150 | J57: 6 | K57: 0 | L57: 1696 | M57: 8039 | N57: 205 | O57: 190 | P57: 2410 | Q57: 29 | R57: 0 | S57: 10873 | T57: 426 | U57: 0.25 | V57: 324 | W57: 0.19 | X57: 619 | Y57: 0.36 | Z57: 327 | AA57: 0.19 | AB57: OK | AC57: 62 | AD57: 265 | AE57: 21504
B58: 1999North Lanarkshire | D58: 1999 | E58: North Lanarkshire | F58: 2751 | G58: 124 | H58: 6 | I58: 78 | J58: 40 | K58: 0 | L58: 2999 | M58: 18077 | N58: 676 | O58: 30 | P58: 564 | Q58: 357 | R58: 0 | S58: 19704 | T58: 647 | U58: 0.22 | V58: 775 | W58: 0.26 | X58: 1030 | Y58: 0.34 | Z58: 547 | AA58: 0.18 | AB58: OK | AC58: 104 | AD58: 443 | AE58: 43905
B59: 1999Orkney Islands | D59: 1999 | E59: Orkney Islands | F59: 390 | G59: 57 | H59: 0 | I59: 0 | J59: 45 | K59: 0 | L59: 492 | M59: 2505 | N59: 126 | O59: 0 | P59: 0 | Q59: 100 | R59: 0 | S59: 2731 | T59: 45 | U59: 0.09 | V59: 101 | W59: 0.21 | X59: 155 | Y59: 0.32 | Z59: 191 | AA59: 0.39 | AB59: OK | AC59: 36 | AD59: 155 | AE59: 3181
B60: 1999Perth & Kinross | D60: 1999 | E60: Perth & Kinross | F60: 1427 | G60: 52 | H60: 0 | I60: 0 | J60: 0 | K60: 0 | L60: 1479 | M60: 4485 | N60: 208 | O60: 0 | P60: 0 | Q60: 0 | R60: 0 | S60: 4693 | T60: 679 | U60: 0.46 | V60: 502 | W60: 0.34 | X60: 237 | Y60: 0.16 | Z60: 61 | AA60: 0.04 | AB60: OK | AC60: 12 | AD60: 49 | AE60: 24548
B61: 1999Renfrewshire | D61: 1999 | E61: Renfrewshire | F61: 2432 | G61: * | H61: 29 | I61: 29 | J61: * | K61: * | L61: 2505 | M61: 13560 | N61: 125 | O61: 372 | P61: 600 | Q61: 39 | R61: 40 | S61: 14736 | T61: 727 | U61: 0.29 | V61: 594 | W61: 0.24 | X61: 801 | Y61: 0.32 | Z61: 383 | AA61: 0.15 | AB61: OK | AC61: 73 | AD61: 310 | AE61: 26110
B62: 1999Scottish Borders | D62: 1999 | E62: Scottish Borders | F62: 1283 | G62: 198 | H62: 66 | I62: 10 | J62: 19 | K62: 0 | L62: 1576 | M62: 5693 | N62: 1066 | O62: 348 | P62: 83 | Q62: 232 | R62: 0 | S62: 7422 | T62: 403 | U62: 0.26 | V62: 575 | W62: 0.36 | X62: 423 | Y62: 0.27 | Z62: 175 | AA62: 0.11 | AB62: OK | AC62: 33 | AD62: 142 | AE62: 19890
B63: 1999Shetland Islands | D63: 1999 | E63: Shetland Islands | F63: 472 | G63: 42 | H63: 0 | I63: 0 | J63: 0 | K63: 0 | L63: 514 | M63: 1899 | N63: 681 | O63: 0 | P63: 0 | Q63: 0 | R63: 0 | S63: 2580 | T63: 231 | U63: 0.45 | V63: 125 | W63: 0.24 | X63: 95 | Y63: 0.18 | Z63: 63 | AA63: 0.12 | AB63: OK | AC63: 12 | AD63: 51 | AE63: 3018
B64: 1999South Ayrshire | D64: 1999 | E64: South Ayrshire | F64: 1115 | G64: 0 | H64: * | I64: 62 | J64: 15 | K64: * | L64: 1199 | M64: 6461 | N64: 0 | O64: 64 | P64: 737 | Q64: 202 | R64: 17 | S64: 7481 | T64: 249 | U64: 0.21 | V64: 215 | W64: 0.18 | X64: 472 | Y64: 0.39 | Z64: 263 | AA64: 0.22 | AB64: OK | AC64: 50 | AD64: 213 | AE64: 21049
B65: 1999South Lanarkshire | D65: 1999 | E65: South Lanarkshire | F65: 2398 | G65: 0 | H65: 195 | I65: 180 | J65: 0 | K65: 0 | L65: 2773 | M65: 14632 | N65: 0 | O65: 1796 | P65: 3204 | Q65: 0 | R65: 0 | S65: 19632 | T65: 489 | U65: 0.18 | V65: 706 | W65: 0.25 | X65: 1047 | Y65: 0.38 | Z65: 531 | AA65: 0.19 | AB65: OK | AC65: 101 | AD65: 430 | AE65: 44755
B66: 1999Stirling | D66: 1999 | E66: Stirling | F66: 834 | G66: 30 | H66: 41 | I66: * | J66: 13 | K66: * | L66: 930 | M66: 4091 | N66: 167 | O66: 2355 | P66: 208 | Q66: 132 | R66: 230 | S66: 7183 | T66: 300 | U66: 0.32 | V66: 251 | W66: 0.27 | X66: 227 | Y66: 0.24 | Z66: 152 | AA66: 0.16 | AB66: OK | AC66: 29 | AD66: 123 | AE66: 13103
B67: 1999West Dunbartonshire | D67: 1999 | E67: West Dunbartonshire | F67: * | G67: 29 | H67: 5 | I67: * | J67: * | K67: 0 | L67: 1760 | M67: 10637 | N67: 248 | O67: 396 | P67: 227 | Q67: 70 | R67: 0 | S67: 11578 | T67: 187 | U67: 0.11 | V67: 496 | W67: 0.28 | X67: 805 | Y67: 0.46 | Z67: 272 | AA67: 0.15 | AB67: OK | AC67: 52 | AD67: 220 | AE67: 14777
B68: 1999West Lothian | D68: 1999 | E68: West Lothian | F68: 1401 | G68: 0 | H68: 411 | I68: 0 | J68: 0 | K68: 0 | L68: 1812 | M68: 5367 | N68: 0 | O68: 2420 | P68: 0 | Q68: 0 | R68: 0 | S68: 7787 | T68: 479 | U68: 0.26 | V68: 702 | W68: 0.39 | X68: 531 | Y68: 0.29 | Z68: 100 | AA68: 0.06 | AB68: OK | AC68: 19 | AD68: 81 | AE68: 17455
B69: 1999Eilean Siar | D69: 1999 | E69: Eilean Siar | F69: 841 | G69: 29 | H69: 0 | I69: 0 | J69: 0 | K69: 0 | L69: 870 | M69: 5618 | N69: 83 | O69: 0 | P69: 0 | Q69: 0 | R69: 0 | S69: 5701 | T69: 176 | U69: 0.2 | V69: 192 | W69: 0.22 | X69: 334 | Y69: 0.38 | Z69: 168 | AA69: 0.19 | AB69: OK | AC69: 32 | AD69: 136 | AE69: 5220
B70: 2000Aberdeen City | D70: 2000 | E70: Aberdeen City | F70: 3193 | G70: 48 | H70: 361 | I70: 0 | J70: 0 | K70: 0 | L70: 3602 | M70: 13284.25 | N70: 202 | O70: 1502 | P70: 0 | Q70: 0 | R70: 0 | S70: 14988.25 | T70: 579 | U70: 0.16 | V70: 1375 | W70: 0.38 | X70: 1191 | Y70: 0.33 | Z70: 457 | AA70: 0.13 | AB70: OK | AC70: 89 | AD70: 368 | AE70: 32366
B71: =D71&E71 -> 2000Aberdeenshire | D71: 2000 | E71: Aberdeenshire | F71: 1953 | G71: 46 | H71: 53 | I71: 0 | J71: 0 | K71: 0 | L71: 2052 | M71: 14438.59 | N71: 340.4 | O71: 392.2 | P71: 0 | Q71: 0 | R71: 0 | S71: 15171.19 | T71: 388 | U71: 0.19 | V71: 793 | W71: 0.39 | X71: 602 | Y71: 0.29 | Z71: 269 | AA71: 0.13 | AB71: OK | AC71: 52 | AD71: 217 | AE71: 31652
B72: 2000Angus | D72: 2000 | E72: Angus | F72: 1443 | G72: 107 | H72: 0 | I72: 0 | J72: 252 | K72: 0 | L72: 1802 | M72: 4482 | N72: 193 | O72: 0 | P72: 0 | Q72: 1184 | R72: 0 | S72: 5859 | T72: 1090 | U72: 0.6 | V72: 340 | W72: 0.19 | X72: 246 | Y72: 0.14 | Z72: 126 | AA72: 0.07 | AB72: OK | AC72: 24 | AD72: 102 | AE72: 19304
B73: 2000Argyll & Bute | D73: 2000 | E73: Argyll & Bute | F73: * | G73: 0 | H73: * | I73: 0 | J73: 0 | K73: 0 | L73: 973 | M73: 6047.75 | N73: 0 | O73: 20 | P73: 0 | Q73: 0 | R73: 0 | S73: 6067.75 | T73: 42 | U73: 0.04 | V73: 207 | W73: 0.21 | X73: 488 | Y73: 0.5 | Z73: 236 | AA73: 0.24 | AB73: OK | AC73: 46 | AD73: 190 | AE73: 16590
B74: 2000Clackmannanshire | D74: 2000 | E74: Clackmannanshire | F74: 252 | G74: 28 | H74: * | I74: 16 | J74: * | K74: * | L74: 652 | M74: 1367 | N74: 218.5 | O74: 3327 | P74: 174.25 | Q74: 32.75 | R74: 120.75 | S74: 5240.25 | T74: 165 | U74: 0.25 | V74: 141 | W74: 0.22 | X74: 157 | Y74: 0.24 | Z74: 189 | AA74: 0.29 | AB74: OK | AC74: 37 | AD74: 152 | AE74: 6920
B75: 2000Dumfries & Galloway | D75: 2000 | E75: Dumfries & Galloway | F75: 1064 | G75: * | H75: 462 | I75: 132 | J75: 0 | K75: * | L75: 1669 | M75: 6300 | N75: 81 | O75: 4960 | P75: 2625 | Q75: 0 | R75: 10 | S75: 13976 | T75: 205 | U75: 0.12 | V75: 436 | W75: 0.26 | X75: 645 | Y75: 0.39 | Z75: 383 | AA75: 0.23 | AB75: OK | AC75: 74 | AD75: 309 | AE75: 28020
B76: 2000Dundee City | D76: 2000 | E76: Dundee City | F76: 2714 | G76: 50 | H76: 26 | I76: 24 | J76: 71 | K76: 6 | L76: 2891 | M76: 6919.88 | N76: 1010.5 | O76: 507 | P76: 620.55 | Q76: 1083.08 | R76: 178.92 | S76: 10319.93 | T76: 1634 | U76: 0.57 | V76: 740 | W76: 0.26 | X76: 293 | Y76: 0.1 | Z76: 224 | AA76: 0.08 | AB76: OK | AC76: 43 | AD76: 181 | AE76: 25721
B77: 2000East Ayrshire | D77: 2000 | E77: East Ayrshire | F77: 1124 | G77: * | H77: 49 | I77: 137 | J77: 33 | K77: * | L77: 1348 | M77: 5984.25 | N77: 5 | O77: 489.75 | P77: 1975.75 | Q77: 417.5 | R77: 248 | S77: 9120.25 | T77: 88 | U77: 0.07 | V77: 494 | W77: 0.37 | X77: 485 | Y77: 0.36 | Z77: 281 | AA77: 0.21 | AB77: OK | AC77: 55 | AD77: 226 | AE77: 19251
B78: 2000East Dunbartonshire | D78: 2000 | E78: East Dunbartonshire | F78: 942 | G78: 11 | H78: 27 | I78: 28 | J78: 14 | K78: 0 | L78: 1022 | M78: 4440 | N78: 75.25 | O78: 387.5 | P78: 493.5 | Q78: 165.5 | R78: 0 | S78: 5561.75 | T78: 207 | U78: 0.2 | V78: 362 | W78: 0.35 | X78: 320 | Y78: 0.31 | Z78: 133 | AA78: 0.13 | AB78: OK | AC78: 26 | AD78: 107 | AE78: 16456
B79: 2000East Lothian | D79: 2000 | E79: East Lothian | F79: 1063 | G79: 73 | H79: 151 | I79: 0 | J79: 0 | K79: 0 | L79: 1287 | M79: 5716 | N79: 321 | O79: 1488 | P79: 0 | Q79: 0 | R79: 0 | S79: 7525 | T79: 341 | U79: 0.26 | V79: 428 | W79: 0.33 | X79: 338 | Y79: 0.26 | Z79: 180 | AA79: 0.14 | AB79: OK | AC79: 35 | AD79: 145 | AE79: 15420
B80: 2000East Renfrewshire | D80: 2000 | E80: East Renfrewshire | F80: 772 | G80: * | H80: 44 | I80: 15 | J80: * | K80: 0 | L80: 847 | M80: 4303.75 | N80: 217.5 | O80: 339 | P80: 219.5 | Q80: 64 | R80: 0 | S80: 5143.75 | T80: 255 | U80: 0.3 | V80: 180 | W80: 0.21 | X80: 231 | Y80: 0.27 | Z80: 181 | AA80: 0.21 | AB80: OK | AC80: 35 | AD80: 146 | AE80: 13755
B81: 2000Edinburgh, City of | D81: 2000 | E81: Edinburgh, City of | F81: 5881 | G81: 116 | H81: 162 | I81: 196 | J81: 38 | K81: 0 | L81: 6393 | M81: 26225.6 | N81: 1555 | O81: 2258 | P81: 3341.6 | Q81: 585.5 | R81: 0 | S81: 33965.7 | T81: 2152 | U81: 0.34 | V81: 1834 | W81: 0.29 | X81: 1590 | Y81: 0.25 | Z81: 817 | AA81: 0.13 | AB81: OK | AC81: 159 | AD81: 658 | AE81: 69246
B82: 2000Falkirk | D82: 2000 | E82: Falkirk | F82: 2035 | G82: 41 | H82: 20 | I82: 25 | J82: 41 | K82: 125 | L82: 2287 | M82: 10968.5 | N82: 117 | O82: 385 | P82: 853 | Q82: 337 | R82: 1607 | S82: 14267.5 | T82: 390 | U82: 0.17 | V82: 761 | W82: 0.33 | X82: 702 | Y82: 0.31 | Z82: 434 | AA82: 0.19 | AB82: OK | AC82: 84 | AD82: 350 | AE82: 22148
B83: 2000Fife | D83: 2000 | E83: Fife | F83: 6375 | G83: 121 | H83: 0 | I83: 0 | J83: 0 | K83: 0 | L83: 6496 | M83: 25985 | N83: 388.5 | O83: 0 | P83: 0 | Q83: 0 | R83: 0 | S83: 26373.5 | T83: 2698 | U83: 0.42 | V83: 1609 | W83: 0.25 | X83: 1651 | Y83: 0.25 | Z83: 538 | AA83: 0.08 | AB83: OK | AC83: 104 | AD83: 434 | AE83: 56345
B84: 2000Glasgow City | D84: 2000 | E84: Glasgow City | F84: 9482 | G84: 17 | H84: 18 | I84: 73 | J84: 166 | K84: 7 | L84: 9763 | M84: 55411.2 | N84: 140 | O84: 205.4 | P84: 1131.9 | Q84: 2245 | R84: 199.5 | S84: 59333 | T84: 1442 | U84: 0.15 | V84: 2990 | W84: 0.31 | X84: 3704 | Y84: 0.38 | Z84: 1627 | AA84: 0.17 | AB84: OK | AC84: 316 | AD84: 1311 | AE84: 91419
B85: 2000Highland | D85: 2000 | E85: Highland | F85: 2862 | G85: 12 | H85: 23 | I85: 8 | J85: 10 | K85: 0 | L85: 2915 | M85: 11972 | N85: 143 | O85: 386.5 | P85: 88.5 | Q85: 92.5 | R85: 0 | S85: 12682.5 | T85: 615 | U85: 0.21 | V85: 962 | W85: 0.33 | X85: 1039 | Y85: 0.36 | Z85: 299 | AA85: 0.1 | AB85: OK | AC85: 58 | AD85: 241 | AE85: 34327
B86: 2000Inverclyde | D86: 2000 | E86: Inverclyde | F86: 1281 | G86: 0 | H86: 0 | I86: 0 | J86: 0 | K86: 0 | L86: 1281 | M86: 5698 | N86: 0 | O86: 0 | P86: 0 | Q86: 0 | R86: 0 | S86: 5698 | T86: 382 | U86: 0.3 | V86: 426 | W86: 0.33 | X86: 342 | Y86: 0.27 | Z86: 131 | AA86: 0.1 | AB86: OK | AC86: 25 | AD86: 106 | AE86: 13973
B87: 2000Midlothian | D87: 2000 | E87: Midlothian | F87: 1059 | G87: 130 | H87: 130 | I87: 0 | J87: 0 | K87: 0 | L87: 1319 | M87: 5475 | N87: 73 | O87: 310 | P87: 0 | Q87: 0 | R87: 0 | S87: 5858 | T87: 209 | U87: 0.16 | V87: 573 | W87: 0.43 | X87: 372 | Y87: 0.28 | Z87: 165 | AA87: 0.13 | AB87: OK | AC87: 32 | AD87: 133 | AE87: 11904
B88: 2000Moray | D88: 2000 | E88: Moray | F88: 968 | G88: 22 | H88: 60 | I88: 6 | J88: 0 | K88: 0 | L88: 1056 | M88: 5465 | N88: 204 | O88: 1297 | P88: 110 | Q88: 0 | R88: 0 | S88: 7076 | T88: 174 | U88: 0.16 | V88: 376 | W88: 0.36 | X88: 300 | Y88: 0.28 | Z88: 206 | AA88: 0.2 | AB88: OK | AC88: 40 | AD88: 166 | AE88: 14020
B89: 2000North Ayrshire | D89: 2000 | E89: North Ayrshire | F89: 1473 | G89: * | H89: * | I89: 125 | J89: * | K89: * | L89: 1629 | M89: 8656.95 | N89: * | O89: 296.5 | P89: 1735.16 | Q89: * | R89: 28.5 | S89: 10722.11 | T89: 250 | U89: 0.15 | V89: 409 | W89: 0.25 | X89: 643 | Y89: 0.39 | Z89: 327 | AA89: 0.2 | AB89: OK | AC89: 63 | AD89: 264 | AE89: 21645
B90: 2000North Lanarkshire | D90: 2000 | E90: North Lanarkshire | F90: 2725 | G90: 176 | H90: 8 | I90: 110 | J90: 56 | K90: 0 | L90: 3075 | M90: 18759.5 | N90: 374 | O90: 17 | P90: 312 | Q90: 197 | R90: 0 | S90: 19659.5 | T90: 691 | U90: 0.22 | V90: 684 | W90: 0.22 | X90: 1080 | Y90: 0.35 | Z90: 620 | AA90: 0.2 | AB90: OK | AC90: 120 | AD90: 500 | AE90: 44313
B91: 2000Orkney Islands | D91: 2000 | E91: Orkney Islands | F91: 361 | G91: 104 | H91: 0 | I91: 0 | J91: 0 | K91: 0 | L91: 465 | M91: 2307 | N91: 229.5 | O91: 0 | P91: 0 | Q91: 0 | R91: 0 | S91: 2536.5 | T91: 54 | U91: 0.12 | V91: 146 | W91: 0.31 | X91: 191 | Y91: 0.41 | Z91: 74 | AA91: 0.16 | AB91: OK | AC91: 14 | AD91: 60 | AE91: 3201
B92: 2000Perth & Kinross | D92: 2000 | E92: Perth & Kinross | F92: 1412 | G92: 51 | H92: 0 | I92: 0 | J92: 0 | K92: 0 | L92: 1463 | M92: 4306.6 | N92: 601 | O92: 0 | P92: 0 | Q92: 0 | R92: 0 | S92: 4907.6 | T92: 646 | U92: 0.44 | V92: 492 | W92: 0.34 | X92: 249 | Y92: 0.17 | Z92: 76 | AA92: 0.05 | AB92: OK | AC92: 15 | AD92: 61 | AE92: 24824
B93: 2000Renfrewshire | D93: 2000 | E93: Renfrewshire | F93: 2304 | G93: * | H93: 73 | I93: 65 | J93: * | K93: * | L93: 2453 | M93: 14805 | N93: * | O93: 1332 | P93: 1544 | Q93: * | R93: 75 | S93: 17787 | T93: 674 | U93: 0.27 | V93: 496 | W93: 0.2 | X93: 754 | Y93: 0.31 | Z93: 529 | AA93: 0.22 | AB93: OK | AC93: 103 | AD93: 426 | AE93: 26275
B94: 2000Scottish Borders | D94: 2000 | E94: Scottish Borders | F94: 1223 | G94: 156 | H94: 159 | I94: 11 | J94: 20 | K94: 0 | L94: 1569 | M94: 5935.75 | N94: 885.75 | O94: 800.75 | P94: 140.25 | Q94: 175.25 | R94: 0 | S94: 7937.75 | T94: 366 | U94: 0.23 | V94: 542 | W94: 0.35 | X94: 440 | Y94: 0.28 | Z94: 221 | AA94: 0.14 | AB94: OK | AC94: 43 | AD94: 178 | AE94: 19980
B95: 2000Shetland Islands | D95: 2000 | E95: Shetland Islands | F95: 476 | G95: 177 | H95: 0 | I95: 0 | J95: 6 | K95: 0 | L95: 659 | M95: 1753.75 | N95: 717.75 | O95: 0 | P95: 0 | Q95: 130.5 | R95: 0 | S95: 2602 | T95: 199 | U95: 0.3 | V95: 233 | W95: 0.35 | X95: 148 | Y95: 0.22 | Z95: 79 | AA95: 0.12 | AB95: OK | AC95: 15 | AD95: 64 | AE95: 3062
B96: 2000South Ayrshire | D96: 2000 | E96: South Ayrshire | F96: * | G96: 0 | H96: 203 | I96: 54 | J96: 0 | K96: * | L96: 1358 | M96: 6545 | N96: 0 | O96: 2785 | P96: 1099.3 | Q96: 0 | R96: 0 | S96: 10429.3 | T96: 319 | U96: 0.23 | V96: 216 | W96: 0.16 | X96: 440 | Y96: 0.32 | Z96: 383 | AA96: 0.28 | AB96: OK | AC96: 74 | AD96: 309 | AE96: 21225
B97: 2000South Lanarkshire | D97: 2000 | E97: South Lanarkshire | F97: 2213 | G97: 0 | H97: 234 | I97: 182 | J97: 0 | K97: 0 | L97: 2629 | M97: 13851.15 | N97: 2206.5 | O97: 0 | P97: 3113 | Q97: 0 | R97: 0 | S97: 19170.65 | T97: 191 | U97: 0.07 | V97: 772 | W97: 0.29 | X97: 1087 | Y97: 0.41 | Z97: 579 | AA97: 0.22 | AB97: OK | AC97: 112 | AD97: 467 | AE97: 45159
B98: 2000Stirling | D98: 2000 | E98: Stirling | F98: 806 | G98: 49 | H98: 40 | I98: * | J98: 17 | K98: * | L98: 921 | M98: 3878.75 | N98: 202.5 | O98: 2518.25 | P98: 147 | Q98: 194 | R98: 125.5 | S98: 7066 | T98: 121 | U98: 0.13 | V98: 396 | W98: 0.43 | X98: 244 | Y98: 0.26 | Z98: 160 | AA98: 0.17 | AB98: OK | AC98: 31 | AD98: 129 | AE98: 13222
B99: 2000West Dunbartonshire | D99: 2000 | E99: West Dunbartonshire | F99: 1716 | G99: 38 | H99: 13 | I99: 0 | J99: 0 | K99: 0 | L99: 1767 | M99: 10235.55 | N99: 949.75 | O99: 333 | P99: 0 | Q99: 0 | R99: 0 | S99: 11518.3 | T99: 244 | U99: 0.14 | V99: 507 | W99: 0.29 | X99: 748 | Y99: 0.42 | Z99: 268 | AA99: 0.15 | AB99: OK | AC99: 52 | AD99: 216 | AE99: 14703
B100: 2000West Lothian | D100: 2000 | E100: West Lothian | F100: 1227 | G100: 0 | H100: 296 | I100: 241 | J100: 0 | K100: 0 | L100: 1764 | M100: 4713.45 | N100: 0 | O100: 1906.78 | P100: 2347.73 | Q100: 0 | R100: 0 | S100: 8967.96 | T100: 270 | U100: 0.15 | V100: 662 | W100: 0.38 | X100: 612 | Y100: 0.35 | Z100: 220 | AA100: 0.12 | AB100: OK | AC100: 43 | AD100: 177 | AE100: 17827
B101: 2000Eilean Siar | D101: 2000 | E101: Eilean Siar | F101: 803 | G101: 0 | H101: 0 | I101: 0 | J101: 0 | K101: 0 | L101: 803 | M101: 5538.55 | N101: 0 | O101: 0 | P101: 0 | Q101: 0 | R101: 0 | S101: 5538.55 | T101: 67 | U101: 0.08 | V101: 254 | W101: 0.32 | X101: 294 | Y101: 0.37 | Z101: 188 | AA101: 0.23 | AB101: OK | AC101: 36 | AD101: 152 | AE101: 5212
B102: 2001Aberdeen City | D102: 2001 | E102: Aberdeen City | F102: 2516 | G102: 57 | H102: 428 | I102: 0 | J102: 0 | K102: 0 | L102: 3001 | M102: 9391 | N102: 831 | O102: 6181 | P102: 0 | Q102: 0 | R102: 0 | S102: 16403 | T102: 1354 | U102: 0.45 | V102: 659 | W102: 0.22 | X102: 465 | Y102: 0.15 | Z102: 523 | AA102: 0.17 | AB102: OK | AC102: 104 | AD102: 419 | AE102: 32442
B103: 2001Aberdeenshire | D103: 2001 | E103: Aberdeenshire | F103: 1685 | G103: 55 | H103: 88 | I103: 0 | J103: 0 | K103: 0 | L103: 1828 | M103: 13806 | N103: 450 | O103: 721 | P103: 0 | Q103: 0 | R103: 0 | S103: 14977 | T103: 312 | U103: 0.17 | V103: 555 | W103: 0.3 | X103: 614 | Y103: 0.34 | Z103: 347 | AA103: 0.19 | AB103: OK | AC103: 69 | AD103: 278 | AE103: 32510
B104: 2001Angus | D104: 2001 | E104: Angus | F104: 1391 | G104: 117 | H104: 0 | I104: 0 | J104: 296 | K104: 0 | L104: 1804 | M104: 4388 | N104: 318 | O104: 0 | P104: 0 | Q104: 1404 | R104: 0 | S104: 6110 | T104: 1063 | U104: 0.59 | V104: 337 | W104: 0.19 | X104: 284 | Y104: 0.16 | Z104: 120 | AA104: 0.07 | AB104: OK | AC104: 24 | AD104: 96 | AE104: 19611
B105: 2001Argyll & Bute | D105: 2001 | E105: Argyll & Bute | F105: 918 | G105: 0 | H105: 0 | I105: 9 | J105: 0 | K105: 0 | L105: 927 | M105: 6593 | N105: 0 | O105: 0 | P105: 81 | Q105: 0 | R105: 0 | S105: 6674 | T105: 34 | U105: 0.04 | V105: 214 | W105: 0.23 | X105: 442 | Y105: 0.48 | Z105: 237 | AA105: 0.26 | AB105: OK | AC105: 47 | AD105: 190 | AE105: 16888
B106: 2001Clackmannanshire | D106: 2001 | E106: Clackmannanshire | F106: 257 | G106: 44 | H106: 344 | I106: * | J106: * | K106: * | L106: 656 | M106: 1454 | N106: 302 | O106: 3414 | P106: 40 | Q106: 78 | R106: 146 | S106: 5434 | T106: 66 | U106: 0.1 | V106: 239 | W106: 0.36 | X106: 188 | Y106: 0.29 | Z106: 163 | AA106: 0.25 | AB106: OK | AC106: 32 | AD106: 131 | AE106: 6959
B107: 2001Dumfries & Galloway | D107: 2001 | E107: Dumfries & Galloway | F107: 1133 | G107: 410 | H107: 472 | I107: 0 | J107: 0 | K107: 0 | L107: 2015 | M107: 7842 | N107: 4845 | O107: 5903 | P107: 0 | Q107: 0 | R107: 0 | S107: 18590 | T107: 217 | U107: 0.11 | V107: 634 | W107: 0.31 | X107: 594 | Y107: 0.29 | Z107: 570 | AA107: 0.28 | AB107: OK | AC107: 113 | AD107: 457 | AE107: 28445
B108: 2001Dundee City | D108: 2001 | E108: Dundee City | F108: 2215 | G108: 134 | H108: 27 | I108: 14 | J108: 48 | K108: 7 | L108: 2445 | M108: 6243 | N108: 361 | O108: 166 | P108: 144 | Q108: 508 | R108: 185 | S108: 7607 | T108: 1401 | U108: 0.57 | V108: 627 | W108: 0.26 | X108: 256 | Y108: 0.1 | Z108: 161 | AA108: 0.07 | AB108: OK | AC108: 32 | AD108: 129 | AE108: 25782
B109: 2001East Ayrshire | D109: 2001 | E109: East Ayrshire | F109: 1018 | G109: 0 | H109: 74 | I109: 197 | J109: * | K109: * | L109: 1311 | M109: 5579 | N109: 0 | O109: 865 | P109: 2567 | Q109: 258 | R109: 140 | S109: 9409 | T109: 88 | U109: 0.07 | V109: 461 | W109: 0.35 | X109: 451 | Y109: 0.34 | Z109: 311 | AA109: 0.24 | AB109: OK | AC109: 62 | AD109: 249 | AE109: 19380
B110: 2001East Dunbartonshire | D110: 2001 | E110: East Dunbartonshire | F110: 900 | G110: 7 | H110: 22 | I110: 45 | J110: * | K110: * | L110: 986 | M110: 3953 | N110: 37 | O110: 259 | P110: 697 | Q110: 171 | R110: 90 | S110: 5207 | T110: 240 | U110: 0.24 | V110: 322 | W110: 0.33 | X110: 282 | Y110: 0.29 | Z110: 142 | AA110: 0.14 | AB110: OK | AC110: 28 | AD110: 114 | AE110: 16853
B111: 2001East Lothian | D111: 2001 | E111: East Lothian | F111: 1003 | G111: 0 | H111: 192 | I111: 0 | J111: 0 | K111: 0 | L111: 1195 | M111: 5224 | N111: 0 | O111: 1882 | P111: 0 | Q111: 0 | R111: 0 | S111: 7106 | T111: 110 | U111: 0.09 | V111: 473 | W111: 0.4 | X111: 402 | Y111: 0.34 | Z111: 210 | AA111: 0.18 | AB111: OK | AC111: 42 | AD111: 168 | AE111: 15633
B112: 2001East Renfrewshire | D112: 2001 | E112: East Renfrewshire | F112: 674 | G112: 15 | H112: 49 | I112: * | J112: * | K112: 0 | L112: 765 | M112: 4211 | N112: 165 | O112: 329 | P112: 351 | Q112: 54 | R112: 0 | S112: 5110 | T112: 184 | U112: 0.24 | V112: 190 | W112: 0.25 | X112: 209 | Y112: 0.27 | Z112: 182 | AA112: 0.24 | AB112: OK | AC112: 36 | AD112: 146 | AE112: 14081
B113: 2001Edinburgh, City of | D113: 2001 | E113: Edinburgh, City of | F113: 5390 | G113: 144 | H113: 202 | I113: 182 | J113: 44 | K113: 7 | L113: 5969 | M113: 22646 | N113: 1903 | O113: 2108 | P113: 2891 | Q113: 728 | R113: 123 | S113: 30399 | T113: 2075 | U113: 0.35 | V113: 1701 | W113: 0.28 | X113: 1484 | Y113: 0.25 | Z113: 709 | AA113: 0.12 | AB113: OK | AC113: 141 | AD113: 568 | AE113: 69232
B114: 2001Falkirk | D114: 2001 | E114: Falkirk | F114: 2017 | G114: 43 | H114: 22 | I114: 48 | J114: 54 | K114: 97 | L114: 2281 | M114: 10851 | N114: 129 | O114: 399 | P114: 1008 | Q114: 619 | R114: 1019 | S114: 14025 | T114: 477 | U114: 0.21 | V114: 664 | W114: 0.29 | X114: 752 | Y114: 0.33 | Z114: 388 | AA114: 0.17 | AB114: OK | AC114: 77 | AD114: 311 | AE114: 22437
B115: 2001Fife | D115: 2001 | E115: Fife | F115: 5618 | G115: 240 | H115: 0 | I115: 0 | J115: 0 | K115: 0 | L115: 5858 | M115: 24122 | N115: 440 | O115: 0 | P115: 0 | Q115: 0 | R115: 0 | S115: 24562 | T115: 2355 | U115: 0.4 | V115: 1428 | W115: 0.24 | X115: 1517 | Y115: 0.26 | Z115: 558 | AA115: 0.1 | AB115: OK | AC115: 111 | AD115: 447 | AE115: 56955
B116: 2001Glasgow City | D116: 2001 | E116: Glasgow City | F116: 7802 | G116: 295 | H116: 205 | I116: 175 | J116: 255 | K116: 70 | L116: 8802 | M116: 49482 | N116: 1475 | O116: 820 | P116: 1400 | Q116: 1785 | R116: 862 | S116: 55824 | T116: 892 | U116: 0.1 | V116: 2597 | W116: 0.3 | X116: 3462 | Y116: 0.39 | Z116: 1851 | AA116: 0.21 | AB116: OK | AC116: 367 | AD116: 1484 | AE116: 90645
B117: 2001Highland | D117: 2001 | E117: Highland | F117: 2677 | G117: 24 | H117: 31 | I117: 11 | J117: 5 | K117: 0 | L117: 2748 | M117: 11904 | N117: 214 | O117: 774 | P117: 117 | Q117: 46 | R117: 0 | S117: 13055 | T117: 565 | U117: 0.21 | V117: 979 | W117: 0.36 | X117: 874 | Y117: 0.32 | Z117: 330 | AA117: 0.12 | AB117: OK | AC117: 65 | AD117: 265 | AE117: 34790
B118: 2001Inverclyde | D118: 2001 | E118: Inverclyde | F118: 1122 | G118: 0 | H118: 0 | I118: 0 | J118: * | K118: * | L118: 1146 | M118: 5584 | N118: 0 | O118: 0 | P118: 0 | Q118: 9 | R118: 215 | S118: 5808 | T118: 355 | U118: 0.31 | V118: 318 | W118: 0.28 | X118: 307 | Y118: 0.27 | Z118: 166 | AA118: 0.14 | AB118: OK | AC118: 33 | AD118: 133 | AE118: 14013
B119: 2001Midlothian | D119: 2001 | E119: Midlothian | F119: 1100 | G119: 31 | H119: 63 | I119: 39 | J119: 23 | K119: 0 | L119: 1256 | M119: 4641 | N119: 1176 | O119: 0 | P119: 1104 | Q119: 0 | R119: 0 | S119: 6921 | T119: 191 | U119: 0.15 | V119: 487 | W119: 0.39 | X119: 393 | Y119: 0.31 | Z119: 185 | AA119: 0.15 | AB119: OK | AC119: 37 | AD119: 148 | AE119: 12148
B120: 2001Moray | D120: 2001 | E120: Moray | F120: 923 | G120: 0 | H120: 119 | I120: 21 | J120: 0 | K120: 0 | L120: 1063 | M120: 5780 | N120: 0 | O120: 1659 | P120: 586 | Q120: 0 | R120: 0 | S120: 8025 | T120: 186 | U120: 0.17 | V120: 359 | W120: 0.34 | X120: 321 | Y120: 0.3 | Z120: 197 | AA120: 0.19 | AB120: OK | AC120: 39 | AD120: 158 | AE120: 14213
B121: 2001North Ayrshire | D121: 2001 | E121: North Ayrshire | F121: 1293 | G121: 0 | H121: 14 | I121: 183 | J121: 0 | K121: 0 | L121: 1490 | M121: 8619 | N121: 0 | O121: 79 | P121: 2989 | Q121: 0 | R121: 0 | S121: 11687 | T121: 103 | U121: 0.07 | V121: 451 | W121: 0.3 | X121: 526 | Y121: 0.35 | Z121: 410 | AA121: 0.28 | AB121: OK | AC121: 81 | AD121: 329 | AE121: 21969
B122: 2001North Lanarkshire | D122: 2001 | E122: North Lanarkshire | F122: 2793 | G122: * | H122: * | I122: 32 | J122: 17 | K122: 0 | L122: 2895 | M122: 22594 | N122: 665 | O122: 30 | P122: 555 | Q122: 350 | R122: 0 | S122: 24194 | T122: 393 | U122: 0.14 | V122: 624 | W122: 0.22 | X122: 1090 | Y122: 0.38 | Z122: 788 | AA122: 0.27 | AB122: OK | AC122: 156 | AD122: 632 | AE122: 44592
B123: 2001Orkney Islands | D123: 2001 | E123: Orkney Islands | F123: 348 | G123: 7 | H123: 0 | I123: 0 | J123: 87 | K123: 0 | L123: 442 | M123: 2470 | N123: 14 | O123: 0 | P123: 0 | Q123: 267 | R123: 0 | S123: 2751 | T123: 31 | U123: 0.07 | V123: 135 | W123: 0.31 | X123: 174 | Y123: 0.39 | Z123: 102 | AA123: 0.23 | AB123: OK | AC123: 20 | AD123: 82 | AE123: 3223
B124: 2001Perth & Kinross | D124: 2001 | E124: Perth & Kinross | F124: 1419 | G124: 58 | H124: 0 | I124: 0 | J124: 0 | K124: 0 | L124: 1477 | M124: 4830 | N124: 562 | O124: 0 | P124: 0 | Q124: 0 | R124: 0 | S124: 5392 | T124: 600 | U124: 0.41 | V124: 510 | W124: 0.35 | X124: 262 | Y124: 0.18 | Z124: 105 | AA124: 0.07 | AB124: OK | AC124: 21 | AD124: 84 | AE124: 25094
B125: 2001Renfrewshire | D125: 2001 | E125: Renfrewshire | F125: 2342 | G125: * | H125: * | I125: 55 | J125: 0 | K125: * | L125: 2542 | M125: 14031 | N125: 55 | O125: 1990 | P125: 1166 | Q125: 0 | R125: 83 | S125: 17325 | T125: 299 | U125: 0.12 | V125: 771 | W125: 0.3 | X125: 885 | Y125: 0.35 | Z125: 587 | AA125: 0.23 | AB125: OK | AC125: 116 | AD125: 471 | AE125: 26610
B126: 2001Scottish Borders | D126: 2001 | E126: Scottish Borders | F126: 1191 | G126: 0 | H126: 274 | I126: 26 | J126: 0 | K126: 0 | L126: 1491 | M126: 6724 | N126: 0 | O126: 1482 | P126: 368 | Q126: 0 | R126: 0 | S126: 8574 | T126: 308 | U126: 0.21 | V126: 459 | W126: 0.31 | X126: 469 | Y126: 0.31 | Z126: 255 | AA126: 0.17 | AB126: OK | AC126: 51 | AD126: 204 | AE126: 20225
B127: 2001Shetland Islands | D127: 2001 | E127: Shetland Islands | F127: 530 | G127: 183 | H127: 0 | I127: 0 | J127: 9 | K127: 0 | L127: 722 | M127: 2309 | N127: 703 | O127: 0 | P127: 0 | Q127: 241 | R127: 0 | S127: 3253 | T127: 202 | U127: 0.28 | V127: 256 | W127: 0.35 | X127: 151 | Y127: 0.21 | Z127: 113 | AA127: 0.16 | AB127: OK | AC127: 22 | AD127: 91 | AE127: 3086
B128: 2001South Ayrshire | D128: 2001 | E128: South Ayrshire | F128: 877 | G128: 0 | H128: 162 | I128: 132 | J128: 32 | K128: 0 | L128: 1203 | M128: 5734 | N128: 0 | O128: 2865 | P128: 900 | Q128: 179 | R128: 0 | S128: 9678 | T128: 62 | U128: 0.05 | V128: 201 | W128: 0.17 | X128: 326 | Y128: 0.27 | Z128: 614 | AA128: 0.51 | AB128: OK | AC128: 122 | AD128: 492 | AE128: 21524
B129: 2001South Lanarkshire | D129: 2001 | E129: South Lanarkshire | F129: 2043 | G129: 73 | H129: 148 | I129: 107 | J129: 65 | K129: 9 | L129: 2445 | M129: 13560 | N129: 557 | O129: 1894 | P129: 2286 | Q129: 835 | R129: 209 | S129: 19341 | T129: 187 | U129: 0.08 | V129: 652 | W129: 0.27 | X129: 998 | Y129: 0.41 | Z129: 608 | AA129: 0.25 | AB129: OK | AC129: 121 | AD129: 487 | AE129: 46043
B130: 2001Stirling | D130: 2001 | E130: Stirling | F130: 769 | G130: 36 | H130: 59 | I130: * | J130: 9 | K130: * | L130: 881 | M130: 4422.95 | N130: 194 | O130: 2697 | P130: 156 | Q130: 165 | R130: 93 | S130: 7727.95 | T130: 110 | U130: 0.12 | V130: 315 | W130: 0.36 | X130: 259 | Y130: 0.29 | Z130: 197 | AA130: 0.22 | AB130: OK | AC130: 39 | AD130: 158 | AE130: 13461
B131: 2001West Dunbartonshire | D131: 2001 | E131: West Dunbartonshire | F131: 1493 | G131: * | H131: * | I131: * | J131: 20 | K131: 0 | L131: 1558 | M131: 8911 | N131: 611 | O131: 156 | P131: 28 | Q131: 641 | R131: 0 | S131: 10347 | T131: 56 | U131: 0.04 | V131: 436 | W131: 0.28 | X131: 765 | Y131: 0.49 | Z131: 301 | AA131: 0.19 | AB131: OK | AC131: 60 | AD131: 241 | AE131: 14746
B132: 2001West Lothian | D132: 2001 | E132: West Lothian | F132: 983 | G132: 0 | H132: 373 | I132: 196 | J132: 0 | K132: 0 | L132: 1552 | M132: 3576 | N132: 0 | O132: 2418 | P132: 1841 | Q132: 0 | R132: 0 | S132: 7835 | T132: 332 | U132: 0.21 | V132: 536 | W132: 0.35 | X132: 508 | Y132: 0.33 | Z132: 176 | AA132: 0.11 | AB132: OK | AC132: 35 | AD132: 141 | AE132: 18335
B133: 2001Eilean Siar | D133: 2001 | E133: Eilean Siar | F133: 779 | G133: 0 | H133: 0 | I133: 0 | J133: 0 | K133: 0 | L133: 779 | M133: 5216 | N133: 0 | O133: 0 | P133: 0 | Q133: 0 | R133: 0 | S133: 5216 | T133: 89 | U133: 0.11 | V133: 247 | W133: 0.32 | X133: 271 | Y133: 0.35 | Z133: 172 | AA133: 0.22 | AB133: OK | AC133: 34 | AD133: 138 | AE133: 5256
B134: 2002Aberdeen City | D134: 2002 | E134: Aberdeen City | F134: 2247 | G134: 63 | H134: 469 | I134: 0 | J134: 0 | K134: 0 | L134: 2779 | M134: 7957 | N134: 904 | O134: 6724 | P134: 0 | Q134: 0 | R134: 0 | S134: 15585 | T134: 1264 | U134: 0.45 | V134: 558 | W134: 0.2 | X134: 579 | Y134: 0.21 | Z134: 378 | AA134: 0.14 | AB134: OK | AC134: 77 | AD134: 301 | AE134: 32387
B135: =D135&E135 -> 2002Aberdeenshire | D135: 2002 | E135: Aberdeenshire | F135: 1689 | G135: 51 | H135: 81 | I135: 28 | J135: 18 | K135: 0 | L135: 1867 | M135: 10752 | N135: 3368 | O135: 5389 | P135: 615 | Q135: 241 | R135: 0 | S135: 20365 | T135: 270 | U135: 0.14 | V135: 529 | W135: 0.28 | X135: 559 | Y135: 0.3 | Z135: 509 | AA135: 0.27 | AB135: OK | AC135: 103 | AD135: 406 | AE135: 33035
B136: 2002Angus | D136: 2002 | E136: Angus | F136: 1328 | G136: 116 | H136: 0 | I136: 0 | J136: 296 | K136: 0 | L136: 1740 | M136: 4278 | N136: 273 | O136: 0 | P136: 0 | Q136: 1480 | R136: 0 | S136: 6031 | T136: 1018 | U136: 0.59 | V136: 320 | W136: 0.18 | X136: 278 | Y136: 0.16 | Z136: 124 | AA136: 0.07 | AB136: OK | AC136: 25 | AD136: 99 | AE136: 19814
B137: 2002Argyll & Bute | D137: 2002 | E137: Argyll & Bute | F137: 945 | G137: 0 | H137: * | I137: * | J137: 0 | K137: * | L137: 957 | M137: 7185 | N137: 0 | O137: 42 | P137: * | Q137: 0 | R137: * | S137: 7334 | T137: 26 | U137: 0.03 | V137: 230 | W137: 0.24 | X137: 425 | Y137: 0.44 | Z137: 276 | AA137: 0.29 | AB137: OK | AC137: 56 | AD137: 220 | AE137: 17074
B138: 2002Clackmannanshire | D138: 2002 | E138: Clackmannanshire | F138: 188 | G138: 55 | H138: 390 | I138: * | J138: 0 | K138: * | L138: 648 | M138: 1088 | N138: 341 | O138: 3538 | P138: 20 | Q138: 0 | R138: 264 | S138: 5251 | T138: 65 | U138: 0.1 | V138: 222 | W138: 0.34 | X138: 205 | Y138: 0.32 | Z138: 156 | AA138: 0.24 | AB138: OK | AC138: 32 | AD138: 124 | AE138: 7059
B139: 2002Dumfries & Galloway | D139: 2002 | E139: Dumfries & Galloway | F139: 850 | G139: 173 | H139: 711 | I139: * | J139: * | K139: 0 | L139: 1755 | M139: 6350 | N139: 7006 | O139: 9022 | P139: 45 | Q139: 224 | R139: 0 | S139: 22647 | T139: 200 | U139: 0.11 | V139: 319 | W139: 0.18 | X139: 585 | Y139: 0.33 | Z139: 651 | AA139: 0.37 | AB139: OK | AC139: 132 | AD139: 519 | AE139: 28965
B140: 2002Dundee City | D140: 2002 | E140: Dundee City | F140: 1950 | G140: 123 | H140: * | I140: * | J140: 73 | K140: * | L140: 2166 | M140: 5944 | N140: 1956 | O140: 239 | P140: 118 | Q140: 1274 | R140: 360 | S140: 9891 | T140: 1147 | U140: 0.53 | V140: 493 | W140: 0.23 | X140: 264 | Y140: 0.12 | Z140: 262 | AA140: 0.12 | AB140: OK | AC140: 53 | AD140: 209 | AE140: 25703
B141: 2002East Ayrshire | D141: 2002 | E141: East Ayrshire | F141: 979 | G141: 0 | H141: * | I141: 249 | J141: * | K141: * | L141: 1361 | M141: 5193 | N141: 0 | O141: 1428 | P141: 3683 | Q141: 17 | R141: 15 | S141: 10336 | T141: 103 | U141: 0.08 | V141: 461 | W141: 0.34 | X141: 442 | Y141: 0.32 | Z141: 355 | AA141: 0.26 | AB141: OK | AC141: 72 | AD141: 283 | AE141: 19495
B142: 2002East Dunbartonshire | D142: 2002 | E142: East Dunbartonshire | F142: 948 | G142: 5 | H142: 25 | I142: 29 | J142: * | K142: * | L142: 1013 | M142: 4465 | N142: 57 | O142: 277 | P142: 352 | Q142: 78 | R142: 43 | S142: 5272 | T142: 269 | U142: 0.27 | V142: 333 | W142: 0.33 | X142: 254 | Y142: 0.25 | Z142: 157 | AA142: 0.15 | AB142: OK | AC142: 32 | AD142: 125 | AE142: 17322
B143: 2002East Lothian | D143: 2002 | E143: East Lothian | F143: 1068 | G143: 0 | H143: 199 | I143: 0 | J143: 0 | K143: 0 | L143: 1267 | M143: 4650 | N143: 0 | O143: 1872 | P143: 0 | Q143: 0 | R143: 0 | S143: 6522 | T143: 159 | U143: 0.13 | V143: 569 | W143: 0.45 | X143: 360 | Y143: 0.28 | Z143: 179 | AA143: 0.14 | AB143: OK | AC143: 36 | AD143: 143 | AE143: 15713
B144: 2002East Renfrewshire | D144: 2002 | E144: East Renfrewshire | F144: 603 | G144: 106 | H144: 64 | I144: 22 | J144: 138 | K144: 6 | L144: 939 | M144: 3786 | N144: 473 | O144: 671 | P144: 274 | Q144: 709 | R144: 61 | S144: 5974 | T144: 245 | U144: 0.26 | V144: 250 | W144: 0.27 | X144: 253 | Y144: 0.27 | Z144: 191 | AA144: 0.2 | AB144: OK | AC144: 39 | AD144: 152 | AE144: 14342
B145: 2002Edinburgh, City of | D145: 2002 | E145: Edinburgh, City of | F145: 5277 | G145: 136 | H145: 234 | I145: 263 | J145: 38 | K145: 10 | L145: 5958 | M145: 22724 | N145: 1776 | O145: 3127 | P145: 4181 | Q145: 650 | R145: 243 | S145: 32701 | T145: 2003 | U145: 0.34 | V145: 1638 | W145: 0.27 | X145: 1425 | Y145: 0.24 | Z145: 892 | AA145: 0.15 | AB145: OK | AC145: 181 | AD145: 711 | AE145: 68956
B146: 2002Falkirk | D146: 2002 | E146: Falkirk | F146: 1808 | G146: 43 | H146: 28 | I146: 44 | J146: 45 | K146: 130 | L146: 2098 | M146: 9940 | N146: 438 | O146: 396 | P146: 876 | Q146: 719 | R146: 906 | S146: 13275 | T146: 412 | U146: 0.2 | V146: 543 | W146: 0.26 | X146: 761 | Y146: 0.36 | Z146: 382 | AA146: 0.18 | AB146: OK | AC146: 77 | AD146: 305 | AE146: 22680
B147: 2002Fife | D147: 2002 | E147: Fife | F147: 5507 | G147: 122 | H147: 0 | I147: 0 | J147: 0 | K147: 0 | L147: 5629 | M147: 24977 | N147: 371 | O147: 0 | P147: 0 | Q147: 0 | R147: 0 | S147: 25348 | T147: 2301 | U147: 0.41 | V147: 1277 | W147: 0.23 | X147: 1502 | Y147: 0.27 | Z147: 549 | AA147: 0.1 | AB147: OK | AC147: 111 | AD147: 438 | AE147: 57579
B148: 2002Glasgow City | D148: 2002 | E148: Glasgow City | F148: 8184 | G148: 342 | H148: 172 | I148: * | J148: * | K148: * | L148: 8789 | M148: 81036 | N148: 3386 | O148: 1703 | P148: * | Q148: 861 | R148: * | S148: 87026 | T148: 456 | U148: 0.05 | V148: 2380 | W148: 0.27 | X148: 2980 | Y148: 0.34 | Z148: 2973 | AA148: 0.34 | AB148: OK | AC148: 602 | AD148: 2371 | AE148: 89581
B149: 2002Highland | D149: 2002 | E149: Highland | F149: 2619 | G149: 17 | H149: * | I149: 13 | J149: 0 | K149: * | L149: 2670 | M149: 11890 | N149: 156 | O149: 519 | P149: 130 | Q149: 0 | R149: 74 | S149: 12769 | T149: 608 | U149: 0.23 | V149: 840 | W149: 0.31 | X149: 917 | Y149: 0.34 | Z149: 305 | AA149: 0.11 | AB149: OK | AC149: 62 | AD149: 243 | AE149: 35303
B150: 2002Inverclyde | D150: 2002 | E150: Inverclyde | F150: 1078 | G150: 0 | H150: 127 | I150: 50 | J150: 0 | K150: 0 | L150: 1255 | M150: 4978 | N150: 0 | O150: 1852 | P150: 455 | Q150: 0 | R150: 0 | S150: 7285 | T150: 363 | U150: 0.29 | V150: 369 | W150: 0.29 | X150: 318 | Y150: 0.25 | Z150: 205 | AA150: 0.16 | AB150: OK | AC150: 42 | AD150: 163 | AE150: 13991
B151: 2002Midlothian | D151: 2002 | E151: Midlothian | F151: 941 | G151: 38 | H151: 76 | I151: 36 | J151: 22 | K151: 0 | L151: 1113 | M151: 4539 | N151: 290 | O151: 1231 | P151: 602 | Q151: 236 | R151: 0 | S151: 6898 | T151: 175 | U151: 0.16 | V151: 460 | W151: 0.41 | X151: 350 | Y151: 0.31 | Z151: 128 | AA151: 0.12 | AB151: OK | AC151: 26 | AD151: 102 | AE151: 12262
B152: 2002Moray | D152: 2002 | E152: Moray | F152: 973 | G152: 75 | H152: 71 | I152: 0 | J152: 0 | K152: 0 | L152: 1119 | M152: 5576 | N152: 412 | O152: 1188 | P152: 0 | Q152: 0 | R152: 0 | S152: 7176 | T152: 236 | U152: 0.21 | V152: 376 | W152: 0.34 | X152: 329 | Y152: 0.29 | Z152: 178 | AA152: 0.16 | AB152: OK | AC152: 36 | AD152: 142 | AE152: 14415
B153: 2002North Ayrshire | D153: 2002 | E153: North Ayrshire | F153: 1042 | G153: 0 | H153: 20 | I153: 239 | J153: 0 | K153: 0 | L153: 1301 | M153: 5758 | N153: 0 | O153: 191 | P153: 3772 | Q153: 0 | R153: 0 | S153: 9721 | T153: 74 | U153: 0.06 | V153: 421 | W153: 0.32 | X153: 442 | Y153: 0.34 | Z153: 364 | AA153: 0.28 | AB153: OK | AC153: 74 | AD153: 290 | AE153: 22300
B154: 2002North Lanarkshire | D154: 2002 | E154: North Lanarkshire | F154: 3210 | G154: 99 | H154: * | I154: 62 | J154: * | K154: 0 | L154: 3408 | M154: 28148 | N154: 1599 | O154: 72 | P154: 1334 | Q154: 842 | R154: 0 | S154: 31995 | T154: 410 | U154: 0.12 | V154: 765 | W154: 0.22 | X154: 1223 | Y154: 0.36 | Z154: 1010 | AA154: 0.3 | AB154: OK | AC154: 205 | AD154: 805 | AE154: 45021
B155: 2002Orkney Islands | D155: 2002 | E155: Orkney Islands | F155: 378 | G155: 29 | H155: 0 | I155: 0 | J155: 109 | K155: 0 | L155: 516 | M155: 2531 | N155: 76 | O155: 0 | P155: 0 | Q155: 280 | R155: 0 | S155: 2887 | T155: 91 | U155: 0.18 | V155: 116 | W155: 0.22 | X155: 175 | Y155: 0.34 | Z155: 134 | AA155: 0.26 | AB155: OK | AC155: 27 | AD155: 107 | AE155: 3274
B156: 2002Perth & Kinross | D156: 2002 | E156: Perth & Kinross | F156: 1451 | G156: 55 | H156: 26 | I156: 0 | J156: 0 | K156: 0 | L156: 1532 | M156: 5683 | N156: 662 | O156: 523 | P156: 0 | Q156: 0 | R156: 0 | S156: 6868 | T156: 599 | U156: 0.39 | V156: 479 | W156: 0.31 | X156: 303 | Y156: 0.2 | Z156: 151 | AA156: 0.1 | AB156: OK | AC156: 31 | AD156: 120 | AE156: 25424
B157: 2002Renfrewshire | D157: 2002 | E157: Renfrewshire | F157: 1876 | G157: 48 | H157: 84 | I157: 79 | J157: 11 | K157: 0 | L157: 2098 | M157: 12410 | N157: 615 | O157: 1513 | P157: 875 | Q157: 104 | R157: 0 | S157: 15517 | T157: 238 | U157: 0.11 | V157: 651 | W157: 0.31 | X157: 654 | Y157: 0.31 | Z157: 555 | AA157: 0.26 | AB157: OK | AC157: 112 | AD157: 443 | AE157: 26849
B158: 2002Scottish Borders | D158: 2002 | E158: Scottish Borders | F158: 1215 | G158: 318 | H158: 0 | I158: 0 | J158: 20 | K158: 0 | L158: 1553 | M158: 7612 | N158: 1713 | O158: 0 | P158: 0 | Q158: 300 | R158: 0 | S158: 9625 | T158: 285 | U158: 0.18 | V158: 472 | W158: 0.3 | X158: 485 | Y158: 0.31 | Z158: 311 | AA158: 0.2 | AB158: OK | AC158: 63 | AD158: 248 | AE158: 20414
B159: 2002Shetland Islands | D159: 2002 | E159: Shetland Islands | F159: 508 | G159: 35 | H159: 0 | I159: 0 | J159: 10 | K159: 0 | L159: 553 | M159: 1941 | N159: 1006 | O159: 0 | P159: 0 | Q159: 277 | R159: 0 | S159: 3224 | T159: 156 | U159: 0.28 | V159: 208 | W159: 0.38 | X159: 110 | Y159: 0.2 | Z159: 79 | AA159: 0.14 | AB159: OK | AC159: 16 | AD159: 63 | AE159: 3132
B160: 2002South Ayrshire | D160: 2002 | E160: South Ayrshire | F160: 745 | G160: 0 | H160: 346 | I160: 110 | J160: 97 | K160: 0 | L160: 1298 | M160: 6365 | N160: 0 | O160: 5175 | P160: 1755 | Q160: 585 | R160: 0 | S160: 13880 | T160: 99 | U160: 0.08 | V160: 274 | W160: 0.21 | X160: 442 | Y160: 0.34 | Z160: 483 | AA160: 0.37 | AB160: OK | AC160: 98 | AD160: 385 | AE160: 21740
B161: 2002South Lanarkshire | D161: 2002 | E161: South Lanarkshire | F161: 1774 | G161: 123 | H161: 249 | I161: 106 | J161: 74 | K161: 0 | L161: 2326 | M161: 11836 | N161: 910 | O161: 3094 | P161: 2214 | Q161: 1011 | R161: 0 | S161: 19065 | T161: 186 | U161: 0.08 | V161: 585 | W161: 0.25 | X161: 887 | Y161: 0.38 | Z161: 668 | AA161: 0.29 | AB161: OK | AC161: 135 | AD161: 533 | AE161: 46567
B162: 2002Stirling | D162: 2002 | E162: Stirling | F162: 861 | G162: 35 | H162: 84 | I162: * | J162: 16 | K162: * | L162: 1015 | M162: 5060 | N162: 110 | O162: 2776 | P162: 213 | Q162: 261 | R162: 107 | S162: 8527 | T162: 146 | U162: 0.14 | V162: 355 | W162: 0.35 | X162: 306 | Y162: 0.3 | Z162: 208 | AA162: 0.2 | AB162: OK | AC162: 42 | AD162: 166 | AE162: 13715
B163: 2002West Dunbartonshire | D163: 2002 | E163: West Dunbartonshire | F163: 1611 | G163: 10 | H163: 6 | I163: 7 | J163: 13 | K163: 0 | L163: 1647 | M163: 9897 | N163: 296 | O163: 243 | P163: 223 | Q163: 477 | R163: 0 | S163: 11136 | T163: 93 | U163: 0.06 | V163: 471 | W163: 0.29 | X163: 755 | Y163: 0.46 | Z163: 328 | AA163: 0.2 | AB163: OK | AC163: 66 | AD163: 262 | AE163: 14739
B164: 2002West Lothian | D164: 2002 | E164: West Lothian | F164: 892 | G164: 0 | H164: 338 | I164: 178 | J164: 0 | K164: 0 | L164: 1408 | M164: 3510 | N164: 0 | O164: 2373 | P164: 1807 | Q164: 0 | R164: 0 | S164: 7690 | T164: 306 | U164: 0.22 | V164: 415 | W164: 0.29 | X164: 450 | Y164: 0.32 | Z164: 237 | AA164: 0.17 | AB164: OK | AC164: 48 | AD164: 189 | AE164: 18741
B165: 2002Eilean Siar | D165: 2002 | E165: Eilean Siar | F165: 768 | G165: 0 | H165: 0 | I165: 0 | J165: 0 | K165: 0 | L165: 768 | M165: 4937 | N165: 0 | O165: 0 | P165: 0 | Q165: 0 | R165: 0 | S165: 4937 | T165: 80 | U165: 0.1 | V165: 255 | W165: 0.33 | X165: 256 | Y165: 0.33 | Z165: 177 | AA165: 0.23 | AB165: OK | AC165: 36 | AD165: 141 | AE165: 5259
B166: 2003Aberdeen City | D166: 2003 | E166: Aberdeen City | F166: 1974 | G166: 64 | H166: 476 | I166: 0 | J166: 0 | K166: 0 | L166: 2514 | M166: 6513 | N166: 701 | O166: 5212 | P166: 0 | Q166: 0 | R166: 0 | S166: 12426 | T166: 1216 | U166: 0.48 | V166: 537 | W166: 0.21 | X166: 479 | Y166: 0.19 | Z166: 282 | AA166: 0.11 | AB166: OK | AC166: 58 | AD166: 224 | AE166: 32318
B167: 2003Aberdeenshire | D167: 2003 | E167: Aberdeenshire | F167: 1604 | G167: 158 | H167: 0 | I167: 58 | J167: 54 | K167: 0 | L167: 1874 | M167: 10566 | N167: 7975 | O167: 0 | P167: 526 | Q167: 377 | R167: 0 | S167: 19444 | T167: 414 | U167: 0.22 | V167: 535 | W167: 0.29 | X167: 584 | Y167: 0.31 | Z167: 341 | AA167: 0.18 | AB167: OK | AC167: 71 | AD167: 270 | AE167: 33835
B168: 2003Angus | D168: 2003 | E168: Angus | F168: 1342 | G168: 129 | H168: 0 | I168: 0 | J168: 307 | K168: 0 | L168: 1778 | M168: 4128 | N168: 303 | O168: 0 | P168: 0 | Q168: 1424 | R168: 0 | S168: 5855 | T168: 1006 | U168: 0.57 | V168: 358 | W168: 0.2 | X168: 311 | Y168: 0.17 | Z168: 103 | AA168: 0.06 | AB168: OK | AC168: 21 | AD168: 82 | AE168: 20065
B169: 2003Argyll & Bute | D169: 2003 | E169: Argyll & Bute | F169: 927 | G169: 0 | H169: * | I169: * | J169: 0 | K169: 0 | L169: 965 | M169: 7168 | N169: 0 | O169: 574 | P169: 72 | Q169: 0 | R169: 0 | S169: 7814 | T169: 53 | U169: 0.05 | V169: 245 | W169: 0.25 | X169: 378 | Y169: 0.39 | Z169: 289 | AA169: 0.3 | AB169: OK | AC169: 60 | AD169: 229 | AE169: 17273
B170: 2003Clackmannanshire | D170: 2003 | E170: Clackmannanshire | F170: 142 | G170: 62 | H170: 463 | I170: 7 | J170: * | K170: * | L170: 680 | M170: 870 | N170: 696 | O170: 4075 | P170: 195 | Q170: 17 | R170: 316 | S170: 6169 | T170: 63 | U170: 0.09 | V170: 219 | W170: 0.32 | X170: 198 | Y170: 0.29 | Z170: 200 | AA170: 0.29 | AB170: OK | AC170: 41 | AD170: 159 | AE170: 7182
B171: 2003Dumfries & Galloway | D171: 2003 | E171: Dumfries & Galloway | F171: 1147 | G171: 354 | H171: 493 | I171: 24 | J171: 18 | K171: 12 | L171: 2048 | M171: 8917 | N171: 5839 | O171: 5654 | P171: 445 | Q171: 327 | R171: 261 | S171: 21443 | T171: 185 | U171: 0.09 | V171: 393 | W171: 0.19 | X171: 707 | Y171: 0.35 | Z171: 763 | AA171: 0.37 | AB171: OK | AC171: 158 | AD171: 605 | AE171: 29354
B172: 2003Dundee City | D172: 2003 | E172: Dundee City | F172: 1674 | G172: 102 | H172: 33 | I172: 18 | J172: 51 | K172: 8 | L172: 1886 | M172: 5110 | N172: 1375 | O172: 726 | P172: 298 | Q172: 784 | R172: 317 | S172: 8610 | T172: 1014 | U172: 0.54 | V172: 403 | W172: 0.21 | X172: 241 | Y172: 0.13 | Z172: 228 | AA172: 0.12 | AB172: OK | AC172: 47 | AD172: 181 | AE172: 25637
B173: 2003East Ayrshire | D173: 2003 | E173: East Ayrshire | F173: 917 | G173: 38 | H173: 210 | I173: 243 | J173: 20 | K173: 16 | L173: 1444 | M173: 5192 | N173: 289 | O173: 2390 | P173: 3248 | Q173: 299 | R173: 372 | S173: 11790 | T173: 108 | U173: 0.07 | V173: 436 | W173: 0.3 | X173: 478 | Y173: 0.33 | Z173: 422 | AA173: 0.29 | AB173: OK | AC173: 87 | AD173: 335 | AE173: 19560
B174: 2003East Dunbartonshire | D174: 2003 | E174: East Dunbartonshire | F174: 856 | G174: * | H174: 22 | I174: 137 | J174: * | K174: * | L174: 1029 | M174: 3588 | N174: 64 | O174: 265 | P174: 1428 | Q174: 120 | R174: 34 | S174: 5499 | T174: 304 | U174: 0.3 | V174: 295 | W174: 0.29 | X174: 275 | Y174: 0.27 | Z174: 155 | AA174: 0.15 | AB174: OK | AC174: 32 | AD174: 123 | AE174: 17752
B175: 2003East Lothian | D175: 2003 | E175: East Lothian | F175: 941 | G175: 0 | H175: 187 | I175: 0 | J175: 0 | K175: 0 | L175: 1128 | M175: 4708 | N175: 0 | O175: 2798 | P175: 0 | Q175: 0 | R175: 0 | S175: 7506 | T175: 390 | U175: 0.35 | V175: 316 | W175: 0.28 | X175: 282 | Y175: 0.25 | Z175: 140 | AA175: 0.12 | AB175: OK | AC175: 29 | AD175: 111 | AE175: 15961
B176: 2003East Renfrewshire | D176: 2003 | E176: East Renfrewshire | F176: 622 | G176: 80 | H176: 29 | I176: 23 | J176: 111 | K176: 19 | L176: 884 | M176: 4556 | N176: 80 | O176: 198 | P176: 348 | Q176: 701 | R176: 117 | S176: 6000 | T176: 245 | U176: 0.28 | V176: 240 | W176: 0.27 | X176: 226 | Y176: 0.26 | Z176: 173 | AA176: 0.2 | AB176: OK | AC176: 36 | AD176: 137 | AE176: 14689
B177: 2003Edinburgh, City of | D177: 2003 | E177: Edinburgh, City of | F177: 5043 | G177: 143 | H177: 482 | I177: 365 | J177: 34 | K177: 17 | L177: 6084 | M177: 20779 | N177: 1752 | O177: 6531 | P177: 5697 | Q177: 691.99 | R177: 636 | S177: 36086.99 | T177: 2110 | U177: 0.35 | V177: 1489 | W177: 0.24 | X177: 1464 | Y177: 0.24 | Z177: 1021 | AA177: 0.17 | AB177: OK | AC177: 211 | AD177: 810 | AE177: 68674
B178: 2003Falkirk | D178: 2003 | E178: Falkirk | F178: 1635 | G178: 41 | H178: 27 | I178: 31 | J178: 38 | K178: 238 | L178: 2010 | M178: 10210 | N178: 450 | O178: 406 | P178: 738 | Q178: 899 | R178: 930 | S178: 13633 | T178: 506 | U178: 0.25 | V178: 412 | W178: 0.2 | X178: 712 | Y178: 0.35 | Z178: 380 | AA178: 0.19 | AB178: OK | AC178: 79 | AD178: 301 | AE178: 22870
B179: 2003Fife | D179: 2003 | E179: Fife | F179: 5825 | G179: 257 | H179: 0 | I179: 0 | J179: 0 | K179: 0 | L179: 6082 | M179: 26040 | N179: 922 | O179: 0 | P179: 0 | Q179: 0 | R179: 0 | S179: 26962 | T179: 2508 | U179: 0.41 | V179: 1416 | W179: 0.23 | X179: 1553 | Y179: 0.26 | Z179: 605 | AA179: 0.1 | AB179: OK | AC179: 125 | AD179: 480 | AE179: 57834
B180: 2003Glasgow City | D180: 2003 | E180: Glasgow City | F180: 8418 | G180: 352 | H180: 177 | I180: * | J180: * | K180: * | L180: 9040 | M180: 72122 | N180: 9193 | O180: 13271 | P180: 14 | Q180: 1580 | R180: 26 | S180: 96206 | T180: 468 | U180: 0.05 | V180: 2409 | W180: 0.27 | X180: 3047 | Y180: 0.34 | Z180: 3116 | AA180: 0.34 | AB180: OK | AC180: 645 | AD180: 2471 | AE180: 88255
B181: 2003Highland | D181: 2003 | E181: Highland | F181: 3008 | G181: * | H181: 30 | I181: * | J181: * | K181: 0 | L181: 3055 | M181: 14278 | N181: 7 | O181: 321 | P181: 118 | Q181: 26 | R181: 0 | S181: 14750 | T181: 640 | U181: 0.21 | V181: 1091 | W181: 0.36 | X181: 942 | Y181: 0.31 | Z181: 382 | AA181: 0.13 | AB181: OK | AC181: 79 | AD181: 303 | AE181: 36043
B182: 2003Inverclyde | D182: 2003 | E182: Inverclyde | F182: 989 | G182: 0 | H182: 69 | I182: 46 | J182: 0 | K182: 0 | L182: 1104 | M182: 4983 | N182: 0 | O182: 1475 | P182: 554 | Q182: 0 | R182: 0 | S182: 7012 | T182: 242 | U182: 0.22 | V182: 306 | W182: 0.28 | X182: 329 | Y182: 0.3 | Z182: 227 | AA182: 0.21 | AB182: OK | AC182: 47 | AD182: 180 | AE182: 14054
B183: 2003Midlothian | D183: 2003 | E183: Midlothian | F183: 801 | G183: 12 | H183: 170 | I183: 91 | J183: 10 | K183: 0 | L183: 1084 | M183: 2993 | N183: 65 | O183: 2558 | P183: 1322 | Q183: 157 | R183: 0 | S183: 7095 | T183: 171 | U183: 0.16 | V183: 448 | W183: 0.41 | X183: 341 | Y183: 0.31 | Z183: 124 | AA183: 0.11 | AB183: OK | AC183: 26 | AD183: 98 | AE183: 12265
B184: 2003Moray | D184: 2003 | E184: Moray | F184: 970 | G184: * | H184: 113 | I184: 31 | J184: 6 | K184: * | L184: 1205 | M184: 5351 | N184: 411 | O184: 1782 | P184: 308 | Q184: 101 | R184: 63 | S184: 8016 | T184: 181 | U184: 0.15 | V184: 450 | W184: 0.37 | X184: 326 | Y184: 0.27 | Z184: 248 | AA184: 0.21 | AB184: OK | AC184: 51 | AD184: 197 | AE184: 14626
B185: 2003North Ayrshire | D185: 2003 | E185: North Ayrshire | F185: 1161 | G185: 0 | H185: 39 | I185: 291 | J185: 0 | K185: 0 | L185: 1491 | M185: 7604 | N185: 0 | O185: 521 | P185: 4685.97 | Q185: 0 | R185: 0 | S185: 12810.97 | T185: 67 | U185: 0.04 | V185: 462 | W185: 0.31 | X185: 478 | Y185: 0.32 | Z185: 484 | AA185: 0.32 | AB185: OK | AC185: 100 | AD185: 384 | AE185: 22749
B186: 2003North Lanarkshire | D186: 2003 | E186: North Lanarkshire | F186: 3916 | G186: 227 | H186: 9 | I186: 142 | J186: 76 | K186: 0 | L186: 4370 | M186: 41054 | N186: 2753 | O186: 124 | P186: 2297 | Q186: 1450 | R186: 0 | S186: 47678 | T186: 423 | U186: 0.1 | V186: 766 | W186: 0.18 | X186: 1566 | Y186: 0.36 | Z186: 1615 | AA186: 0.37 | AB186: OK | AC186: 334 | AD186: 1281 | AE186: 45561
B187: 2003Orkney Islands | D187: 2003 | E187: Orkney Islands | F187: 320 | G187: 108 | H187: 0 | I187: 0 | J187: 0 | K187: 0 | L187: 428 | M187: 2324 | N187: 321 | O187: 0 | P187: 0 | Q187: 0 | R187: 0 | S187: 2645 | T187: 68 | U187: 0.16 | V187: 128 | W187: 0.3 | X187: 147 | Y187: 0.34 | Z187: 85 | AA187: 0.2 | AB187: OK | AC187: 18 | AD187: 67 | AE187: 3354
B188: 2003Perth & Kinross | D188: 2003 | E188: Perth & Kinross | F188: 1434 | G188: 63 | H188: 121 | I188: 0 | J188: 0 | K188: 0 | L188: 1618 | M188: 6931 | N188: 835 | O188: 1273 | P188: 0 | Q188: 0 | R188: 0 | S188: 9039 | T188: 587 | U188: 0.36 | V188: 466 | W188: 0.29 | X188: 338 | Y188: 0.21 | Z188: 227 | AA188: 0.14 | AB188: OK | AC188: 47 | AD188: 180 | AE188: 25760
B189: 2003Renfrewshire | D189: 2003 | E189: Renfrewshire | F189: 1886 | G189: 0 | H189: 187 | I189: 96 | J189: 0 | K189: 0 | L189: 2169 | M189: 11832 | N189: 0 | O189: 3365 | P189: 2179 | Q189: 0 | R189: 0 | S189: 17376 | T189: 241 | U189: 0.11 | V189: 633 | W189: 0.29 | X189: 682 | Y189: 0.31 | Z189: 613 | AA189: 0.28 | AB189: OK | AC189: 127 | AD189: 486 | AE189: 26984
B190: 2003Scottish Borders | D190: 2003 | E190: Scottish Borders | F190: 1317 | G190: 345 | H190: 0 | I190: 0 | J190: 24 | K190: 0 | L190: 1686 | M190: 8460 | N190: 2147 | O190: 0 | P190: 0 | Q190: 378 | R190: 0 | S190: 10985 | T190: 286 | U190: 0.17 | V190: 511 | W190: 0.3 | X190: 532 | Y190: 0.32 | Z190: 357 | AA190: 0.21 | AB190: OK | AC190: 74 | AD190: 283 | AE190: 20707
B191: 2003Shetland Islands | D191: 2003 | E191: Shetland Islands | F191: 492 | G191: 41 | H191: 0 | I191: 0 | J191: 12 | K191: 0 | L191: 545 | M191: 1868 | N191: 740 | O191: 0 | P191: 0 | Q191: 185 | R191: 0 | S191: 2793 | T191: 147 | U191: 0.27 | V191: 211 | W191: 0.39 | X191: 108 | Y191: 0.2 | Z191: 79 | AA191: 0.14 | AB191: OK | AC191: 16 | AD191: 63 | AE191: 3168
B192: 2003South Ayrshire | D192: 2003 | E192: South Ayrshire | F192: 763 | G192: 0 | H192: 638 | I192: 70 | J192: 0 | K192: 0 | L192: 1471 | M192: 6263 | N192: 0 | O192: 10298 | P192: 1050 | Q192: 0 | R192: 0 | S192: 17611 | T192: 88 | U192: 0.06 | V192: 292 | W192: 0.2 | X192: 475 | Y192: 0.32 | Z192: 616 | AA192: 0.42 | AB192: OK | AC192: 127 | AD192: 489 | AE192: 21903
B193: 2003South Lanarkshire | D193: 2003 | E193: South Lanarkshire | F193: 2129 | G193: 99 | H193: 197 | I193: 84 | J193: 59 | K193: 0 | L193: 2568 | M193: 15698 | N193: 796 | O193: 2708 | P193: 2036 | Q193: 928 | R193: 0 | S193: 22166 | T193: 248 | U193: 0.1 | V193: 592 | W193: 0.23 | X193: 909 | Y193: 0.35 | Z193: 819 | AA193: 0.32 | AB193: OK | AC193: 169 | AD193: 650 | AE193: 47145
B194: 2003Stirling | D194: 2003 | E194: Stirling | F194: 640 | G194: 32 | H194: 127 | I194: 27 | J194: 15 | K194: 7 | L194: 848 | M194: 3465 | N194: 215 | O194: 2995 | P194: 390 | Q194: 196 | R194: 152 | S194: 7413 | T194: 166 | U194: 0.2 | V194: 268 | W194: 0.32 | X194: 248 | Y194: 0.29 | Z194: 166 | AA194: 0.2 | AB194: OK | AC194: 34 | AD194: 132 | AE194: 13787
B195: 2003West Dunbartonshire | D195: 2003 | E195: West Dunbartonshire | F195: 1737 | G195: 17 | H195: * | I195: 35 | J195: 18 | K195: * | L195: 1834 | M195: 10864 | N195: 395 | O195: 440 | P195: 1165 | Q195: 631 | R195: 39 | S195: 13534 | T195: 191 | U195: 0.1 | V195: 473 | W195: 0.26 | X195: 731 | Y195: 0.4 | Z195: 439 | AA195: 0.24 | AB195: OK | AC195: 91 | AD195: 348 | AE195: 14693
B196: 2003West Lothian | D196: 2003 | E196: West Lothian | F196: 947 | G196: 0 | H196: 378 | I196: 254 | J196: 0 | K196: 0 | L196: 1579 | M196: 4016 | N196: 0 | O196: 2715 | P196: 2067 | Q196: 0 | R196: 0 | S196: 8798 | T196: 378 | U196: 0.24 | V196: 448 | W196: 0.28 | X196: 475 | Y196: 0.3 | Z196: 278 | AA196: 0.18 | AB196: OK | AC196: 58 | AD196: 220 | AE196: 19151
B197: 2003Eilean Siar | D197: 2003 | E197: Eilean Siar | F197: 765 | G197: 0 | H197: 0 | I197: 0 | J197: 0 | K197: 0 | L197: 765 | M197: 5864 | N197: 0 | O197: 0 | P197: 0 | Q197: 0 | R197: 0 | S197: 5864 | T197: 105 | U197: 0.14 | V197: 194 | W197: 0.25 | X197: 254 | Y197: 0.33 | Z197: 212 | AA197: 0.28 | AB197: OK | AC197: 44 | AD197: 168 | AE197: 5295
B198: 2004Aberdeen City | D198: 2004 | E198: Aberdeen City | F198: 2034 | G198: 9 | H198: 591 | I198: 256 | J198: 5 | K198: 9 | L198: 2904 | M198: 6892 | N198: 82 | O198: 6094 | P198: 3798.25 | Q198: 51 | R198: 173 | S198: 17090.25 | T198: 779 | U198: 0.27 | V198: 959 | W198: 0.33 | X198: 657 | Y198: 0.23 | Z198: 509 | AA198: 0.18 | AB198: OK | AC198: 107 | AD198: 402 | AE198: 32286
B199: =D199&E199 -> 2004Aberdeenshire | D199: 2004 | E199: Aberdeenshire | F199: 1627 | G199: 80 | H199: 134 | I199: 67 | J199: 31 | K199: 0 | L199: 1939 | M199: 16945.6 | N199: 767 | O199: 1457 | P199: 751 | Q199: 272.4 | R199: 0 | S199: 20193 | T199: 396 | U199: 0.2 | V199: 466 | W199: 0.24 | X199: 591 | Y199: 0.3 | Z199: 486 | AA199: 0.25 | AB199: OK | AC199: 103 | AD199: 383 | AE199: 34714
B200: 2004Angus | D200: 2004 | E200: Angus | F200: 1398 | G200: 116 | H200: 0 | I200: 0 | J200: 296 | K200: 0 | L200: 1810 | M200: 4408 | N200: 377 | O200: 0 | P200: 0 | Q200: 1544 | R200: 0 | S200: 6329 | T200: 1064 | U200: 0.59 | V200: 308 | W200: 0.17 | X200: 330 | Y200: 0.18 | Z200: 108 | AA200: 0.06 | AB200: OK | AC200: 23 | AD200: 85 | AE200: 20312
B201: 2004Argyll & Bute | D201: 2004 | E201: Argyll & Bute | F201: 961 | G201: 0 | H201: 64 | I201: 35 | J201: 0 | K201: 0 | L201: 1060 | M201: 7299.9 | N201: 0 | O201: 967.25 | P201: 259.5 | Q201: 0 | R201: 0 | S201: 8526.65 | T201: 98 | U201: 0.09 | V201: 255 | W201: 0.24 | X201: 388 | Y201: 0.37 | Z201: 319 | AA201: 0.3 | AB201: OK | AC201: 67 | AD201: 252 | AE201: 17511
B202: 2004Clackmannanshire | D202: 2004 | E202: Clackmannanshire | F202: 134 | G202: 52 | H202: 503 | I202: * | J202: 0 | K202: * | L202: 700 | M202: 867 | N202: 523.66 | O202: 4684.3 | P202: 78.5 | Q202: 0 | R202: 313.5 | S202: 6466.96 | T202: 64 | U202: 0.09 | V202: 211 | W202: 0.3 | X202: 222 | Y202: 0.32 | Z202: 203 | AA202: 0.29 | AB202: OK | AC202: 43 | AD202: 160 | AE202: 7272
... 1405 more rows

Sheet Calc-HC2 (hidden)
E1: 0-15 | F1: 16-64 | G1: 65-74 | H1: 75-84 | I1: 85 plus
E2: * | F2: * | G2: 5 | H2: 6 | I2: 7
F3: 4
A4: * | B4: * | C4: * | D4: 4 | E4: 5 | F4: 6 | G4: 7 | H4: 8 | I4: 9 | J4: 10 | K4: 11 | L4: 12 | M4: 13 | N4: 14
A5: B6&C6&D6 | B5: Year | C5: LA | E5: People with Dementia | F5: People with Mental Health Problems | G5: People with Learning Disabilities | H5: People with Physical Disabilities 1 | I5: People in Other groups | J5: Older people (2010 only) | M5: Total
A6: =B6&C6&D6 -> 1998Aberdeen City0-17 | B6: 1998 | C6: Aberdeen City | D6: 0-17 | E6: 0 | F6: 0 | G6: 0 | H6: * | I6: * | J6: 0 | M6: *
A7: =B7&C7&D7 -> 1998Aberdeenshire0-17 | B7: 1998 | C7: Aberdeenshire | D7: 0-17 | E7: 0 | F7: 0 | G7: 0 | H7: 0 | I7: 16 | J7: 0 | M7: 16
A8: 1998Angus0-17 | B8: 1998 | C8: Angus | D8: 0-17 | E8: 0 | F8: 0 | G8: 0 | H8: 0 | I8: * | J8: 0 | M8: *
A9: 1998Argyll & Bute0-17 | B9: 1998 | C9: Argyll & Bute | D9: 0-17 | E9: 0 | F9: 0 | G9: * | H9: * | I9: * | J9: 0 | M9: 7
A10: 1998Clackmannanshire0-17 | B10: 1998 | C10: Clackmannanshire | D10: 0-17 | E10: 0 | F10: 0 | G10: 0 | H10: 0 | I10: * | J10: 0 | M10: *
A11: 1998Dumfries & Galloway0-17 | B11: 1998 | C11: Dumfries & Galloway | D11: 0-17 | E11: 0 | F11: 0 | G11: * | H11: 8 | I11: * | J11: 0 | M11: 41
A12: 1998Dundee City0-17 | B12: 1998 | C12: Dundee City | D12: 0-17 | E12: 0 | F12: 0 | G12: 0 | H12: 0 | I12: * | J12: 0 | M12: *
A13: 1998East Ayrshire0-17 | B13: 1998 | C13: East Ayrshire | D13: 0-17 | E13: 0 | F13: 0 | G13: * | H13: * | I13: * | J13: 0 | M13: 10
A14: 1998East Dunbartonshire0-17 | B14: 1998 | C14: East Dunbartonshire | D14: 0-17 | E14: 0 | F14: 0 | G14: 8 | H14: 22 | I14: 30 | J14: 0 | M14: 60
A15: 1998East Lothian0-17 | B15: 1998 | C15: East Lothian | D15: 0-17 | E15: 0 | F15: 0 | G15: 0 | H15: 0 | I15: * | J15: 0 | M15: *
A16: 1998East Renfrewshire0-17 | B16: 1998 | C16: East Renfrewshire | D16: 0-17 | E16: 0 | F16: 0 | G16: * | H16: * | I16: 23 | J16: 0 | M16: 40
A17: 1998Edinburgh, City of0-17 | B17: 1998 | C17: Edinburgh, City of | D17: 0-17 | E17: 0 | F17: 0 | G17: * | H17: 18 | I17: * | J17: 0 | M17: 43
A18: 1998Falkirk0-17 | B18: 1998 | C18: Falkirk | D18: 0-17 | E18: 0 | F18: 0 | G18: 0 | H18: 12 | I18: 0 | J18: 0 | M18: 12
A19: 1998Fife0-17 | B19: 1998 | C19: Fife | D19: 0-17 | E19: 0 | F19: 0 | G19: 0 | H19: 0 | I19: 0 | J19: 0 | M19: 0
A20: 1998Glasgow City0-17 | B20: 1998 | C20: Glasgow City | D20: 0-17 | E20: 0 | F20: * | G20: * | H20: 48 | I20: 273 | J20: 0 | M20: 347
A21: 1998Highland0-17 | B21: 1998 | C21: Highland | D21: 0-17 | E21: 0 | F21: * | G21: 0 | H21: * | I21: * | J21: 0 | M21: *
A22: 1998Inverclyde0-17 | B22: 1998 | C22: Inverclyde | D22: 0-17 | E22: 0 | F22: 0 | G22: * | H22: * | I22: * | J22: 0 | M22: 11
A23: 1998Midlothian0-17 | B23: 1998 | C23: Midlothian | D23: 0-17 | E23: 0 | F23: 0 | G23: 0 | H23: * | I23: * | J23: 0 | M23: 32
A24: 1998Moray0-17 | B24: 1998 | C24: Moray | D24: 0-17 | E24: 0 | F24: 0 | G24: * | H24: * | I24: * | J24: 0 | M24: 40
A25: 1998North Ayrshire0-17 | B25: 1998 | C25: North Ayrshire | D25: 0-17 | E25: 0 | F25: 0 | G25: 0 | H25: 0 | I25: 14 | J25: 0 | M25: 14
A26: 1998North Lanarkshire0-17 | B26: 1998 | C26: North Lanarkshire | D26: 0-17 | E26: 0 | F26: 0 | G26: * | H26: * | I26: * | J26: 0 | M26: 14
A27: 1998Orkney Islands0-17 | B27: 1998 | C27: Orkney Islands | D27: 0-17 | E27: 0 | F27: 0 | G27: 0 | H27: 0 | I27: 0 | J27: 0 | M27: 0
A28: 1998Perth & Kinross0-17 | B28: 1998 | C28: Perth & Kinross | D28: 0-17 | E28: 0 | F28: 0 | G28: 0 | H28: 0 | I28: 0 | J28: 0 | M28: 0
A29: 1998Renfrewshire0-17 | B29: 1998 | C29: Renfrewshire | D29: 0-17 | E29: 0 | F29: 0 | G29: 0 | H29: * | I29: * | J29: 0 | M29: *
A30: 1998Scottish Borders0-17 | B30: 1998 | C30: Scottish Borders | D30: 0-17 | E30: 0 | F30: 0 | G30: * | H30: 0 | I30: * | J30: 0 | M30: 8
A31: 1998Shetland Islands0-17 | B31: 1998 | C31: Shetland Islands | D31: 0-17 | E31: 0 | F31: 0 | G31: * | H31: * | I31: 0 | J31: 0 | M31: *
A32: 1998South Ayrshire0-17 | B32: 1998 | C32: South Ayrshire | D32: 0-17 | E32: 0 | F32: 0 | G32: 0 | H32: * | I32: * | J32: 0 | M32: 15
A33: 1998South Lanarkshire0-17 | B33: 1998 | C33: South Lanarkshire | D33: 0-17 | E33: 0 | F33: 0 | G33: * | H33: * | I33: * | J33: 0 | M33: 23
A34: 1998Stirling0-17 | B34: 1998 | C34: Stirling | D34: 0-17 | E34: 0 | F34: 0 | G34: * | H34: * | I34: * | J34: 0 | M34: 16
A35: 1998West Dunbartonshire0-17 | B35: 1998 | C35: West Dunbartonshire | D35: 0-17 | E35: 0 | F35: 0 | G35: * | H35: 0 | I35: * | J35: 0 | M35: 57
A36: 1998West Lothian0-17 | B36: 1998 | C36: West Lothian | D36: 0-17 | E36: 0 | F36: 0 | G36: * | H36: * | I36: 13 | J36: 0 | M36: 20
A37: 1998Eilean Siar0-17 | B37: 1998 | C37: Eilean Siar | D37: 0-17 | E37: 0 | F37: 0 | G37: * | H37: * | I37: 8 | J37: 0 | M37: 11
A38: 1998Aberdeen City18-64 | B38: 1998 | C38: Aberdeen City | D38: 18-64 | E38: 5 | F38: 60 | G38: 48 | H38: * | I38: * | J38: 0 | M38: *
A39: 1998Aberdeenshire18-64 | B39: 1998 | C39: Aberdeenshire | D39: 18-64 | E39: * | F39: 128 | G39: 190 | H39: 54 | I39: * | J39: 0 | M39: 398
A40: 1998Angus18-64 | B40: 1998 | C40: Angus | D40: 18-64 | E40: * | F40: 36 | G40: 23 | H40: 99 | I40: * | J40: 0 | M40: *
A41: 1998Argyll & Bute18-64 | B41: 1998 | C41: Argyll & Bute | D41: 18-64 | E41: 5 | F41: 21 | G41: * | H41: * | I41: * | J41: 0 | M41: 119
A42: 1998Clackmannanshire18-64 | B42: 1998 | C42: Clackmannanshire | D42: 18-64 | E42: * | F42: * | G42: 5 | H42: 81 | I42: * | J42: 0 | M42: *
A43: 1998Dumfries & Galloway18-64 | B43: 1998 | C43: Dumfries & Galloway | D43: 18-64 | E43: * | F43: 37 | G43: * | H43: 186 | I43: * | J43: 0 | M43: 343
A44: 1998Dundee City18-64 | B44: 1998 | C44: Dundee City | D44: 18-64 | E44: 0 | F44: 39 | G44: 54 | H44: 194 | I44: * | J44: 0 | M44: *
A45: 1998East Ayrshire18-64 | B45: 1998 | C45: East Ayrshire | D45: 18-64 | E45: * | F45: 15 | G45: * | H45: * | I45: * | J45: 0 | M45: 136
A46: 1998East Dunbartonshire18-64 | B46: 1998 | C46: East Dunbartonshire | D46: 18-64 | E46: * | F46: * | G46: 10 | H46: 102 | I46: 48 | J46: 0 | M46: 170
A47: 1998East Lothian18-64 | B47: 1998 | C47: East Lothian | D47: 18-64 | E47: 0 | F47: * | G47: * | H47: 121 | I47: 0 | J47: 0 | M47: 145
A48: 1998East Renfrewshire18-64 | B48: 1998 | C48: East Renfrewshire | D48: 18-64 | E48: * | F48: 12 | G48: * | H48: * | I48: 12 | J48: 0 | M48: 85
A49: 1998Edinburgh, City of18-64 | B49: 1998 | C49: Edinburgh, City of | D49: 18-64 | E49: * | F49: 153 | G49: 101 | H49: 799 | I49: * | J49: 0 | M49: 1290
A50: 1998Falkirk18-64 | B50: 1998 | C50: Falkirk | D50: 18-64 | E50: 12 | F50: 17 | G50: 28 | H50: 202 | I50: 32 | J50: 0 | M50: 291
A51: 1998Fife18-64 | B51: 1998 | C51: Fife | D51: 18-64 | E51: 0 | F51: 80 | G51: 53 | H51: 305 | I51: 594 | J51: 0 | M51: 1032
A52: 1998Glasgow City18-64 | B52: 1998 | C52: Glasgow City | D52: 18-64 | E52: 18 | F52: * | G52: * | H52: 748 | I52: 487 | J52: 0 | M52: 1630
A53: 1998Highland18-64 | B53: 1998 | C53: Highland | D53: 18-64 | E53: 6 | F53: * | G53: 43 | H53: * | I53: * | J53: 0 | M53: *
A54: 1998Inverclyde18-64 | B54: 1998 | C54: Inverclyde | D54: 18-64 | E54: 0 | F54: 50 | G54: * | H54: * | I54: * | J54: 0 | M54: 209
A55: 1998Midlothian18-64 | B55: 1998 | C55: Midlothian | D55: 18-64 | E55: 0 | F55: * | G55: 6 | H55: * | I55: * | J55: 0 | M55: 159
A56: 1998Moray18-64 | B56: 1998 | C56: Moray | D56: 18-64 | E56: * | F56: 20 | G56: * | H56: * | I56: 31 | J56: 0 | M56: 173
A57: 1998North Ayrshire18-64 | B57: 1998 | C57: North Ayrshire | D57: 18-64 | E57: * | F57: 36 | G57: * | H57: 146 | I57: 42 | J57: 0 | M57: 255
A58: 1998North Lanarkshire18-64 | B58: 1998 | C58: North Lanarkshire | D58: 18-64 | E58: 10 | F58: 56 | G58: * | H58: * | I58: * | J58: 0 | M58: 436
A59: 1998Orkney Islands18-64 | B59: 1998 | C59: Orkney Islands | D59: 18-64 | E59: 0 | F59: 8 | G59: * | H59: 34 | I59: * | J59: 0 | M59: 49
A60: 1998Perth & Kinross18-64 | B60: 1998 | C60: Perth & Kinross | D60: 18-64 | E60: 0 | F60: 13 | G60: 13 | H60: 119 | I60: 13 | J60: 0 | M60: 158
A61: 1998Renfrewshire18-64 | B61: 1998 | C61: Renfrewshire | D61: 18-64 | E61: * | F61: 8 | G61: * | H61: * | I61: * | J61: 0 | M61: *
A62: 1998Scottish Borders18-64 | B62: 1998 | C62: Scottish Borders | D62: 18-64 | E62: 0 | F62: * | G62: * | H62: 179 | I62: * | J62: 0 | M62: 239
A63: 1998Shetland Islands18-64 | B63: 1998 | C63: Shetland Islands | D63: 18-64 | E63: 0 | F63: * | G63: 22 | H63: * | I63: * | J63: 0 | M63: *
A64: 1998South Ayrshire18-64 | B64: 1998 | C64: South Ayrshire | D64: 18-64 | E64: * | F64: 14 | G64: 31 | H64: * | I64: * | J64: 0 | M64: 162
A65: 1998South Lanarkshire18-64 | B65: 1998 | C65: South Lanarkshire | D65: 18-64 | E65: * | F65: 35 | G65: * | H65: * | I65: * | J65: 0 | M65: 319
A66: 1998Stirling18-64 | B66: 1998 | C66: Stirling | D66: 18-64 | E66: * | F66: 21 | G66: * | H66: * | I66: * | J66: 0 | M66: 192
A67: 1998West Dunbartonshire18-64 | B67: 1998 | C67: West Dunbartonshire | D67: 18-64 | E67: * | F67: * | G67: * | H67: 106 | I67: * | J67: 0 | M67: 193
A68: 1998West Lothian18-64 | B68: 1998 | C68: West Lothian | D68: 18-64 | E68: * | F68: 28 | G68: * | H68: * | I68: 67 | J68: 0 | M68: 260
A69: 1998Eilean Siar18-64 | B69: 1998 | C69: Eilean Siar | D69: 18-64 | E69: * | F69: 15 | G69: * | H69: * | I69: 34 | J69: 0 | M69: 135
A70: 1998Aberdeen City65-74 | B70: 1998 | C70: Aberdeen City | D70: 65-74 | E70: 30 | F70: 25 | G70: 15 | H70: 525 | I70: 188 | J70: 0 | M70: 783
A71: =B71&C71&D71 -> 1998Aberdeenshire65-74 | B71: 1998 | C71: Aberdeenshire | D71: 65-74 | E71: 28 | F71: 0 | G71: 0 | H71: 0 | I71: 372 | J71: 0 | M71: 400
A72: 1998Angus65-74 | B72: 1998 | C72: Angus | D72: 65-74 | E72: 6 | F72: * | G72: * | H72: * | I72: 234 | J72: 0 | M72: 292
A73: 1998Argyll & Bute65-74 | B73: 1998 | C73: Argyll & Bute | D73: 65-74 | E73: 10 | F73: * | G73: * | H73: 103 | I73: 9 | J73: 0 | M73: 143
A74: 1998Clackmannanshire65-74 | B74: 1998 | C74: Clackmannanshire | D74: 65-74 | E74: * | F74: * | G74: * | H74: 95 | I74: 10 | J74: 0 | M74: 124
A75: 1998Dumfries & Galloway65-74 | B75: 1998 | C75: Dumfries & Galloway | D75: 65-74 | E75: 13 | F75: 11 | G75: 6 | H75: 221 | I75: 80 | J75: 0 | M75: 331
A76: 1998Dundee City65-74 | B76: 1998 | C76: Dundee City | D76: 65-74 | E76: * | F76: * | G76: * | H76: 125 | I76: 487 | J76: 0 | M76: 635
A77: 1998East Ayrshire65-74 | B77: 1998 | C77: East Ayrshire | D77: 65-74 | E77: 10 | F77: * | G77: * | H77: 166 | I77: 59 | J77: 0 | M77: 247
A78: 1998East Dunbartonshire65-74 | B78: 1998 | C78: East Dunbartonshire | D78: 65-74 | E78: 5 | F78: * | G78: * | H78: 178 | I78: * | J78: 0 | M78: 192
A79: 1998East Lothian65-74 | B79: 1998 | C79: East Lothian | D79: 65-74 | E79: 0 | F79: * | G79: * | H79: 238 | I79: * | J79: 0 | M79: 241
A80: 1998East Renfrewshire65-74 | B80: 1998 | C80: East Renfrewshire | D80: 65-74 | E80: * | F80: * | G80: * | H80: 108 | I80: 23 | J80: 0 | M80: 145
A81: 1998Edinburgh, City of65-74 | B81: 1998 | C81: Edinburgh, City of | D81: 65-74 | E81: 6 | F81: * | G81: * | H81: 1145 | I81: 44 | J81: 0 | M81: 1212
A82: 1998Falkirk65-74 | B82: 1998 | C82: Falkirk | D82: 65-74 | E82: 38 | F82: 19 | G82: * | H82: 382 | I82: * | J82: 0 | M82: 457
A83: 1998Fife65-74 | B83: 1998 | C83: Fife | D83: 65-74 | E83: 0 | F83: 26 | G83: 14 | H83: 79 | I83: 1209 | J83: 0 | M83: 1328
A84: 1998Glasgow City65-74 | B84: 1998 | C84: Glasgow City | D84: 65-74 | E84: 248 | F84: * | G84: * | H84: 1869 | I84: 225 | J84: 0 | M84: 2534
A85: 1998Highland65-74 | B85: 1998 | C85: Highland | D85: 65-74 | E85: 16 | F85: 16 | G85: 29 | H85: 438 | I85: 40 | J85: 0 | M85: 539
A86: 1998Inverclyde65-74 | B86: 1998 | C86: Inverclyde | D86: 65-74 | E86: 12 | F86: 10 | G86: * | H86: 186 | I86: * | J86: 0 | M86: 249
A87: 1998Midlothian65-74 | B87: 1998 | C87: Midlothian | D87: 65-74 | E87: * | F87: * | G87: 0 | H87: * | I87: 0 | J87: 0 | M87: 235
A88: 1998Moray65-74 | B88: 1998 | C88: Moray | D88: 65-74 | E88: * | F88: 5 | G88: * | H88: 159 | I88: * | J88: 0 | M88: 175
A89: 1998North Ayrshire65-74 | B89: 1998 | C89: North Ayrshire | D89: 65-74 | E89: * | F89: 19 | G89: * | H89: 350 | I89: * | J89: 0 | M89: 414
A90: 1998North Lanarkshire65-74 | B90: 1998 | C90: North Lanarkshire | D90: 65-74 | E90: 6 | F90: 10 | G90: * | H90: 562 | I90: * | J90: 0 | M90: 583
A91: 1998Orkney Islands65-74 | B91: 1998 | C91: Orkney Islands | D91: 65-74 | E91: * | F91: 6 | G91: * | H91: 42 | I91: * | J91: 0 | M91: 57
A92: 1998Perth & Kinross65-74 | B92: 1998 | C92: Perth & Kinross | D92: 65-74 | E92: * | F92: 0 | G92: 0 | H92: * | I92: 0 | J92: 0 | M92: 215
A93: 1998Renfrewshire65-74 | B93: 1998 | C93: Renfrewshire | D93: 65-74 | E93: * | F93: 10 | G93: * | H93: 194 | I93: 341 | J93: 0 | M93: 556
A94: 1998Scottish Borders65-74 | B94: 1998 | C94: Scottish Borders | D94: 65-74 | E94: 0 | F94: * | G94: * | H94: 236 | I94: 0 | J94: 0 | M94: 241
A95: 1998Shetland Islands65-74 | B95: 1998 | C95: Shetland Islands | D95: 65-74 | E95: * | F95: * | G95: * | H95: 87 | I95: 0 | J95: 0 | M95: 109
A96: 1998South Ayrshire65-74 | B96: 1998 | C96: South Ayrshire | D96: 65-74 | E96: 7 | F96: 19 | G96: * | H96: 236 | I96: * | J96: 0 | M96: 299
A97: 1998South Lanarkshire65-74 | B97: 1998 | C97: South Lanarkshire | D97: 65-74 | E97: * | F97: 16 | G97: * | H97: 337 | I97: 122 | J97: 0 | M97: 504
A98: 1998Stirling65-74 | B98: 1998 | C98: Stirling | D98: 65-74 | E98: 10 | F98: 8 | G98: 5 | H98: 173 | I98: 62 | J98: 0 | M98: 258
A99: 1998West Dunbartonshire65-74 | B99: 1998 | C99: West Dunbartonshire | D99: 65-74 | E99: * | F99: * | G99: 7 | H99: 270 | I99: 21 | J99: 0 | M99: 325
A100: 1998West Lothian65-74 | B100: 1998 | C100: West Lothian | D100: 65-74 | E100: 14 | F100: 11 | G100: 6 | H100: 234 | I100: 84 | J100: 0 | M100: 349
A101: 1998Eilean Siar65-74 | B101: 1998 | C101: Eilean Siar | D101: 65-74 | E101: 7 | F101: * | G101: * | H101: 121 | I101: 44 | J101: 0 | M101: 181
A102: 1998Aberdeen City75-84 | B102: 1998 | C102: Aberdeen City | D102: 75-84 | E102: 94 | F102: 20 | G102: 14 | H102: 1266 | I102: 443 | J102: 0 | M102: 1837
A103: 1998Aberdeenshire75-84 | B103: 1998 | C103: Aberdeenshire | D103: 75-84 | E103: 79 | F103: 0 | G103: 0 | H103: 0 | I103: 895 | J103: 0 | M103: 974
A104: 1998Angus75-84 | B104: 1998 | C104: Angus | D104: 75-84 | E104: 30 | F104: * | G104: * | H104: 43 | I104: 703 | J104: 0 | M104: 780
A105: 1998Argyll & Bute75-84 | B105: 1998 | C105: Argyll & Bute | D105: 75-84 | E105: 39 | F105: * | G105: * | H105: 309 | I105: * | J105: 0 | M105: 367
A106: 1998Clackmannanshire75-84 | B106: 1998 | C106: Clackmannanshire | D106: 75-84 | E106: 18 | F106: * | G106: * | H106: 170 | I106: 19 | J106: 0 | M106: 212
A107: 1998Dumfries & Galloway75-84 | B107: 1998 | C107: Dumfries & Galloway | D107: 75-84 | E107: 38 | F107: * | G107: * | H107: 520 | I107: 182 | J107: 0 | M107: 754
A108: 1998Dundee City75-84 | B108: 1998 | C108: Dundee City | D108: 75-84 | E108: * | F108: * | G108: * | H108: 265 | I108: 1061 | J108: 0 | M108: 1339
A109: 1998East Ayrshire75-84 | B109: 1998 | C109: East Ayrshire | D109: 75-84 | E109: 35 | F109: 7 | G109: 5 | H109: 463 | I109: 162 | J109: 0 | M109: 672
A110: 1998East Dunbartonshire75-84 | B110: 1998 | C110: East Dunbartonshire | D110: 75-84 | E110: 13 | F110: * | G110: * | H110: 457 | I110: * | J110: 0 | M110: 479
A111: 1998East Lothian75-84 | B111: 1998 | C111: East Lothian | D111: 75-84 | E111: * | F111: 0 | G111: 0 | H111: 602 | I111: 0 | J111: 0 | M111: *
A112: 1998East Renfrewshire75-84 | B112: 1998 | C112: East Renfrewshire | D112: 75-84 | E112: 26 | F112: * | G112: 0 | H112: 282 | I112: * | J112: 0 | M112: 315
A113: 1998Edinburgh, City of75-84 | B113: 1998 | C113: Edinburgh, City of | D113: 75-84 | E113: 13 | F113: * | G113: * | H113: 2648 | I113: 90 | J113: 0 | M113: 2761
A114: 1998Falkirk75-84 | B114: 1998 | C114: Falkirk | D114: 75-84 | E114: 102 | F114: * | G114: * | H114: 1002 | I114: 11 | J114: 0 | M114: 1126
A115: 1998Fife75-84 | B115: 1998 | C115: Fife | D115: 75-84 | E115: 0 | F115: 67 | G115: 33 | H115: 192 | I115: 2955 | J115: 0 | M115: 3247
A116: 1998Glasgow City75-84 | B116: 1998 | C116: Glasgow City | D116: 75-84 | E116: 491 | F116: * | G116: * | H116: 3552 | I116: 103 | J116: 0 | M116: 4218
A117: 1998Highland75-84 | B117: 1998 | C117: Highland | D117: 75-84 | E117: 63 | F117: 10 | G117: 119 | H117: 961 | I117: 20 | J117: 0 | M117: 1173
A118: 1998Inverclyde75-84 | B118: 1998 | C118: Inverclyde | D118: 75-84 | E118: 28 | F118: 18 | G118: * | H118: 402 | I118: * | J118: 0 | M118: 517
A119: 1998Midlothian75-84 | B119: 1998 | C119: Midlothian | D119: 75-84 | E119: 0 | F119: 0 | G119: 0 | H119: 520 | I119: 0 | J119: 0 | M119: 520
A120: 1998Moray75-84 | B120: 1998 | C120: Moray | D120: 75-84 | E120: * | F120: 6 | G120: * | H120: 419 | I120: * | J120: 0 | M120: 459
A121: 1998North Ayrshire75-84 | B121: 1998 | C121: North Ayrshire | D121: 75-84 | E121: 116 | F121: * | G121: * | H121: 809 | I121: 13 | J121: 0 | M121: 953
A122: 1998North Lanarkshire75-84 | B122: 1998 | C122: North Lanarkshire | D122: 75-84 | E122: * | F122: 5 | G122: 0 | H122: 1229 | I122: * | J122: 0 | M122: 1254
A123: 1998Orkney Islands75-84 | B123: 1998 | C123: Orkney Islands | D123: 75-84 | E123: * | F123: 8 | G123: 11 | H123: 134 | I123: * | J123: 0 | M123: 172
A124: 1998Perth & Kinross75-84 | B124: 1998 | C124: Perth & Kinross | D124: 75-84 | E124: * | F124: 0 | G124: 0 | H124: * | I124: 0 | J124: 0 | M124: 612
A125: 1998Renfrewshire75-84 | B125: 1998 | C125: Renfrewshire | D125: 75-84 | E125: 26 | F125: * | G125: * | H125: 314 | I125: 790 | J125: 0 | M125: 1141
A126: 1998Scottish Borders75-84 | B126: 1998 | C126: Scottish Borders | D126: 75-84 | E126: 0 | F126: * | G126: * | H126: 570 | I126: * | J126: 0 | M126: 575
A127: 1998Shetland Islands75-84 | B127: 1998 | C127: Shetland Islands | D127: 75-84 | E127: * | F127: * | G127: 0 | H127: * | I127: 0 | J127: 0 | M127: 193
A128: 1998South Ayrshire75-84 | B128: 1998 | C128: South Ayrshire | D128: 75-84 | E128: 91 | F128: * | G128: * | H128: 425 | I128: 29 | J128: 0 | M128: 556
A129: 1998South Lanarkshire75-84 | B129: 1998 | C129: South Lanarkshire | D129: 75-84 | E129: 62 | F129: 13 | G129: 9 | H129: 836 | I129: 293 | J129: 0 | M129: 1213
A130: 1998Stirling75-84 | B130: 1998 | C130: Stirling | D130: 75-84 | E130: 29 | F130: * | G130: * | H130: 391 | I130: 136 | J130: 0 | M130: 566
A131: 1998West Dunbartonshire75-84 | B131: 1998 | C131: West Dunbartonshire | D131: 75-84 | E131: 95 | F131: 9 | G131: 0 | H131: 636 | I131: 11 | J131: 0 | M131: 751
A132: 1998West Lothian75-84 | B132: 1998 | C132: West Lothian | D132: 75-84 | E132: 39 | F132: * | G132: * | H132: 527 | I132: 185 | J132: 0 | M132: 766
A133: 1998Eilean Siar75-84 | B133: 1998 | C133: Eilean Siar | D133: 75-84 | E133: 20 | F133: * | G133: * | H133: 274 | I133: 96 | J133: 0 | M133: 397
A134: 1998Aberdeen City85 plus | B134: 1998 | C134: Aberdeen City | D134: 85 plus | E134: 72 | F134: 7 | G134: 5 | H134: 841 | I134: 293 | J134: 0 | M134: 1218
A135: =B135&C135&D135 -> 1998Aberdeenshire85 plus | B135: 1998 | C135: Aberdeenshire | D135: 85 plus | E135: 63 | F135: 0 | G135: 0 | H135: 0 | I135: 533 | J135: 0 | M135: 596
A136: 1998Angus85 plus | B136: 1998 | C136: Angus | D136: 85 plus | E136: 24 | F136: * | G136: 0 | H136: * | I136: 532 | J136: 0 | M136: 577
A137: 1998Argyll & Bute85 plus | B137: 1998 | C137: Argyll & Bute | D137: 85 plus | E137: 53 | F137: * | G137: 0 | H137: 336 | I137: * | J137: 0 | M137: 396
A138: 1998Clackmannanshire85 plus | B138: 1998 | C138: Clackmannanshire | D138: 85 plus | E138: 6 | F138: 0 | G138: 0 | H138: 121 | I138: 18 | J138: 0 | M138: 145
A139: 1998Dumfries & Galloway85 plus | B139: 1998 | C139: Dumfries & Galloway | D139: 85 plus | E139: 36 | F139: * | G139: * | H139: 418 | I139: 146 | J139: 0 | M139: 606
A140: 1998Dundee City85 plus | B140: 1998 | C140: Dundee City | D140: 85 plus | E140: * | F140: 0 | G140: * | H140: 154 | I140: 703 | J140: 0 | M140: 860
A141: 1998East Ayrshire85 plus | B141: 1998 | C141: East Ayrshire | D141: 85 plus | E141: 26 | F141: * | G141: * | H141: 308 | I141: 108 | J141: 0 | M141: 447
A142: 1998East Dunbartonshire85 plus | B142: 1998 | C142: East Dunbartonshire | D142: 85 plus | E142: 12 | F142: * | G142: * | H142: 291 | I142: 0 | J142: 0 | M142: 306
A143: 1998East Lothian85 plus | B143: 1998 | C143: East Lothian | D143: 85 plus | E143: * | F143: 0 | G143: * | H143: 394 | I143: 0 | J143: 0 | M143: 396
A144: 1998East Renfrewshire85 plus | B144: 1998 | C144: East Renfrewshire | D144: 85 plus | E144: * | F144: * | G144: 0 | H144: 264 | I144: * | J144: 0 | M144: 296
A145: 1998Edinburgh, City of85 plus | B145: 1998 | C145: Edinburgh, City of | D145: 85 plus | E145: 12 | F145: * | G145: * | H145: 2325 | I145: 72 | J145: 0 | M145: 2413
A146: 1998Falkirk85 plus | B146: 1998 | C146: Falkirk | D146: 85 plus | E146: 59 | F146: * | G146: * | H146: 741 | I146: * | J146: 0 | M146: 807
A147: 1998Fife85 plus | B147: 1998 | C147: Fife | D147: 85 plus | E147: 0 | F147: 47 | G147: 23 | H147: 140 | I147: 2125 | J147: 0 | M147: 2335
A148: 1998Glasgow City85 plus | B148: 1998 | C148: Glasgow City | D148: 85 plus | E148: 410 | F148: * | G148: * | H148: 2056 | I148: 41 | J148: 0 | M148: 2529
A149: 1998Highland85 plus | B149: 1998 | C149: Highland | D149: 85 plus | E149: 48 | F149: 5 | G149: 36 | H149: 712 | I149: 14 | J149: 0 | M149: 815
A150: 1998Inverclyde85 plus | B150: 1998 | C150: Inverclyde | D150: 85 plus | E150: 41 | F150: 5 | G150: * | H150: 277 | I150: * | J150: 0 | M150: 328
A151: 1998Midlothian85 plus | B151: 1998 | C151: Midlothian | D151: 85 plus | E151: * | F151: 0 | G151: 0 | H151: * | I151: 0 | J151: 0 | M151: 307
A152: 1998Moray85 plus | B152: 1998 | C152: Moray | D152: 85 plus | E152: 37 | F152: 0 | G152: 0 | H152: 277 | I152: 0 | J152: 0 | M152: 314
A153: 1998North Ayrshire85 plus | B153: 1998 | C153: North Ayrshire | D153: 85 plus | E153: 74 | F153: * | G153: 0 | H153: 453 | I153: * | J153: 0 | M153: 531
A154: 1998North Lanarkshire85 plus | B154: 1998 | C154: North Lanarkshire | D154: 85 plus | E154: * | F154: 0 | G154: 0 | H154: 815 | I154: * | J154: 0 | M154: 846
A155: 1998Orkney Islands85 plus | B155: 1998 | C155: Orkney Islands | D155: 85 plus | E155: 13 | F155: 0 | G155: 0 | H155: 85 | I155: 0 | J155: 0 | M155: 98
A156: 1998Perth & Kinross85 plus | B156: 1998 | C156: Perth & Kinross | D156: 85 plus | E156: 10 | F156: 0 | G156: 0 | H156: 430 | I156: 0 | J156: 0 | M156: 440
A157: 1998Renfrewshire85 plus | B157: 1998 | C157: Renfrewshire | D157: 85 plus | E157: * | F157: * | G157: 0 | H157: 156 | I157: 584 | J157: 0 | M157: 751
A158: 1998Scottish Borders85 plus | B158: 1998 | C158: Scottish Borders | D158: 85 plus | E158: 0 | F158: * | G158: * | H158: 498 | I158: 0 | J158: 0 | M158: 500
A159: 1998Shetland Islands85 plus | B159: 1998 | C159: Shetland Islands | D159: 85 plus | E159: 0 | F159: 0 | G159: * | H159: * | I159: 0 | J159: 0 | M159: 155
A160: 1998South Ayrshire85 plus | B160: 1998 | C160: South Ayrshire | D160: 85 plus | E160: 81 | F160: * | G160: 0 | H160: 366 | I160: * | J160: 0 | M160: 453
A161: 1998South Lanarkshire85 plus | B161: 1998 | C161: South Lanarkshire | D161: 85 plus | E161: * | F161: 5 | G161: * | H161: 597 | I161: 208 | J161: 0 | M161: 865
A162: 1998Stirling85 plus | B162: 1998 | C162: Stirling | D162: 85 plus | E162: 23 | F162: * | G162: * | H162: 272 | I162: 96 | J162: 0 | M162: 395
A163: 1998West Dunbartonshire85 plus | B163: 1998 | C163: West Dunbartonshire | D163: 85 plus | E163: * | F163: * | G163: 0 | H163: 320 | I163: 0 | J163: 0 | M163: 373
A164: 1998West Lothian85 plus | B164: 1998 | C164: West Lothian | D164: 85 plus | E164: 31 | F164: * | G164: * | H164: 367 | I164: 128 | J164: 0 | M164: 531
A165: 1998Eilean Siar85 plus | B165: 1998 | C165: Eilean Siar | D165: 85 plus | E165: 17 | F165: * | G165: * | H165: 191 | I165: 65 | J165: 0 | M165: 276
A166: 1999Aberdeen City0-17 | B166: 1999 | C166: Aberdeen City | D166: 0-17 | E166: 0 | F166: 0 | G166: 0 | H166: * | I166: * | J166: 0 | M166: *
A167: 1999Aberdeenshire0-17 | B167: 1999 | C167: Aberdeenshire | D167: 0-17 | E167: 0 | F167: 0 | G167: 0 | H167: 0 | I167: * | J167: 0 | M167: *
A168: 1999Angus0-17 | B168: 1999 | C168: Angus | D168: 0-17 | E168: 0 | F168: 0 | G168: * | H168: * | I168: 20 | J168: 0 | M168: *
A169: 1999Argyll & Bute0-17 | B169: 1999 | C169: Argyll & Bute | D169: 0-17 | E169: 0 | F169: 0 | G169: * | H169: * | I169: * | J169: 0 | M169: 15
A170: 1999Clackmannanshire0-17 | B170: 1999 | C170: Clackmannanshire | D170: 0-17 | E170: 0 | F170: 0 | G170: * | H170: 0 | I170: 0 | J170: 0 | M170: *
A171: 1999Dumfries & Galloway0-17 | B171: 1999 | C171: Dumfries & Galloway | D171: 0-17 | E171: 0 | F171: 0 | G171: * | H171: * | I171: 0 | J171: 0 | M171: 10
A172: 1999Dundee City0-17 | B172: 1999 | C172: Dundee City | D172: 0-17 | E172: 0 | F172: 0 | G172: 0 | H172: * | I172: * | J172: 0 | M172: *
A173: 1999East Ayrshire0-17 | B173: 1999 | C173: East Ayrshire | D173: 0-17 | E173: 0 | F173: 0 | G173: 0 | H173: 6 | I173: 6 | J173: 0 | M173: 12
A174: 1999East Dunbartonshire0-17 | B174: 1999 | C174: East Dunbartonshire | D174: 0-17 | E174: 0 | F174: 0 | G174: * | H174: 7 | I174: * | J174: 0 | M174: 33
A175: 1999East Lothian0-17 | B175: 1999 | C175: East Lothian | D175: 0-17 | E175: 0 | F175: 0 | G175: 0 | H175: * | I175: 0 | J175: 0 | M175: *
A176: 1999East Renfrewshire0-17 | B176: 1999 | C176: East Renfrewshire | D176: 0-17 | E176: 0 | F176: 22 | G176: * | H176: 0 | I176: * | J176: 0 | M176: 37
A177: 1999Edinburgh, City of0-17 | B177: 1999 | C177: Edinburgh, City of | D177: 0-17 | E177: 0 | F177: 0 | G177: * | H177: 17 | I177: * | J177: 0 | M177: 29
A178: 1999Falkirk0-17 | B178: 1999 | C178: Falkirk | D178: 0-17 | E178: 0 | F178: 0 | G178: 0 | H178: 8 | I178: 0 | J178: 0 | M178: 8
A179: 1999Fife0-17 | B179: 1999 | C179: Fife | D179: 0-17 | E179: 0 | F179: 0 | G179: 6 | H179: 5 | I179: 21 | J179: 0 | M179: 32
A180: 1999Glasgow City0-17 | B180: 1999 | C180: Glasgow City | D180: 0-17 | E180: 0 | F180: * | G180: * | H180: 43 | I180: 244 | J180: 0 | M180: 311
A181: 1999Highland0-17 | B181: 1999 | C181: Highland | D181: 0-17 | E181: 0 | F181: 0 | G181: 0 | H181: * | I181: 0 | J181: 0 | M181: *
A182: 1999Inverclyde0-17 | B182: 1999 | C182: Inverclyde | D182: 0-17 | E182: 0 | F182: 0 | G182: * | H182: 16 | I182: * | J182: 0 | M182: 25
A183: 1999Midlothian0-17 | B183: 1999 | C183: Midlothian | D183: 0-17 | E183: 0 | F183: 0 | G183: 0 | H183: * | I183: * | J183: 0 | M183: 32
A184: 1999Moray0-17 | B184: 1999 | C184: Moray | D184: 0-17 | E184: 0 | F184: * | G184: * | H184: * | I184: 19 | J184: 0 | M184: 29
A185: 1999North Ayrshire0-17 | B185: 1999 | C185: North Ayrshire | D185: 0-17 | E185: 0 | F185: 0 | G185: * | H185: * | I185: * | J185: 0 | M185: 47
A186: 1999North Lanarkshire0-17 | B186: 1999 | C186: North Lanarkshire | D186: 0-17 | E186: 0 | F186: 0 | G186: * | H186: * | I186: 32 | J186: 0 | M186: 43
A187: 1999Orkney Islands0-17 | B187: 1999 | C187: Orkney Islands | D187: 0-17 | E187: 0 | F187: 0 | G187: 0 | H187: 0 | I187: 12 | J187: 0 | M187: 12
A188: 1999Perth & Kinross0-17 | B188: 1999 | C188: Perth & Kinross | D188: 0-17 | E188: 0 | F188: 0 | G188: 0 | H188: 0 | I188: 0 | J188: 0 | M188: 0
A189: 1999Renfrewshire0-17 | B189: 1999 | C189: Renfrewshire | D189: 0-17 | E189: 0 | F189: * | G189: * | H189: * | I189: 129 | J189: 0 | M189: 144
A190: 1999Scottish Borders0-17 | B190: 1999 | C190: Scottish Borders | D190: 0-17 | E190: 0 | F190: 0 | G190: 0 | H190: 0 | I190: 17 | J190: 0 | M190: 17
A191: 1999Shetland Islands0-17 | B191: 1999 | C191: Shetland Islands | D191: 0-17 | E191: 0 | F191: 0 | G191: 0 | H191: 0 | I191: 0 | J191: 0 | M191: 0
A192: 1999South Ayrshire0-17 | B192: 1999 | C192: South Ayrshire | D192: 0-17 | E192: 0 | F192: 0 | G192: * | H192: * | I192: * | J192: 0 | M192: *
A193: 1999South Lanarkshire0-17 | B193: 1999 | C193: South Lanarkshire | D193: 0-17 | E193: 0 | F193: * | G193: * | H193: 7 | I193: 30 | J193: 0 | M193: 44
A194: 1999Stirling0-17 | B194: 1999 | C194: Stirling | D194: 0-17 | E194: 0 | F194: * | G194: * | H194: 8 | I194: * | J194: 0 | M194: 16
A195: 1999West Dunbartonshire0-17 | B195: 1999 | C195: West Dunbartonshire | D195: 0-17 | E195: 0 | F195: 0 | G195: * | H195: * | I195: 40 | J195: 0 | M195: 108
A196: 1999West Lothian0-17 | B196: 1999 | C196: West Lothian | D196: 0-17 | E196: 0 | F196: 0 | G196: * | H196: * | I196: * | J196: 0 | M196: *
A197: 1999Eilean Siar0-17 | B197: 1999 | C197: Eilean Siar | D197: 0-17 | E197: 0 | F197: 0 | G197: 0 | H197: 0 | I197: 0 | J197: 0 | M197: 0
A198: 1999Aberdeen City18-64 | B198: 1999 | C198: Aberdeen City | D198: 18-64 | E198: 0 | F198: 82 | G198: * | H198: * | I198: 63 | J198: 0 | M198: *
A199: =B199&C199&D199 -> 1999Aberdeenshire18-64 | B199: 1999 | C199: Aberdeenshire | D199: 18-64 | E199: 0 | F199: 101 | G199: 277 | H199: 21 | I199: * | J199: 0 | M199: *
A200: 1999Angus18-64 | B200: 1999 | C200: Angus | D200: 18-64 | E200: * | F200: 22 | G200: * | H200: * | I200: 61 | J200: 0 | M200: *
... 5461 more rows

Sheet Table1
B1: ="Number of home care clients and hours provided/purchased, in "&A6&", 1998-Latest" -> Number of home care clients and hours provided/purchased, in Scotland, 1998-Latest
B2: Figures are for the March census week | W2: Main page
A4: 1 | C4: Select area
A5: Clients
A6: =OFFSET(LKPs!A1,A4,0) -> Scotland
D8: 1998 | E8: 1999 | F8: 2000 | G8: 2001 | H8: 2002 | I8: 2003 | J8: 2004 | K8: 2005 | L8: 2006 | M8: 2007 | N8: 2008 | O8: 2009 | P8: 2010* | Q8: 2011 | R8: 2012 | S8: 2013 | T8: 2014 | U8: 2015 | V8: 2016 | W8: 2017
A9: 11 | C9: Number of clients | D9: =IFERROR(MROUND(VLOOKUP(D$8&$A$6,'Calc-HC1'!$B$6:$AR$1537,$A9,FALSE),10),"-") -> 79290 | E9: =IFERROR(MROUND(VLOOKUP(E$8&$A$6,'Calc-HC1'!$B$6:$AR$1537,$A9,FALSE),10),"-") -> 74060 | F9: =IFERROR(MROUND(VLOOKUP(F$8&$A$6,'Calc-HC1'!$B$6:$AR$1537,$A9,FALSE),10),"-") -> 70210 | G9: =IFERROR(MROUND(VLOOKUP(G$8&$A$6,'Calc-HC1'!$B$6:$AR$1537,$A9,FALSE),10),"-") -> 65530 | H9: =IFERROR(MROUND(VLOOKUP(H$8&$A$6,'Calc-HC1'!$B$6:$AR$1537,$A9,FALSE),10),"-") -> 64550 | I9: =IFERROR(MROUND(VLOOKUP(I$8&$A$6,'Calc-HC1'!$B$6:$AR$1537,$A9,FALSE),10),"-") -> 67270 | J9: =IFERROR(MROUND(VLOOKUP(J$8&$A$6,'Calc-HC1'!$B$6:$AR$1537,$A9,FALSE),10),"-") -> 69990 | K9: =IFERROR(MROUND(VLOOKUP(K$8&$A$6,'Calc-HC1'!$B$6:$AR$1537,$A9,FALSE),10),"-") -> 71090 | L9: =IFERROR(MROUND(VLOOKUP(L$8&$A$6,'Calc-HC1'!$B$6:$AR$1537,$A9,FALSE),10),"-") -> 70660 | M9: =IFERROR(MROUND(VLOOKUP(M$8&$A$6,'Calc-HC1'!$B$6:$AR$1537,$A9,FALSE),10),"-") -> 70710 | N9: =IFERROR(MROUND(VLOOKUP(N$8&$A$6,'Calc-HC1'!$B$6:$AR$1537,$A9,FALSE),10),"-") -> 68760 | O9: =IFERROR(MROUND(VLOOKUP(O$8&$A$6,'Calc-HC1'!$B$6:$AR$1537,$A9,FALSE),10),"-") -> 68330 | P9: =IFERROR(MROUND(VLOOKUP(P$8&$A$6,'Calc-HC1'!$B$6:$AR$1537,$A9,FALSE),10),"-") -> 66220 | Q9: =IFERROR(MROUND(VLOOKUP(Q$8&$A$6,'Calc-HC1'!$B$6:$AR$1537,$A9,FALSE),10),"-") -> 63460 | R9: =IFERROR(MROUND(VLOOKUP(R$8&$A$6,'Calc-HC1'!$B$6:$AR$1537,$A9,FALSE),10),"-") -> 62830 | S9: =IFERROR(MROUND(VLOOKUP(S$8&$A$6,'Calc-HC1'!$B$6:$AR$1537,$A9,FALSE),10),"-") -> 61070 | T9: =IFERROR(MROUND(VLOOKUP(T$8&$A$6,'Calc-HC1'!$B$6:$AR$1537,$A9,FALSE),10),"-") -> 61740 | U9: =IFERROR(MROUND(VLOOKUP(U$8&$A$6,'Calc-HC1'!$B$6:$AR$1537,$A9,FALSE),10),"-") -> 61500 | V9: =IFERROR(MROUND(VLOOKUP(V$8&$A$6,'Calc-HC1'!$B$6:$AR$1537,$A9,FALSE),10),"-") -> 59780 | W9: =IFERROR(MROUND(VLOOKUP(W$8&$A$6,'Calc-HC1'!$B$6:$AR$1537,$A9,FALSE),10),"-") -> 59640
A10: 18 | C10: Total hours* | D10: =IFERROR(MROUND(VLOOKUP(D$8&$A$6,'Calc-HC1'!$B$6:$AR$1537,$A10,FALSE),10),"-") -> 401230 | E10: =IFERROR(MROUND(VLOOKUP(E$8&$A$6,'Calc-HC1'!$B$6:$AR$1537,$A10,FALSE),10),"-") -> 375300 | F10: =IFERROR(MROUND(VLOOKUP(F$8&$A$6,'Calc-HC1'!$B$6:$AR$1537,$A10,FALSE),10),"-") -> 393070 | G10: =IFERROR(MROUND(VLOOKUP(G$8&$A$6,'Calc-HC1'!$B$6:$AR$1537,$A10,FALSE),10),"-") -> 394570 | H10: =IFERROR(MROUND(VLOOKUP(H$8&$A$6,'Calc-HC1'!$B$6:$AR$1537,$A10,FALSE),10),"-") -> 452760 | I10: =IFERROR(MROUND(VLOOKUP(I$8&$A$6,'Calc-HC1'!$B$6:$AR$1537,$A10,FALSE),10),"-") -> 501030 | J10: =IFERROR(MROUND(VLOOKUP(J$8&$A$6,'Calc-HC1'!$B$6:$AR$1537,$A10,FALSE),10),"-") -> 543380 | K10: =IFERROR(MROUND(VLOOKUP(K$8&$A$6,'Calc-HC1'!$B$6:$AR$1537,$A10,FALSE),10),"-") -> 584160 | L10: =IFERROR(MROUND(VLOOKUP(L$8&$A$6,'Calc-HC1'!$B$6:$AR$1537,$A10,FALSE),10),"-") -> 604080 | M10: =IFERROR(MROUND(VLOOKUP(M$8&$A$6,'Calc-HC1'!$B$6:$AR$1537,$A10,FALSE),10),"-") -> 645040 | N10: =IFERROR(MROUND(VLOOKUP(N$8&$A$6,'Calc-HC1'!$B$6:$AR$1537,$A10,FALSE),10),"-") -> 651010 | O10: =IFERROR(MROUND(VLOOKUP(O$8&$A$6,'Calc-HC1'!$B$6:$AR$1537,$A10,FALSE),10),"-") -> 645730 | P10: =IFERROR(MROUND(VLOOKUP(P$8&$A$6,'Calc-HC1'!$B$6:$AR$1537,$A10,FALSE),10),"-") -> 632160 | Q10: =IFERROR(MROUND(VLOOKUP(Q$8&$A$6,'Calc-HC1'!$B$6:$AR$1537,$A10,FALSE),10),"-") -> 607420 | R10: =IFERROR(MROUND(VLOOKUP(R$8&$A$6,'Calc-HC1'!$B$6:$AR$1537,$A10,FALSE),10),"-") -> 627380 | S10: =IFERROR(MROUND(VLOOKUP(S$8&$A$6,'Calc-HC1'!$B$6:$AR$1537,$A10,FALSE),10),"-") -> 631150 | T10: =IFERROR(MROUND(VLOOKUP(T$8&$A$6,'Calc-HC1'!$B$6:$AR$1537,$A10,FALSE),10),"-") -> 678890 | U10: =IFERROR(MROUND(VLOOKUP(U$8&$A$6,'Calc-HC1'!$B$6:$AR$1537,$A10,FALSE),10),"-") -> 700300 | V10: =IFERROR(MROUND(VLOOKUP(V$8&$A$6,'Calc-HC1'!$B$6:$AR$1537,$A10,FALSE),10),"-") -> 676520 | W10: =IFERROR(MROUND(VLOOKUP(W$8&$A$6,'Calc-HC1'!$B$6:$AR$1537,$A10,FALSE),10),"-") -> 696620
C11: Hours per client | D11: =IFERROR(D10/D9,"-") -> 5.06028503 | E11: =IFERROR(E10/E9,"-") -> 5.067512827 | F11: 5.598490244 | G11: 6.021211659 | H11: 7.014097599 | I11: 7.448045191 | J11: 7.763680526 | K11: 8.217189478 | L11: 8.549108406 | M11: 9.122330646 | N11: 9.46785922 | O11: 9.450168301 | P11: =IFERROR(P10/P9,"-") -> 9.546360616 | Q11: =IFERROR(Q10/Q9,"-") -> 9.571698708 | R11: 9.985357313 | S11: 10.33486163 | T11: 10.99595076 | U11: 11.38699187 | V11: 11.31682837 | W11: 11.68041583
A13: 29 | C13: Number of clients age 65 plus receiving 10+ hours | D13: =IFERROR(MROUND(VLOOKUP(D$8&$A$6,'Calc-HC1'!$B$6:$AR$1537,$A13,FALSE),10),"-") -> 7150 | E13: =IFERROR(MROUND(VLOOKUP(E$8&$A$6,'Calc-HC1'!$B$6:$AR$1537,$A13,FALSE),10),"-") -> 7380 | F13: =IFERROR(MROUND(VLOOKUP(F$8&$A$6,'Calc-HC1'!$B$6:$AR$1537,$A13,FALSE),10),"-") -> 8550 | G13: =IFERROR(MROUND(VLOOKUP(G$8&$A$6,'Calc-HC1'!$B$6:$AR$1537,$A13,FALSE),10),"-") -> 9440 | H13: =IFERROR(MROUND(VLOOKUP(H$8&$A$6,'Calc-HC1'!$B$6:$AR$1537,$A13,FALSE),10),"-") -> 10810 | I13: =IFERROR(MROUND(VLOOKUP(I$8&$A$6,'Calc-HC1'!$B$6:$AR$1537,$A13,FALSE),10),"-") -> 12050 | J13: =IFERROR(MROUND(VLOOKUP(J$8&$A$6,'Calc-HC1'!$B$6:$AR$1537,$A13,FALSE),10),"-") -> 13340 | K13: =IFERROR(MROUND(VLOOKUP(K$8&$A$6,'Calc-HC1'!$B$6:$AR$1537,$A13,FALSE),10),"-") -> 14180 | L13: =IFERROR(MROUND(VLOOKUP(L$8&$A$6,'Calc-HC1'!$B$6:$AR$1537,$A13,FALSE),10),"-") -> 14080 | M13: =IFERROR(MROUND(VLOOKUP(M$8&$A$6,'Calc-HC1'!$B$6:$AR$1537,$A13,FALSE),10),"-") -> 14630 | N13: =IFERROR(MROUND(VLOOKUP(N$8&$A$6,'Calc-HC1'!$B$6:$AR$1537,$A13,FALSE),10),"-") -> 15330 | O13: =IFERROR(MROUND(VLOOKUP(O$8&$A$6,'Calc-HC1'!$B$6:$AR$1537,$A13,FALSE),10),"-") -> 15220 | P13: =IFERROR(MROUND(VLOOKUP(P$8&$A$6,'Calc-HC1'!$B$6:$AR$1537,$A13,FALSE),10),"-") -> 15740 | Q13: =IFERROR(MROUND(VLOOKUP(Q$8&$A$6,'Calc-HC1'!$B$6:$AR$1537,$A13,FALSE),10),"-") -> 15560 | R13: =IFERROR(MROUND(VLOOKUP(R$8&$A$6,'Calc-HC1'!$B$6:$AR$1537,$A13,FALSE),10),"-") -> 15970 | S13: =IFERROR(MROUND(VLOOKUP(S$8&$A$6,'Calc-HC1'!$B$6:$AR$1537,$A13,FALSE),10),"-") -> 16320 | T13: =IFERROR(MROUND(VLOOKUP(T$8&$A$6,'Calc-HC1'!$B$6:$AR$1537,$A13,FALSE),10),"-") -> 16810 | U13: =IFERROR(MROUND(VLOOKUP(U$8&$A$6,'Calc-HC1'!$B$6:$AR$1537,$A13,FALSE),10),"-") -> 17570 | V13: =IFERROR(MROUND(VLOOKUP(V$8&$A$6,'Calc-HC1'!$B$6:$AR$1537,$A13,FALSE),10),"-") -> 16630 | W13: =IFERROR(MROUND(VLOOKUP(W$8&$A$6,'Calc-HC1'!$B$6:$AR$1537,$A13,FALSE),10),"-") -> 16910
C14: Populations aged 65+ | D14: =IFERROR(MROUND(D24,100),"-") -> 792600 | E14: =IFERROR(MROUND(E24,100),"-") -> 795100 | F14: 799500 | G14: 807200 | H14: 812900 | I14: 818500 | J14: 825200 | K14: 832300 | L14: 837800 | M14: 846000 | N14: 857700 | O14: 870600 | P14: =IFERROR(MROUND(P24,100),"-") -> 882200 | Q14: =IFERROR(MROUND(Q24,100),"-") -> 935200 | R14: 925700 | S14: 946900 | T14: 968500 | U14: 983000 | V14: 998900 | W14: =IFERROR(MROUND(V24,100),"-") -> 998900
C15: Rate per 1,000 population | D15: =IFERROR(D13/D14*1000,"-") -> 9.020943729 | E15: =IFERROR(E13/E14*1000,"-") -> 9.281851339 | F15: 10.69418386 | G15: 11.69474727 | H15: 13.29806864 | I15: 14.72205254 | J15: 16.16577799 | K15: 17.03712604 | L15: 16.80592027 | M15: 17.29314421 | N15: 17.8733823 | O15: 17.48219619 | P15: =IFERROR(P13/P14*1000,"-") -> 17.84175924 | Q15: =IFERROR(Q13/Q14*1000,"-") -> 16.63815227 | R15: 17.25180944 | S15: 17.23518851 | T15: 17.35673722 | U15: 17.87385554 | V15: 16.64831314 | W15: 16.92862148
C17: Source: Home Care Census up to 2012, Social Care Survey from 2013
C18: NRS mid year population estimates up to 2016
C20: *Figures for Home Care hours from 2010 exclude 24-7 care. This has resulted in a break in the time series between 2009 and 2010.
C21: =IF(A6="Angus","**Increase in Angus home care provision between 2013 and 2014 is due to new data being collected and should not be treated as a genuine increase in provision.",IF(A6="East Dunbartonshire","**East Dunbartonshire submitted revised Total hours for 2015","")) -> 
A24: 30 | D24: =VLOOKUP(D$8&$A$6,'Calc-HC1'!$B$6:$AR$1339,$A24,FALSE) -> 792579 | E24: =VLOOKUP(E$8&$A$6,'Calc-HC1'!$B$6:$AR$1339,$A24,FALSE) -> 795072 | F24: =VLOOKUP(F$8&$A$6,'Calc-HC1'!$B$6:$AR$1339,$A24,FALSE) -> 799485 | G24: =VLOOKUP(G$8&$A$6,'Calc-HC1'!$B$6:$AR$1339,$A24,FALSE) -> 807181 | H24: =VLOOKUP(H$8&$A$6,'Calc-HC1'!$B$6:$AR$1339,$A24,FALSE) -> 812851 | I24: =VLOOKUP(I$8&$A$6,'Calc-HC1'!$B$6:$AR$1339,$A24,FALSE) -> 818504 | J24: =VLOOKUP(J$8&$A$6,'Calc-HC1'!$B$6:$AR$1339,$A24,FALSE) -> 825227 | K24: =VLOOKUP(K$8&$A$6,'Calc-HC1'!$B$6:$AR$1339,$A24,FALSE) -> 832282 | L24: =VLOOKUP(L$8&$A$6,'Calc-HC1'!$B$6:$AR$1339,$A24,FALSE) -> 837780 | M24: =VLOOKUP(M$8&$A$6,'Calc-HC1'!$B$6:$AR$1339,$A24,FALSE) -> 846005 | N24: =VLOOKUP(N$8&$A$6,'Calc-HC1'!$B$6:$AR$1339,$A24,FALSE) -> 857746 | O24: =VLOOKUP(O$8&$A$6,'Calc-HC1'!$B$6:$AR$1339,$A24,FALSE) -> 870557 | P24: =VLOOKUP(P$8&$A$6,'Calc-HC1'!$B$6:$AR$1339,$A24,FALSE) -> 882222 | Q24: =VLOOKUP(Q$8&$A$6,'Calc-HC1'!$B$6:$AR$1339,$A24,FALSE) -> 935192 | R24: =VLOOKUP(R$8&$A$6,'Calc-HC1'!$B$6:$AR$1339,$A24,FALSE) -> 925741 | S24: =VLOOKUP(S$8&$A$6,'Calc-HC1'!$B$6:$AR$1339,$A24,FALSE) -> 946898 | T24: =VLOOKUP(T$8&$A$6,'Calc-HC1'!$B$6:$AR$1339,$A24,FALSE) -> 968450 | U24: =VLOOKUP(U$8&$A$6,'Calc-HC1'!$B$6:$AR$1438,$A24,FALSE) -> 982998 | V24: =VLOOKUP(V$8&$A$6,'Calc-HC1'!$B$6:$AR$1438,$A24,FALSE) -> 998852

Sheet Table2
B1: ="Number of Home Care "&A6&" by sector of provider, 1998 - Latest" -> Number of Home Care Clients by sector of provider, 1998 - Latest
B2: Figures are for the March census week | W2: Main page
A4: 1 | B4: 1 | C4: Select area | H4: Select clients or hours
A5: 1
A6: =OFFSET(LKPs!D24,A5,0) -> Clients
A7: =OFFSET(LKPs!A1,A4,0) -> Scotland
C8: Service Provider | D8: 1998 | E8: 1999 | F8: 2000 | G8: 2001 | H8: 2002 | I8: 2003 | J8: 2004 | K8: 2005 | L8: 2006 | M8: 2007 | N8: 2008 | O8: 2009 | P8: 2010* | Q8: 2011 | R8: 2012 | S8: 2013 | T8: 2014 | U8: 2015 | V8: 2016 | W8: 2017
A9: =IF($A$6="Clients",5,12) -> 5 | C9: Local Authority only | D9: =IFERROR(IF($A$5=1,MROUND(VLOOKUP(D$8&$A$7,'Calc-HC1'!$B$6:$S$1537,$A9,FALSE),10),MROUND(VLOOKUP(D$8&$A$7,'Calc-HC1'!$B$6:$S$1537,$A9,FALSE),100)),"-") -> 74200 | E9: =IFERROR(IF($A$5=1,MROUND(VLOOKUP(E$8&$A$7,'Calc-HC1'!$B$6:$S$1537,$A9,FALSE),10),MROUND(VLOOKUP(E$8&$A$7,'Calc-HC1'!$B$6:$S$1537,$A9,FALSE),100)),"-") -> 68120 | F9: =IFERROR(IF($A$5=1,MROUND(VLOOKUP(F$8&$A$7,'Calc-HC1'!$B$6:$S$1537,$A9,FALSE),10),MROUND(VLOOKUP(F$8&$A$7,'Calc-HC1'!$B$6:$S$1537,$A9,FALSE),100)),"-") -> 63270 | G9: =IFERROR(IF($A$5=1,MROUND(VLOOKUP(G$8&$A$7,'Calc-HC1'!$B$6:$S$1537,$A9,FALSE),10),MROUND(VLOOKUP(G$8&$A$7,'Calc-HC1'!$B$6:$S$1537,$A9,FALSE),100)),"-") -> 57220 | H9: =IFERROR(IF($A$5=1,MROUND(VLOOKUP(H$8&$A$7,'Calc-HC1'!$B$6:$S$1537,$A9,FALSE),10),MROUND(VLOOKUP(H$8&$A$7,'Calc-HC1'!$B$6:$S$1537,$A9,FALSE),100)),"-") -> 55510 | I9: =IFERROR(IF($A$5=1,MROUND(VLOOKUP(I$8&$A$7,'Calc-HC1'!$B$6:$S$1537,$A9,FALSE),10),MROUND(VLOOKUP(I$8&$A$7,'Calc-HC1'!$B$6:$S$1537,$A9,FALSE),100)),"-") -> 56340 | J9: =IFERROR(IF($A$5=1,MROUND(VLOOKUP(J$8&$A$7,'Calc-HC1'!$B$6:$S$1537,$A9,FALSE),10),MROUND(VLOOKUP(J$8&$A$7,'Calc-HC1'!$B$6:$S$1537,$A9,FALSE),100)),"-") -> 56660 | K9: =IFERROR(IF($A$5=1,MROUND(VLOOKUP(K$8&$A$7,'Calc-HC1'!$B$6:$S$1537,$A9,FALSE),10),MROUND(VLOOKUP(K$8&$A$7,'Calc-HC1'!$B$6:$S$1537,$A9,FALSE),100)),"-") -> 54940 | L9: =IFERROR(IF($A$5=1,MROUND(VLOOKUP(L$8&$A$7,'Calc-HC1'!$B$6:$S$1537,$A9,FALSE),10),MROUND(VLOOKUP(L$8&$A$7,'Calc-HC1'!$B$6:$S$1537,$A9,FALSE),100)),"-") -> 53480 | M9: =IFERROR(IF($A$5=1,MROUND(VLOOKUP(M$8&$A$7,'Calc-HC1'!$B$6:$S$1537,$A9,FALSE),10),MROUND(VLOOKUP(M$8&$A$7,'Calc-HC1'!$B$6:$S$1537,$A9,FALSE),100)),"-") -> 51580 | N9: =IFERROR(IF($A$5=1,MROUND(VLOOKUP(N$8&$A$7,'Calc-HC1'!$B$6:$S$1537,$A9,FALSE),10),MROUND(VLOOKUP(N$8&$A$7,'Calc-HC1'!$B$6:$S$1537,$A9,FALSE),100)),"-") -> 48840 | O9: =IFERROR(IF($A$5=1,MROUND(VLOOKUP(O$8&$A$7,'Calc-HC1'!$B$6:$S$1537,$A9,FALSE),10),MROUND(VLOOKUP(O$8&$A$7,'Calc-HC1'!$B$6:$S$1537,$A9,FALSE),100)),"-") -> 46340 | P9: =IFERROR(IF($A$5=1,MROUND(VLOOKUP(P$8&$A$7,'Calc-HC1'!$B$6:$S$1537,$A9,FALSE),10),MROUND(VLOOKUP(P$8&$A$7,'Calc-HC1'!$B$6:$S$1537,$A9,FALSE),100)),"-") -> 43650 | Q9: =IFERROR(IF($A$5=1,MROUND(VLOOKUP(Q$8&$A$7,'Calc-HC1'!$B$6:$S$1537,$A9,FALSE),10),MROUND(VLOOKUP(Q$8&$A$7,'Calc-HC1'!$B$6:$S$1537,$A9,FALSE),100)),"-") -> 38850 | R9: =IFERROR(IF($A$5=1,MROUND(VLOOKUP(R$8&$A$7,'Calc-HC1'!$B$6:$S$1537,$A9,FALSE),10),MROUND(VLOOKUP(R$8&$A$7,'Calc-HC1'!$B$6:$S$1537,$A9,FALSE),100)),"-") -> 35590 | S9: =IFERROR(IF($A$5=1,MROUND(VLOOKUP(S$8&$A$7,'Calc-HC1'!$B$6:$S$1537,$A9,FALSE),10),MROUND(VLOOKUP(S$8&$A$7,'Calc-HC1'!$B$6:$S$1537,$A9,FALSE),100)),"-") -> 33590 | T9: =IFERROR(IF($A$5=1,MROUND(VLOOKUP(T$8&$A$7,'Calc-HC1'!$B$6:$S$1537,$A9,FALSE),10),MROUND(VLOOKUP(T$8&$A$7,'Calc-HC1'!$B$6:$S$1537,$A9,FALSE),100)),"-") -> 31580 | U9: =IFERROR(IF($A$5=1,MROUND(VLOOKUP(U$8&$A$7,'Calc-HC1'!$B$6:$S$1537,$A9,FALSE),10),MROUND(VLOOKUP(U$8&$A$7,'Calc-HC1'!$B$6:$S$1537,$A9,FALSE),100)),"-") -> 29720 | V9: =IFERROR(IF($A$5=1,MROUND(VLOOKUP(V$8&$A$7,'Calc-HC1'!$B$6:$S$1537,$A9,FALSE),10),MROUND(VLOOKUP(V$8&$A$7,'Calc-HC1'!$B$6:$S$1537,$A9,FALSE),100)),"-") -> 28580 | W9: =IFERROR(IF($A$5=1,MROUND(VLOOKUP(W$8&$A$7,'Calc-HC1'!$B$6:$S$1537,$A9,FALSE),10),MROUND(VLOOKUP(W$8&$A$7,'Calc-HC1'!$B$6:$S$1537,$A9,FALSE),100)),"-") -> 27900
A10: =IF($A$6="Clients",7,14) -> 7 | C10: Private only | D10: =IFERROR(IF($A$5=1,MROUND(VLOOKUP(D$8&$A$7,'Calc-HC1'!$B$6:$S$1537,$A10,FALSE),10),MROUND(VLOOKUP(D$8&$A$7,'Calc-HC1'!$B$6:$S$1537,$A10,FALSE),100)),"-") -> 1310 | E10: =IFERROR(IF($A$5=1,MROUND(VLOOKUP(E$8&$A$7,'Calc-HC1'!$B$6:$S$1537,$A10,FALSE),10),MROUND(VLOOKUP(E$8&$A$7,'Calc-HC1'!$B$6:$S$1537,$A10,FALSE),100)),"-") -> 2620 | F10: =IFERROR(IF($A$5=1,MROUND(VLOOKUP(F$8&$A$7,'Calc-HC1'!$B$6:$S$1537,$A10,FALSE),10),MROUND(VLOOKUP(F$8&$A$7,'Calc-HC1'!$B$6:$S$1537,$A10,FALSE),100)),"-") -> 2990 | G10: =IFERROR(IF($A$5=1,MROUND(VLOOKUP(G$8&$A$7,'Calc-HC1'!$B$6:$S$1537,$A10,FALSE),10),MROUND(VLOOKUP(G$8&$A$7,'Calc-HC1'!$B$6:$S$1537,$A10,FALSE),100)),"-") -> 3510 | H10: =IFERROR(IF($A$5=1,MROUND(VLOOKUP(H$8&$A$7,'Calc-HC1'!$B$6:$S$1537,$A10,FALSE),10),MROUND(VLOOKUP(H$8&$A$7,'Calc-HC1'!$B$6:$S$1537,$A10,FALSE),100)),"-") -> 3960 | I10: =IFERROR(IF($A$5=1,MROUND(VLOOKUP(I$8&$A$7,'Calc-HC1'!$B$6:$S$1537,$A10,FALSE),10),MROUND(VLOOKUP(I$8&$A$7,'Calc-HC1'!$B$6:$S$1537,$A10,FALSE),100)),"-") -> 4740 | J10: =IFERROR(IF($A$5=1,MROUND(VLOOKUP(J$8&$A$7,'Calc-HC1'!$B$6:$S$1537,$A10,FALSE),10),MROUND(VLOOKUP(J$8&$A$7,'Calc-HC1'!$B$6:$S$1537,$A10,FALSE),100)),"-") -> 6840 | K10: =IFERROR(IF($A$5=1,MROUND(VLOOKUP(K$8&$A$7,'Calc-HC1'!$B$6:$S$1537,$A10,FALSE),10),MROUND(VLOOKUP(K$8&$A$7,'Calc-HC1'!$B$6:$S$1537,$A10,FALSE),100)),"-") -> 8420 | L10: =IFERROR(IF($A$5=1,MROUND(VLOOKUP(L$8&$A$7,'Calc-HC1'!$B$6:$S$1537,$A10,FALSE),10),MROUND(VLOOKUP(L$8&$A$7,'Calc-HC1'!$B$6:$S$1537,$A10,FALSE),100)),"-") -> 8970 | M10: =IFERROR(IF($A$5=1,MROUND(VLOOKUP(M$8&$A$7,'Calc-HC1'!$B$6:$S$1537,$A10,FALSE),10),MROUND(VLOOKUP(M$8&$A$7,'Calc-HC1'!$B$6:$S$1537,$A10,FALSE),100)),"-") -> 10680 | N10: =IFERROR(IF($A$5=1,MROUND(VLOOKUP(N$8&$A$7,'Calc-HC1'!$B$6:$S$1537,$A10,FALSE),10),MROUND(VLOOKUP(N$8&$A$7,'Calc-HC1'!$B$6:$S$1537,$A10,FALSE),100)),"-") -> 11320 | O10: =IFERROR(IF($A$5=1,MROUND(VLOOKUP(O$8&$A$7,'Calc-HC1'!$B$6:$S$1537,$A10,FALSE),10),MROUND(VLOOKUP(O$8&$A$7,'Calc-HC1'!$B$6:$S$1537,$A10,FALSE),100)),"-") -> 13070 | P10: =IFERROR(IF($A$5=1,MROUND(VLOOKUP(P$8&$A$7,'Calc-HC1'!$B$6:$S$1537,$A10,FALSE),10),MROUND(VLOOKUP(P$8&$A$7,'Calc-HC1'!$B$6:$S$1537,$A10,FALSE),100)),"-") -> 14550 | Q10: =IFERROR(IF($A$5=1,MROUND(VLOOKUP(Q$8&$A$7,'Calc-HC1'!$B$6:$S$1537,$A10,FALSE),10),MROUND(VLOOKUP(Q$8&$A$7,'Calc-HC1'!$B$6:$S$1537,$A10,FALSE),100)),"-") -> 16710 | R10: =IFERROR(IF($A$5=1,MROUND(VLOOKUP(R$8&$A$7,'Calc-HC1'!$B$6:$S$1537,$A10,FALSE),10),MROUND(VLOOKUP(R$8&$A$7,'Calc-HC1'!$B$6:$S$1537,$A10,FALSE),100)),"-") -> 19410 | S10: =IFERROR(IF($A$5=1,MROUND(VLOOKUP(S$8&$A$7,'Calc-HC1'!$B$6:$S$1537,$A10,FALSE),10),MROUND(VLOOKUP(S$8&$A$7,'Calc-HC1'!$B$6:$S$1537,$A10,FALSE),100)),"-") -> 19420 | T10: =IFERROR(IF($A$5=1,MROUND(VLOOKUP(T$8&$A$7,'Calc-HC1'!$B$6:$S$1537,$A10,FALSE),10),MROUND(VLOOKUP(T$8&$A$7,'Calc-HC1'!$B$6:$S$1537,$A10,FALSE),100)),"-") -> 21510 | U10: =IFERROR(IF($A$5=1,MROUND(VLOOKUP(U$8&$A$7,'Calc-HC1'!$B$6:$S$1537,$A10,FALSE),10),MROUND(VLOOKUP(U$8&$A$7,'Calc-HC1'!$B$6:$S$1537,$A10,FALSE),100)),"-") -> 21810 | V10: =IFERROR(IF($A$5=1,MROUND(VLOOKUP(V$8&$A$7,'Calc-HC1'!$B$6:$S$1537,$A10,FALSE),10),MROUND(VLOOKUP(V$8&$A$7,'Calc-HC1'!$B$6:$S$1537,$A10,FALSE),100)),"-") -> 22200 | W10: =IFERROR(IF($A$5=1,MROUND(VLOOKUP(W$8&$A$7,'Calc-HC1'!$B$6:$S$1537,$A10,FALSE),10),MROUND(VLOOKUP(W$8&$A$7,'Calc-HC1'!$B$6:$S$1537,$A10,FALSE),100)),"-") -> 23110
A11: =IF($A$6="Clients",6,13) -> 6 | C11: Voluntary only | D11: =IFERROR(IF($A$5=1,MROUND(VLOOKUP(D$8&$A$7,'Calc-HC1'!$B$6:$S$1537,$A11,FALSE),10),MROUND(VLOOKUP(D$8&$A$7,'Calc-HC1'!$B$6:$S$1537,$A11,FALSE),100)),"-") -> 1590 | E11: =IFERROR(IF($A$5=1,MROUND(VLOOKUP(E$8&$A$7,'Calc-HC1'!$B$6:$S$1537,$A11,FALSE),10),MROUND(VLOOKUP(E$8&$A$7,'Calc-HC1'!$B$6:$S$1537,$A11,FALSE),100)),"-") -> 1510 | F11: =IFERROR(IF($A$5=1,MROUND(VLOOKUP(F$8&$A$7,'Calc-HC1'!$B$6:$S$1537,$A11,FALSE),10),MROUND(VLOOKUP(F$8&$A$7,'Calc-HC1'!$B$6:$S$1537,$A11,FALSE),100)),"-") -> 1600 | G11: =IFERROR(IF($A$5=1,MROUND(VLOOKUP(G$8&$A$7,'Calc-HC1'!$B$6:$S$1537,$A11,FALSE),10),MROUND(VLOOKUP(G$8&$A$7,'Calc-HC1'!$B$6:$S$1537,$A11,FALSE),100)),"-") -> 2070 | H11: =IFERROR(IF($A$5=1,MROUND(VLOOKUP(H$8&$A$7,'Calc-HC1'!$B$6:$S$1537,$A11,FALSE),10),MROUND(VLOOKUP(H$8&$A$7,'Calc-HC1'!$B$6:$S$1537,$A11,FALSE),100)),"-") -> 2220 | I11: =IFERROR(IF($A$5=1,MROUND(VLOOKUP(I$8&$A$7,'Calc-HC1'!$B$6:$S$1537,$A11,FALSE),10),MROUND(VLOOKUP(I$8&$A$7,'Calc-HC1'!$B$6:$S$1537,$A11,FALSE),100)),"-") -> 2810 | J11: =IFERROR(IF($A$5=1,MROUND(VLOOKUP(J$8&$A$7,'Calc-HC1'!$B$6:$S$1537,$A11,FALSE),10),MROUND(VLOOKUP(J$8&$A$7,'Calc-HC1'!$B$6:$S$1537,$A11,FALSE),100)),"-") -> 2600 | K11: =IFERROR(IF($A$5=1,MROUND(VLOOKUP(K$8&$A$7,'Calc-HC1'!$B$6:$S$1537,$A11,FALSE),10),MROUND(VLOOKUP(K$8&$A$7,'Calc-HC1'!$B$6:$S$1537,$A11,FALSE),100)),"-") -> 3260 | L11: =IFERROR(IF($A$5=1,MROUND(VLOOKUP(L$8&$A$7,'Calc-HC1'!$B$6:$S$1537,$A11,FALSE),10),MROUND(VLOOKUP(L$8&$A$7,'Calc-HC1'!$B$6:$S$1537,$A11,FALSE),100)),"-") -> 3260 | M11: =IFERROR(IF($A$5=1,MROUND(VLOOKUP(M$8&$A$7,'Calc-HC1'!$B$6:$S$1537,$A11,FALSE),10),MROUND(VLOOKUP(M$8&$A$7,'Calc-HC1'!$B$6:$S$1537,$A11,FALSE),100)),"-") -> 3240 | N11: =IFERROR(IF($A$5=1,MROUND(VLOOKUP(N$8&$A$7,'Calc-HC1'!$B$6:$S$1537,$A11,FALSE),10),MROUND(VLOOKUP(N$8&$A$7,'Calc-HC1'!$B$6:$S$1537,$A11,FALSE),100)),"-") -> 3480 | O11: =IFERROR(IF($A$5=1,MROUND(VLOOKUP(O$8&$A$7,'Calc-HC1'!$B$6:$S$1537,$A11,FALSE),10),MROUND(VLOOKUP(O$8&$A$7,'Calc-HC1'!$B$6:$S$1537,$A11,FALSE),100)),"-") -> 3660 | P11: =IFERROR(IF($A$5=1,MROUND(VLOOKUP(P$8&$A$7,'Calc-HC1'!$B$6:$S$1537,$A11,FALSE),10),MROUND(VLOOKUP(P$8&$A$7,'Calc-HC1'!$B$6:$S$1537,$A11,FALSE),100)),"-") -> 3080 | Q11: =IFERROR(IF($A$5=1,MROUND(VLOOKUP(Q$8&$A$7,'Calc-HC1'!$B$6:$S$1537,$A11,FALSE),10),MROUND(VLOOKUP(Q$8&$A$7,'Calc-HC1'!$B$6:$S$1537,$A11,FALSE),100)),"-") -> 3010 | R11: =IFERROR(IF($A$5=1,MROUND(VLOOKUP(R$8&$A$7,'Calc-HC1'!$B$6:$S$1537,$A11,FALSE),10),MROUND(VLOOKUP(R$8&$A$7,'Calc-HC1'!$B$6:$S$1537,$A11,FALSE),100)),"-") -> 3220 | S11: =IFERROR(IF($A$5=1,MROUND(VLOOKUP(S$8&$A$7,'Calc-HC1'!$B$6:$S$1537,$A11,FALSE),10),MROUND(VLOOKUP(S$8&$A$7,'Calc-HC1'!$B$6:$S$1537,$A11,FALSE),100)),"-") -> 3830 | T11: =IFERROR(IF($A$5=1,MROUND(VLOOKUP(T$8&$A$7,'Calc-HC1'!$B$6:$S$1537,$A11,FALSE),10),MROUND(VLOOKUP(T$8&$A$7,'Calc-HC1'!$B$6:$S$1537,$A11,FALSE),100)),"-") -> 4620 | U11: =IFERROR(IF($A$5=1,MROUND(VLOOKUP(U$8&$A$7,'Calc-HC1'!$B$6:$S$1537,$A11,FALSE),10),MROUND(VLOOKUP(U$8&$A$7,'Calc-HC1'!$B$6:$S$1537,$A11,FALSE),100)),"-") -> 4560 | V11: =IFERROR(IF($A$5=1,MROUND(VLOOKUP(V$8&$A$7,'Calc-HC1'!$B$6:$S$1537,$A11,FALSE),10),MROUND(VLOOKUP(V$8&$A$7,'Calc-HC1'!$B$6:$S$1537,$A11,FALSE),100)),"-") -> 4930 | W11: =IFERROR(IF($A$5=1,MROUND(VLOOKUP(W$8&$A$7,'Calc-HC1'!$B$6:$S$1537,$A11,FALSE),10),MROUND(VLOOKUP(W$8&$A$7,'Calc-HC1'!$B$6:$S$1537,$A11,FALSE),100)),"-") -> 4640
A12: =IF($A$6="Clients",8,15) -> 8 | C12: LA & private | D12: =IFERROR(IF($A$5=1,MROUND(VLOOKUP(D$8&$A$7,'Calc-HC1'!$B$6:$S$1537,$A12,FALSE),10),MROUND(VLOOKUP(D$8&$A$7,'Calc-HC1'!$B$6:$S$1537,$A12,FALSE),100)),"-") -> 810 | E12: =IFERROR(IF($A$5=1,MROUND(VLOOKUP(E$8&$A$7,'Calc-HC1'!$B$6:$S$1537,$A12,FALSE),10),MROUND(VLOOKUP(E$8&$A$7,'Calc-HC1'!$B$6:$S$1537,$A12,FALSE),100)),"-") -> 770 | F12: =IFERROR(IF($A$5=1,MROUND(VLOOKUP(F$8&$A$7,'Calc-HC1'!$B$6:$S$1537,$A12,FALSE),10),MROUND(VLOOKUP(F$8&$A$7,'Calc-HC1'!$B$6:$S$1537,$A12,FALSE),100)),"-") -> 1450 | G12: =IFERROR(IF($A$5=1,MROUND(VLOOKUP(G$8&$A$7,'Calc-HC1'!$B$6:$S$1537,$A12,FALSE),10),MROUND(VLOOKUP(G$8&$A$7,'Calc-HC1'!$B$6:$S$1537,$A12,FALSE),100)),"-") -> 1510 | H12: =IFERROR(IF($A$5=1,MROUND(VLOOKUP(H$8&$A$7,'Calc-HC1'!$B$6:$S$1537,$A12,FALSE),10),MROUND(VLOOKUP(H$8&$A$7,'Calc-HC1'!$B$6:$S$1537,$A12,FALSE),100)),"-") -> 1550 | I12: =IFERROR(IF($A$5=1,MROUND(VLOOKUP(I$8&$A$7,'Calc-HC1'!$B$6:$S$1537,$A12,FALSE),10),MROUND(VLOOKUP(I$8&$A$7,'Calc-HC1'!$B$6:$S$1537,$A12,FALSE),100)),"-") -> 2090 | J12: =IFERROR(IF($A$5=1,MROUND(VLOOKUP(J$8&$A$7,'Calc-HC1'!$B$6:$S$1537,$A12,FALSE),10),MROUND(VLOOKUP(J$8&$A$7,'Calc-HC1'!$B$6:$S$1537,$A12,FALSE),100)),"-") -> 2680 | K12: =IFERROR(IF($A$5=1,MROUND(VLOOKUP(K$8&$A$7,'Calc-HC1'!$B$6:$S$1537,$A12,FALSE),10),MROUND(VLOOKUP(K$8&$A$7,'Calc-HC1'!$B$6:$S$1537,$A12,FALSE),100)),"-") -> 3340 | L12: =IFERROR(IF($A$5=1,MROUND(VLOOKUP(L$8&$A$7,'Calc-HC1'!$B$6:$S$1537,$A12,FALSE),10),MROUND(VLOOKUP(L$8&$A$7,'Calc-HC1'!$B$6:$S$1537,$A12,FALSE),100)),"-") -> 3410 | M12: =IFERROR(IF($A$5=1,MROUND(VLOOKUP(M$8&$A$7,'Calc-HC1'!$B$6:$S$1537,$A12,FALSE),10),MROUND(VLOOKUP(M$8&$A$7,'Calc-HC1'!$B$6:$S$1537,$A12,FALSE),100)),"-") -> 3710 | N12: =IFERROR(IF($A$5=1,MROUND(VLOOKUP(N$8&$A$7,'Calc-HC1'!$B$6:$S$1537,$A12,FALSE),10),MROUND(VLOOKUP(N$8&$A$7,'Calc-HC1'!$B$6:$S$1537,$A12,FALSE),100)),"-") -> 3920 | O12: =IFERROR(IF($A$5=1,MROUND(VLOOKUP(O$8&$A$7,'Calc-HC1'!$B$6:$S$1537,$A12,FALSE),10),MROUND(VLOOKUP(O$8&$A$7,'Calc-HC1'!$B$6:$S$1537,$A12,FALSE),100)),"-") -> 4100 | P12: =IFERROR(IF($A$5=1,MROUND(VLOOKUP(P$8&$A$7,'Calc-HC1'!$B$6:$S$1537,$A12,FALSE),10),MROUND(VLOOKUP(P$8&$A$7,'Calc-HC1'!$B$6:$S$1537,$A12,FALSE),100)),"-") -> 3960 | Q12: =IFERROR(IF($A$5=1,MROUND(VLOOKUP(Q$8&$A$7,'Calc-HC1'!$B$6:$S$1537,$A12,FALSE),10),MROUND(VLOOKUP(Q$8&$A$7,'Calc-HC1'!$B$6:$S$1537,$A12,FALSE),100)),"-") -> 3970 | R12: =IFERROR(IF($A$5=1,MROUND(VLOOKUP(R$8&$A$7,'Calc-HC1'!$B$6:$S$1537,$A12,FALSE),10),MROUND(VLOOKUP(R$8&$A$7,'Calc-HC1'!$B$6:$S$1537,$A12,FALSE),100)),"-") -> 3740 | S12: =IFERROR(IF($A$5=1,MROUND(VLOOKUP(S$8&$A$7,'Calc-HC1'!$B$6:$S$1537,$A12,FALSE),10),MROUND(VLOOKUP(S$8&$A$7,'Calc-HC1'!$B$6:$S$1537,$A12,FALSE),100)),"-") -> 2910 | T12: =IFERROR(IF($A$5=1,MROUND(VLOOKUP(T$8&$A$7,'Calc-HC1'!$B$6:$S$1537,$A12,FALSE),10),MROUND(VLOOKUP(T$8&$A$7,'Calc-HC1'!$B$6:$S$1537,$A12,FALSE),100)),"-") -> 2640 | U12: =IFERROR(IF($A$5=1,MROUND(VLOOKUP(U$8&$A$7,'Calc-HC1'!$B$6:$S$1537,$A12,FALSE),10),MROUND(VLOOKUP(U$8&$A$7,'Calc-HC1'!$B$6:$S$1537,$A12,FALSE),100)),"-") -> 3620 | V12: =IFERROR(IF($A$5=1,MROUND(VLOOKUP(V$8&$A$7,'Calc-HC1'!$B$6:$S$1537,$A12,FALSE),10),MROUND(VLOOKUP(V$8&$A$7,'Calc-HC1'!$B$6:$S$1537,$A12,FALSE),100)),"-") -> 2870 | W12: =IFERROR(IF($A$5=1,MROUND(VLOOKUP(W$8&$A$7,'Calc-HC1'!$B$6:$S$1537,$A12,FALSE),10),MROUND(VLOOKUP(W$8&$A$7,'Calc-HC1'!$B$6:$S$1537,$A12,FALSE),100)),"-") -> 3040
A13: =IF($A$6="Clients",9,16) -> 9 | C13: LA & voluntary | D13: =IFERROR(IF($A$5=1,MROUND(VLOOKUP(D$8&$A$7,'Calc-HC1'!$B$6:$S$1537,$A13,FALSE),10),MROUND(VLOOKUP(D$8&$A$7,'Calc-HC1'!$B$6:$S$1537,$A13,FALSE),100)),"-") -> 1100 | E13: =IFERROR(IF($A$5=1,MROUND(VLOOKUP(E$8&$A$7,'Calc-HC1'!$B$6:$S$1537,$A13,FALSE),10),MROUND(VLOOKUP(E$8&$A$7,'Calc-HC1'!$B$6:$S$1537,$A13,FALSE),100)),"-") -> 820 | F13: =IFERROR(IF($A$5=1,MROUND(VLOOKUP(F$8&$A$7,'Calc-HC1'!$B$6:$S$1537,$A13,FALSE),10),MROUND(VLOOKUP(F$8&$A$7,'Calc-HC1'!$B$6:$S$1537,$A13,FALSE),100)),"-") -> 730 | G13: =IFERROR(IF($A$5=1,MROUND(VLOOKUP(G$8&$A$7,'Calc-HC1'!$B$6:$S$1537,$A13,FALSE),10),MROUND(VLOOKUP(G$8&$A$7,'Calc-HC1'!$B$6:$S$1537,$A13,FALSE),100)),"-") -> 1000 | H13: =IFERROR(IF($A$5=1,MROUND(VLOOKUP(H$8&$A$7,'Calc-HC1'!$B$6:$S$1537,$A13,FALSE),10),MROUND(VLOOKUP(H$8&$A$7,'Calc-HC1'!$B$6:$S$1537,$A13,FALSE),100)),"-") -> 1130 | I13: =IFERROR(IF($A$5=1,MROUND(VLOOKUP(I$8&$A$7,'Calc-HC1'!$B$6:$S$1537,$A13,FALSE),10),MROUND(VLOOKUP(I$8&$A$7,'Calc-HC1'!$B$6:$S$1537,$A13,FALSE),100)),"-") -> 960 | J13: =IFERROR(IF($A$5=1,MROUND(VLOOKUP(J$8&$A$7,'Calc-HC1'!$B$6:$S$1537,$A13,FALSE),10),MROUND(VLOOKUP(J$8&$A$7,'Calc-HC1'!$B$6:$S$1537,$A13,FALSE),100)),"-") -> 1010 | K13: =IFERROR(IF($A$5=1,MROUND(VLOOKUP(K$8&$A$7,'Calc-HC1'!$B$6:$S$1537,$A13,FALSE),10),MROUND(VLOOKUP(K$8&$A$7,'Calc-HC1'!$B$6:$S$1537,$A13,FALSE),100)),"-") -> 910 | L13: =IFERROR(IF($A$5=1,MROUND(VLOOKUP(L$8&$A$7,'Calc-HC1'!$B$6:$S$1537,$A13,FALSE),10),MROUND(VLOOKUP(L$8&$A$7,'Calc-HC1'!$B$6:$S$1537,$A13,FALSE),100)),"-") -> 1110 | M13: =IFERROR(IF($A$5=1,MROUND(VLOOKUP(M$8&$A$7,'Calc-HC1'!$B$6:$S$1537,$A13,FALSE),10),MROUND(VLOOKUP(M$8&$A$7,'Calc-HC1'!$B$6:$S$1537,$A13,FALSE),100)),"-") -> 1010 | N13: =IFERROR(IF($A$5=1,MROUND(VLOOKUP(N$8&$A$7,'Calc-HC1'!$B$6:$S$1537,$A13,FALSE),10),MROUND(VLOOKUP(N$8&$A$7,'Calc-HC1'!$B$6:$S$1537,$A13,FALSE),100)),"-") -> 940 | O13: =IFERROR(IF($A$5=1,MROUND(VLOOKUP(O$8&$A$7,'Calc-HC1'!$B$6:$S$1537,$A13,FALSE),10),MROUND(VLOOKUP(O$8&$A$7,'Calc-HC1'!$B$6:$S$1537,$A13,FALSE),100)),"-") -> 830 | P13: =IFERROR(IF($A$5=1,MROUND(VLOOKUP(P$8&$A$7,'Calc-HC1'!$B$6:$S$1537,$A13,FALSE),10),MROUND(VLOOKUP(P$8&$A$7,'Calc-HC1'!$B$6:$S$1537,$A13,FALSE),100)),"-") -> 710 | Q13: =IFERROR(IF($A$5=1,MROUND(VLOOKUP(Q$8&$A$7,'Calc-HC1'!$B$6:$S$1537,$A13,FALSE),10),MROUND(VLOOKUP(Q$8&$A$7,'Calc-HC1'!$B$6:$S$1537,$A13,FALSE),100)),"-") -> 610 | R13: =IFERROR(IF($A$5=1,MROUND(VLOOKUP(R$8&$A$7,'Calc-HC1'!$B$6:$S$1537,$A13,FALSE),10),MROUND(VLOOKUP(R$8&$A$7,'Calc-HC1'!$B$6:$S$1537,$A13,FALSE),100)),"-") -> 550 | S13: =IFERROR(IF($A$5=1,MROUND(VLOOKUP(S$8&$A$7,'Calc-HC1'!$B$6:$S$1537,$A13,FALSE),10),MROUND(VLOOKUP(S$8&$A$7,'Calc-HC1'!$B$6:$S$1537,$A13,FALSE),100)),"-") -> 560 | T13: =IFERROR(IF($A$5=1,MROUND(VLOOKUP(T$8&$A$7,'Calc-HC1'!$B$6:$S$1537,$A13,FALSE),10),MROUND(VLOOKUP(T$8&$A$7,'Calc-HC1'!$B$6:$S$1537,$A13,FALSE),100)),"-") -> 840 | U13: =IFERROR(IF($A$5=1,MROUND(VLOOKUP(U$8&$A$7,'Calc-HC1'!$B$6:$S$1537,$A13,FALSE),10),MROUND(VLOOKUP(U$8&$A$7,'Calc-HC1'!$B$6:$S$1537,$A13,FALSE),100)),"-") -> 650 | V13: =IFERROR(IF($A$5=1,MROUND(VLOOKUP(V$8&$A$7,'Calc-HC1'!$B$6:$S$1537,$A13,FALSE),10),MROUND(VLOOKUP(V$8&$A$7,'Calc-HC1'!$B$6:$S$1537,$A13,FALSE),100)),"-") -> 640 | W13: =IFERROR(IF($A$5=1,MROUND(VLOOKUP(W$8&$A$7,'Calc-HC1'!$B$6:$S$1537,$A13,FALSE),10),MROUND(VLOOKUP(W$8&$A$7,'Calc-HC1'!$B$6:$S$1537,$A13,FALSE),100)),"-") -> 640
A14: =IF($A$6="Clients",10,17) -> 10 | C14: Other combination | D14: =IFERROR(IF($A$5=1,MROUND(VLOOKUP(D$8&$A$7,'Calc-HC1'!$B$6:$S$1537,$A14,FALSE),10),MROUND(VLOOKUP(D$8&$A$7,'Calc-HC1'!$B$6:$S$1537,$A14,FALSE),100)),"-") -> 290 | E14: =IFERROR(IF($A$5=1,MROUND(VLOOKUP(E$8&$A$7,'Calc-HC1'!$B$6:$S$1537,$A14,FALSE),10),MROUND(VLOOKUP(E$8&$A$7,'Calc-HC1'!$B$6:$S$1537,$A14,FALSE),100)),"-") -> 220 | F14: =IFERROR(IF($A$5=1,MROUND(VLOOKUP(F$8&$A$7,'Calc-HC1'!$B$6:$S$1537,$A14,FALSE),10),MROUND(VLOOKUP(F$8&$A$7,'Calc-HC1'!$B$6:$S$1537,$A14,FALSE),100)),"-") -> 160 | G14: =IFERROR(IF($A$5=1,MROUND(VLOOKUP(G$8&$A$7,'Calc-HC1'!$B$6:$S$1537,$A14,FALSE),10),MROUND(VLOOKUP(G$8&$A$7,'Calc-HC1'!$B$6:$S$1537,$A14,FALSE),100)),"-") -> 230 | H14: =IFERROR(IF($A$5=1,MROUND(VLOOKUP(H$8&$A$7,'Calc-HC1'!$B$6:$S$1537,$A14,FALSE),10),MROUND(VLOOKUP(H$8&$A$7,'Calc-HC1'!$B$6:$S$1537,$A14,FALSE),100)),"-") -> 180 | I14: =IFERROR(IF($A$5=1,MROUND(VLOOKUP(I$8&$A$7,'Calc-HC1'!$B$6:$S$1537,$A14,FALSE),10),MROUND(VLOOKUP(I$8&$A$7,'Calc-HC1'!$B$6:$S$1537,$A14,FALSE),100)),"-") -> 330 | J14: =IFERROR(IF($A$5=1,MROUND(VLOOKUP(J$8&$A$7,'Calc-HC1'!$B$6:$S$1537,$A14,FALSE),10),MROUND(VLOOKUP(J$8&$A$7,'Calc-HC1'!$B$6:$S$1537,$A14,FALSE),100)),"-") -> 210 | K14: =IFERROR(IF($A$5=1,MROUND(VLOOKUP(K$8&$A$7,'Calc-HC1'!$B$6:$S$1537,$A14,FALSE),10),MROUND(VLOOKUP(K$8&$A$7,'Calc-HC1'!$B$6:$S$1537,$A14,FALSE),100)),"-") -> 230 | L14: =IFERROR(IF($A$5=1,MROUND(VLOOKUP(L$8&$A$7,'Calc-HC1'!$B$6:$S$1537,$A14,FALSE),10),MROUND(VLOOKUP(L$8&$A$7,'Calc-HC1'!$B$6:$S$1537,$A14,FALSE),100)),"-") -> 420 | M14: =IFERROR(IF($A$5=1,MROUND(VLOOKUP(M$8&$A$7,'Calc-HC1'!$B$6:$S$1537,$A14,FALSE),10),MROUND(VLOOKUP(M$8&$A$7,'Calc-HC1'!$B$6:$S$1537,$A14,FALSE),100)),"-") -> 490 | N14: =IFERROR(IF($A$5=1,MROUND(VLOOKUP(N$8&$A$7,'Calc-HC1'!$B$6:$S$1537,$A14,FALSE),10),MROUND(VLOOKUP(N$8&$A$7,'Calc-HC1'!$B$6:$S$1537,$A14,FALSE),100)),"-") -> 250 | O14: =IFERROR(IF($A$5=1,MROUND(VLOOKUP(O$8&$A$7,'Calc-HC1'!$B$6:$S$1537,$A14,FALSE),10),MROUND(VLOOKUP(O$8&$A$7,'Calc-HC1'!$B$6:$S$1537,$A14,FALSE),100)),"-") -> 330 | P14: =IFERROR(IF($A$5=1,MROUND(VLOOKUP(P$8&$A$7,'Calc-HC1'!$B$6:$S$1537,$A14,FALSE),10),MROUND(VLOOKUP(P$8&$A$7,'Calc-HC1'!$B$6:$S$1537,$A14,FALSE),100)),"-") -> 280 | Q14: =IFERROR(IF($A$5=1,MROUND(VLOOKUP(Q$8&$A$7,'Calc-HC1'!$B$6:$S$1537,$A14,FALSE),10),MROUND(VLOOKUP(Q$8&$A$7,'Calc-HC1'!$B$6:$S$1537,$A14,FALSE),100)),"-") -> 310 | R14: =IFERROR(IF($A$5=1,MROUND(VLOOKUP(R$8&$A$7,'Calc-HC1'!$B$6:$S$1537,$A14,FALSE),10),MROUND(VLOOKUP(R$8&$A$7,'Calc-HC1'!$B$6:$S$1537,$A14,FALSE),100)),"-") -> 330 | S14: =IFERROR(IF($A$5=1,MROUND(VLOOKUP(S$8&$A$7,'Calc-HC1'!$B$6:$S$1537,$A14,FALSE),10),MROUND(VLOOKUP(S$8&$A$7,'Calc-HC1'!$B$6:$S$1537,$A14,FALSE),100)),"-") -> 380 | T14: =IFERROR(IF($A$5=1,MROUND(VLOOKUP(T$8&$A$7,'Calc-HC1'!$B$6:$S$1537,$A14,FALSE),10),MROUND(VLOOKUP(T$8&$A$7,'Calc-HC1'!$B$6:$S$1537,$A14,FALSE),100)),"-") -> 480 | U14: =IFERROR(IF($A$5=1,MROUND(VLOOKUP(U$8&$A$7,'Calc-HC1'!$B$6:$S$1537,$A14,FALSE),10),MROUND(VLOOKUP(U$8&$A$7,'Calc-HC1'!$B$6:$S$1537,$A14,FALSE),100)),"-") -> 390 | V14: =IFERROR(IF($A$5=1,MROUND(VLOOKUP(V$8&$A$7,'Calc-HC1'!$B$6:$S$1537,$A14,FALSE),10),MROUND(VLOOKUP(V$8&$A$7,'Calc-HC1'!$B$6:$S$1537,$A14,FALSE),100)),"-") -> 540 | W14: =IFERROR(IF($A$5=1,MROUND(VLOOKUP(W$8&$A$7,'Calc-HC1'!$B$6:$S$1537,$A14,FALSE),10),MROUND(VLOOKUP(W$8&$A$7,'Calc-HC1'!$B$6:$S$1537,$A14,FALSE),100)),"-") -> 280
A15: =IF($A$6="Clients",11,18) -> 11 | C15: Total | D15: =IFERROR(IF($A$5=1,MROUND(VLOOKUP(D$8&$A$7,'Calc-HC1'!$B$6:$S$1537,$A15,FALSE),10),MROUND(VLOOKUP(D$8&$A$7,'Calc-HC1'!$B$6:$S$1537,$A15,FALSE),100)),"-") -> 79290 | E15: =IFERROR(IF($A$5=1,MROUND(VLOOKUP(E$8&$A$7,'Calc-HC1'!$B$6:$S$1537,$A15,FALSE),10),MROUND(VLOOKUP(E$8&$A$7,'Calc-HC1'!$B$6:$S$1537,$A15,FALSE),100)),"-") -> 74060 | F15: =IFERROR(IF($A$5=1,MROUND(VLOOKUP(F$8&$A$7,'Calc-HC1'!$B$6:$S$1537,$A15,FALSE),10),MROUND(VLOOKUP(F$8&$A$7,'Calc-HC1'!$B$6:$S$1537,$A15,FALSE),100)),"-") -> 70210 | G15: =IFERROR(IF($A$5=1,MROUND(VLOOKUP(G$8&$A$7,'Calc-HC1'!$B$6:$S$1537,$A15,FALSE),10),MROUND(VLOOKUP(G$8&$A$7,'Calc-HC1'!$B$6:$S$1537,$A15,FALSE),100)),"-") -> 65530 | H15: =IFERROR(IF($A$5=1,MROUND(VLOOKUP(H$8&$A$7,'Calc-HC1'!$B$6:$S$1537,$A15,FALSE),10),MROUND(VLOOKUP(H$8&$A$7,'Calc-HC1'!$B$6:$S$1537,$A15,FALSE),100)),"-") -> 64550 | I15: =IFERROR(IF($A$5=1,MROUND(VLOOKUP(I$8&$A$7,'Calc-HC1'!$B$6:$S$1537,$A15,FALSE),10),MROUND(VLOOKUP(I$8&$A$7,'Calc-HC1'!$B$6:$S$1537,$A15,FALSE),100)),"-") -> 67270 | J15: =IFERROR(IF($A$5=1,MROUND(VLOOKUP(J$8&$A$7,'Calc-HC1'!$B$6:$S$1537,$A15,FALSE),10),MROUND(VLOOKUP(J$8&$A$7,'Calc-HC1'!$B$6:$S$1537,$A15,FALSE),100)),"-") -> 69990 | K15: =IFERROR(IF($A$5=1,MROUND(VLOOKUP(K$8&$A$7,'Calc-HC1'!$B$6:$S$1537,$A15,FALSE),10),MROUND(VLOOKUP(K$8&$A$7,'Calc-HC1'!$B$6:$S$1537,$A15,FALSE),100)),"-") -> 71090 | L15: =IFERROR(IF($A$5=1,MROUND(VLOOKUP(L$8&$A$7,'Calc-HC1'!$B$6:$S$1537,$A15,FALSE),10),MROUND(VLOOKUP(L$8&$A$7,'Calc-HC1'!$B$6:$S$1537,$A15,FALSE),100)),"-") -> 70660 | M15: =IFERROR(IF($A$5=1,MROUND(VLOOKUP(M$8&$A$7,'Calc-HC1'!$B$6:$S$1537,$A15,FALSE),10),MROUND(VLOOKUP(M$8&$A$7,'Calc-HC1'!$B$6:$S$1537,$A15,FALSE),100)),"-") -> 70710 | N15: =IFERROR(IF($A$5=1,MROUND(VLOOKUP(N$8&$A$7,'Calc-HC1'!$B$6:$S$1537,$A15,FALSE),10),MROUND(VLOOKUP(N$8&$A$7,'Calc-HC1'!$B$6:$S$1537,$A15,FALSE),100)),"-") -> 68760 | O15: =IFERROR(IF($A$5=1,MROUND(VLOOKUP(O$8&$A$7,'Calc-HC1'!$B$6:$S$1537,$A15,FALSE),10),MROUND(VLOOKUP(O$8&$A$7,'Calc-HC1'!$B$6:$S$1537,$A15,FALSE),100)),"-") -> 68330 | P15: =IFERROR(IF($A$5=1,MROUND(VLOOKUP(P$8&$A$7,'Calc-HC1'!$B$6:$S$1537,$A15,FALSE),10),MROUND(VLOOKUP(P$8&$A$7,'Calc-HC1'!$B$6:$S$1537,$A15,FALSE),100)),"-") -> 66220 | Q15: =IFERROR(IF($A$5=1,MROUND(VLOOKUP(Q$8&$A$7,'Calc-HC1'!$B$6:$S$1537,$A15,FALSE),10),MROUND(VLOOKUP(Q$8&$A$7,'Calc-HC1'!$B$6:$S$1537,$A15,FALSE),100)),"-") -> 63460 | R15: =IFERROR(IF($A$5=1,MROUND(VLOOKUP(R$8&$A$7,'Calc-HC1'!$B$6:$S$1537,$A15,FALSE),10),MROUND(VLOOKUP(R$8&$A$7,'Calc-HC1'!$B$6:$S$1537,$A15,FALSE),100)),"-") -> 62830 | S15: =IFERROR(IF($A$5=1,MROUND(VLOOKUP(S$8&$A$7,'Calc-HC1'!$B$6:$S$1537,$A15,FALSE),10),MROUND(VLOOKUP(S$8&$A$7,'Calc-HC1'!$B$6:$S$1537,$A15,FALSE),100)),"-") -> 61070 | T15: =IFERROR(IF($A$5=1,MROUND(VLOOKUP(T$8&$A$7,'Calc-HC1'!$B$6:$S$1537,$A15,FALSE),10),MROUND(VLOOKUP(T$8&$A$7,'Calc-HC1'!$B$6:$S$1537,$A15,FALSE),100)),"-") -> 61740 | U15: =IFERROR(IF($A$5=1,MROUND(VLOOKUP(U$8&$A$7,'Calc-HC1'!$B$6:$S$1537,$A15,FALSE),10),MROUND(VLOOKUP(U$8&$A$7,'Calc-HC1'!$B$6:$S$1537,$A15,FALSE),100)),"-") -> 61500 | V15: =IFERROR(IF($A$5=1,MROUND(VLOOKUP(V$8&$A$7,'Calc-HC1'!$B$6:$S$1537,$A15,FALSE),10),MROUND(VLOOKUP(V$8&$A$7,'Calc-HC1'!$B$6:$S$1537,$A15,FALSE),100)),"-") -> 59780 | W15: =IFERROR(IF($A$5=1,MROUND(VLOOKUP(W$8&$A$7,'Calc-HC1'!$B$6:$S$1537,$A15,FALSE),10),MROUND(VLOOKUP(W$8&$A$7,'Calc-HC1'!$B$6:$S$1537,$A15,FALSE),100)),"-") -> 59640
C17: Source: Home Care Census up to 2012, Social Care Survey from 2013
C18: *Figures for Home Care hours from 2010 exclude 24-7 care. This has resulted in a break in the time series between 2009 and 2010.
C19: =IF(A7="Angus","**Increase in Angus home care provision between 2013 and 2014 is due to new data being collected and should not be treated as a genuine increase in provision.",IF(A7="East Dunbartonshire","**East Dunbartonshire submitted revised Total hours for 2015","")) -> 
C20: - figures rounded to the nearest 10.
A21: =IF($A$6="Clients",32,38) -> 32 | C21: Local Authority only | D21: =D9/D$15 -> 0.9358052718 | E21: =IF($A$7="*","*",(E9/E$15)) -> 0.919794761 | F21: 0.9011536818 | G21: =G9/G$15 -> 0.8731878529 | H21: 0.8599535244 | I21: 0.83752044 | J21: 0.8095442206 | K21: 0.7728231819 | L21: 0.7568638551 | M21: 0.729458351 | N21: 0.7102966841 | O21: 0.6781794234 | P21: =P9/P$15 -> 0.659166415 | Q21: 0.6121966593 | R21: =R9/R$15 -> 0.5664491485 | S21: 0.550024562 | T21: =T9/T$15 -> 0.511499838 | U21: =IFERROR(U9/U$15,"-") -> 0.4832520325 | V21: =IFERROR(V9/V$15,"-") -> 0.4780863165 | W21: =IFERROR(W9/W$15,"-") -> 0.467806841
A22: =IF($A$6="Clients",34,40) -> 34 | C22: Private only | D22: =D10/D$15 -> 0.01652162946 | E22: 0.03537672158 | F22: 0.04258652614 | G22: 0.05356325347 | H22: 0.06134779241 | I22: 0.07046231604 | J22: 0.09772824689 | K22: 0.1184414123 | L22: 0.1269459383 | M22: 0.1510394569 | N22: 0.1646305992 | O22: 0.1912776233 | P22: 0.2197221383 | Q22: 0.2633154743 | R22: 0.3089288556 | S22: 0.3179957426 | T22: 0.3483965015 | U22: =IFERROR(U10/U$15,"-") -> 0.3546341463 | V22: 0.3713616594 | W22: =IFERROR(W10/W$15,"-") -> 0.3874916164
A23: =IF($A$6="Clients",33,39) -> 33 | C23: Voluntary only | D23: 0.02005297011 | E23: 0.02038887389 | F23: 0.02278877653 | G23: 0.03158858538 | H23: 0.03439194423 | I23: 0.04177196373 | J23: 0.03714816402 | K23: 0.0458573639 | L23: 0.04613642796 | M23: 0.04582095885 | N23: 0.05061082024 | O23: 0.05356358847 | P23: 0.04651162791 | Q23: 0.04743145288 | R23: 0.05124940315 | S23: 0.06271491731 | T23: 0.07482993197 | U23: 0.07414634146 | V23: 0.0824690532 | W23: =IFERROR(W11/W$15,"-") -> 0.07780013414
A24: =IF($A$6="Clients",35,41) -> 35 | C24: LA & private | D24: 0.01021566402 | E24: 0.01039697543 | F24: 0.02065232873 | G24: 0.02304288112 | H24: 0.02401239349 | I24: 0.03106882711 | J24: 0.03829118445 | K24: 0.04698269799 | L24: 0.04825926974 | M24: 0.05246782633 | N24: 0.05700988947 | O24: 0.06000292697 | P24: 0.05980066445 | Q24: 0.06255909234 | R24: 0.05952570428 | S24: 0.04765023743 | T24: 0.04275996113 | U24: 0.05886178862 | V24: 0.04800936768 | W24: =IFERROR(W12/W$15,"-") -> 0.05097250168
A25: =IF($A$6="Clients",36,42) -> 36 | C25: LA & voluntary | D25: 0.01387312398 | E25: 0.0110721037 | F25: 0.01039737929 | G25: 0.01526018617 | H25: 0.01750580945 | I25: 0.01427084882 | J25: 0.01443063295 | K25: 0.0128006752 | L25: 0.01570902915 | M25: 0.01428369396 | N25: 0.0136707388 | O25: 0.012146934 | P25: 0.0107218363 | Q25: 0.009612354239 | R25: 0.008753780041 | S25: 0.009169805142 | T25: 0.01360544218 | U25: 0.01056910569 | V25: 0.01070592171 | W25: =IFERROR(W13/W$15,"-") -> 0.01073105298
A26: =IF($A$6="Clients",37,43) -> 37 | C26: Other combination | D26: 0.003657459957 | E26: 0.002970564407 | F26: 0.002278877653 | G26: 0.00350984282 | H26: 0.002788536019 | I26: 0.004905604281 | J26: 0.003000428633 | K26: 0.00323533549 | L26: 0.005943956977 | M26: 0.006929712912 | N26: 0.003635834788 | O26: 0.004829503878 | P26: 0.00422832981 | Q26: 0.004884966908 | R26: 0.005252268025 | S26: 0.006222367775 | T26: 0.007774538387 | U26: 0.006341463415 | V26: 0.009033121445 | W26: =IFERROR(W14/W$15,"-") -> 0.004694835681

Sheet Table3
B1: ="Age breakdown of "&A8&" receiving Home Care in "&A5&", 1998-Latest" -> Age breakdown of all clients receiving Home Care in Scotland, 1998-Latest
B2: Figures are for the March census week | W2: Main page
A3: 1
A4: 1 | C4: Select area
A5: =OFFSET(LKPs!A1,A4,0) -> Scotland
A6: =OFFSET(LKPs!J1,A3,0) -> All client groups
A7: =VLOOKUP(A6,LKPs!F2:G10,2,FALSE) -> 13
A8: =IF(A7=13,"all clients",A6) -> all clients | C8: Age Group | D8: 1998 | E8: 1999 | F8: 2000 | G8: 2001 | H8: 2002 | I8: 2003 | J8: 2004 | K8: 2005 | L8: 2006 | M8: 2007 | N8: 2008 | O8: 2009 | P8: 2010 | Q8: 2011 | R8: 2012 | S8: 2013 | T8: 2014 | U8: 2015 | V8: 2016 | W8: 2017
A9: =C9 -> 0-17 | C9: 0-17 | D9: =IF($A$3>1,"NA",IF(VLOOKUP(D$8&$A$5&$A9,'Calc-HC2'!$A$6:$M$5561,$A$7,FALSE)="*","*",IF($A$3=1,MROUND(VLOOKUP(D$8&$A$5&$A9,'Calc-HC2'!$A$6:$M$5561,$A$7,FALSE),10),"NA"))) -> 890 | E9: =IF($A$3>1,"NA",IF(VLOOKUP(E$8&$A$5&$A9,'Calc-HC2'!$A$6:$M$5561,$A$7,FALSE)="*","*",IF($A$3=1,MROUND(VLOOKUP(E$8&$A$5&$A9,'Calc-HC2'!$A$6:$M$5561,$A$7,FALSE),10),"NA"))) -> 1050 | F9: =IF($A$3>1,"NA",IF(VLOOKUP(F$8&$A$5&$A9,'Calc-HC2'!$A$6:$M$5561,$A$7,FALSE)="*","*",IF($A$3=1,MROUND(VLOOKUP(F$8&$A$5&$A9,'Calc-HC2'!$A$6:$M$5561,$A$7,FALSE),10),"NA"))) -> 1010 | G9: =IF($A$3>1,"NA",IF(VLOOKUP(G$8&$A$5&$A9,'Calc-HC2'!$A$6:$M$5561,$A$7,FALSE)="*","*",IF($A$3=1,MROUND(VLOOKUP(G$8&$A$5&$A9,'Calc-HC2'!$A$6:$M$5561,$A$7,FALSE),10),"NA"))) -> 950 | H9: =IF($A$3>1,"NA",IF(VLOOKUP(H$8&$A$5&$A9,'Calc-HC2'!$A$6:$M$5561,$A$7,FALSE)="*","*",IF($A$3=1,MROUND(VLOOKUP(H$8&$A$5&$A9,'Calc-HC2'!$A$6:$M$5561,$A$7,FALSE),10),"NA"))) -> 950 | I9: =IF($A$3>1,"NA",IF(VLOOKUP(I$8&$A$5&$A9,'Calc-HC2'!$A$6:$M$5561,$A$7,FALSE)="*","*",IF($A$3=1,MROUND(VLOOKUP(I$8&$A$5&$A9,'Calc-HC2'!$A$6:$M$5561,$A$7,FALSE),10),"NA"))) -> 1110 | J9: =IF($A$3>1,"NA",IF(VLOOKUP(J$8&$A$5&$A9,'Calc-HC2'!$A$6:$M$5561,$A$7,FALSE)="*","*",IF($A$3=1,MROUND(VLOOKUP(J$8&$A$5&$A9,'Calc-HC2'!$A$6:$M$5561,$A$7,FALSE),10),"NA"))) -> 980 | K9: =IF($A$3>1,"NA",IF(VLOOKUP(K$8&$A$5&$A9,'Calc-HC2'!$A$6:$M$5561,$A$7,FALSE)="*","*",IF($A$3=1,MROUND(VLOOKUP(K$8&$A$5&$A9,'Calc-HC2'!$A$6:$M$5561,$A$7,FALSE),10),"NA"))) -> 940 | L9: =IF($A$3>1,"NA",IF(VLOOKUP(L$8&$A$5&$A9,'Calc-HC2'!$A$6:$M$5561,$A$7,FALSE)="*","*",IF($A$3=1,MROUND(VLOOKUP(L$8&$A$5&$A9,'Calc-HC2'!$A$6:$M$5561,$A$7,FALSE),10),"NA"))) -> 1080 | M9: =IF($A$3>1,"NA",IF(VLOOKUP(M$8&$A$5&$A9,'Calc-HC2'!$A$6:$M$5561,$A$7,FALSE)="*","*",IF($A$3=1,MROUND(VLOOKUP(M$8&$A$5&$A9,'Calc-HC2'!$A$6:$M$5561,$A$7,FALSE),10),"NA"))) -> 850 | N9: =IF($A$3>1,"NA",IF(VLOOKUP(N$8&$A$5&$A9,'Calc-HC2'!$A$6:$M$5561,$A$7,FALSE)="*","*",IF($A$3=1,MROUND(VLOOKUP(N$8&$A$5&$A9,'Calc-HC2'!$A$6:$M$5561,$A$7,FALSE),10),"NA"))) -> 1030 | O9: =IF($A$3>1,"NA",IF(VLOOKUP(O$8&$A$5&$A9,'Calc-HC2'!$A$6:$M$5561,$A$7,FALSE)="*","*",IF($A$3=1,MROUND(VLOOKUP(O$8&$A$5&$A9,'Calc-HC2'!$A$6:$M$5561,$A$7,FALSE),10),"NA"))) -> 840 | P9: =IF($A$3>1,"NA",IF(VLOOKUP(P$8&$A$5&$A9,'Calc-HC2'!$A$6:$M$5561,$A$7,FALSE)="*","*",IF($A$3=1,MROUND(VLOOKUP(P$8&$A$5&$A9,'Calc-HC2'!$A$6:$M$5561,$A$7,FALSE),10),"NA"))) -> 710 | Q9: =IF($A$3>1,"NA",IF(VLOOKUP(Q$8&$A$5&$A9,'Calc-HC2'!$A$6:$M$5561,$A$7,FALSE)="*","*",IF($A$3=1,MROUND(VLOOKUP(Q$8&$A$5&$A9,'Calc-HC2'!$A$6:$M$5561,$A$7,FALSE),10),"NA"))) -> 710 | R9: =IF($A$3>1,"NA",IF(VLOOKUP(R$8&$A$5&$A9,'Calc-HC2'!$A$6:$M$5561,$A$7,FALSE)="*","*",IF($A$3=1,MROUND(VLOOKUP(R$8&$A$5&$A9,'Calc-HC2'!$A$6:$M$5561,$A$7,FALSE),10),"NA"))) -> 610 | S9: =IF($A$3>1,"NA",IF(VLOOKUP(S$8&$A$5&$A9,'Calc-HC2'!$A$6:$M$5561,$A$7,FALSE)="*","*",IF($A$3=1,MROUND(VLOOKUP(S$8&$A$5&$A9,'Calc-HC2'!$A$6:$M$5561,$A$7,FALSE),10),"NA"))) -> 560 | T9: =IF($A$3>1,"NA",IF(VLOOKUP(T$8&$A$5&$A9,'Calc-HC2'!$A$6:$M$5561,$A$7,FALSE)="*","*",IF($A$3=1,MROUND(VLOOKUP(T$8&$A$5&$A9,'Calc-HC2'!$A$6:$M$5561,$A$7,FALSE),10),"NA"))) -> 440 | U9: =IF($A$3>1,"NA",IF(VLOOKUP(U$8&$A$5&$A9,'Calc-HC2'!$A$6:$M$5561,$A$7,FALSE)="*","*",IF($A$3=1,MROUND(VLOOKUP(U$8&$A$5&$A9,'Calc-HC2'!$A$6:$M$5561,$A$7,FALSE),10),"NA"))) -> 400 | V9: =IF($A$3>1,"NA",IF(VLOOKUP(V$8&$A$5&$A9,'Calc-HC2'!$A$6:$M$5561,$A$7,FALSE)="*","*",IF($A$3=1,MROUND(VLOOKUP(V$8&$A$5&$A9,'Calc-HC2'!$A$6:$M$5561,$A$7,FALSE),10),"NA"))) -> 300 | W9: =IF($A$3>1,"NA",IF(VLOOKUP(W$8&$A$5&$A9,'Calc-HC2'!$A$6:$M$5561,$A$7,FALSE)="*","*",IF($A$3=1,MROUND(VLOOKUP(W$8&$A$5&$A9,'Calc-HC2'!$A$6:$M$5561,$A$7,FALSE),10),"NA"))) -> 230
A10: =C10 -> 18-64 | C10: 18-64 | D10: =IF($A$3>1,"NA",IF(VLOOKUP(D$8&$A$5&$A10,'Calc-HC2'!$A$6:$M$5561,$A$7,FALSE)="*","*",IF($A$3=1,MROUND(VLOOKUP(D$8&$A$5&$A10,'Calc-HC2'!$A$6:$M$5561,$A$7,FALSE),10),"NA"))) -> 10650 | E10: =IF($A$3>1,"NA",IF(VLOOKUP(E$8&$A$5&$A10,'Calc-HC2'!$A$6:$M$5561,$A$7,FALSE)="*","*",IF($A$3=1,MROUND(VLOOKUP(E$8&$A$5&$A10,'Calc-HC2'!$A$6:$M$5561,$A$7,FALSE),10),"NA"))) -> 10260 | F10: =IF($A$3>1,"NA",IF(VLOOKUP(F$8&$A$5&$A10,'Calc-HC2'!$A$6:$M$5561,$A$7,FALSE)="*","*",IF($A$3=1,MROUND(VLOOKUP(F$8&$A$5&$A10,'Calc-HC2'!$A$6:$M$5561,$A$7,FALSE),10),"NA"))) -> 9980 | G10: =IF($A$3>1,"NA",IF(VLOOKUP(G$8&$A$5&$A10,'Calc-HC2'!$A$6:$M$5561,$A$7,FALSE)="*","*",IF($A$3=1,MROUND(VLOOKUP(G$8&$A$5&$A10,'Calc-HC2'!$A$6:$M$5561,$A$7,FALSE),10),"NA"))) -> 9200 | H10: =IF($A$3>1,"NA",IF(VLOOKUP(H$8&$A$5&$A10,'Calc-HC2'!$A$6:$M$5561,$A$7,FALSE)="*","*",IF($A$3=1,MROUND(VLOOKUP(H$8&$A$5&$A10,'Calc-HC2'!$A$6:$M$5561,$A$7,FALSE),10),"NA"))) -> 9960 | I10: =IF($A$3>1,"NA",IF(VLOOKUP(I$8&$A$5&$A10,'Calc-HC2'!$A$6:$M$5561,$A$7,FALSE)="*","*",IF($A$3=1,MROUND(VLOOKUP(I$8&$A$5&$A10,'Calc-HC2'!$A$6:$M$5561,$A$7,FALSE),10),"NA"))) -> 10410 | J10: =IF($A$3>1,"NA",IF(VLOOKUP(J$8&$A$5&$A10,'Calc-HC2'!$A$6:$M$5561,$A$7,FALSE)="*","*",IF($A$3=1,MROUND(VLOOKUP(J$8&$A$5&$A10,'Calc-HC2'!$A$6:$M$5561,$A$7,FALSE),10),"NA"))) -> 11250 | K10: =IF($A$3>1,"NA",IF(VLOOKUP(K$8&$A$5&$A10,'Calc-HC2'!$A$6:$M$5561,$A$7,FALSE)="*","*",IF($A$3=1,MROUND(VLOOKUP(K$8&$A$5&$A10,'Calc-HC2'!$A$6:$M$5561,$A$7,FALSE),10),"NA"))) -> 12270 | L10: =IF($A$3>1,"NA",IF(VLOOKUP(L$8&$A$5&$A10,'Calc-HC2'!$A$6:$M$5561,$A$7,FALSE)="*","*",IF($A$3=1,MROUND(VLOOKUP(L$8&$A$5&$A10,'Calc-HC2'!$A$6:$M$5561,$A$7,FALSE),10),"NA"))) -> 12390 | M10: =IF($A$3>1,"NA",IF(VLOOKUP(M$8&$A$5&$A10,'Calc-HC2'!$A$6:$M$5561,$A$7,FALSE)="*","*",IF($A$3=1,MROUND(VLOOKUP(M$8&$A$5&$A10,'Calc-HC2'!$A$6:$M$5561,$A$7,FALSE),10),"NA"))) -> 13160 | N10: =IF($A$3>1,"NA",IF(VLOOKUP(N$8&$A$5&$A10,'Calc-HC2'!$A$6:$M$5561,$A$7,FALSE)="*","*",IF($A$3=1,MROUND(VLOOKUP(N$8&$A$5&$A10,'Calc-HC2'!$A$6:$M$5561,$A$7,FALSE),10),"NA"))) -> 12390 | O10: =IF($A$3>1,"NA",IF(VLOOKUP(O$8&$A$5&$A10,'Calc-HC2'!$A$6:$M$5561,$A$7,FALSE)="*","*",IF($A$3=1,MROUND(VLOOKUP(O$8&$A$5&$A10,'Calc-HC2'!$A$6:$M$5561,$A$7,FALSE),10),"NA"))) -> 12770 | P10: =IF($A$3>1,"NA",IF(VLOOKUP(P$8&$A$5&$A10,'Calc-HC2'!$A$6:$M$5561,$A$7,FALSE)="*","*",IF($A$3=1,MROUND(VLOOKUP(P$8&$A$5&$A10,'Calc-HC2'!$A$6:$M$5561,$A$7,FALSE),10),"NA"))) -> 11840 | Q10: =IF($A$3>1,"NA",IF(VLOOKUP(Q$8&$A$5&$A10,'Calc-HC2'!$A$6:$M$5561,$A$7,FALSE)="*","*",IF($A$3=1,MROUND(VLOOKUP(Q$8&$A$5&$A10,'Calc-HC2'!$A$6:$M$5561,$A$7,FALSE),10),"NA"))) -> 11010 | R10: =IF($A$3>1,"NA",IF(VLOOKUP(R$8&$A$5&$A10,'Calc-HC2'!$A$6:$M$5561,$A$7,FALSE)="*","*",IF($A$3=1,MROUND(VLOOKUP(R$8&$A$5&$A10,'Calc-HC2'!$A$6:$M$5561,$A$7,FALSE),10),"NA"))) -> 11110 | S10: =IF($A$3>1,"NA",IF(VLOOKUP(S$8&$A$5&$A10,'Calc-HC2'!$A$6:$M$5561,$A$7,FALSE)="*","*",IF($A$3=1,MROUND(VLOOKUP(S$8&$A$5&$A10,'Calc-HC2'!$A$6:$M$5561,$A$7,FALSE),10),"NA"))) -> 10140 | T10: =IF($A$3>1,"NA",IF(VLOOKUP(T$8&$A$5&$A10,'Calc-HC2'!$A$6:$M$5561,$A$7,FALSE)="*","*",IF($A$3=1,MROUND(VLOOKUP(T$8&$A$5&$A10,'Calc-HC2'!$A$6:$M$5561,$A$7,FALSE),10),"NA"))) -> 10860 | U10: =IF($A$3>1,"NA",IF(VLOOKUP(U$8&$A$5&$A10,'Calc-HC2'!$A$6:$M$5561,$A$7,FALSE)="*","*",IF($A$3=1,MROUND(VLOOKUP(U$8&$A$5&$A10,'Calc-HC2'!$A$6:$M$5561,$A$7,FALSE),10),"NA"))) -> 10940 | V10: =IF($A$3>1,"NA",IF(VLOOKUP(V$8&$A$5&$A10,'Calc-HC2'!$A$6:$M$5561,$A$7,FALSE)="*","*",IF($A$3=1,MROUND(VLOOKUP(V$8&$A$5&$A10,'Calc-HC2'!$A$6:$M$5561,$A$7,FALSE),10),"NA"))) -> 10560 | W10: =IF($A$3>1,"NA",IF(VLOOKUP(W$8&$A$5&$A10,'Calc-HC2'!$A$6:$M$5561,$A$7,FALSE)="*","*",IF($A$3=1,MROUND(VLOOKUP(W$8&$A$5&$A10,'Calc-HC2'!$A$6:$M$5561,$A$7,FALSE),10),"NA"))) -> 10610
A11: =C11 -> 65-74 | C11: 65-74 | D11: =IF($A$3>1,"NA",IF(VLOOKUP(D$8&$A$5&$A11,'Calc-HC2'!$A$6:$M$5561,$A$7,FALSE)="*","*",IF($A$3=1,MROUND(VLOOKUP(D$8&$A$5&$A11,'Calc-HC2'!$A$6:$M$5561,$A$7,FALSE),10),"NA"))) -> 14350 | E11: =IF($A$3>1,"NA",IF(VLOOKUP(E$8&$A$5&$A11,'Calc-HC2'!$A$6:$M$5561,$A$7,FALSE)="*","*",IF($A$3=1,MROUND(VLOOKUP(E$8&$A$5&$A11,'Calc-HC2'!$A$6:$M$5561,$A$7,FALSE),10),"NA"))) -> 13930 | F11: =IF($A$3>1,"NA",IF(VLOOKUP(F$8&$A$5&$A11,'Calc-HC2'!$A$6:$M$5561,$A$7,FALSE)="*","*",IF($A$3=1,MROUND(VLOOKUP(F$8&$A$5&$A11,'Calc-HC2'!$A$6:$M$5561,$A$7,FALSE),10),"NA"))) -> 12890 | G11: =IF($A$3>1,"NA",IF(VLOOKUP(G$8&$A$5&$A11,'Calc-HC2'!$A$6:$M$5561,$A$7,FALSE)="*","*",IF($A$3=1,MROUND(VLOOKUP(G$8&$A$5&$A11,'Calc-HC2'!$A$6:$M$5561,$A$7,FALSE),10),"NA"))) -> 10450 | H11: =IF($A$3>1,"NA",IF(VLOOKUP(H$8&$A$5&$A11,'Calc-HC2'!$A$6:$M$5561,$A$7,FALSE)="*","*",IF($A$3=1,MROUND(VLOOKUP(H$8&$A$5&$A11,'Calc-HC2'!$A$6:$M$5561,$A$7,FALSE),10),"NA"))) -> 10020 | I11: =IF($A$3>1,"NA",IF(VLOOKUP(I$8&$A$5&$A11,'Calc-HC2'!$A$6:$M$5561,$A$7,FALSE)="*","*",IF($A$3=1,MROUND(VLOOKUP(I$8&$A$5&$A11,'Calc-HC2'!$A$6:$M$5561,$A$7,FALSE),10),"NA"))) -> 10760 | J11: =IF($A$3>1,"NA",IF(VLOOKUP(J$8&$A$5&$A11,'Calc-HC2'!$A$6:$M$5561,$A$7,FALSE)="*","*",IF($A$3=1,MROUND(VLOOKUP(J$8&$A$5&$A11,'Calc-HC2'!$A$6:$M$5561,$A$7,FALSE),10),"NA"))) -> 11100 | K11: =IF($A$3>1,"NA",IF(VLOOKUP(K$8&$A$5&$A11,'Calc-HC2'!$A$6:$M$5561,$A$7,FALSE)="*","*",IF($A$3=1,MROUND(VLOOKUP(K$8&$A$5&$A11,'Calc-HC2'!$A$6:$M$5561,$A$7,FALSE),10),"NA"))) -> 11200 | L11: =IF($A$3>1,"NA",IF(VLOOKUP(L$8&$A$5&$A11,'Calc-HC2'!$A$6:$M$5561,$A$7,FALSE)="*","*",IF($A$3=1,MROUND(VLOOKUP(L$8&$A$5&$A11,'Calc-HC2'!$A$6:$M$5561,$A$7,FALSE),10),"NA"))) -> 11000 | M11: =IF($A$3>1,"NA",IF(VLOOKUP(M$8&$A$5&$A11,'Calc-HC2'!$A$6:$M$5561,$A$7,FALSE)="*","*",IF($A$3=1,MROUND(VLOOKUP(M$8&$A$5&$A11,'Calc-HC2'!$A$6:$M$5561,$A$7,FALSE),10),"NA"))) -> 10940 | N11: =IF($A$3>1,"NA",IF(VLOOKUP(N$8&$A$5&$A11,'Calc-HC2'!$A$6:$M$5561,$A$7,FALSE)="*","*",IF($A$3=1,MROUND(VLOOKUP(N$8&$A$5&$A11,'Calc-HC2'!$A$6:$M$5561,$A$7,FALSE),10),"NA"))) -> 10440 | O11: =IF($A$3>1,"NA",IF(VLOOKUP(O$8&$A$5&$A11,'Calc-HC2'!$A$6:$M$5561,$A$7,FALSE)="*","*",IF($A$3=1,MROUND(VLOOKUP(O$8&$A$5&$A11,'Calc-HC2'!$A$6:$M$5561,$A$7,FALSE),10),"NA"))) -> 10300 | P11: =IF($A$3>1,"NA",IF(VLOOKUP(P$8&$A$5&$A11,'Calc-HC2'!$A$6:$M$5561,$A$7,FALSE)="*","*",IF($A$3=1,MROUND(VLOOKUP(P$8&$A$5&$A11,'Calc-HC2'!$A$6:$M$5561,$A$7,FALSE),10),"NA"))) -> 9840 | Q11: =IF($A$3>1,"NA",IF(VLOOKUP(Q$8&$A$5&$A11,'Calc-HC2'!$A$6:$M$5561,$A$7,FALSE)="*","*",IF($A$3=1,MROUND(VLOOKUP(Q$8&$A$5&$A11,'Calc-HC2'!$A$6:$M$5561,$A$7,FALSE),10),"NA"))) -> 9270 | R11: =IF($A$3>1,"NA",IF(VLOOKUP(R$8&$A$5&$A11,'Calc-HC2'!$A$6:$M$5561,$A$7,FALSE)="*","*",IF($A$3=1,MROUND(VLOOKUP(R$8&$A$5&$A11,'Calc-HC2'!$A$6:$M$5561,$A$7,FALSE),10),"NA"))) -> 9170 | S11: =IF($A$3>1,"NA",IF(VLOOKUP(S$8&$A$5&$A11,'Calc-HC2'!$A$6:$M$5561,$A$7,FALSE)="*","*",IF($A$3=1,MROUND(VLOOKUP(S$8&$A$5&$A11,'Calc-HC2'!$A$6:$M$5561,$A$7,FALSE),10),"NA"))) -> 9030 | T11: =IF($A$3>1,"NA",IF(VLOOKUP(T$8&$A$5&$A11,'Calc-HC2'!$A$6:$M$5561,$A$7,FALSE)="*","*",IF($A$3=1,MROUND(VLOOKUP(T$8&$A$5&$A11,'Calc-HC2'!$A$6:$M$5561,$A$7,FALSE),10),"NA"))) -> 9050 | U11: =IF($A$3>1,"NA",IF(VLOOKUP(U$8&$A$5&$A11,'Calc-HC2'!$A$6:$M$5561,$A$7,FALSE)="*","*",IF($A$3=1,MROUND(VLOOKUP(U$8&$A$5&$A11,'Calc-HC2'!$A$6:$M$5561,$A$7,FALSE),10),"NA"))) -> 9030 | V11: =IF($A$3>1,"NA",IF(VLOOKUP(V$8&$A$5&$A11,'Calc-HC2'!$A$6:$M$5561,$A$7,FALSE)="*","*",IF($A$3=1,MROUND(VLOOKUP(V$8&$A$5&$A11,'Calc-HC2'!$A$6:$M$5561,$A$7,FALSE),10),"NA"))) -> 8820 | W11: =IF($A$3>1,"NA",IF(VLOOKUP(W$8&$A$5&$A11,'Calc-HC2'!$A$6:$M$5561,$A$7,FALSE)="*","*",IF($A$3=1,MROUND(VLOOKUP(W$8&$A$5&$A11,'Calc-HC2'!$A$6:$M$5561,$A$7,FALSE),10),"NA"))) -> 8930
A12: =C12 -> 75-84 | C12: 75-84 | D12: =IF($A$3>1,"NA",IF(VLOOKUP(D$8&$A$5&$A12,'Calc-HC2'!$A$6:$M$5561,$A$7,FALSE)="*","*",IF($A$3=1,MROUND(VLOOKUP(D$8&$A$5&$A12,'Calc-HC2'!$A$6:$M$5561,$A$7,FALSE),10),"NA"))) -> 31500 | E12: =IF($A$3>1,"NA",IF(VLOOKUP(E$8&$A$5&$A12,'Calc-HC2'!$A$6:$M$5561,$A$7,FALSE)="*","*",IF($A$3=1,MROUND(VLOOKUP(E$8&$A$5&$A12,'Calc-HC2'!$A$6:$M$5561,$A$7,FALSE),10),"NA"))) -> 28810 | F12: =IF($A$3>1,"NA",IF(VLOOKUP(F$8&$A$5&$A12,'Calc-HC2'!$A$6:$M$5561,$A$7,FALSE)="*","*",IF($A$3=1,MROUND(VLOOKUP(F$8&$A$5&$A12,'Calc-HC2'!$A$6:$M$5561,$A$7,FALSE),10),"NA"))) -> 25940 | G12: =IF($A$3>1,"NA",IF(VLOOKUP(G$8&$A$5&$A12,'Calc-HC2'!$A$6:$M$5561,$A$7,FALSE)="*","*",IF($A$3=1,MROUND(VLOOKUP(G$8&$A$5&$A12,'Calc-HC2'!$A$6:$M$5561,$A$7,FALSE),10),"NA"))) -> 24170 | H12: =IF($A$3>1,"NA",IF(VLOOKUP(H$8&$A$5&$A12,'Calc-HC2'!$A$6:$M$5561,$A$7,FALSE)="*","*",IF($A$3=1,MROUND(VLOOKUP(H$8&$A$5&$A12,'Calc-HC2'!$A$6:$M$5561,$A$7,FALSE),10),"NA"))) -> 23660 | I12: =IF($A$3>1,"NA",IF(VLOOKUP(I$8&$A$5&$A12,'Calc-HC2'!$A$6:$M$5561,$A$7,FALSE)="*","*",IF($A$3=1,MROUND(VLOOKUP(I$8&$A$5&$A12,'Calc-HC2'!$A$6:$M$5561,$A$7,FALSE),10),"NA"))) -> 24860 | J12: =IF($A$3>1,"NA",IF(VLOOKUP(J$8&$A$5&$A12,'Calc-HC2'!$A$6:$M$5561,$A$7,FALSE)="*","*",IF($A$3=1,MROUND(VLOOKUP(J$8&$A$5&$A12,'Calc-HC2'!$A$6:$M$5561,$A$7,FALSE),10),"NA"))) -> 26190 | K12: =IF($A$3>1,"NA",IF(VLOOKUP(K$8&$A$5&$A12,'Calc-HC2'!$A$6:$M$5561,$A$7,FALSE)="*","*",IF($A$3=1,MROUND(VLOOKUP(K$8&$A$5&$A12,'Calc-HC2'!$A$6:$M$5561,$A$7,FALSE),10),"NA"))) -> 25800 | L12: =IF($A$3>1,"NA",IF(VLOOKUP(L$8&$A$5&$A12,'Calc-HC2'!$A$6:$M$5561,$A$7,FALSE)="*","*",IF($A$3=1,MROUND(VLOOKUP(L$8&$A$5&$A12,'Calc-HC2'!$A$6:$M$5561,$A$7,FALSE),10),"NA"))) -> 25080 | M12: =IF($A$3>1,"NA",IF(VLOOKUP(M$8&$A$5&$A12,'Calc-HC2'!$A$6:$M$5561,$A$7,FALSE)="*","*",IF($A$3=1,MROUND(VLOOKUP(M$8&$A$5&$A12,'Calc-HC2'!$A$6:$M$5561,$A$7,FALSE),10),"NA"))) -> 24470 | N12: =IF($A$3>1,"NA",IF(VLOOKUP(N$8&$A$5&$A12,'Calc-HC2'!$A$6:$M$5561,$A$7,FALSE)="*","*",IF($A$3=1,MROUND(VLOOKUP(N$8&$A$5&$A12,'Calc-HC2'!$A$6:$M$5561,$A$7,FALSE),10),"NA"))) -> 23280 | O12: =IF($A$3>1,"NA",IF(VLOOKUP(O$8&$A$5&$A12,'Calc-HC2'!$A$6:$M$5561,$A$7,FALSE)="*","*",IF($A$3=1,MROUND(VLOOKUP(O$8&$A$5&$A12,'Calc-HC2'!$A$6:$M$5561,$A$7,FALSE),10),"NA"))) -> 22640 | P12: =IF($A$3>1,"NA",IF(VLOOKUP(P$8&$A$5&$A12,'Calc-HC2'!$A$6:$M$5561,$A$7,FALSE)="*","*",IF($A$3=1,MROUND(VLOOKUP(P$8&$A$5&$A12,'Calc-HC2'!$A$6:$M$5561,$A$7,FALSE),10),"NA"))) -> 22250 | Q12: =IF($A$3>1,"NA",IF(VLOOKUP(Q$8&$A$5&$A12,'Calc-HC2'!$A$6:$M$5561,$A$7,FALSE)="*","*",IF($A$3=1,MROUND(VLOOKUP(Q$8&$A$5&$A12,'Calc-HC2'!$A$6:$M$5561,$A$7,FALSE),10),"NA"))) -> 21020 | R12: =IF($A$3>1,"NA",IF(VLOOKUP(R$8&$A$5&$A12,'Calc-HC2'!$A$6:$M$5561,$A$7,FALSE)="*","*",IF($A$3=1,MROUND(VLOOKUP(R$8&$A$5&$A12,'Calc-HC2'!$A$6:$M$5561,$A$7,FALSE),10),"NA"))) -> 20640 | S12: =IF($A$3>1,"NA",IF(VLOOKUP(S$8&$A$5&$A12,'Calc-HC2'!$A$6:$M$5561,$A$7,FALSE)="*","*",IF($A$3=1,MROUND(VLOOKUP(S$8&$A$5&$A12,'Calc-HC2'!$A$6:$M$5561,$A$7,FALSE),10),"NA"))) -> 20150 | T12: =IF($A$3>1,"NA",IF(VLOOKUP(T$8&$A$5&$A12,'Calc-HC2'!$A$6:$M$5561,$A$7,FALSE)="*","*",IF($A$3=1,MROUND(VLOOKUP(T$8&$A$5&$A12,'Calc-HC2'!$A$6:$M$5561,$A$7,FALSE),10),"NA"))) -> 20000 | U12: =IF($A$3>1,"NA",IF(VLOOKUP(U$8&$A$5&$A12,'Calc-HC2'!$A$6:$M$5561,$A$7,FALSE)="*","*",IF($A$3=1,MROUND(VLOOKUP(U$8&$A$5&$A12,'Calc-HC2'!$A$6:$M$5561,$A$7,FALSE),10),"NA"))) -> 19550 | V12: =IF($A$3>1,"NA",IF(VLOOKUP(V$8&$A$5&$A12,'Calc-HC2'!$A$6:$M$5561,$A$7,FALSE)="*","*",IF($A$3=1,MROUND(VLOOKUP(V$8&$A$5&$A12,'Calc-HC2'!$A$6:$M$5561,$A$7,FALSE),10),"NA"))) -> 19160 | W12: =IF($A$3>1,"NA",IF(VLOOKUP(W$8&$A$5&$A12,'Calc-HC2'!$A$6:$M$5561,$A$7,FALSE)="*","*",IF($A$3=1,MROUND(VLOOKUP(W$8&$A$5&$A12,'Calc-HC2'!$A$6:$M$5561,$A$7,FALSE),10),"NA"))) -> 18760
A13: =C13 -> 85 plus | C13: 85 plus | D13: =IF($A$3>1,"NA",IF(VLOOKUP(D$8&$A$5&$A13,'Calc-HC2'!$A$6:$M$5561,$A$7,FALSE)="*","*",IF($A$3=1,MROUND(VLOOKUP(D$8&$A$5&$A13,'Calc-HC2'!$A$6:$M$5561,$A$7,FALSE),10),"NA"))) -> 21910 | E13: =IF($A$3>1,"NA",IF(VLOOKUP(E$8&$A$5&$A13,'Calc-HC2'!$A$6:$M$5561,$A$7,FALSE)="*","*",IF($A$3=1,MROUND(VLOOKUP(E$8&$A$5&$A13,'Calc-HC2'!$A$6:$M$5561,$A$7,FALSE),10),"NA"))) -> 20010 | F13: =IF($A$3>1,"NA",IF(VLOOKUP(F$8&$A$5&$A13,'Calc-HC2'!$A$6:$M$5561,$A$7,FALSE)="*","*",IF($A$3=1,MROUND(VLOOKUP(F$8&$A$5&$A13,'Calc-HC2'!$A$6:$M$5561,$A$7,FALSE),10),"NA"))) -> 20390 | G13: =IF($A$3>1,"NA",IF(VLOOKUP(G$8&$A$5&$A13,'Calc-HC2'!$A$6:$M$5561,$A$7,FALSE)="*","*",IF($A$3=1,MROUND(VLOOKUP(G$8&$A$5&$A13,'Calc-HC2'!$A$6:$M$5561,$A$7,FALSE),10),"NA"))) -> 20760 | H13: =IF($A$3>1,"NA",IF(VLOOKUP(H$8&$A$5&$A13,'Calc-HC2'!$A$6:$M$5561,$A$7,FALSE)="*","*",IF($A$3=1,MROUND(VLOOKUP(H$8&$A$5&$A13,'Calc-HC2'!$A$6:$M$5561,$A$7,FALSE),10),"NA"))) -> 19960 | I13: =IF($A$3>1,"NA",IF(VLOOKUP(I$8&$A$5&$A13,'Calc-HC2'!$A$6:$M$5561,$A$7,FALSE)="*","*",IF($A$3=1,MROUND(VLOOKUP(I$8&$A$5&$A13,'Calc-HC2'!$A$6:$M$5561,$A$7,FALSE),10),"NA"))) -> 20120 | J13: =IF($A$3>1,"NA",IF(VLOOKUP(J$8&$A$5&$A13,'Calc-HC2'!$A$6:$M$5561,$A$7,FALSE)="*","*",IF($A$3=1,MROUND(VLOOKUP(J$8&$A$5&$A13,'Calc-HC2'!$A$6:$M$5561,$A$7,FALSE),10),"NA"))) -> 20480 | K13: =IF($A$3>1,"NA",IF(VLOOKUP(K$8&$A$5&$A13,'Calc-HC2'!$A$6:$M$5561,$A$7,FALSE)="*","*",IF($A$3=1,MROUND(VLOOKUP(K$8&$A$5&$A13,'Calc-HC2'!$A$6:$M$5561,$A$7,FALSE),10),"NA"))) -> 20880 | L13: =IF($A$3>1,"NA",IF(VLOOKUP(L$8&$A$5&$A13,'Calc-HC2'!$A$6:$M$5561,$A$7,FALSE)="*","*",IF($A$3=1,MROUND(VLOOKUP(L$8&$A$5&$A13,'Calc-HC2'!$A$6:$M$5561,$A$7,FALSE),10),"NA"))) -> 21110 | M13: =IF($A$3>1,"NA",IF(VLOOKUP(M$8&$A$5&$A13,'Calc-HC2'!$A$6:$M$5561,$A$7,FALSE)="*","*",IF($A$3=1,MROUND(VLOOKUP(M$8&$A$5&$A13,'Calc-HC2'!$A$6:$M$5561,$A$7,FALSE),10),"NA"))) -> 21300 | N13: =IF($A$3>1,"NA",IF(VLOOKUP(N$8&$A$5&$A13,'Calc-HC2'!$A$6:$M$5561,$A$7,FALSE)="*","*",IF($A$3=1,MROUND(VLOOKUP(N$8&$A$5&$A13,'Calc-HC2'!$A$6:$M$5561,$A$7,FALSE),10),"NA"))) -> 21620 | O13: =IF($A$3>1,"NA",IF(VLOOKUP(O$8&$A$5&$A13,'Calc-HC2'!$A$6:$M$5561,$A$7,FALSE)="*","*",IF($A$3=1,MROUND(VLOOKUP(O$8&$A$5&$A13,'Calc-HC2'!$A$6:$M$5561,$A$7,FALSE),10),"NA"))) -> 21780 | P13: =IF($A$3>1,"NA",IF(VLOOKUP(P$8&$A$5&$A13,'Calc-HC2'!$A$6:$M$5561,$A$7,FALSE)="*","*",IF($A$3=1,MROUND(VLOOKUP(P$8&$A$5&$A13,'Calc-HC2'!$A$6:$M$5561,$A$7,FALSE),10),"NA"))) -> 21570 | Q13: =IF($A$3>1,"NA",IF(VLOOKUP(Q$8&$A$5&$A13,'Calc-HC2'!$A$6:$M$5561,$A$7,FALSE)="*","*",IF($A$3=1,MROUND(VLOOKUP(Q$8&$A$5&$A13,'Calc-HC2'!$A$6:$M$5561,$A$7,FALSE),10),"NA"))) -> 21430 | R13: =IF($A$3>1,"NA",IF(VLOOKUP(R$8&$A$5&$A13,'Calc-HC2'!$A$6:$M$5561,$A$7,FALSE)="*","*",IF($A$3=1,MROUND(VLOOKUP(R$8&$A$5&$A13,'Calc-HC2'!$A$6:$M$5561,$A$7,FALSE),10),"NA"))) -> 21310 | S13: =IF($A$3>1,"NA",IF(VLOOKUP(S$8&$A$5&$A13,'Calc-HC2'!$A$6:$M$5561,$A$7,FALSE)="*","*",IF($A$3=1,MROUND(VLOOKUP(S$8&$A$5&$A13,'Calc-HC2'!$A$6:$M$5561,$A$7,FALSE),10),"NA"))) -> 21180 | T13: =IF($A$3>1,"NA",IF(VLOOKUP(T$8&$A$5&$A13,'Calc-HC2'!$A$6:$M$5561,$A$7,FALSE)="*","*",IF($A$3=1,MROUND(VLOOKUP(T$8&$A$5&$A13,'Calc-HC2'!$A$6:$M$5561,$A$7,FALSE),10),"NA"))) -> 21390 | U13: =IF($A$3>1,"NA",IF(VLOOKUP(U$8&$A$5&$A13,'Calc-HC2'!$A$6:$M$5561,$A$7,FALSE)="*","*",IF($A$3=1,MROUND(VLOOKUP(U$8&$A$5&$A13,'Calc-HC2'!$A$6:$M$5561,$A$7,FALSE),10),"NA"))) -> 21580 | V13: =IF($A$3>1,"NA",IF(VLOOKUP(V$8&$A$5&$A13,'Calc-HC2'!$A$6:$M$5561,$A$7,FALSE)="*","*",IF($A$3=1,MROUND(VLOOKUP(V$8&$A$5&$A13,'Calc-HC2'!$A$6:$M$5561,$A$7,FALSE),10),"NA"))) -> 20940 | W13: =IF($A$3>1,"NA",IF(VLOOKUP(W$8&$A$5&$A13,'Calc-HC2'!$A$6:$M$5561,$A$7,FALSE)="*","*",IF($A$3=1,MROUND(VLOOKUP(W$8&$A$5&$A13,'Calc-HC2'!$A$6:$M$5561,$A$7,FALSE),10),"NA"))) -> 21120
A14: =IF(A5="Scotland",C14,"Total") -> Total | B14: All ages | C14: Total | D14: =IF(VLOOKUP(D$8&$A$5&$A14,'Calc-HC2'!$A$6:$M$5561,$A$7,FALSE)="*","*",MROUND(VLOOKUP(D$8&$A$5&$A14,'Calc-HC2'!$A$6:$M$5561,$A$7,FALSE),10)) -> 79290 | E14: =IF(VLOOKUP(E$8&$A$5&$A14,'Calc-HC2'!$A$6:$M$5561,$A$7,FALSE)="*","*",MROUND(VLOOKUP(E$8&$A$5&$A14,'Calc-HC2'!$A$6:$M$5561,$A$7,FALSE),10)) -> 74060 | F14: =IF(VLOOKUP(F$8&$A$5&$A14,'Calc-HC2'!$A$6:$M$5561,$A$7,FALSE)="*","*",MROUND(VLOOKUP(F$8&$A$5&$A14,'Calc-HC2'!$A$6:$M$5561,$A$7,FALSE),10)) -> 70210 | G14: =IF(VLOOKUP(G$8&$A$5&$A14,'Calc-HC2'!$A$6:$M$5561,$A$7,FALSE)="*","*",MROUND(VLOOKUP(G$8&$A$5&$A14,'Calc-HC2'!$A$6:$M$5561,$A$7,FALSE),10)) -> 65530 | H14: =IF(VLOOKUP(H$8&$A$5&$A14,'Calc-HC2'!$A$6:$M$5561,$A$7,FALSE)="*","*",MROUND(VLOOKUP(H$8&$A$5&$A14,'Calc-HC2'!$A$6:$M$5561,$A$7,FALSE),10)) -> 64550 | I14: =IF(VLOOKUP(I$8&$A$5&$A14,'Calc-HC2'!$A$6:$M$5561,$A$7,FALSE)="*","*",MROUND(VLOOKUP(I$8&$A$5&$A14,'Calc-HC2'!$A$6:$M$5561,$A$7,FALSE),10)) -> 67270 | J14: =IF(VLOOKUP(J$8&$A$5&$A14,'Calc-HC2'!$A$6:$M$5561,$A$7,FALSE)="*","*",MROUND(VLOOKUP(J$8&$A$5&$A14,'Calc-HC2'!$A$6:$M$5561,$A$7,FALSE),10)) -> 69990 | K14: =IF(VLOOKUP(K$8&$A$5&$A14,'Calc-HC2'!$A$6:$M$5561,$A$7,FALSE)="*","*",MROUND(VLOOKUP(K$8&$A$5&$A14,'Calc-HC2'!$A$6:$M$5561,$A$7,FALSE),10)) -> 71090 | L14: =IF(VLOOKUP(L$8&$A$5&$A14,'Calc-HC2'!$A$6:$M$5561,$A$7,FALSE)="*","*",MROUND(VLOOKUP(L$8&$A$5&$A14,'Calc-HC2'!$A$6:$M$5561,$A$7,FALSE),10)) -> 70660 | M14: =IF(VLOOKUP(M$8&$A$5&$A14,'Calc-HC2'!$A$6:$M$5561,$A$7,FALSE)="*","*",MROUND(VLOOKUP(M$8&$A$5&$A14,'Calc-HC2'!$A$6:$M$5561,$A$7,FALSE),10)) -> 70710 | N14: =IF(VLOOKUP(N$8&$A$5&$A14,'Calc-HC2'!$A$6:$M$5561,$A$7,FALSE)="*","*",MROUND(VLOOKUP(N$8&$A$5&$A14,'Calc-HC2'!$A$6:$M$5561,$A$7,FALSE),10)) -> 68760 | O14: =IF(VLOOKUP(O$8&$A$5&$A14,'Calc-HC2'!$A$6:$M$5561,$A$7,FALSE)="*","*",MROUND(VLOOKUP(O$8&$A$5&$A14,'Calc-HC2'!$A$6:$M$5561,$A$7,FALSE),10)) -> 68330 | P14: =IF(VLOOKUP(P$8&$A$5&$A14,'Calc-HC2'!$A$6:$M$5561,$A$7,FALSE)="*","*",MROUND(VLOOKUP(P$8&$A$5&$A14,'Calc-HC2'!$A$6:$M$5561,$A$7,FALSE),10)) -> 66220 | Q14: =IF(VLOOKUP(Q$8&$A$5&$A14,'Calc-HC2'!$A$6:$M$5561,$A$7,FALSE)="*","*",MROUND(VLOOKUP(Q$8&$A$5&$A14,'Calc-HC2'!$A$6:$M$5561,$A$7,FALSE),10)) -> 63460 | R14: =IF(VLOOKUP(R$8&$A$5&$A14,'Calc-HC2'!$A$6:$M$5561,$A$7,FALSE)="*","*",MROUND(VLOOKUP(R$8&$A$5&$A14,'Calc-HC2'!$A$6:$M$5561,$A$7,FALSE),10)) -> 62830 | S14: =IF(VLOOKUP(S$8&$A$5&$A14,'Calc-HC2'!$A$6:$M$5561,$A$7,FALSE)="*","*",MROUND(VLOOKUP(S$8&$A$5&$A14,'Calc-HC2'!$A$6:$M$5561,$A$7,FALSE),10)) -> 61070 | T14: =IF(VLOOKUP(T$8&$A$5&$A14,'Calc-HC2'!$A$6:$M$5561,$A$7,FALSE)="*","*",MROUND(VLOOKUP(T$8&$A$5&$A14,'Calc-HC2'!$A$6:$M$5561,$A$7,FALSE),10)) -> 61740 | U14: =IF(VLOOKUP(U$8&$A$5&$A14,'Calc-HC2'!$A$6:$M$5561,$A$7,FALSE)="*","*",MROUND(VLOOKUP(U$8&$A$5&$A14,'Calc-HC2'!$A$6:$M$5561,$A$7,FALSE),10)) -> 61500 | V14: =IF(VLOOKUP(V$8&$A$5&$A14,'Calc-HC2'!$A$6:$M$5561,$A$7,FALSE)="*","*",MROUND(VLOOKUP(V$8&$A$5&$A14,'Calc-HC2'!$A$6:$M$5561,$A$7,FALSE),10)) -> 59780 | W14: =IF(VLOOKUP(W$8&$A$5&$A14,'Calc-HC2'!$A$6:$M$5561,$A$7,FALSE)="*","*",MROUND(VLOOKUP(W$8&$A$5&$A14,'Calc-HC2'!$A$6:$M$5561,$A$7,FALSE),10)) -> 59640
C16: Source: Home Care Census up to 2012, Social Care Survey from 2013
C17: Notes | D17: - some figures have been suppressed with a "*" to protect small numbers.
D18: - client group and further age breakdown not available at local authority level, due to small numbers.
D19: - a small number of cases have missing ages - therefore the figures for each age category may not add up exactly to the total.
D20: - figures rounded to the nearest 10.
C21: 0-15 | D21: =D9/D$14 -> 0.01122461849 | E21: =E9/E$14 -> 0.01417769376 | F21: 0.01438541518 | G21: 0.01449717687 | H21: 0.01471727343 | I21: 0.01650066895 | J21: 0.01400200029 | K21: 0.01322267548 | L21: 0.0152844608 | M21: 0.01202093056 | N21: 0.01497963933 | O21: 0.0122932826 | P21: 0.0107218363 | Q21: 0.01118815002 | R21: 0.009708737864 | S21: 0.009169805142 | T21: =T9/T$14 -> 0.007126660188 | U21: 0.006504065041 | V21: 0.005018400803 | W21: =W9/W$14 -> 0.003856472166
C22: 16-64 | D22: =D10/D$14 -> 0.1343170639 | E22: =E10/E$14 -> 0.1385363219 | F22: 0.1421449936 | G22: 0.1403937128 | H22: 0.154298993 | I22: 0.1547495169 | J22: 0.1607372482 | K22: 0.1725981151 | L22: 0.1753467308 | M22: 0.1861122896 | N22: 0.1801919721 | O22: 0.1868871652 | P22: 0.1787979462 | Q22: 0.173495115 | R22: 0.1768263568 | S22: 0.1660389717 | T22: =T10/T$14 -> 0.175898931 | U22: 0.1778861789 | V22: =V10/V$14 -> 0.1766477083 | W22: 0.1779007378
C23: 65-74 | D23: =D11/D$14 -> 0.1809812082 | E23: =E11/E$14 -> 0.1880907372 | F23: 0.1835920809 | G23: 0.1594689455 | H23: 0.155228505 | I23: 0.1599524305 | J23: 0.1585940849 | K23: 0.1575467717 | L23: 0.1556750637 | M23: 0.1547164475 | N23: 0.1518324607 | O23: 0.1507390604 | P23: 0.1485955905 | Q23: 0.1460762685 | R23: 0.1459493872 | S23: 0.1478631079 | T23: =T11/T$14 -> 0.1465824425 | U23: 0.1468292683 | V23: =V11/V$14 -> 0.1475409836 | W23: 0.1497317237
C24: 75-84 | D24: =D12/D$14 -> 0.3972758229 | E24: =E12/E$14 -> 0.3890089117 | F24: 0.3694630395 | G24: 0.3688386998 | H24: 0.3665375678 | I24: 0.3695555225 | J24: 0.3741963138 | K24: 0.3629202419 | L24: 0.3549391452 | M24: 0.3460613775 | N24: 0.3385689354 | O24: 0.3313332358 | P24: 0.3360012081 | Q24: 0.3312322723 | R24: 0.328505491 | S24: 0.3299492386 | T24: =T12/T$14 -> 0.3239390994 | U24: 0.3178861789 | V24: =V12/V$14 -> 0.3205085313 | W24: 0.3145539906
C25: 85 plus | D25: =D13/D$14 -> 0.2763274057 | E25: =E13/E$14 -> 0.2701863354 | F25: 0.2904144709 | G25: 0.316801465 | H25: 0.3092176607 | I25: 0.2990932065 | J25: 0.2926132305 | K25: 0.2937121958 | L25: 0.2987545995 | M25: 0.3012303776 | N25: 0.3144269924 | O25: 0.318747256 | P25: 0.3257324071 | Q25: 0.337693035 | R25: 0.3391691867 | S25: 0.3468151302 | T25: =T13/T$14 -> 0.3464528669 | U25: 0.3508943089 | V25: =V13/V$14 -> 0.350284376 | W25: 0.3541247485

Sheet Table4
B1: ="Age breakdown of "&A7&" receiving Home Care, by Local Authority in "&A4 -> Age breakdown of all clients receiving Home Care, by Local Authority in 2017 | O1: Main page
B2: Figures are for the March census week
A3: 20
A4: =OFFSET(LKPs!H1,A3,0) -> 2017 | C4: Select year
A5: =OFFSET(LKPs!F1,A8,0) -> All client groups
A6: =VLOOKUP(A5,LKPs!F2:G10,2,FALSE) -> 13
A7: =IF(A6=13,"all clients",A5) -> all clients
A8: 1 | C8: Local Authority | D8: Client numbers by age group
D9: 0-17 | E9: 18-64 | F9: 65-74 | G9: 75-84 | H9: 85 plus | I9: Total
C10: Aberdeen City | D10: =IF($A$8>1,"NA",IF(VLOOKUP($A$4&$C10&D$9,'Calc-HC2'!$A$6:$W$5561,$A$6,FALSE)="*","*",IF($A$8=1,(MROUND(VLOOKUP($A$4&$C10&D$9,'Calc-HC2'!$A$6:$W$5561,$A$6,FALSE),10)),"NA"))) -> 10 | E10: =IF($A$8>1,"NA",IF(VLOOKUP($A$4&$C10&E$9,'Calc-HC2'!$A$6:$W$5561,$A$6,FALSE)="*","*",IF($A$8=1,(MROUND(VLOOKUP($A$4&$C10&E$9,'Calc-HC2'!$A$6:$W$5561,$A$6,FALSE),10)),"NA"))) -> 280 | F10: =IF($A$8>1,"NA",IF(VLOOKUP($A$4&$C10&F$9,'Calc-HC2'!$A$6:$W$5561,$A$6,FALSE)="*","*",IF($A$8=1,(MROUND(VLOOKUP($A$4&$C10&F$9,'Calc-HC2'!$A$6:$W$5561,$A$6,FALSE),10)),"NA"))) -> 250 | G10: =IF($A$8>1,"NA",IF(VLOOKUP($A$4&$C10&G$9,'Calc-HC2'!$A$6:$W$5561,$A$6,FALSE)="*","*",IF($A$8=1,(MROUND(VLOOKUP($A$4&$C10&G$9,'Calc-HC2'!$A$6:$W$5561,$A$6,FALSE),10)),"NA"))) -> 540 | H10: =IF($A$8>1,"NA",IF(VLOOKUP($A$4&$C10&H$9,'Calc-HC2'!$A$6:$W$5561,$A$6,FALSE)="*","*",IF($A$8=1,(MROUND(VLOOKUP($A$4&$C10&H$9,'Calc-HC2'!$A$6:$W$5561,$A$6,FALSE),10)),"NA"))) -> 710 | I10: =IF($A$8>1,"NA",IF(VLOOKUP($A$4&$C10&I$9,'Calc-HC2'!$A$6:$W$5561,$A$6,FALSE)="*","*",IF($A$8=1,(MROUND(VLOOKUP($A$4&$C10&I$9,'Calc-HC2'!$A$6:$W$5561,$A$6,FALSE),10)),"NA"))) -> 1780
C11: Aberdeenshire | D11: =IF($A$8>1,"NA",IF(VLOOKUP($A$4&$C11&D$9,'Calc-HC2'!$A$6:$W$5561,$A$6,FALSE)="*","*",IF($A$8=1,(MROUND(VLOOKUP($A$4&$C11&D$9,'Calc-HC2'!$A$6:$W$5561,$A$6,FALSE),10)),"NA"))) -> 40 | E11: =IF($A$8>1,"NA",IF(VLOOKUP($A$4&$C11&E$9,'Calc-HC2'!$A$6:$W$5561,$A$6,FALSE)="*","*",IF($A$8=1,(MROUND(VLOOKUP($A$4&$C11&E$9,'Calc-HC2'!$A$6:$W$5561,$A$6,FALSE),10)),"NA"))) -> 270 | F11: =IF($A$8>1,"NA",IF(VLOOKUP($A$4&$C11&F$9,'Calc-HC2'!$A$6:$W$5561,$A$6,FALSE)="*","*",IF($A$8=1,(MROUND(VLOOKUP($A$4&$C11&F$9,'Calc-HC2'!$A$6:$W$5561,$A$6,FALSE),10)),"NA"))) -> 310 | G11: =IF($A$8>1,"NA",IF(VLOOKUP($A$4&$C11&G$9,'Calc-HC2'!$A$6:$W$5561,$A$6,FALSE)="*","*",IF($A$8=1,(MROUND(VLOOKUP($A$4&$C11&G$9,'Calc-HC2'!$A$6:$W$5561,$A$6,FALSE),10)),"NA"))) -> 730 | H11: =IF($A$8>1,"NA",IF(VLOOKUP($A$4&$C11&H$9,'Calc-HC2'!$A$6:$W$5561,$A$6,FALSE)="*","*",IF($A$8=1,(MROUND(VLOOKUP($A$4&$C11&H$9,'Calc-HC2'!$A$6:$W$5561,$A$6,FALSE),10)),"NA"))) -> 940 | I11: =IF($A$8>1,"NA",IF(VLOOKUP($A$4&$C11&I$9,'Calc-HC2'!$A$6:$W$5561,$A$6,FALSE)="*","*",IF($A$8=1,(MROUND(VLOOKUP($A$4&$C11&I$9,'Calc-HC2'!$A$6:$W$5561,$A$6,FALSE),10)),"NA"))) -> 2300
C12: Angus | D12: =IF($A$8>1,"NA",IF(VLOOKUP($A$4&$C12&D$9,'Calc-HC2'!$A$6:$W$5561,$A$6,FALSE)="*","*",IF($A$8=1,(MROUND(VLOOKUP($A$4&$C12&D$9,'Calc-HC2'!$A$6:$W$5561,$A$6,FALSE),10)),"NA"))) -> 10 | E12: =IF($A$8>1,"NA",IF(VLOOKUP($A$4&$C12&E$9,'Calc-HC2'!$A$6:$W$5561,$A$6,FALSE)="*","*",IF($A$8=1,(MROUND(VLOOKUP($A$4&$C12&E$9,'Calc-HC2'!$A$6:$W$5561,$A$6,FALSE),10)),"NA"))) -> 300 | F12: =IF($A$8>1,"NA",IF(VLOOKUP($A$4&$C12&F$9,'Calc-HC2'!$A$6:$W$5561,$A$6,FALSE)="*","*",IF($A$8=1,(MROUND(VLOOKUP($A$4&$C12&F$9,'Calc-HC2'!$A$6:$W$5561,$A$6,FALSE),10)),"NA"))) -> 180 | G12: =IF($A$8>1,"NA",IF(VLOOKUP($A$4&$C12&G$9,'Calc-HC2'!$A$6:$W$5561,$A$6,FALSE)="*","*",IF($A$8=1,(MROUND(VLOOKUP($A$4&$C12&G$9,'Calc-HC2'!$A$6:$W$5561,$A$6,FALSE),10)),"NA"))) -> 370 | H12: =IF($A$8>1,"NA",IF(VLOOKUP($A$4&$C12&H$9,'Calc-HC2'!$A$6:$W$5561,$A$6,FALSE)="*","*",IF($A$8=1,(MROUND(VLOOKUP($A$4&$C12&H$9,'Calc-HC2'!$A$6:$W$5561,$A$6,FALSE),10)),"NA"))) -> 510 | I12: =IF($A$8>1,"NA",IF(VLOOKUP($A$4&$C12&I$9,'Calc-HC2'!$A$6:$W$5561,$A$6,FALSE)="*","*",IF($A$8=1,(MROUND(VLOOKUP($A$4&$C12&I$9,'Calc-HC2'!$A$6:$W$5561,$A$6,FALSE),10)),"NA"))) -> 1360
C13: Argyll & Bute | D13: =IF($A$8>1,"NA",IF(VLOOKUP($A$4&$C13&D$9,'Calc-HC2'!$A$6:$W$5561,$A$6,FALSE)="*","*",IF($A$8=1,(MROUND(VLOOKUP($A$4&$C13&D$9,'Calc-HC2'!$A$6:$W$5561,$A$6,FALSE),10)),"NA"))) -> 0 | E13: =IF($A$8>1,"NA",IF(VLOOKUP($A$4&$C13&E$9,'Calc-HC2'!$A$6:$W$5561,$A$6,FALSE)="*","*",IF($A$8=1,(MROUND(VLOOKUP($A$4&$C13&E$9,'Calc-HC2'!$A$6:$W$5561,$A$6,FALSE),10)),"NA"))) -> 50 | F13: =IF($A$8>1,"NA",IF(VLOOKUP($A$4&$C13&F$9,'Calc-HC2'!$A$6:$W$5561,$A$6,FALSE)="*","*",IF($A$8=1,(MROUND(VLOOKUP($A$4&$C13&F$9,'Calc-HC2'!$A$6:$W$5561,$A$6,FALSE),10)),"NA"))) -> 140 | G13: =IF($A$8>1,"NA",IF(VLOOKUP($A$4&$C13&G$9,'Calc-HC2'!$A$6:$W$5561,$A$6,FALSE)="*","*",IF($A$8=1,(MROUND(VLOOKUP($A$4&$C13&G$9,'Calc-HC2'!$A$6:$W$5561,$A$6,FALSE),10)),"NA"))) -> 370 | H13: =IF($A$8>1,"NA",IF(VLOOKUP($A$4&$C13&H$9,'Calc-HC2'!$A$6:$W$5561,$A$6,FALSE)="*","*",IF($A$8=1,(MROUND(VLOOKUP($A$4&$C13&H$9,'Calc-HC2'!$A$6:$W$5561,$A$6,FALSE),10)),"NA"))) -> 500 | I13: =IF($A$8>1,"NA",IF(VLOOKUP($A$4&$C13&I$9,'Calc-HC2'!$A$6:$W$5561,$A$6,FALSE)="*","*",IF($A$8=1,(MROUND(VLOOKUP($A$4&$C13&I$9,'Calc-HC2'!$A$6:$W$5561,$A$6,FALSE),10)),"NA"))) -> 1070
C14: Clackmannanshire | D14: =IF($A$8>1,"NA",IF(VLOOKUP($A$4&$C14&D$9,'Calc-HC2'!$A$6:$W$5561,$A$6,FALSE)="*","*",IF($A$8=1,(MROUND(VLOOKUP($A$4&$C14&D$9,'Calc-HC2'!$A$6:$W$5561,$A$6,FALSE),10)),"NA"))) -> 20 | E14: =IF($A$8>1,"NA",IF(VLOOKUP($A$4&$C14&E$9,'Calc-HC2'!$A$6:$W$5561,$A$6,FALSE)="*","*",IF($A$8=1,(MROUND(VLOOKUP($A$4&$C14&E$9,'Calc-HC2'!$A$6:$W$5561,$A$6,FALSE),10)),"NA"))) -> 150 | F14: =IF($A$8>1,"NA",IF(VLOOKUP($A$4&$C14&F$9,'Calc-HC2'!$A$6:$W$5561,$A$6,FALSE)="*","*",IF($A$8=1,(MROUND(VLOOKUP($A$4&$C14&F$9,'Calc-HC2'!$A$6:$W$5561,$A$6,FALSE),10)),"NA"))) -> 100 | G14: =IF($A$8>1,"NA",IF(VLOOKUP($A$4&$C14&G$9,'Calc-HC2'!$A$6:$W$5561,$A$6,FALSE)="*","*",IF($A$8=1,(MROUND(VLOOKUP($A$4&$C14&G$9,'Calc-HC2'!$A$6:$W$5561,$A$6,FALSE),10)),"NA"))) -> 180 | H14: =IF($A$8>1,"NA",IF(VLOOKUP($A$4&$C14&H$9,'Calc-HC2'!$A$6:$W$5561,$A$6,FALSE)="*","*",IF($A$8=1,(MROUND(VLOOKUP($A$4&$C14&H$9,'Calc-HC2'!$A$6:$W$5561,$A$6,FALSE),10)),"NA"))) -> 220 | I14: =IF($A$8>1,"NA",IF(VLOOKUP($A$4&$C14&I$9,'Calc-HC2'!$A$6:$W$5561,$A$6,FALSE)="*","*",IF($A$8=1,(MROUND(VLOOKUP($A$4&$C14&I$9,'Calc-HC2'!$A$6:$W$5561,$A$6,FALSE),10)),"NA"))) -> 670
C15: Dumfries & Galloway | D15: =IF($A$8>1,"NA",IF(VLOOKUP($A$4&$C15&D$9,'Calc-HC2'!$A$6:$W$5561,$A$6,FALSE)="*","*",IF($A$8=1,(MROUND(VLOOKUP($A$4&$C15&D$9,'Calc-HC2'!$A$6:$W$5561,$A$6,FALSE),10)),"NA"))) -> 20 | E15: =IF($A$8>1,"NA",IF(VLOOKUP($A$4&$C15&E$9,'Calc-HC2'!$A$6:$W$5561,$A$6,FALSE)="*","*",IF($A$8=1,(MROUND(VLOOKUP($A$4&$C15&E$9,'Calc-HC2'!$A$6:$W$5561,$A$6,FALSE),10)),"NA"))) -> 590 | F15: =IF($A$8>1,"NA",IF(VLOOKUP($A$4&$C15&F$9,'Calc-HC2'!$A$6:$W$5561,$A$6,FALSE)="*","*",IF($A$8=1,(MROUND(VLOOKUP($A$4&$C15&F$9,'Calc-HC2'!$A$6:$W$5561,$A$6,FALSE),10)),"NA"))) -> 340 | G15: =IF($A$8>1,"NA",IF(VLOOKUP($A$4&$C15&G$9,'Calc-HC2'!$A$6:$W$5561,$A$6,FALSE)="*","*",IF($A$8=1,(MROUND(VLOOKUP($A$4&$C15&G$9,'Calc-HC2'!$A$6:$W$5561,$A$6,FALSE),10)),"NA"))) -> 620 | H15: =IF($A$8>1,"NA",IF(VLOOKUP($A$4&$C15&H$9,'Calc-HC2'!$A$6:$W$5561,$A$6,FALSE)="*","*",IF($A$8=1,(MROUND(VLOOKUP($A$4&$C15&H$9,'Calc-HC2'!$A$6:$W$5561,$A$6,FALSE),10)),"NA"))) -> 790 | I15: =IF($A$8>1,"NA",IF(VLOOKUP($A$4&$C15&I$9,'Calc-HC2'!$A$6:$W$5561,$A$6,FALSE)="*","*",IF($A$8=1,(MROUND(VLOOKUP($A$4&$C15&I$9,'Calc-HC2'!$A$6:$W$5561,$A$6,FALSE),10)),"NA"))) -> 2360
C16: Dundee City | D16: =IF($A$8>1,"NA",IF(VLOOKUP($A$4&$C16&D$9,'Calc-HC2'!$A$6:$W$5561,$A$6,FALSE)="*","*",IF($A$8=1,(MROUND(VLOOKUP($A$4&$C16&D$9,'Calc-HC2'!$A$6:$W$5561,$A$6,FALSE),10)),"NA"))) -> 0 | E16: =IF($A$8>1,"NA",IF(VLOOKUP($A$4&$C16&E$9,'Calc-HC2'!$A$6:$W$5561,$A$6,FALSE)="*","*",IF($A$8=1,(MROUND(VLOOKUP($A$4&$C16&E$9,'Calc-HC2'!$A$6:$W$5561,$A$6,FALSE),10)),"NA"))) -> 190 | F16: =IF($A$8>1,"NA",IF(VLOOKUP($A$4&$C16&F$9,'Calc-HC2'!$A$6:$W$5561,$A$6,FALSE)="*","*",IF($A$8=1,(MROUND(VLOOKUP($A$4&$C16&F$9,'Calc-HC2'!$A$6:$W$5561,$A$6,FALSE),10)),"NA"))) -> 290 | G16: =IF($A$8>1,"NA",IF(VLOOKUP($A$4&$C16&G$9,'Calc-HC2'!$A$6:$W$5561,$A$6,FALSE)="*","*",IF($A$8=1,(MROUND(VLOOKUP($A$4&$C16&G$9,'Calc-HC2'!$A$6:$W$5561,$A$6,FALSE),10)),"NA"))) -> 650 | H16: =IF($A$8>1,"NA",IF(VLOOKUP($A$4&$C16&H$9,'Calc-HC2'!$A$6:$W$5561,$A$6,FALSE)="*","*",IF($A$8=1,(MROUND(VLOOKUP($A$4&$C16&H$9,'Calc-HC2'!$A$6:$W$5561,$A$6,FALSE),10)),"NA"))) -> 780 | I16: =IF($A$8>1,"NA",IF(VLOOKUP($A$4&$C16&I$9,'Calc-HC2'!$A$6:$W$5561,$A$6,FALSE)="*","*",IF($A$8=1,(MROUND(VLOOKUP($A$4&$C16&I$9,'Calc-HC2'!$A$6:$W$5561,$A$6,FALSE),10)),"NA"))) -> 1910
C17: East Ayrshire | D17: =IF($A$8>1,"NA",IF(VLOOKUP($A$4&$C17&D$9,'Calc-HC2'!$A$6:$W$5561,$A$6,FALSE)="*","*",IF($A$8=1,(MROUND(VLOOKUP($A$4&$C17&D$9,'Calc-HC2'!$A$6:$W$5561,$A$6,FALSE),10)),"NA"))) -> 0 | E17: =IF($A$8>1,"NA",IF(VLOOKUP($A$4&$C17&E$9,'Calc-HC2'!$A$6:$W$5561,$A$6,FALSE)="*","*",IF($A$8=1,(MROUND(VLOOKUP($A$4&$C17&E$9,'Calc-HC2'!$A$6:$W$5561,$A$6,FALSE),10)),"NA"))) -> 240 | F17: =IF($A$8>1,"NA",IF(VLOOKUP($A$4&$C17&F$9,'Calc-HC2'!$A$6:$W$5561,$A$6,FALSE)="*","*",IF($A$8=1,(MROUND(VLOOKUP($A$4&$C17&F$9,'Calc-HC2'!$A$6:$W$5561,$A$6,FALSE),10)),"NA"))) -> 270 | G17: =IF($A$8>1,"NA",IF(VLOOKUP($A$4&$C17&G$9,'Calc-HC2'!$A$6:$W$5561,$A$6,FALSE)="*","*",IF($A$8=1,(MROUND(VLOOKUP($A$4&$C17&G$9,'Calc-HC2'!$A$6:$W$5561,$A$6,FALSE),10)),"NA"))) -> 640 | H17: =IF($A$8>1,"NA",IF(VLOOKUP($A$4&$C17&H$9,'Calc-HC2'!$A$6:$W$5561,$A$6,FALSE)="*","*",IF($A$8=1,(MROUND(VLOOKUP($A$4&$C17&H$9,'Calc-HC2'!$A$6:$W$5561,$A$6,FALSE),10)),"NA"))) -> 590 | I17: =IF($A$8>1,"NA",IF(VLOOKUP($A$4&$C17&I$9,'Calc-HC2'!$A$6:$W$5561,$A$6,FALSE)="*","*",IF($A$8=1,(MROUND(VLOOKUP($A$4&$C17&I$9,'Calc-HC2'!$A$6:$W$5561,$A$6,FALSE),10)),"NA"))) -> 1750
C18: East Dunbartonshire | D18: =IF($A$8>1,"NA",IF(VLOOKUP($A$4&$C18&D$9,'Calc-HC2'!$A$6:$W$5561,$A$6,FALSE)="*","*",IF($A$8=1,(MROUND(VLOOKUP($A$4&$C18&D$9,'Calc-HC2'!$A$6:$W$5561,$A$6,FALSE),10)),"NA"))) -> 0 | E18: =IF($A$8>1,"NA",IF(VLOOKUP($A$4&$C18&E$9,'Calc-HC2'!$A$6:$W$5561,$A$6,FALSE)="*","*",IF($A$8=1,(MROUND(VLOOKUP($A$4&$C18&E$9,'Calc-HC2'!$A$6:$W$5561,$A$6,FALSE),10)),"NA"))) -> 260 | F18: =IF($A$8>1,"NA",IF(VLOOKUP($A$4&$C18&F$9,'Calc-HC2'!$A$6:$W$5561,$A$6,FALSE)="*","*",IF($A$8=1,(MROUND(VLOOKUP($A$4&$C18&F$9,'Calc-HC2'!$A$6:$W$5561,$A$6,FALSE),10)),"NA"))) -> 140 | G18: =IF($A$8>1,"NA",IF(VLOOKUP($A$4&$C18&G$9,'Calc-HC2'!$A$6:$W$5561,$A$6,FALSE)="*","*",IF($A$8=1,(MROUND(VLOOKUP($A$4&$C18&G$9,'Calc-HC2'!$A$6:$W$5561,$A$6,FALSE),10)),"NA"))) -> 460 | H18: =IF($A$8>1,"NA",IF(VLOOKUP($A$4&$C18&H$9,'Calc-HC2'!$A$6:$W$5561,$A$6,FALSE)="*","*",IF($A$8=1,(MROUND(VLOOKUP($A$4&$C18&H$9,'Calc-HC2'!$A$6:$W$5561,$A$6,FALSE),10)),"NA"))) -> 490 | I18: =IF($A$8>1,"NA",IF(VLOOKUP($A$4&$C18&I$9,'Calc-HC2'!$A$6:$W$5561,$A$6,FALSE)="*","*",IF($A$8=1,(MROUND(VLOOKUP($A$4&$C18&I$9,'Calc-HC2'!$A$6:$W$5561,$A$6,FALSE),10)),"NA"))) -> 1340
C19: East Lothian | D19: =IF($A$8>1,"NA",IF(VLOOKUP($A$4&$C19&D$9,'Calc-HC2'!$A$6:$W$5561,$A$6,FALSE)="*","*",IF($A$8=1,(MROUND(VLOOKUP($A$4&$C19&D$9,'Calc-HC2'!$A$6:$W$5561,$A$6,FALSE),10)),"NA"))) -> 0 | E19: =IF($A$8>1,"NA",IF(VLOOKUP($A$4&$C19&E$9,'Calc-HC2'!$A$6:$W$5561,$A$6,FALSE)="*","*",IF($A$8=1,(MROUND(VLOOKUP($A$4&$C19&E$9,'Calc-HC2'!$A$6:$W$5561,$A$6,FALSE),10)),"NA"))) -> 380 | F19: =IF($A$8>1,"NA",IF(VLOOKUP($A$4&$C19&F$9,'Calc-HC2'!$A$6:$W$5561,$A$6,FALSE)="*","*",IF($A$8=1,(MROUND(VLOOKUP($A$4&$C19&F$9,'Calc-HC2'!$A$6:$W$5561,$A$6,FALSE),10)),"NA"))) -> 190 | G19: =IF($A$8>1,"NA",IF(VLOOKUP($A$4&$C19&G$9,'Calc-HC2'!$A$6:$W$5561,$A$6,FALSE)="*","*",IF($A$8=1,(MROUND(VLOOKUP($A$4&$C19&G$9,'Calc-HC2'!$A$6:$W$5561,$A$6,FALSE),10)),"NA"))) -> 380 | H19: =IF($A$8>1,"NA",IF(VLOOKUP($A$4&$C19&H$9,'Calc-HC2'!$A$6:$W$5561,$A$6,FALSE)="*","*",IF($A$8=1,(MROUND(VLOOKUP($A$4&$C19&H$9,'Calc-HC2'!$A$6:$W$5561,$A$6,FALSE),10)),"NA"))) -> 480 | I19: =IF($A$8>1,"NA",IF(VLOOKUP($A$4&$C19&I$9,'Calc-HC2'!$A$6:$W$5561,$A$6,FALSE)="*","*",IF($A$8=1,(MROUND(VLOOKUP($A$4&$C19&I$9,'Calc-HC2'!$A$6:$W$5561,$A$6,FALSE),10)),"NA"))) -> 1440
C20: East Renfrewshire | D20: =IF($A$8>1,"NA",IF(VLOOKUP($A$4&$C20&D$9,'Calc-HC2'!$A$6:$W$5561,$A$6,FALSE)="*","*",IF($A$8=1,(MROUND(VLOOKUP($A$4&$C20&D$9,'Calc-HC2'!$A$6:$W$5561,$A$6,FALSE),10)),"NA"))) -> 0 | E20: =IF($A$8>1,"NA",IF(VLOOKUP($A$4&$C20&E$9,'Calc-HC2'!$A$6:$W$5561,$A$6,FALSE)="*","*",IF($A$8=1,(MROUND(VLOOKUP($A$4&$C20&E$9,'Calc-HC2'!$A$6:$W$5561,$A$6,FALSE),10)),"NA"))) -> 100 | F20: =IF($A$8>1,"NA",IF(VLOOKUP($A$4&$C20&F$9,'Calc-HC2'!$A$6:$W$5561,$A$6,FALSE)="*","*",IF($A$8=1,(MROUND(VLOOKUP($A$4&$C20&F$9,'Calc-HC2'!$A$6:$W$5561,$A$6,FALSE),10)),"NA"))) -> 150 | G20: =IF($A$8>1,"NA",IF(VLOOKUP($A$4&$C20&G$9,'Calc-HC2'!$A$6:$W$5561,$A$6,FALSE)="*","*",IF($A$8=1,(MROUND(VLOOKUP($A$4&$C20&G$9,'Calc-HC2'!$A$6:$W$5561,$A$6,FALSE),10)),"NA"))) -> 370 | H20: =IF($A$8>1,"NA",IF(VLOOKUP($A$4&$C20&H$9,'Calc-HC2'!$A$6:$W$5561,$A$6,FALSE)="*","*",IF($A$8=1,(MROUND(VLOOKUP($A$4&$C20&H$9,'Calc-HC2'!$A$6:$W$5561,$A$6,FALSE),10)),"NA"))) -> 470 | I20: =IF($A$8>1,"NA",IF(VLOOKUP($A$4&$C20&I$9,'Calc-HC2'!$A$6:$W$5561,$A$6,FALSE)="*","*",IF($A$8=1,(MROUND(VLOOKUP($A$4&$C20&I$9,'Calc-HC2'!$A$6:$W$5561,$A$6,FALSE),10)),"NA"))) -> 1090
C21: Edinburgh, City of | D21: =IF($A$8>1,"NA",IF(VLOOKUP($A$4&$C21&D$9,'Calc-HC2'!$A$6:$W$5561,$A$6,FALSE)="*","*",IF($A$8=1,(MROUND(VLOOKUP($A$4&$C21&D$9,'Calc-HC2'!$A$6:$W$5561,$A$6,FALSE),10)),"NA"))) -> 0 | E21: =IF($A$8>1,"NA",IF(VLOOKUP($A$4&$C21&E$9,'Calc-HC2'!$A$6:$W$5561,$A$6,FALSE)="*","*",IF($A$8=1,(MROUND(VLOOKUP($A$4&$C21&E$9,'Calc-HC2'!$A$6:$W$5561,$A$6,FALSE),10)),"NA"))) -> 1310 | F21: =IF($A$8>1,"NA",IF(VLOOKUP($A$4&$C21&F$9,'Calc-HC2'!$A$6:$W$5561,$A$6,FALSE)="*","*",IF($A$8=1,(MROUND(VLOOKUP($A$4&$C21&F$9,'Calc-HC2'!$A$6:$W$5561,$A$6,FALSE),10)),"NA"))) -> 580 | G21: =IF($A$8>1,"NA",IF(VLOOKUP($A$4&$C21&G$9,'Calc-HC2'!$A$6:$W$5561,$A$6,FALSE)="*","*",IF($A$8=1,(MROUND(VLOOKUP($A$4&$C21&G$9,'Calc-HC2'!$A$6:$W$5561,$A$6,FALSE),10)),"NA"))) -> 1090 | H21: =IF($A$8>1,"NA",IF(VLOOKUP($A$4&$C21&H$9,'Calc-HC2'!$A$6:$W$5561,$A$6,FALSE)="*","*",IF($A$8=1,(MROUND(VLOOKUP($A$4&$C21&H$9,'Calc-HC2'!$A$6:$W$5561,$A$6,FALSE),10)),"NA"))) -> 1540 | I21: =IF($A$8>1,"NA",IF(VLOOKUP($A$4&$C21&I$9,'Calc-HC2'!$A$6:$W$5561,$A$6,FALSE)="*","*",IF($A$8=1,(MROUND(VLOOKUP($A$4&$C21&I$9,'Calc-HC2'!$A$6:$W$5561,$A$6,FALSE),10)),"NA"))) -> 4530
C22: Eilean Siar | D22: =IF($A$8>1,"NA",IF(VLOOKUP($A$4&$C22&D$9,'Calc-HC2'!$A$6:$W$5561,$A$6,FALSE)="*","*",IF($A$8=1,(MROUND(VLOOKUP($A$4&$C22&D$9,'Calc-HC2'!$A$6:$W$5561,$A$6,FALSE),10)),"NA"))) -> 0 | E22: =IF($A$8>1,"NA",IF(VLOOKUP($A$4&$C22&E$9,'Calc-HC2'!$A$6:$W$5561,$A$6,FALSE)="*","*",IF($A$8=1,(MROUND(VLOOKUP($A$4&$C22&E$9,'Calc-HC2'!$A$6:$W$5561,$A$6,FALSE),10)),"NA"))) -> 30 | F22: =IF($A$8>1,"NA",IF(VLOOKUP($A$4&$C22&F$9,'Calc-HC2'!$A$6:$W$5561,$A$6,FALSE)="*","*",IF($A$8=1,(MROUND(VLOOKUP($A$4&$C22&F$9,'Calc-HC2'!$A$6:$W$5561,$A$6,FALSE),10)),"NA"))) -> 50 | G22: =IF($A$8>1,"NA",IF(VLOOKUP($A$4&$C22&G$9,'Calc-HC2'!$A$6:$W$5561,$A$6,FALSE)="*","*",IF($A$8=1,(MROUND(VLOOKUP($A$4&$C22&G$9,'Calc-HC2'!$A$6:$W$5561,$A$6,FALSE),10)),"NA"))) -> 130 | H22: =IF($A$8>1,"NA",IF(VLOOKUP($A$4&$C22&H$9,'Calc-HC2'!$A$6:$W$5561,$A$6,FALSE)="*","*",IF($A$8=1,(MROUND(VLOOKUP($A$4&$C22&H$9,'Calc-HC2'!$A$6:$W$5561,$A$6,FALSE),10)),"NA"))) -> 190 | I22: =IF($A$8>1,"NA",IF(VLOOKUP($A$4&$C22&I$9,'Calc-HC2'!$A$6:$W$5561,$A$6,FALSE)="*","*",IF($A$8=1,(MROUND(VLOOKUP($A$4&$C22&I$9,'Calc-HC2'!$A$6:$W$5561,$A$6,FALSE),10)),"NA"))) -> 390
C23: Falkirk | D23: =IF($A$8>1,"NA",IF(VLOOKUP($A$4&$C23&D$9,'Calc-HC2'!$A$6:$W$5561,$A$6,FALSE)="*","*",IF($A$8=1,(MROUND(VLOOKUP($A$4&$C23&D$9,'Calc-HC2'!$A$6:$W$5561,$A$6,FALSE),10)),"NA"))) -> 10 | E23: =IF($A$8>1,"NA",IF(VLOOKUP($A$4&$C23&E$9,'Calc-HC2'!$A$6:$W$5561,$A$6,FALSE)="*","*",IF($A$8=1,(MROUND(VLOOKUP($A$4&$C23&E$9,'Calc-HC2'!$A$6:$W$5561,$A$6,FALSE),10)),"NA"))) -> 580 | F23: =IF($A$8>1,"NA",IF(VLOOKUP($A$4&$C23&F$9,'Calc-HC2'!$A$6:$W$5561,$A$6,FALSE)="*","*",IF($A$8=1,(MROUND(VLOOKUP($A$4&$C23&F$9,'Calc-HC2'!$A$6:$W$5561,$A$6,FALSE),10)),"NA"))) -> 400 | G23: =IF($A$8>1,"NA",IF(VLOOKUP($A$4&$C23&G$9,'Calc-HC2'!$A$6:$W$5561,$A$6,FALSE)="*","*",IF($A$8=1,(MROUND(VLOOKUP($A$4&$C23&G$9,'Calc-HC2'!$A$6:$W$5561,$A$6,FALSE),10)),"NA"))) -> 690 | H23: =IF($A$8>1,"NA",IF(VLOOKUP($A$4&$C23&H$9,'Calc-HC2'!$A$6:$W$5561,$A$6,FALSE)="*","*",IF($A$8=1,(MROUND(VLOOKUP($A$4&$C23&H$9,'Calc-HC2'!$A$6:$W$5561,$A$6,FALSE),10)),"NA"))) -> 710 | I23: =IF($A$8>1,"NA",IF(VLOOKUP($A$4&$C23&I$9,'Calc-HC2'!$A$6:$W$5561,$A$6,FALSE)="*","*",IF($A$8=1,(MROUND(VLOOKUP($A$4&$C23&I$9,'Calc-HC2'!$A$6:$W$5561,$A$6,FALSE),10)),"NA"))) -> 2390
C24: Fife | D24: =IF($A$8>1,"NA",IF(VLOOKUP($A$4&$C24&D$9,'Calc-HC2'!$A$6:$W$5561,$A$6,FALSE)="*","*",IF($A$8=1,(MROUND(VLOOKUP($A$4&$C24&D$9,'Calc-HC2'!$A$6:$W$5561,$A$6,FALSE),10)),"NA"))) -> 10 | E24: =IF($A$8>1,"NA",IF(VLOOKUP($A$4&$C24&E$9,'Calc-HC2'!$A$6:$W$5561,$A$6,FALSE)="*","*",IF($A$8=1,(MROUND(VLOOKUP($A$4&$C24&E$9,'Calc-HC2'!$A$6:$W$5561,$A$6,FALSE),10)),"NA"))) -> 1060 | F24: =IF($A$8>1,"NA",IF(VLOOKUP($A$4&$C24&F$9,'Calc-HC2'!$A$6:$W$5561,$A$6,FALSE)="*","*",IF($A$8=1,(MROUND(VLOOKUP($A$4&$C24&F$9,'Calc-HC2'!$A$6:$W$5561,$A$6,FALSE),10)),"NA"))) -> 560 | G24: =IF($A$8>1,"NA",IF(VLOOKUP($A$4&$C24&G$9,'Calc-HC2'!$A$6:$W$5561,$A$6,FALSE)="*","*",IF($A$8=1,(MROUND(VLOOKUP($A$4&$C24&G$9,'Calc-HC2'!$A$6:$W$5561,$A$6,FALSE),10)),"NA"))) -> 910 | H24: =IF($A$8>1,"NA",IF(VLOOKUP($A$4&$C24&H$9,'Calc-HC2'!$A$6:$W$5561,$A$6,FALSE)="*","*",IF($A$8=1,(MROUND(VLOOKUP($A$4&$C24&H$9,'Calc-HC2'!$A$6:$W$5561,$A$6,FALSE),10)),"NA"))) -> 1120 | I24: =IF($A$8>1,"NA",IF(VLOOKUP($A$4&$C24&I$9,'Calc-HC2'!$A$6:$W$5561,$A$6,FALSE)="*","*",IF($A$8=1,(MROUND(VLOOKUP($A$4&$C24&I$9,'Calc-HC2'!$A$6:$W$5561,$A$6,FALSE),10)),"NA"))) -> 3660
C25: Glasgow City | D25: =IF($A$8>1,"NA",IF(VLOOKUP($A$4&$C25&D$9,'Calc-HC2'!$A$6:$W$5561,$A$6,FALSE)="*","*",IF($A$8=1,(MROUND(VLOOKUP($A$4&$C25&D$9,'Calc-HC2'!$A$6:$W$5561,$A$6,FALSE),10)),"NA"))) -> 20 | E25: =IF($A$8>1,"NA",IF(VLOOKUP($A$4&$C25&E$9,'Calc-HC2'!$A$6:$W$5561,$A$6,FALSE)="*","*",IF($A$8=1,(MROUND(VLOOKUP($A$4&$C25&E$9,'Calc-HC2'!$A$6:$W$5561,$A$6,FALSE),10)),"NA"))) -> 270 | F25: =IF($A$8>1,"NA",IF(VLOOKUP($A$4&$C25&F$9,'Calc-HC2'!$A$6:$W$5561,$A$6,FALSE)="*","*",IF($A$8=1,(MROUND(VLOOKUP($A$4&$C25&F$9,'Calc-HC2'!$A$6:$W$5561,$A$6,FALSE),10)),"NA"))) -> 970 | G25: =IF($A$8>1,"NA",IF(VLOOKUP($A$4&$C25&G$9,'Calc-HC2'!$A$6:$W$5561,$A$6,FALSE)="*","*",IF($A$8=1,(MROUND(VLOOKUP($A$4&$C25&G$9,'Calc-HC2'!$A$6:$W$5561,$A$6,FALSE),10)),"NA"))) -> 2250 | H25: =IF($A$8>1,"NA",IF(VLOOKUP($A$4&$C25&H$9,'Calc-HC2'!$A$6:$W$5561,$A$6,FALSE)="*","*",IF($A$8=1,(MROUND(VLOOKUP($A$4&$C25&H$9,'Calc-HC2'!$A$6:$W$5561,$A$6,FALSE),10)),"NA"))) -> 2190 | I25: =IF($A$8>1,"NA",IF(VLOOKUP($A$4&$C25&I$9,'Calc-HC2'!$A$6:$W$5561,$A$6,FALSE)="*","*",IF($A$8=1,(MROUND(VLOOKUP($A$4&$C25&I$9,'Calc-HC2'!$A$6:$W$5561,$A$6,FALSE),10)),"NA"))) -> 5690
C26: Highland | D26: =IF($A$8>1,"NA",IF(VLOOKUP($A$4&$C26&D$9,'Calc-HC2'!$A$6:$W$5561,$A$6,FALSE)="*","*",IF($A$8=1,(MROUND(VLOOKUP($A$4&$C26&D$9,'Calc-HC2'!$A$6:$W$5561,$A$6,FALSE),10)),"NA"))) -> 0 | E26: =IF($A$8>1,"NA",IF(VLOOKUP($A$4&$C26&E$9,'Calc-HC2'!$A$6:$W$5561,$A$6,FALSE)="*","*",IF($A$8=1,(MROUND(VLOOKUP($A$4&$C26&E$9,'Calc-HC2'!$A$6:$W$5561,$A$6,FALSE),10)),"NA"))) -> 220 | F26: =IF($A$8>1,"NA",IF(VLOOKUP($A$4&$C26&F$9,'Calc-HC2'!$A$6:$W$5561,$A$6,FALSE)="*","*",IF($A$8=1,(MROUND(VLOOKUP($A$4&$C26&F$9,'Calc-HC2'!$A$6:$W$5561,$A$6,FALSE),10)),"NA"))) -> 240 | G26: =IF($A$8>1,"NA",IF(VLOOKUP($A$4&$C26&G$9,'Calc-HC2'!$A$6:$W$5561,$A$6,FALSE)="*","*",IF($A$8=1,(MROUND(VLOOKUP($A$4&$C26&G$9,'Calc-HC2'!$A$6:$W$5561,$A$6,FALSE),10)),"NA"))) -> 590 | H26: =IF($A$8>1,"NA",IF(VLOOKUP($A$4&$C26&H$9,'Calc-HC2'!$A$6:$W$5561,$A$6,FALSE)="*","*",IF($A$8=1,(MROUND(VLOOKUP($A$4&$C26&H$9,'Calc-HC2'!$A$6:$W$5561,$A$6,FALSE),10)),"NA"))) -> 780 | I26: =IF($A$8>1,"NA",IF(VLOOKUP($A$4&$C26&I$9,'Calc-HC2'!$A$6:$W$5561,$A$6,FALSE)="*","*",IF($A$8=1,(MROUND(VLOOKUP($A$4&$C26&I$9,'Calc-HC2'!$A$6:$W$5561,$A$6,FALSE),10)),"NA"))) -> 1820
C27: Inverclyde | D27: =IF($A$8>1,"NA",IF(VLOOKUP($A$4&$C27&D$9,'Calc-HC2'!$A$6:$W$5561,$A$6,FALSE)="*","*",IF($A$8=1,(MROUND(VLOOKUP($A$4&$C27&D$9,'Calc-HC2'!$A$6:$W$5561,$A$6,FALSE),10)),"NA"))) -> 0 | E27: =IF($A$8>1,"NA",IF(VLOOKUP($A$4&$C27&E$9,'Calc-HC2'!$A$6:$W$5561,$A$6,FALSE)="*","*",IF($A$8=1,(MROUND(VLOOKUP($A$4&$C27&E$9,'Calc-HC2'!$A$6:$W$5561,$A$6,FALSE),10)),"NA"))) -> 130 | F27: =IF($A$8>1,"NA",IF(VLOOKUP($A$4&$C27&F$9,'Calc-HC2'!$A$6:$W$5561,$A$6,FALSE)="*","*",IF($A$8=1,(MROUND(VLOOKUP($A$4&$C27&F$9,'Calc-HC2'!$A$6:$W$5561,$A$6,FALSE),10)),"NA"))) -> 220 | G27: =IF($A$8>1,"NA",IF(VLOOKUP($A$4&$C27&G$9,'Calc-HC2'!$A$6:$W$5561,$A$6,FALSE)="*","*",IF($A$8=1,(MROUND(VLOOKUP($A$4&$C27&G$9,'Calc-HC2'!$A$6:$W$5561,$A$6,FALSE),10)),"NA"))) -> 470 | H27: =IF($A$8>1,"NA",IF(VLOOKUP($A$4&$C27&H$9,'Calc-HC2'!$A$6:$W$5561,$A$6,FALSE)="*","*",IF($A$8=1,(MROUND(VLOOKUP($A$4&$C27&H$9,'Calc-HC2'!$A$6:$W$5561,$A$6,FALSE),10)),"NA"))) -> 460 | I27: =IF($A$8>1,"NA",IF(VLOOKUP($A$4&$C27&I$9,'Calc-HC2'!$A$6:$W$5561,$A$6,FALSE)="*","*",IF($A$8=1,(MROUND(VLOOKUP($A$4&$C27&I$9,'Calc-HC2'!$A$6:$W$5561,$A$6,FALSE),10)),"NA"))) -> 1270
C28: Midlothian | D28: =IF($A$8>1,"NA",IF(VLOOKUP($A$4&$C28&D$9,'Calc-HC2'!$A$6:$W$5561,$A$6,FALSE)="*","*",IF($A$8=1,(MROUND(VLOOKUP($A$4&$C28&D$9,'Calc-HC2'!$A$6:$W$5561,$A$6,FALSE),10)),"NA"))) -> 0 | E28: =IF($A$8>1,"NA",IF(VLOOKUP($A$4&$C28&E$9,'Calc-HC2'!$A$6:$W$5561,$A$6,FALSE)="*","*",IF($A$8=1,(MROUND(VLOOKUP($A$4&$C28&E$9,'Calc-HC2'!$A$6:$W$5561,$A$6,FALSE),10)),"NA"))) -> 200 | F28: =IF($A$8>1,"NA",IF(VLOOKUP($A$4&$C28&F$9,'Calc-HC2'!$A$6:$W$5561,$A$6,FALSE)="*","*",IF($A$8=1,(MROUND(VLOOKUP($A$4&$C28&F$9,'Calc-HC2'!$A$6:$W$5561,$A$6,FALSE),10)),"NA"))) -> 170 | G28: =IF($A$8>1,"NA",IF(VLOOKUP($A$4&$C28&G$9,'Calc-HC2'!$A$6:$W$5561,$A$6,FALSE)="*","*",IF($A$8=1,(MROUND(VLOOKUP($A$4&$C28&G$9,'Calc-HC2'!$A$6:$W$5561,$A$6,FALSE),10)),"NA"))) -> 330 | H28: =IF($A$8>1,"NA",IF(VLOOKUP($A$4&$C28&H$9,'Calc-HC2'!$A$6:$W$5561,$A$6,FALSE)="*","*",IF($A$8=1,(MROUND(VLOOKUP($A$4&$C28&H$9,'Calc-HC2'!$A$6:$W$5561,$A$6,FALSE),10)),"NA"))) -> 330 | I28: =IF($A$8>1,"NA",IF(VLOOKUP($A$4&$C28&I$9,'Calc-HC2'!$A$6:$W$5561,$A$6,FALSE)="*","*",IF($A$8=1,(MROUND(VLOOKUP($A$4&$C28&I$9,'Calc-HC2'!$A$6:$W$5561,$A$6,FALSE),10)),"NA"))) -> 1030
C29: Moray | D29: =IF($A$8>1,"NA",IF(VLOOKUP($A$4&$C29&D$9,'Calc-HC2'!$A$6:$W$5561,$A$6,FALSE)="*","*",IF($A$8=1,(MROUND(VLOOKUP($A$4&$C29&D$9,'Calc-HC2'!$A$6:$W$5561,$A$6,FALSE),10)),"NA"))) -> 0 | E29: =IF($A$8>1,"NA",IF(VLOOKUP($A$4&$C29&E$9,'Calc-HC2'!$A$6:$W$5561,$A$6,FALSE)="*","*",IF($A$8=1,(MROUND(VLOOKUP($A$4&$C29&E$9,'Calc-HC2'!$A$6:$W$5561,$A$6,FALSE),10)),"NA"))) -> 130 | F29: =IF($A$8>1,"NA",IF(VLOOKUP($A$4&$C29&F$9,'Calc-HC2'!$A$6:$W$5561,$A$6,FALSE)="*","*",IF($A$8=1,(MROUND(VLOOKUP($A$4&$C29&F$9,'Calc-HC2'!$A$6:$W$5561,$A$6,FALSE),10)),"NA"))) -> 130 | G29: =IF($A$8>1,"NA",IF(VLOOKUP($A$4&$C29&G$9,'Calc-HC2'!$A$6:$W$5561,$A$6,FALSE)="*","*",IF($A$8=1,(MROUND(VLOOKUP($A$4&$C29&G$9,'Calc-HC2'!$A$6:$W$5561,$A$6,FALSE),10)),"NA"))) -> 310 | H29: =IF($A$8>1,"NA",IF(VLOOKUP($A$4&$C29&H$9,'Calc-HC2'!$A$6:$W$5561,$A$6,FALSE)="*","*",IF($A$8=1,(MROUND(VLOOKUP($A$4&$C29&H$9,'Calc-HC2'!$A$6:$W$5561,$A$6,FALSE),10)),"NA"))) -> 370 | I29: =IF($A$8>1,"NA",IF(VLOOKUP($A$4&$C29&I$9,'Calc-HC2'!$A$6:$W$5561,$A$6,FALSE)="*","*",IF($A$8=1,(MROUND(VLOOKUP($A$4&$C29&I$9,'Calc-HC2'!$A$6:$W$5561,$A$6,FALSE),10)),"NA"))) -> 950
C30: North Ayrshire | D30: =IF($A$8>1,"NA",IF(VLOOKUP($A$4&$C30&D$9,'Calc-HC2'!$A$6:$W$5561,$A$6,FALSE)="*","*",IF($A$8=1,(MROUND(VLOOKUP($A$4&$C30&D$9,'Calc-HC2'!$A$6:$W$5561,$A$6,FALSE),10)),"NA"))) -> 0 | E30: =IF($A$8>1,"NA",IF(VLOOKUP($A$4&$C30&E$9,'Calc-HC2'!$A$6:$W$5561,$A$6,FALSE)="*","*",IF($A$8=1,(MROUND(VLOOKUP($A$4&$C30&E$9,'Calc-HC2'!$A$6:$W$5561,$A$6,FALSE),10)),"NA"))) -> 500 | F30: =IF($A$8>1,"NA",IF(VLOOKUP($A$4&$C30&F$9,'Calc-HC2'!$A$6:$W$5561,$A$6,FALSE)="*","*",IF($A$8=1,(MROUND(VLOOKUP($A$4&$C30&F$9,'Calc-HC2'!$A$6:$W$5561,$A$6,FALSE),10)),"NA"))) -> 340 | G30: =IF($A$8>1,"NA",IF(VLOOKUP($A$4&$C30&G$9,'Calc-HC2'!$A$6:$W$5561,$A$6,FALSE)="*","*",IF($A$8=1,(MROUND(VLOOKUP($A$4&$C30&G$9,'Calc-HC2'!$A$6:$W$5561,$A$6,FALSE),10)),"NA"))) -> 670 | H30: =IF($A$8>1,"NA",IF(VLOOKUP($A$4&$C30&H$9,'Calc-HC2'!$A$6:$W$5561,$A$6,FALSE)="*","*",IF($A$8=1,(MROUND(VLOOKUP($A$4&$C30&H$9,'Calc-HC2'!$A$6:$W$5561,$A$6,FALSE),10)),"NA"))) -> 610 | I30: =IF($A$8>1,"NA",IF(VLOOKUP($A$4&$C30&I$9,'Calc-HC2'!$A$6:$W$5561,$A$6,FALSE)="*","*",IF($A$8=1,(MROUND(VLOOKUP($A$4&$C30&I$9,'Calc-HC2'!$A$6:$W$5561,$A$6,FALSE),10)),"NA"))) -> 2120
C31: North Lanarkshire | D31: =IF($A$8>1,"NA",IF(VLOOKUP($A$4&$C31&D$9,'Calc-HC2'!$A$6:$W$5561,$A$6,FALSE)="*","*",IF($A$8=1,(MROUND(VLOOKUP($A$4&$C31&D$9,'Calc-HC2'!$A$6:$W$5561,$A$6,FALSE),10)),"NA"))) -> 30 | E31: =IF($A$8>1,"NA",IF(VLOOKUP($A$4&$C31&E$9,'Calc-HC2'!$A$6:$W$5561,$A$6,FALSE)="*","*",IF($A$8=1,(MROUND(VLOOKUP($A$4&$C31&E$9,'Calc-HC2'!$A$6:$W$5561,$A$6,FALSE),10)),"NA"))) -> 350 | F31: =IF($A$8>1,"NA",IF(VLOOKUP($A$4&$C31&F$9,'Calc-HC2'!$A$6:$W$5561,$A$6,FALSE)="*","*",IF($A$8=1,(MROUND(VLOOKUP($A$4&$C31&F$9,'Calc-HC2'!$A$6:$W$5561,$A$6,FALSE),10)),"NA"))) -> 620 | G31: =IF($A$8>1,"NA",IF(VLOOKUP($A$4&$C31&G$9,'Calc-HC2'!$A$6:$W$5561,$A$6,FALSE)="*","*",IF($A$8=1,(MROUND(VLOOKUP($A$4&$C31&G$9,'Calc-HC2'!$A$6:$W$5561,$A$6,FALSE),10)),"NA"))) -> 1370 | H31: =IF($A$8>1,"NA",IF(VLOOKUP($A$4&$C31&H$9,'Calc-HC2'!$A$6:$W$5561,$A$6,FALSE)="*","*",IF($A$8=1,(MROUND(VLOOKUP($A$4&$C31&H$9,'Calc-HC2'!$A$6:$W$5561,$A$6,FALSE),10)),"NA"))) -> 1180 | I31: =IF($A$8>1,"NA",IF(VLOOKUP($A$4&$C31&I$9,'Calc-HC2'!$A$6:$W$5561,$A$6,FALSE)="*","*",IF($A$8=1,(MROUND(VLOOKUP($A$4&$C31&I$9,'Calc-HC2'!$A$6:$W$5561,$A$6,FALSE),10)),"NA"))) -> 3540
C32: Orkney Islands | D32: =IF($A$8>1,"NA",IF(VLOOKUP($A$4&$C32&D$9,'Calc-HC2'!$A$6:$W$5561,$A$6,FALSE)="*","*",IF($A$8=1,(MROUND(VLOOKUP($A$4&$C32&D$9,'Calc-HC2'!$A$6:$W$5561,$A$6,FALSE),10)),"NA"))) -> 0 | E32: =IF($A$8>1,"NA",IF(VLOOKUP($A$4&$C32&E$9,'Calc-HC2'!$A$6:$W$5561,$A$6,FALSE)="*","*",IF($A$8=1,(MROUND(VLOOKUP($A$4&$C32&E$9,'Calc-HC2'!$A$6:$W$5561,$A$6,FALSE),10)),"NA"))) -> 20 | F32: =IF($A$8>1,"NA",IF(VLOOKUP($A$4&$C32&F$9,'Calc-HC2'!$A$6:$W$5561,$A$6,FALSE)="*","*",IF($A$8=1,(MROUND(VLOOKUP($A$4&$C32&F$9,'Calc-HC2'!$A$6:$W$5561,$A$6,FALSE),10)),"NA"))) -> 30 | G32: =IF($A$8>1,"NA",IF(VLOOKUP($A$4&$C32&G$9,'Calc-HC2'!$A$6:$W$5561,$A$6,FALSE)="*","*",IF($A$8=1,(MROUND(VLOOKUP($A$4&$C32&G$9,'Calc-HC2'!$A$6:$W$5561,$A$6,FALSE),10)),"NA"))) -> 70 | H32: =IF($A$8>1,"NA",IF(VLOOKUP($A$4&$C32&H$9,'Calc-HC2'!$A$6:$W$5561,$A$6,FALSE)="*","*",IF($A$8=1,(MROUND(VLOOKUP($A$4&$C32&H$9,'Calc-HC2'!$A$6:$W$5561,$A$6,FALSE),10)),"NA"))) -> 90 | I32: =IF($A$8>1,"NA",IF(VLOOKUP($A$4&$C32&I$9,'Calc-HC2'!$A$6:$W$5561,$A$6,FALSE)="*","*",IF($A$8=1,(MROUND(VLOOKUP($A$4&$C32&I$9,'Calc-HC2'!$A$6:$W$5561,$A$6,FALSE),10)),"NA"))) -> 200
C33: Perth & Kinross | D33: =IF($A$8>1,"NA",IF(VLOOKUP($A$4&$C33&D$9,'Calc-HC2'!$A$6:$W$5561,$A$6,FALSE)="*","*",IF($A$8=1,(MROUND(VLOOKUP($A$4&$C33&D$9,'Calc-HC2'!$A$6:$W$5561,$A$6,FALSE),10)),"NA"))) -> 10 | E33: =IF($A$8>1,"NA",IF(VLOOKUP($A$4&$C33&E$9,'Calc-HC2'!$A$6:$W$5561,$A$6,FALSE)="*","*",IF($A$8=1,(MROUND(VLOOKUP($A$4&$C33&E$9,'Calc-HC2'!$A$6:$W$5561,$A$6,FALSE),10)),"NA"))) -> 360 | F33: =IF($A$8>1,"NA",IF(VLOOKUP($A$4&$C33&F$9,'Calc-HC2'!$A$6:$W$5561,$A$6,FALSE)="*","*",IF($A$8=1,(MROUND(VLOOKUP($A$4&$C33&F$9,'Calc-HC2'!$A$6:$W$5561,$A$6,FALSE),10)),"NA"))) -> 200 | G33: =IF($A$8>1,"NA",IF(VLOOKUP($A$4&$C33&G$9,'Calc-HC2'!$A$6:$W$5561,$A$6,FALSE)="*","*",IF($A$8=1,(MROUND(VLOOKUP($A$4&$C33&G$9,'Calc-HC2'!$A$6:$W$5561,$A$6,FALSE),10)),"NA"))) -> 480 | H33: =IF($A$8>1,"NA",IF(VLOOKUP($A$4&$C33&H$9,'Calc-HC2'!$A$6:$W$5561,$A$6,FALSE)="*","*",IF($A$8=1,(MROUND(VLOOKUP($A$4&$C33&H$9,'Calc-HC2'!$A$6:$W$5561,$A$6,FALSE),10)),"NA"))) -> 720 | I33: =IF($A$8>1,"NA",IF(VLOOKUP($A$4&$C33&I$9,'Calc-HC2'!$A$6:$W$5561,$A$6,FALSE)="*","*",IF($A$8=1,(MROUND(VLOOKUP($A$4&$C33&I$9,'Calc-HC2'!$A$6:$W$5561,$A$6,FALSE),10)),"NA"))) -> 1750
C34: Renfrewshire | D34: =IF($A$8>1,"NA",IF(VLOOKUP($A$4&$C34&D$9,'Calc-HC2'!$A$6:$W$5561,$A$6,FALSE)="*","*",IF($A$8=1,(MROUND(VLOOKUP($A$4&$C34&D$9,'Calc-HC2'!$A$6:$W$5561,$A$6,FALSE),10)),"NA"))) -> 0 | E34: =IF($A$8>1,"NA",IF(VLOOKUP($A$4&$C34&E$9,'Calc-HC2'!$A$6:$W$5561,$A$6,FALSE)="*","*",IF($A$8=1,(MROUND(VLOOKUP($A$4&$C34&E$9,'Calc-HC2'!$A$6:$W$5561,$A$6,FALSE),10)),"NA"))) -> 490 | F34: =IF($A$8>1,"NA",IF(VLOOKUP($A$4&$C34&F$9,'Calc-HC2'!$A$6:$W$5561,$A$6,FALSE)="*","*",IF($A$8=1,(MROUND(VLOOKUP($A$4&$C34&F$9,'Calc-HC2'!$A$6:$W$5561,$A$6,FALSE),10)),"NA"))) -> 340 | G34: =IF($A$8>1,"NA",IF(VLOOKUP($A$4&$C34&G$9,'Calc-HC2'!$A$6:$W$5561,$A$6,FALSE)="*","*",IF($A$8=1,(MROUND(VLOOKUP($A$4&$C34&G$9,'Calc-HC2'!$A$6:$W$5561,$A$6,FALSE),10)),"NA"))) -> 630 | H34: =IF($A$8>1,"NA",IF(VLOOKUP($A$4&$C34&H$9,'Calc-HC2'!$A$6:$W$5561,$A$6,FALSE)="*","*",IF($A$8=1,(MROUND(VLOOKUP($A$4&$C34&H$9,'Calc-HC2'!$A$6:$W$5561,$A$6,FALSE),10)),"NA"))) -> 640 | I34: =IF($A$8>1,"NA",IF(VLOOKUP($A$4&$C34&I$9,'Calc-HC2'!$A$6:$W$5561,$A$6,FALSE)="*","*",IF($A$8=1,(MROUND(VLOOKUP($A$4&$C34&I$9,'Calc-HC2'!$A$6:$W$5561,$A$6,FALSE),10)),"NA"))) -> 2110
C35: Scottish Borders | D35: =IF($A$8>1,"NA",IF(VLOOKUP($A$4&$C35&D$9,'Calc-HC2'!$A$6:$W$5561,$A$6,FALSE)="*","*",IF($A$8=1,(MROUND(VLOOKUP($A$4&$C35&D$9,'Calc-HC2'!$A$6:$W$5561,$A$6,FALSE),10)),"NA"))) -> 10 | E35: =IF($A$8>1,"NA",IF(VLOOKUP($A$4&$C35&E$9,'Calc-HC2'!$A$6:$W$5561,$A$6,FALSE)="*","*",IF($A$8=1,(MROUND(VLOOKUP($A$4&$C35&E$9,'Calc-HC2'!$A$6:$W$5561,$A$6,FALSE),10)),"NA"))) -> 90 | F35: =IF($A$8>1,"NA",IF(VLOOKUP($A$4&$C35&F$9,'Calc-HC2'!$A$6:$W$5561,$A$6,FALSE)="*","*",IF($A$8=1,(MROUND(VLOOKUP($A$4&$C35&F$9,'Calc-HC2'!$A$6:$W$5561,$A$6,FALSE),10)),"NA"))) -> 160 | G35: =IF($A$8>1,"NA",IF(VLOOKUP($A$4&$C35&G$9,'Calc-HC2'!$A$6:$W$5561,$A$6,FALSE)="*","*",IF($A$8=1,(MROUND(VLOOKUP($A$4&$C35&G$9,'Calc-HC2'!$A$6:$W$5561,$A$6,FALSE),10)),"NA"))) -> 360 | H35: =IF($A$8>1,"NA",IF(VLOOKUP($A$4&$C35&H$9,'Calc-HC2'!$A$6:$W$5561,$A$6,FALSE)="*","*",IF($A$8=1,(MROUND(VLOOKUP($A$4&$C35&H$9,'Calc-HC2'!$A$6:$W$5561,$A$6,FALSE),10)),"NA"))) -> 580 | I35: =IF($A$8>1,"NA",IF(VLOOKUP($A$4&$C35&I$9,'Calc-HC2'!$A$6:$W$5561,$A$6,FALSE)="*","*",IF($A$8=1,(MROUND(VLOOKUP($A$4&$C35&I$9,'Calc-HC2'!$A$6:$W$5561,$A$6,FALSE),10)),"NA"))) -> 1190
C36: Shetland Islands | D36: =IF($A$8>1,"NA",IF(VLOOKUP($A$4&$C36&D$9,'Calc-HC2'!$A$6:$W$5561,$A$6,FALSE)="*","*",IF($A$8=1,(MROUND(VLOOKUP($A$4&$C36&D$9,'Calc-HC2'!$A$6:$W$5561,$A$6,FALSE),10)),"NA"))) -> 0 | E36: =IF($A$8>1,"NA",IF(VLOOKUP($A$4&$C36&E$9,'Calc-HC2'!$A$6:$W$5561,$A$6,FALSE)="*","*",IF($A$8=1,(MROUND(VLOOKUP($A$4&$C36&E$9,'Calc-HC2'!$A$6:$W$5561,$A$6,FALSE),10)),"NA"))) -> 20 | F36: =IF($A$8>1,"NA",IF(VLOOKUP($A$4&$C36&F$9,'Calc-HC2'!$A$6:$W$5561,$A$6,FALSE)="*","*",IF($A$8=1,(MROUND(VLOOKUP($A$4&$C36&F$9,'Calc-HC2'!$A$6:$W$5561,$A$6,FALSE),10)),"NA"))) -> 50 | G36: =IF($A$8>1,"NA",IF(VLOOKUP($A$4&$C36&G$9,'Calc-HC2'!$A$6:$W$5561,$A$6,FALSE)="*","*",IF($A$8=1,(MROUND(VLOOKUP($A$4&$C36&G$9,'Calc-HC2'!$A$6:$W$5561,$A$6,FALSE),10)),"NA"))) -> 100 | H36: =IF($A$8>1,"NA",IF(VLOOKUP($A$4&$C36&H$9,'Calc-HC2'!$A$6:$W$5561,$A$6,FALSE)="*","*",IF($A$8=1,(MROUND(VLOOKUP($A$4&$C36&H$9,'Calc-HC2'!$A$6:$W$5561,$A$6,FALSE),10)),"NA"))) -> 130 | I36: =IF($A$8>1,"NA",IF(VLOOKUP($A$4&$C36&I$9,'Calc-HC2'!$A$6:$W$5561,$A$6,FALSE)="*","*",IF($A$8=1,(MROUND(VLOOKUP($A$4&$C36&I$9,'Calc-HC2'!$A$6:$W$5561,$A$6,FALSE),10)),"NA"))) -> 300
C37: South Ayrshire | D37: =IF($A$8>1,"NA",IF(VLOOKUP($A$4&$C37&D$9,'Calc-HC2'!$A$6:$W$5561,$A$6,FALSE)="*","*",IF($A$8=1,(MROUND(VLOOKUP($A$4&$C37&D$9,'Calc-HC2'!$A$6:$W$5561,$A$6,FALSE),10)),"NA"))) -> 30 | E37: =IF($A$8>1,"NA",IF(VLOOKUP($A$4&$C37&E$9,'Calc-HC2'!$A$6:$W$5561,$A$6,FALSE)="*","*",IF($A$8=1,(MROUND(VLOOKUP($A$4&$C37&E$9,'Calc-HC2'!$A$6:$W$5561,$A$6,FALSE),10)),"NA"))) -> 390 | F37: =IF($A$8>1,"NA",IF(VLOOKUP($A$4&$C37&F$9,'Calc-HC2'!$A$6:$W$5561,$A$6,FALSE)="*","*",IF($A$8=1,(MROUND(VLOOKUP($A$4&$C37&F$9,'Calc-HC2'!$A$6:$W$5561,$A$6,FALSE),10)),"NA"))) -> 260 | G37: =IF($A$8>1,"NA",IF(VLOOKUP($A$4&$C37&G$9,'Calc-HC2'!$A$6:$W$5561,$A$6,FALSE)="*","*",IF($A$8=1,(MROUND(VLOOKUP($A$4&$C37&G$9,'Calc-HC2'!$A$6:$W$5561,$A$6,FALSE),10)),"NA"))) -> 510 | H37: =IF($A$8>1,"NA",IF(VLOOKUP($A$4&$C37&H$9,'Calc-HC2'!$A$6:$W$5561,$A$6,FALSE)="*","*",IF($A$8=1,(MROUND(VLOOKUP($A$4&$C37&H$9,'Calc-HC2'!$A$6:$W$5561,$A$6,FALSE),10)),"NA"))) -> 560 | I37: =IF($A$8>1,"NA",IF(VLOOKUP($A$4&$C37&I$9,'Calc-HC2'!$A$6:$W$5561,$A$6,FALSE)="*","*",IF($A$8=1,(MROUND(VLOOKUP($A$4&$C37&I$9,'Calc-HC2'!$A$6:$W$5561,$A$6,FALSE),10)),"NA"))) -> 1730
C38: South Lanarkshire | D38: =IF($A$8>1,"NA",IF(VLOOKUP($A$4&$C38&D$9,'Calc-HC2'!$A$6:$W$5561,$A$6,FALSE)="*","*",IF($A$8=1,(MROUND(VLOOKUP($A$4&$C38&D$9,'Calc-HC2'!$A$6:$W$5561,$A$6,FALSE),10)),"NA"))) -> 0 | E38: =IF($A$8>1,"NA",IF(VLOOKUP($A$4&$C38&E$9,'Calc-HC2'!$A$6:$W$5561,$A$6,FALSE)="*","*",IF($A$8=1,(MROUND(VLOOKUP($A$4&$C38&E$9,'Calc-HC2'!$A$6:$W$5561,$A$6,FALSE),10)),"NA"))) -> 620 | F38: =IF($A$8>1,"NA",IF(VLOOKUP($A$4&$C38&F$9,'Calc-HC2'!$A$6:$W$5561,$A$6,FALSE)="*","*",IF($A$8=1,(MROUND(VLOOKUP($A$4&$C38&F$9,'Calc-HC2'!$A$6:$W$5561,$A$6,FALSE),10)),"NA"))) -> 500 | G38: =IF($A$8>1,"NA",IF(VLOOKUP($A$4&$C38&G$9,'Calc-HC2'!$A$6:$W$5561,$A$6,FALSE)="*","*",IF($A$8=1,(MROUND(VLOOKUP($A$4&$C38&G$9,'Calc-HC2'!$A$6:$W$5561,$A$6,FALSE),10)),"NA"))) -> 1150 | H38: =IF($A$8>1,"NA",IF(VLOOKUP($A$4&$C38&H$9,'Calc-HC2'!$A$6:$W$5561,$A$6,FALSE)="*","*",IF($A$8=1,(MROUND(VLOOKUP($A$4&$C38&H$9,'Calc-HC2'!$A$6:$W$5561,$A$6,FALSE),10)),"NA"))) -> 1210 | I38: =IF($A$8>1,"NA",IF(VLOOKUP($A$4&$C38&I$9,'Calc-HC2'!$A$6:$W$5561,$A$6,FALSE)="*","*",IF($A$8=1,(MROUND(VLOOKUP($A$4&$C38&I$9,'Calc-HC2'!$A$6:$W$5561,$A$6,FALSE),10)),"NA"))) -> 3510
C39: Stirling | D39: =IF($A$8>1,"NA",IF(VLOOKUP($A$4&$C39&D$9,'Calc-HC2'!$A$6:$W$5561,$A$6,FALSE)="*","*",IF($A$8=1,(MROUND(VLOOKUP($A$4&$C39&D$9,'Calc-HC2'!$A$6:$W$5561,$A$6,FALSE),10)),"NA"))) -> 0 | E39: =IF($A$8>1,"NA",IF(VLOOKUP($A$4&$C39&E$9,'Calc-HC2'!$A$6:$W$5561,$A$6,FALSE)="*","*",IF($A$8=1,(MROUND(VLOOKUP($A$4&$C39&E$9,'Calc-HC2'!$A$6:$W$5561,$A$6,FALSE),10)),"NA"))) -> 370 | F39: =IF($A$8>1,"NA",IF(VLOOKUP($A$4&$C39&F$9,'Calc-HC2'!$A$6:$W$5561,$A$6,FALSE)="*","*",IF($A$8=1,(MROUND(VLOOKUP($A$4&$C39&F$9,'Calc-HC2'!$A$6:$W$5561,$A$6,FALSE),10)),"NA"))) -> 150 | G39: =IF($A$8>1,"NA",IF(VLOOKUP($A$4&$C39&G$9,'Calc-HC2'!$A$6:$W$5561,$A$6,FALSE)="*","*",IF($A$8=1,(MROUND(VLOOKUP($A$4&$C39&G$9,'Calc-HC2'!$A$6:$W$5561,$A$6,FALSE),10)),"NA"))) -> 330 | H39: =IF($A$8>1,"NA",IF(VLOOKUP($A$4&$C39&H$9,'Calc-HC2'!$A$6:$W$5561,$A$6,FALSE)="*","*",IF($A$8=1,(MROUND(VLOOKUP($A$4&$C39&H$9,'Calc-HC2'!$A$6:$W$5561,$A$6,FALSE),10)),"NA"))) -> 340 | I39: =IF($A$8>1,"NA",IF(VLOOKUP($A$4&$C39&I$9,'Calc-HC2'!$A$6:$W$5561,$A$6,FALSE)="*","*",IF($A$8=1,(MROUND(VLOOKUP($A$4&$C39&I$9,'Calc-HC2'!$A$6:$W$5561,$A$6,FALSE),10)),"NA"))) -> 1200
C40: West Dunbartonshire | D40: =IF($A$8>1,"NA",IF(VLOOKUP($A$4&$C40&D$9,'Calc-HC2'!$A$6:$W$5561,$A$6,FALSE)="*","*",IF($A$8=1,(MROUND(VLOOKUP($A$4&$C40&D$9,'Calc-HC2'!$A$6:$W$5561,$A$6,FALSE),10)),"NA"))) -> 0 | E40: =IF($A$8>1,"NA",IF(VLOOKUP($A$4&$C40&E$9,'Calc-HC2'!$A$6:$W$5561,$A$6,FALSE)="*","*",IF($A$8=1,(MROUND(VLOOKUP($A$4&$C40&E$9,'Calc-HC2'!$A$6:$W$5561,$A$6,FALSE),10)),"NA"))) -> 160 | F40: =IF($A$8>1,"NA",IF(VLOOKUP($A$4&$C40&F$9,'Calc-HC2'!$A$6:$W$5561,$A$6,FALSE)="*","*",IF($A$8=1,(MROUND(VLOOKUP($A$4&$C40&F$9,'Calc-HC2'!$A$6:$W$5561,$A$6,FALSE),10)),"NA"))) -> 290 | G40: =IF($A$8>1,"NA",IF(VLOOKUP($A$4&$C40&G$9,'Calc-HC2'!$A$6:$W$5561,$A$6,FALSE)="*","*",IF($A$8=1,(MROUND(VLOOKUP($A$4&$C40&G$9,'Calc-HC2'!$A$6:$W$5561,$A$6,FALSE),10)),"NA"))) -> 530 | H40: =IF($A$8>1,"NA",IF(VLOOKUP($A$4&$C40&H$9,'Calc-HC2'!$A$6:$W$5561,$A$6,FALSE)="*","*",IF($A$8=1,(MROUND(VLOOKUP($A$4&$C40&H$9,'Calc-HC2'!$A$6:$W$5561,$A$6,FALSE),10)),"NA"))) -> 510 | I40: =IF($A$8>1,"NA",IF(VLOOKUP($A$4&$C40&I$9,'Calc-HC2'!$A$6:$W$5561,$A$6,FALSE)="*","*",IF($A$8=1,(MROUND(VLOOKUP($A$4&$C40&I$9,'Calc-HC2'!$A$6:$W$5561,$A$6,FALSE),10)),"NA"))) -> 1480
C41: West Lothian | D41: =IF($A$8>1,"NA",IF(VLOOKUP($A$4&$C41&D$9,'Calc-HC2'!$A$6:$W$5561,$A$6,FALSE)="*","*",IF($A$8=1,(MROUND(VLOOKUP($A$4&$C41&D$9,'Calc-HC2'!$A$6:$W$5561,$A$6,FALSE),10)),"NA"))) -> 0 | E41: =IF($A$8>1,"NA",IF(VLOOKUP($A$4&$C41&E$9,'Calc-HC2'!$A$6:$W$5561,$A$6,FALSE)="*","*",IF($A$8=1,(MROUND(VLOOKUP($A$4&$C41&E$9,'Calc-HC2'!$A$6:$W$5561,$A$6,FALSE),10)),"NA"))) -> 520 | F41: =IF($A$8>1,"NA",IF(VLOOKUP($A$4&$C41&F$9,'Calc-HC2'!$A$6:$W$5561,$A$6,FALSE)="*","*",IF($A$8=1,(MROUND(VLOOKUP($A$4&$C41&F$9,'Calc-HC2'!$A$6:$W$5561,$A$6,FALSE),10)),"NA"))) -> 310 | G41: =IF($A$8>1,"NA",IF(VLOOKUP($A$4&$C41&G$9,'Calc-HC2'!$A$6:$W$5561,$A$6,FALSE)="*","*",IF($A$8=1,(MROUND(VLOOKUP($A$4&$C41&G$9,'Calc-HC2'!$A$6:$W$5561,$A$6,FALSE),10)),"NA"))) -> 510 | H41: =IF($A$8>1,"NA",IF(VLOOKUP($A$4&$C41&H$9,'Calc-HC2'!$A$6:$W$5561,$A$6,FALSE)="*","*",IF($A$8=1,(MROUND(VLOOKUP($A$4&$C41&H$9,'Calc-HC2'!$A$6:$W$5561,$A$6,FALSE),10)),"NA"))) -> 390 | I41: =IF($A$8>1,"NA",IF(VLOOKUP($A$4&$C41&I$9,'Calc-HC2'!$A$6:$W$5561,$A$6,FALSE)="*","*",IF($A$8=1,(MROUND(VLOOKUP($A$4&$C41&I$9,'Calc-HC2'!$A$6:$W$5561,$A$6,FALSE),10)),"NA"))) -> 1720
C42: Scotland | D42: =IF($A$8>1,"NA",IF(VLOOKUP($A$4&$C42&D$9,'Calc-HC2'!$A$6:$W$5561,$A$6,FALSE)="*","*",IF($A$8=1,(MROUND(VLOOKUP($A$4&$C42&D$9,'Calc-HC2'!$A$6:$W$5561,$A$6,FALSE),10)),"NA"))) -> 230 | E42: =IF($A$8>1,"NA",IF(VLOOKUP($A$4&$C42&E$9,'Calc-HC2'!$A$6:$W$5561,$A$6,FALSE)="*","*",IF($A$8=1,(MROUND(VLOOKUP($A$4&$C42&E$9,'Calc-HC2'!$A$6:$W$5561,$A$6,FALSE),10)),"NA"))) -> 10610 | F42: =IF($A$8>1,"NA",IF(VLOOKUP($A$4&$C42&F$9,'Calc-HC2'!$A$6:$W$5561,$A$6,FALSE)="*","*",IF($A$8=1,(MROUND(VLOOKUP($A$4&$C42&F$9,'Calc-HC2'!$A$6:$W$5561,$A$6,FALSE),10)),"NA"))) -> 8930 | G42: =IF($A$8>1,"NA",IF(VLOOKUP($A$4&$C42&G$9,'Calc-HC2'!$A$6:$W$5561,$A$6,FALSE)="*","*",IF($A$8=1,(MROUND(VLOOKUP($A$4&$C42&G$9,'Calc-HC2'!$A$6:$W$5561,$A$6,FALSE),10)),"NA"))) -> 18760 | H42: =IF($A$8>1,"NA",IF(VLOOKUP($A$4&$C42&H$9,'Calc-HC2'!$A$6:$W$5561,$A$6,FALSE)="*","*",IF($A$8=1,(MROUND(VLOOKUP($A$4&$C42&H$9,'Calc-HC2'!$A$6:$W$5561,$A$6,FALSE),10)),"NA"))) -> 21120 | I42: =IF($A$8>1,"NA",IF(VLOOKUP($A$4&$C42&I$9,'Calc-HC2'!$A$6:$W$5561,$A$6,FALSE)="*","*",IF($A$8=1,(MROUND(VLOOKUP($A$4&$C42&I$9,'Calc-HC2'!$A$6:$W$5561,$A$6,FALSE),10)),"NA"))) -> 59640
C44: Source: Home Care Census up to 2012, Social Care Survey from 2013
C46: Notes | D46: - some figures have been suppressed with a "*" to protect small numbers.
D47: - client group and further age breakdown not available at local authority level, due to small numbers.
D48: - a small number of cases have missing ages - therefore the figures for each age category may not add up exactly to the total.
D49: - figures rounded to the nearest 10.

Sheet Table5
B1: ="Distribution of home care hours received for "&A7& ", by Local Authority, "&A5 -> Distribution of home care hours received for all clients, by Local Authority, 2017
B2: Figures are for the March census week | L2: Main page
A3: 1
A4: 20 | C4: Select year | F4: Select age group (note that age group data is only available from 2005)
A5: =OFFSET(LKPs!H1,A4,0) -> 2017
A6: =OFFSET(LKPs!D20,A3,0) -> All
A7: =IF(A6 = "ALL","all clients","clients aged "&A6) -> all clients
A8: =IF(A6="All","",(A6)) ->  | D8: 19 | E8: 20 | F8: 21 | G8: 22 | H8: 23 | I8: 24 | J8: 25 | K8: 26 | L8: 11
C9: Local Authority | D9: 2 hours or less | F9: Between 2 and 4 hours | H9: Between 4 and 10 hours | J9: Greater than 10 hours | L9: Total clients
D10: No. of Clients | E10: % of total | F10: No. of Clients | G10: % of total | H10: No. of Clients | I10: % of total | J10: No. of Clients | K10: % of total
C11: Aberdeen City | D11: =IF(ISNA(VLOOKUP($A$5&$C11&$A$8,'Calc-HC1'!$B$6:$AR$1538,D$8,FALSE)),0,(MROUND(VLOOKUP($A$5&$C11&$A$8,'Calc-HC1'!$B$6:$AR$1538,D$8,FALSE),10))) -> 200 | E11: =IF(ISNA(VLOOKUP($A$5&$C11&$A$8,'Calc-HC1'!$B$6:$AR$1538,E$8,FALSE)),0,(VLOOKUP($A$5&$C11&$A$8,'Calc-HC1'!$B$6:$AR$1538,E$8,FALSE))) -> 0.1099887767 | F11: =IF(ISNA(VLOOKUP($A$5&$C11&$A$8,'Calc-HC1'!$B$6:$AR$1538,F$8,FALSE)),0,(MROUND(VLOOKUP($A$5&$C11&$A$8,'Calc-HC1'!$B$6:$AR$1538,F$8,FALSE),10))) -> 330 | G11: =IF(ISNA(VLOOKUP($A$5&$C11&$A$8,'Calc-HC1'!$B$6:$AR$1538,G$8,FALSE)),0,(VLOOKUP($A$5&$C11&$A$8,'Calc-HC1'!$B$6:$AR$1538,G$8,FALSE))) -> 0.1840628507 | H11: =IF(ISNA(VLOOKUP($A$5&$C11&$A$8,'Calc-HC1'!$B$6:$AR$1538,H$8,FALSE)),0,(MROUND(VLOOKUP($A$5&$C11&$A$8,'Calc-HC1'!$B$6:$AR$1538,H$8,FALSE),10))) -> 630 | I11: =IF(ISNA(VLOOKUP($A$5&$C11&$A$8,'Calc-HC1'!$B$6:$AR$1538,I$8,FALSE)),0,(VLOOKUP($A$5&$C11&$A$8,'Calc-HC1'!$B$6:$AR$1538,I$8,FALSE))) -> 0.3557800224 | J11: =IF(ISNA(VLOOKUP($A$5&$C11&$A$8,'Calc-HC1'!$B$6:$AR$1538,J$8,FALSE)),0,(MROUND(VLOOKUP($A$5&$C11&$A$8,'Calc-HC1'!$B$6:$AR$1538,J$8,FALSE),10))) -> 620 | K11: =IF(ISNA(VLOOKUP($A$5&$C11&$A$8,'Calc-HC1'!$B$6:$AR$1538,K$8,FALSE)),0,(VLOOKUP($A$5&$C11&$A$8,'Calc-HC1'!$B$6:$AR$1538,K$8,FALSE))) -> 0.3501683502 | L11: =IF(ISNA(VLOOKUP($A$5&$C11&$A$8,'Calc-HC1'!$B$6:$AR$1538,L$8,FALSE)),0,(MROUND(VLOOKUP($A$5&$C11&$A$8,'Calc-HC1'!$B$6:$AR$1538,L$8,FALSE),10))) -> 1780
C12: Aberdeenshire | D12: =IF(ISNA(VLOOKUP($A$5&$C12&$A$8,'Calc-HC1'!$B$6:$AR$1538,D$8,FALSE)),0,(MROUND(VLOOKUP($A$5&$C12&$A$8,'Calc-HC1'!$B$6:$AR$1538,D$8,FALSE),10))) -> 400 | E12: =IF(ISNA(VLOOKUP($A$5&$C12&$A$8,'Calc-HC1'!$B$6:$AR$1538,E$8,FALSE)),0,(VLOOKUP($A$5&$C12&$A$8,'Calc-HC1'!$B$6:$AR$1538,E$8,FALSE))) -> 0.175087108 | F12: =IF(ISNA(VLOOKUP($A$5&$C12&$A$8,'Calc-HC1'!$B$6:$AR$1538,F$8,FALSE)),0,(MROUND(VLOOKUP($A$5&$C12&$A$8,'Calc-HC1'!$B$6:$AR$1538,F$8,FALSE),10))) -> 420 | G12: =IF(ISNA(VLOOKUP($A$5&$C12&$A$8,'Calc-HC1'!$B$6:$AR$1538,G$8,FALSE)),0,(VLOOKUP($A$5&$C12&$A$8,'Calc-HC1'!$B$6:$AR$1538,G$8,FALSE))) -> 0.1829268293 | H12: =IF(ISNA(VLOOKUP($A$5&$C12&$A$8,'Calc-HC1'!$B$6:$AR$1538,H$8,FALSE)),0,(MROUND(VLOOKUP($A$5&$C12&$A$8,'Calc-HC1'!$B$6:$AR$1538,H$8,FALSE),10))) -> 680 | I12: =IF(ISNA(VLOOKUP($A$5&$C12&$A$8,'Calc-HC1'!$B$6:$AR$1538,I$8,FALSE)),0,(VLOOKUP($A$5&$C12&$A$8,'Calc-HC1'!$B$6:$AR$1538,I$8,FALSE))) -> 0.2957317073 | J12: =IF(ISNA(VLOOKUP($A$5&$C12&$A$8,'Calc-HC1'!$B$6:$AR$1538,J$8,FALSE)),0,(MROUND(VLOOKUP($A$5&$C12&$A$8,'Calc-HC1'!$B$6:$AR$1538,J$8,FALSE),10))) -> 800 | K12: =IF(ISNA(VLOOKUP($A$5&$C12&$A$8,'Calc-HC1'!$B$6:$AR$1538,K$8,FALSE)),0,(VLOOKUP($A$5&$C12&$A$8,'Calc-HC1'!$B$6:$AR$1538,K$8,FALSE))) -> 0.3462543554 | L12: =IF(ISNA(VLOOKUP($A$5&$C12&$A$8,'Calc-HC1'!$B$6:$AR$1538,L$8,FALSE)),0,(MROUND(VLOOKUP($A$5&$C12&$A$8,'Calc-HC1'!$B$6:$AR$1538,L$8,FALSE),10))) -> 2300
C13: Angus | D13: =IF(ISNA(VLOOKUP($A$5&$C13&$A$8,'Calc-HC1'!$B$6:$AR$1538,D$8,FALSE)),0,(MROUND(VLOOKUP($A$5&$C13&$A$8,'Calc-HC1'!$B$6:$AR$1538,D$8,FALSE),10))) -> 340 | E13: =IF(ISNA(VLOOKUP($A$5&$C13&$A$8,'Calc-HC1'!$B$6:$AR$1538,E$8,FALSE)),0,(VLOOKUP($A$5&$C13&$A$8,'Calc-HC1'!$B$6:$AR$1538,E$8,FALSE))) -> 0.2496318115 | F13: =IF(ISNA(VLOOKUP($A$5&$C13&$A$8,'Calc-HC1'!$B$6:$AR$1538,F$8,FALSE)),0,(MROUND(VLOOKUP($A$5&$C13&$A$8,'Calc-HC1'!$B$6:$AR$1538,F$8,FALSE),10))) -> 210 | G13: =IF(ISNA(VLOOKUP($A$5&$C13&$A$8,'Calc-HC1'!$B$6:$AR$1538,G$8,FALSE)),0,(VLOOKUP($A$5&$C13&$A$8,'Calc-HC1'!$B$6:$AR$1538,G$8,FALSE))) -> 0.1516936672 | H13: =IF(ISNA(VLOOKUP($A$5&$C13&$A$8,'Calc-HC1'!$B$6:$AR$1538,H$8,FALSE)),0,(MROUND(VLOOKUP($A$5&$C13&$A$8,'Calc-HC1'!$B$6:$AR$1538,H$8,FALSE),10))) -> 440 | I13: =IF(ISNA(VLOOKUP($A$5&$C13&$A$8,'Calc-HC1'!$B$6:$AR$1538,I$8,FALSE)),0,(VLOOKUP($A$5&$C13&$A$8,'Calc-HC1'!$B$6:$AR$1538,I$8,FALSE))) -> 0.3254786451 | J13: =IF(ISNA(VLOOKUP($A$5&$C13&$A$8,'Calc-HC1'!$B$6:$AR$1538,J$8,FALSE)),0,(MROUND(VLOOKUP($A$5&$C13&$A$8,'Calc-HC1'!$B$6:$AR$1538,J$8,FALSE),10))) -> 370 | K13: =IF(ISNA(VLOOKUP($A$5&$C13&$A$8,'Calc-HC1'!$B$6:$AR$1538,K$8,FALSE)),0,(VLOOKUP($A$5&$C13&$A$8,'Calc-HC1'!$B$6:$AR$1538,K$8,FALSE))) -> 0.2731958763 | L13: =IF(ISNA(VLOOKUP($A$5&$C13&$A$8,'Calc-HC1'!$B$6:$AR$1538,L$8,FALSE)),0,(MROUND(VLOOKUP($A$5&$C13&$A$8,'Calc-HC1'!$B$6:$AR$1538,L$8,FALSE),10))) -> 1360
C14: Argyll & Bute | D14: =IF(ISNA(VLOOKUP($A$5&$C14&$A$8,'Calc-HC1'!$B$6:$AR$1538,D$8,FALSE)),0,(MROUND(VLOOKUP($A$5&$C14&$A$8,'Calc-HC1'!$B$6:$AR$1538,D$8,FALSE),10))) -> 110 | E14: =IF(ISNA(VLOOKUP($A$5&$C14&$A$8,'Calc-HC1'!$B$6:$AR$1538,E$8,FALSE)),0,(VLOOKUP($A$5&$C14&$A$8,'Calc-HC1'!$B$6:$AR$1538,E$8,FALSE))) -> 0.1058052434 | F14: =IF(ISNA(VLOOKUP($A$5&$C14&$A$8,'Calc-HC1'!$B$6:$AR$1538,F$8,FALSE)),0,(MROUND(VLOOKUP($A$5&$C14&$A$8,'Calc-HC1'!$B$6:$AR$1538,F$8,FALSE),10))) -> 150 | G14: =IF(ISNA(VLOOKUP($A$5&$C14&$A$8,'Calc-HC1'!$B$6:$AR$1538,G$8,FALSE)),0,(VLOOKUP($A$5&$C14&$A$8,'Calc-HC1'!$B$6:$AR$1538,G$8,FALSE))) -> 0.1413857678 | H14: =IF(ISNA(VLOOKUP($A$5&$C14&$A$8,'Calc-HC1'!$B$6:$AR$1538,H$8,FALSE)),0,(MROUND(VLOOKUP($A$5&$C14&$A$8,'Calc-HC1'!$B$6:$AR$1538,H$8,FALSE),10))) -> 340 | I14: =IF(ISNA(VLOOKUP($A$5&$C14&$A$8,'Calc-HC1'!$B$6:$AR$1538,I$8,FALSE)),0,(VLOOKUP($A$5&$C14&$A$8,'Calc-HC1'!$B$6:$AR$1538,I$8,FALSE))) -> 0.3174157303 | J14: =IF(ISNA(VLOOKUP($A$5&$C14&$A$8,'Calc-HC1'!$B$6:$AR$1538,J$8,FALSE)),0,(MROUND(VLOOKUP($A$5&$C14&$A$8,'Calc-HC1'!$B$6:$AR$1538,J$8,FALSE),10))) -> 470 | K14: =IF(ISNA(VLOOKUP($A$5&$C14&$A$8,'Calc-HC1'!$B$6:$AR$1538,K$8,FALSE)),0,(VLOOKUP($A$5&$C14&$A$8,'Calc-HC1'!$B$6:$AR$1538,K$8,FALSE))) -> 0.4353932584 | L14: =IF(ISNA(VLOOKUP($A$5&$C14&$A$8,'Calc-HC1'!$B$6:$AR$1538,L$8,FALSE)),0,(MROUND(VLOOKUP($A$5&$C14&$A$8,'Calc-HC1'!$B$6:$AR$1538,L$8,FALSE),10))) -> 1070
C15: Clackmannanshire | D15: =IF(ISNA(VLOOKUP($A$5&$C15&$A$8,'Calc-HC1'!$B$6:$AR$1538,D$8,FALSE)),0,(MROUND(VLOOKUP($A$5&$C15&$A$8,'Calc-HC1'!$B$6:$AR$1538,D$8,FALSE),10))) -> 80 | E15: =IF(ISNA(VLOOKUP($A$5&$C15&$A$8,'Calc-HC1'!$B$6:$AR$1538,E$8,FALSE)),0,(VLOOKUP($A$5&$C15&$A$8,'Calc-HC1'!$B$6:$AR$1538,E$8,FALSE))) -> 0.1127819549 | F15: =IF(ISNA(VLOOKUP($A$5&$C15&$A$8,'Calc-HC1'!$B$6:$AR$1538,F$8,FALSE)),0,(MROUND(VLOOKUP($A$5&$C15&$A$8,'Calc-HC1'!$B$6:$AR$1538,F$8,FALSE),10))) -> 120 | G15: =IF(ISNA(VLOOKUP($A$5&$C15&$A$8,'Calc-HC1'!$B$6:$AR$1538,G$8,FALSE)),0,(VLOOKUP($A$5&$C15&$A$8,'Calc-HC1'!$B$6:$AR$1538,G$8,FALSE))) -> 0.1729323308 | H15: =IF(ISNA(VLOOKUP($A$5&$C15&$A$8,'Calc-HC1'!$B$6:$AR$1538,H$8,FALSE)),0,(MROUND(VLOOKUP($A$5&$C15&$A$8,'Calc-HC1'!$B$6:$AR$1538,H$8,FALSE),10))) -> 220 | I15: =IF(ISNA(VLOOKUP($A$5&$C15&$A$8,'Calc-HC1'!$B$6:$AR$1538,I$8,FALSE)),0,(VLOOKUP($A$5&$C15&$A$8,'Calc-HC1'!$B$6:$AR$1538,I$8,FALSE))) -> 0.3248120301 | J15: =IF(ISNA(VLOOKUP($A$5&$C15&$A$8,'Calc-HC1'!$B$6:$AR$1538,J$8,FALSE)),0,(MROUND(VLOOKUP($A$5&$C15&$A$8,'Calc-HC1'!$B$6:$AR$1538,J$8,FALSE),10))) -> 260 | K15: =IF(ISNA(VLOOKUP($A$5&$C15&$A$8,'Calc-HC1'!$B$6:$AR$1538,K$8,FALSE)),0,(VLOOKUP($A$5&$C15&$A$8,'Calc-HC1'!$B$6:$AR$1538,K$8,FALSE))) -> 0.3894736842 | L15: =IF(ISNA(VLOOKUP($A$5&$C15&$A$8,'Calc-HC1'!$B$6:$AR$1538,L$8,FALSE)),0,(MROUND(VLOOKUP($A$5&$C15&$A$8,'Calc-HC1'!$B$6:$AR$1538,L$8,FALSE),10))) -> 670
C16: Dumfries & Galloway | D16: =IF(ISNA(VLOOKUP($A$5&$C16&$A$8,'Calc-HC1'!$B$6:$AR$1538,D$8,FALSE)),0,(MROUND(VLOOKUP($A$5&$C16&$A$8,'Calc-HC1'!$B$6:$AR$1538,D$8,FALSE),10))) -> 270 | E16: =IF(ISNA(VLOOKUP($A$5&$C16&$A$8,'Calc-HC1'!$B$6:$AR$1538,E$8,FALSE)),0,(VLOOKUP($A$5&$C16&$A$8,'Calc-HC1'!$B$6:$AR$1538,E$8,FALSE))) -> 0.114213198 | F16: =IF(ISNA(VLOOKUP($A$5&$C16&$A$8,'Calc-HC1'!$B$6:$AR$1538,F$8,FALSE)),0,(MROUND(VLOOKUP($A$5&$C16&$A$8,'Calc-HC1'!$B$6:$AR$1538,F$8,FALSE),10))) -> 210 | G16: =IF(ISNA(VLOOKUP($A$5&$C16&$A$8,'Calc-HC1'!$B$6:$AR$1538,G$8,FALSE)),0,(VLOOKUP($A$5&$C16&$A$8,'Calc-HC1'!$B$6:$AR$1538,G$8,FALSE))) -> 0.08714043993 | H16: =IF(ISNA(VLOOKUP($A$5&$C16&$A$8,'Calc-HC1'!$B$6:$AR$1538,H$8,FALSE)),0,(MROUND(VLOOKUP($A$5&$C16&$A$8,'Calc-HC1'!$B$6:$AR$1538,H$8,FALSE),10))) -> 590 | I16: =IF(ISNA(VLOOKUP($A$5&$C16&$A$8,'Calc-HC1'!$B$6:$AR$1538,I$8,FALSE)),0,(VLOOKUP($A$5&$C16&$A$8,'Calc-HC1'!$B$6:$AR$1538,I$8,FALSE))) -> 0.2512690355 | J16: =IF(ISNA(VLOOKUP($A$5&$C16&$A$8,'Calc-HC1'!$B$6:$AR$1538,J$8,FALSE)),0,(MROUND(VLOOKUP($A$5&$C16&$A$8,'Calc-HC1'!$B$6:$AR$1538,J$8,FALSE),10))) -> 1290 | K16: =IF(ISNA(VLOOKUP($A$5&$C16&$A$8,'Calc-HC1'!$B$6:$AR$1538,K$8,FALSE)),0,(VLOOKUP($A$5&$C16&$A$8,'Calc-HC1'!$B$6:$AR$1538,K$8,FALSE))) -> 0.5473773266 | L16: =IF(ISNA(VLOOKUP($A$5&$C16&$A$8,'Calc-HC1'!$B$6:$AR$1538,L$8,FALSE)),0,(MROUND(VLOOKUP($A$5&$C16&$A$8,'Calc-HC1'!$B$6:$AR$1538,L$8,FALSE),10))) -> 2360
C17: Dundee City | D17: =IF(ISNA(VLOOKUP($A$5&$C17&$A$8,'Calc-HC1'!$B$6:$AR$1538,D$8,FALSE)),0,(MROUND(VLOOKUP($A$5&$C17&$A$8,'Calc-HC1'!$B$6:$AR$1538,D$8,FALSE),10))) -> 370 | E17: =IF(ISNA(VLOOKUP($A$5&$C17&$A$8,'Calc-HC1'!$B$6:$AR$1538,E$8,FALSE)),0,(VLOOKUP($A$5&$C17&$A$8,'Calc-HC1'!$B$6:$AR$1538,E$8,FALSE))) -> 0.1934134867 | F17: =IF(ISNA(VLOOKUP($A$5&$C17&$A$8,'Calc-HC1'!$B$6:$AR$1538,F$8,FALSE)),0,(MROUND(VLOOKUP($A$5&$C17&$A$8,'Calc-HC1'!$B$6:$AR$1538,F$8,FALSE),10))) -> 230 | G17: =IF(ISNA(VLOOKUP($A$5&$C17&$A$8,'Calc-HC1'!$B$6:$AR$1538,G$8,FALSE)),0,(VLOOKUP($A$5&$C17&$A$8,'Calc-HC1'!$B$6:$AR$1538,G$8,FALSE))) -> 0.1181390486 | H17: =IF(ISNA(VLOOKUP($A$5&$C17&$A$8,'Calc-HC1'!$B$6:$AR$1538,H$8,FALSE)),0,(MROUND(VLOOKUP($A$5&$C17&$A$8,'Calc-HC1'!$B$6:$AR$1538,H$8,FALSE),10))) -> 610 | I17: =IF(ISNA(VLOOKUP($A$5&$C17&$A$8,'Calc-HC1'!$B$6:$AR$1538,I$8,FALSE)),0,(VLOOKUP($A$5&$C17&$A$8,'Calc-HC1'!$B$6:$AR$1538,I$8,FALSE))) -> 0.3178254051 | J17: =IF(ISNA(VLOOKUP($A$5&$C17&$A$8,'Calc-HC1'!$B$6:$AR$1538,J$8,FALSE)),0,(MROUND(VLOOKUP($A$5&$C17&$A$8,'Calc-HC1'!$B$6:$AR$1538,J$8,FALSE),10))) -> 710 | K17: =IF(ISNA(VLOOKUP($A$5&$C17&$A$8,'Calc-HC1'!$B$6:$AR$1538,K$8,FALSE)),0,(VLOOKUP($A$5&$C17&$A$8,'Calc-HC1'!$B$6:$AR$1538,K$8,FALSE))) -> 0.3706220596 | L17: =IF(ISNA(VLOOKUP($A$5&$C17&$A$8,'Calc-HC1'!$B$6:$AR$1538,L$8,FALSE)),0,(MROUND(VLOOKUP($A$5&$C17&$A$8,'Calc-HC1'!$B$6:$AR$1538,L$8,FALSE),10))) -> 1910
C18: East Ayrshire | D18: =IF(ISNA(VLOOKUP($A$5&$C18&$A$8,'Calc-HC1'!$B$6:$AR$1538,D$8,FALSE)),0,(MROUND(VLOOKUP($A$5&$C18&$A$8,'Calc-HC1'!$B$6:$AR$1538,D$8,FALSE),10))) -> 180 | E18: =IF(ISNA(VLOOKUP($A$5&$C18&$A$8,'Calc-HC1'!$B$6:$AR$1538,E$8,FALSE)),0,(VLOOKUP($A$5&$C18&$A$8,'Calc-HC1'!$B$6:$AR$1538,E$8,FALSE))) -> 0.1042979943 | F18: =IF(ISNA(VLOOKUP($A$5&$C18&$A$8,'Calc-HC1'!$B$6:$AR$1538,F$8,FALSE)),0,(MROUND(VLOOKUP($A$5&$C18&$A$8,'Calc-HC1'!$B$6:$AR$1538,F$8,FALSE),10))) -> 350 | G18: =IF(ISNA(VLOOKUP($A$5&$C18&$A$8,'Calc-HC1'!$B$6:$AR$1538,G$8,FALSE)),0,(VLOOKUP($A$5&$C18&$A$8,'Calc-HC1'!$B$6:$AR$1538,G$8,FALSE))) -> 0.1994269341 | H18: =IF(ISNA(VLOOKUP($A$5&$C18&$A$8,'Calc-HC1'!$B$6:$AR$1538,H$8,FALSE)),0,(MROUND(VLOOKUP($A$5&$C18&$A$8,'Calc-HC1'!$B$6:$AR$1538,H$8,FALSE),10))) -> 780 | I18: =IF(ISNA(VLOOKUP($A$5&$C18&$A$8,'Calc-HC1'!$B$6:$AR$1538,I$8,FALSE)),0,(VLOOKUP($A$5&$C18&$A$8,'Calc-HC1'!$B$6:$AR$1538,I$8,FALSE))) -> 0.4441260745 | J18: =IF(ISNA(VLOOKUP($A$5&$C18&$A$8,'Calc-HC1'!$B$6:$AR$1538,J$8,FALSE)),0,(MROUND(VLOOKUP($A$5&$C18&$A$8,'Calc-HC1'!$B$6:$AR$1538,J$8,FALSE),10))) -> 440 | K18: =IF(ISNA(VLOOKUP($A$5&$C18&$A$8,'Calc-HC1'!$B$6:$AR$1538,K$8,FALSE)),0,(VLOOKUP($A$5&$C18&$A$8,'Calc-HC1'!$B$6:$AR$1538,K$8,FALSE))) -> 0.2521489971 | L18: =IF(ISNA(VLOOKUP($A$5&$C18&$A$8,'Calc-HC1'!$B$6:$AR$1538,L$8,FALSE)),0,(MROUND(VLOOKUP($A$5&$C18&$A$8,'Calc-HC1'!$B$6:$AR$1538,L$8,FALSE),10))) -> 1750
C19: East Dunbartonshire | D19: =IF(ISNA(VLOOKUP($A$5&$C19&$A$8,'Calc-HC1'!$B$6:$AR$1538,D$8,FALSE)),0,(MROUND(VLOOKUP($A$5&$C19&$A$8,'Calc-HC1'!$B$6:$AR$1538,D$8,FALSE),10))) -> 50 | E19: =IF(ISNA(VLOOKUP($A$5&$C19&$A$8,'Calc-HC1'!$B$6:$AR$1538,E$8,FALSE)),0,(VLOOKUP($A$5&$C19&$A$8,'Calc-HC1'!$B$6:$AR$1538,E$8,FALSE))) -> 0.04017857143 | F19: =IF(ISNA(VLOOKUP($A$5&$C19&$A$8,'Calc-HC1'!$B$6:$AR$1538,F$8,FALSE)),0,(MROUND(VLOOKUP($A$5&$C19&$A$8,'Calc-HC1'!$B$6:$AR$1538,F$8,FALSE),10))) -> 260 | G19: =IF(ISNA(VLOOKUP($A$5&$C19&$A$8,'Calc-HC1'!$B$6:$AR$1538,G$8,FALSE)),0,(VLOOKUP($A$5&$C19&$A$8,'Calc-HC1'!$B$6:$AR$1538,G$8,FALSE))) -> 0.1964285714 | H19: =IF(ISNA(VLOOKUP($A$5&$C19&$A$8,'Calc-HC1'!$B$6:$AR$1538,H$8,FALSE)),0,(MROUND(VLOOKUP($A$5&$C19&$A$8,'Calc-HC1'!$B$6:$AR$1538,H$8,FALSE),10))) -> 430 | I19: =IF(ISNA(VLOOKUP($A$5&$C19&$A$8,'Calc-HC1'!$B$6:$AR$1538,I$8,FALSE)),0,(VLOOKUP($A$5&$C19&$A$8,'Calc-HC1'!$B$6:$AR$1538,I$8,FALSE))) -> 0.318452381 | J19: =IF(ISNA(VLOOKUP($A$5&$C19&$A$8,'Calc-HC1'!$B$6:$AR$1538,J$8,FALSE)),0,(MROUND(VLOOKUP($A$5&$C19&$A$8,'Calc-HC1'!$B$6:$AR$1538,J$8,FALSE),10))) -> 600 | K19: =IF(ISNA(VLOOKUP($A$5&$C19&$A$8,'Calc-HC1'!$B$6:$AR$1538,K$8,FALSE)),0,(VLOOKUP($A$5&$C19&$A$8,'Calc-HC1'!$B$6:$AR$1538,K$8,FALSE))) -> 0.4449404762 | L19: =IF(ISNA(VLOOKUP($A$5&$C19&$A$8,'Calc-HC1'!$B$6:$AR$1538,L$8,FALSE)),0,(MROUND(VLOOKUP($A$5&$C19&$A$8,'Calc-HC1'!$B$6:$AR$1538,L$8,FALSE),10))) -> 1340
C20: East Lothian | D20: =IF(ISNA(VLOOKUP($A$5&$C20&$A$8,'Calc-HC1'!$B$6:$AR$1538,D$8,FALSE)),0,(MROUND(VLOOKUP($A$5&$C20&$A$8,'Calc-HC1'!$B$6:$AR$1538,D$8,FALSE),10))) -> 160 | E20: =IF(ISNA(VLOOKUP($A$5&$C20&$A$8,'Calc-HC1'!$B$6:$AR$1538,E$8,FALSE)),0,(VLOOKUP($A$5&$C20&$A$8,'Calc-HC1'!$B$6:$AR$1538,E$8,FALSE))) -> 0.1076388889 | F20: =IF(ISNA(VLOOKUP($A$5&$C20&$A$8,'Calc-HC1'!$B$6:$AR$1538,F$8,FALSE)),0,(MROUND(VLOOKUP($A$5&$C20&$A$8,'Calc-HC1'!$B$6:$AR$1538,F$8,FALSE),10))) -> 210 | G20: =IF(ISNA(VLOOKUP($A$5&$C20&$A$8,'Calc-HC1'!$B$6:$AR$1538,G$8,FALSE)),0,(VLOOKUP($A$5&$C20&$A$8,'Calc-HC1'!$B$6:$AR$1538,G$8,FALSE))) -> 0.14375 | H20: =IF(ISNA(VLOOKUP($A$5&$C20&$A$8,'Calc-HC1'!$B$6:$AR$1538,H$8,FALSE)),0,(MROUND(VLOOKUP($A$5&$C20&$A$8,'Calc-HC1'!$B$6:$AR$1538,H$8,FALSE),10))) -> 500 | I20: =IF(ISNA(VLOOKUP($A$5&$C20&$A$8,'Calc-HC1'!$B$6:$AR$1538,I$8,FALSE)),0,(VLOOKUP($A$5&$C20&$A$8,'Calc-HC1'!$B$6:$AR$1538,I$8,FALSE))) -> 0.3451388889 | J20: =IF(ISNA(VLOOKUP($A$5&$C20&$A$8,'Calc-HC1'!$B$6:$AR$1538,J$8,FALSE)),0,(MROUND(VLOOKUP($A$5&$C20&$A$8,'Calc-HC1'!$B$6:$AR$1538,J$8,FALSE),10))) -> 580 | K20: =IF(ISNA(VLOOKUP($A$5&$C20&$A$8,'Calc-HC1'!$B$6:$AR$1538,K$8,FALSE)),0,(VLOOKUP($A$5&$C20&$A$8,'Calc-HC1'!$B$6:$AR$1538,K$8,FALSE))) -> 0.4034722222 | L20: =IF(ISNA(VLOOKUP($A$5&$C20&$A$8,'Calc-HC1'!$B$6:$AR$1538,L$8,FALSE)),0,(MROUND(VLOOKUP($A$5&$C20&$A$8,'Calc-HC1'!$B$6:$AR$1538,L$8,FALSE),10))) -> 1440
C21: East Renfrewshire | D21: =IF(ISNA(VLOOKUP($A$5&$C21&$A$8,'Calc-HC1'!$B$6:$AR$1538,D$8,FALSE)),0,(MROUND(VLOOKUP($A$5&$C21&$A$8,'Calc-HC1'!$B$6:$AR$1538,D$8,FALSE),10))) -> 180 | E21: =IF(ISNA(VLOOKUP($A$5&$C21&$A$8,'Calc-HC1'!$B$6:$AR$1538,E$8,FALSE)),0,(VLOOKUP($A$5&$C21&$A$8,'Calc-HC1'!$B$6:$AR$1538,E$8,FALSE))) -> 0.1633027523 | F21: =IF(ISNA(VLOOKUP($A$5&$C21&$A$8,'Calc-HC1'!$B$6:$AR$1538,F$8,FALSE)),0,(MROUND(VLOOKUP($A$5&$C21&$A$8,'Calc-HC1'!$B$6:$AR$1538,F$8,FALSE),10))) -> 250 | G21: =IF(ISNA(VLOOKUP($A$5&$C21&$A$8,'Calc-HC1'!$B$6:$AR$1538,G$8,FALSE)),0,(VLOOKUP($A$5&$C21&$A$8,'Calc-HC1'!$B$6:$AR$1538,G$8,FALSE))) -> 0.228440367 | H21: =IF(ISNA(VLOOKUP($A$5&$C21&$A$8,'Calc-HC1'!$B$6:$AR$1538,H$8,FALSE)),0,(MROUND(VLOOKUP($A$5&$C21&$A$8,'Calc-HC1'!$B$6:$AR$1538,H$8,FALSE),10))) -> 450 | I21: =IF(ISNA(VLOOKUP($A$5&$C21&$A$8,'Calc-HC1'!$B$6:$AR$1538,I$8,FALSE)),0,(VLOOKUP($A$5&$C21&$A$8,'Calc-HC1'!$B$6:$AR$1538,I$8,FALSE))) -> 0.4119266055 | J21: =IF(ISNA(VLOOKUP($A$5&$C21&$A$8,'Calc-HC1'!$B$6:$AR$1538,J$8,FALSE)),0,(MROUND(VLOOKUP($A$5&$C21&$A$8,'Calc-HC1'!$B$6:$AR$1538,J$8,FALSE),10))) -> 210 | K21: =IF(ISNA(VLOOKUP($A$5&$C21&$A$8,'Calc-HC1'!$B$6:$AR$1538,K$8,FALSE)),0,(VLOOKUP($A$5&$C21&$A$8,'Calc-HC1'!$B$6:$AR$1538,K$8,FALSE))) -> 0.1963302752 | L21: =IF(ISNA(VLOOKUP($A$5&$C21&$A$8,'Calc-HC1'!$B$6:$AR$1538,L$8,FALSE)),0,(MROUND(VLOOKUP($A$5&$C21&$A$8,'Calc-HC1'!$B$6:$AR$1538,L$8,FALSE),10))) -> 1090
C22: Edinburgh, City of | D22: =IF(ISNA(VLOOKUP($A$5&$C22&$A$8,'Calc-HC1'!$B$6:$AR$1538,D$8,FALSE)),0,(MROUND(VLOOKUP($A$5&$C22&$A$8,'Calc-HC1'!$B$6:$AR$1538,D$8,FALSE),10))) -> 390 | E22: =IF(ISNA(VLOOKUP($A$5&$C22&$A$8,'Calc-HC1'!$B$6:$AR$1538,E$8,FALSE)),0,(VLOOKUP($A$5&$C22&$A$8,'Calc-HC1'!$B$6:$AR$1538,E$8,FALSE))) -> 0.08574585635 | F22: =IF(ISNA(VLOOKUP($A$5&$C22&$A$8,'Calc-HC1'!$B$6:$AR$1538,F$8,FALSE)),0,(MROUND(VLOOKUP($A$5&$C22&$A$8,'Calc-HC1'!$B$6:$AR$1538,F$8,FALSE),10))) -> 660 | G22: =IF(ISNA(VLOOKUP($A$5&$C22&$A$8,'Calc-HC1'!$B$6:$AR$1538,G$8,FALSE)),0,(VLOOKUP($A$5&$C22&$A$8,'Calc-HC1'!$B$6:$AR$1538,G$8,FALSE))) -> 0.1460773481 | H22: =IF(ISNA(VLOOKUP($A$5&$C22&$A$8,'Calc-HC1'!$B$6:$AR$1538,H$8,FALSE)),0,(MROUND(VLOOKUP($A$5&$C22&$A$8,'Calc-HC1'!$B$6:$AR$1538,H$8,FALSE),10))) -> 1330 | I22: =IF(ISNA(VLOOKUP($A$5&$C22&$A$8,'Calc-HC1'!$B$6:$AR$1538,I$8,FALSE)),0,(VLOOKUP($A$5&$C22&$A$8,'Calc-HC1'!$B$6:$AR$1538,I$8,FALSE))) -> 0.293038674 | J22: =IF(ISNA(VLOOKUP($A$5&$C22&$A$8,'Calc-HC1'!$B$6:$AR$1538,J$8,FALSE)),0,(MROUND(VLOOKUP($A$5&$C22&$A$8,'Calc-HC1'!$B$6:$AR$1538,J$8,FALSE),10))) -> 2150 | K22: =IF(ISNA(VLOOKUP($A$5&$C22&$A$8,'Calc-HC1'!$B$6:$AR$1538,K$8,FALSE)),0,(VLOOKUP($A$5&$C22&$A$8,'Calc-HC1'!$B$6:$AR$1538,K$8,FALSE))) -> 0.4751381215 | L22: =IF(ISNA(VLOOKUP($A$5&$C22&$A$8,'Calc-HC1'!$B$6:$AR$1538,L$8,FALSE)),0,(MROUND(VLOOKUP($A$5&$C22&$A$8,'Calc-HC1'!$B$6:$AR$1538,L$8,FALSE),10))) -> 4530
C23: Eilean Siar | D23: =IF(ISNA(VLOOKUP($A$5&$C23&$A$8,'Calc-HC1'!$B$6:$AR$1538,D$8,FALSE)),0,(MROUND(VLOOKUP($A$5&$C23&$A$8,'Calc-HC1'!$B$6:$AR$1538,D$8,FALSE),10))) -> 90 | E23: =IF(ISNA(VLOOKUP($A$5&$C23&$A$8,'Calc-HC1'!$B$6:$AR$1538,E$8,FALSE)),0,(VLOOKUP($A$5&$C23&$A$8,'Calc-HC1'!$B$6:$AR$1538,E$8,FALSE))) -> 0.2182741117 | F23: =IF(ISNA(VLOOKUP($A$5&$C23&$A$8,'Calc-HC1'!$B$6:$AR$1538,F$8,FALSE)),0,(MROUND(VLOOKUP($A$5&$C23&$A$8,'Calc-HC1'!$B$6:$AR$1538,F$8,FALSE),10))) -> 100 | G23: =IF(ISNA(VLOOKUP($A$5&$C23&$A$8,'Calc-HC1'!$B$6:$AR$1538,G$8,FALSE)),0,(VLOOKUP($A$5&$C23&$A$8,'Calc-HC1'!$B$6:$AR$1538,G$8,FALSE))) -> 0.2436548223 | H23: =IF(ISNA(VLOOKUP($A$5&$C23&$A$8,'Calc-HC1'!$B$6:$AR$1538,H$8,FALSE)),0,(MROUND(VLOOKUP($A$5&$C23&$A$8,'Calc-HC1'!$B$6:$AR$1538,H$8,FALSE),10))) -> 130 | I23: =IF(ISNA(VLOOKUP($A$5&$C23&$A$8,'Calc-HC1'!$B$6:$AR$1538,I$8,FALSE)),0,(VLOOKUP($A$5&$C23&$A$8,'Calc-HC1'!$B$6:$AR$1538,I$8,FALSE))) -> 0.3350253807 | J23: =IF(ISNA(VLOOKUP($A$5&$C23&$A$8,'Calc-HC1'!$B$6:$AR$1538,J$8,FALSE)),0,(MROUND(VLOOKUP($A$5&$C23&$A$8,'Calc-HC1'!$B$6:$AR$1538,J$8,FALSE),10))) -> 80 | K23: =IF(ISNA(VLOOKUP($A$5&$C23&$A$8,'Calc-HC1'!$B$6:$AR$1538,K$8,FALSE)),0,(VLOOKUP($A$5&$C23&$A$8,'Calc-HC1'!$B$6:$AR$1538,K$8,FALSE))) -> 0.2030456853 | L23: =IF(ISNA(VLOOKUP($A$5&$C23&$A$8,'Calc-HC1'!$B$6:$AR$1538,L$8,FALSE)),0,(MROUND(VLOOKUP($A$5&$C23&$A$8,'Calc-HC1'!$B$6:$AR$1538,L$8,FALSE),10))) -> 390
C24: Falkirk | D24: =IF(ISNA(VLOOKUP($A$5&$C24&$A$8,'Calc-HC1'!$B$6:$AR$1538,D$8,FALSE)),0,(MROUND(VLOOKUP($A$5&$C24&$A$8,'Calc-HC1'!$B$6:$AR$1538,D$8,FALSE),10))) -> 320 | E24: =IF(ISNA(VLOOKUP($A$5&$C24&$A$8,'Calc-HC1'!$B$6:$AR$1538,E$8,FALSE)),0,(VLOOKUP($A$5&$C24&$A$8,'Calc-HC1'!$B$6:$AR$1538,E$8,FALSE))) -> 0.1342534504 | F24: =IF(ISNA(VLOOKUP($A$5&$C24&$A$8,'Calc-HC1'!$B$6:$AR$1538,F$8,FALSE)),0,(MROUND(VLOOKUP($A$5&$C24&$A$8,'Calc-HC1'!$B$6:$AR$1538,F$8,FALSE),10))) -> 480 | G24: =IF(ISNA(VLOOKUP($A$5&$C24&$A$8,'Calc-HC1'!$B$6:$AR$1538,G$8,FALSE)),0,(VLOOKUP($A$5&$C24&$A$8,'Calc-HC1'!$B$6:$AR$1538,G$8,FALSE))) -> 0.2020075282 | H24: =IF(ISNA(VLOOKUP($A$5&$C24&$A$8,'Calc-HC1'!$B$6:$AR$1538,H$8,FALSE)),0,(MROUND(VLOOKUP($A$5&$C24&$A$8,'Calc-HC1'!$B$6:$AR$1538,H$8,FALSE),10))) -> 990 | I24: =IF(ISNA(VLOOKUP($A$5&$C24&$A$8,'Calc-HC1'!$B$6:$AR$1538,I$8,FALSE)),0,(VLOOKUP($A$5&$C24&$A$8,'Calc-HC1'!$B$6:$AR$1538,I$8,FALSE))) -> 0.4157256378 | J24: =IF(ISNA(VLOOKUP($A$5&$C24&$A$8,'Calc-HC1'!$B$6:$AR$1538,J$8,FALSE)),0,(MROUND(VLOOKUP($A$5&$C24&$A$8,'Calc-HC1'!$B$6:$AR$1538,J$8,FALSE),10))) -> 590 | K24: =IF(ISNA(VLOOKUP($A$5&$C24&$A$8,'Calc-HC1'!$B$6:$AR$1538,K$8,FALSE)),0,(VLOOKUP($A$5&$C24&$A$8,'Calc-HC1'!$B$6:$AR$1538,K$8,FALSE))) -> 0.2480133835 | L24: =IF(ISNA(VLOOKUP($A$5&$C24&$A$8,'Calc-HC1'!$B$6:$AR$1538,L$8,FALSE)),0,(MROUND(VLOOKUP($A$5&$C24&$A$8,'Calc-HC1'!$B$6:$AR$1538,L$8,FALSE),10))) -> 2390
C25: Fife | D25: =IF(ISNA(VLOOKUP($A$5&$C25&$A$8,'Calc-HC1'!$B$6:$AR$1538,D$8,FALSE)),0,(MROUND(VLOOKUP($A$5&$C25&$A$8,'Calc-HC1'!$B$6:$AR$1538,D$8,FALSE),10))) -> 310 | E25: =IF(ISNA(VLOOKUP($A$5&$C25&$A$8,'Calc-HC1'!$B$6:$AR$1538,E$8,FALSE)),0,(VLOOKUP($A$5&$C25&$A$8,'Calc-HC1'!$B$6:$AR$1538,E$8,FALSE))) -> 0.08394859174 | F25: =IF(ISNA(VLOOKUP($A$5&$C25&$A$8,'Calc-HC1'!$B$6:$AR$1538,F$8,FALSE)),0,(MROUND(VLOOKUP($A$5&$C25&$A$8,'Calc-HC1'!$B$6:$AR$1538,F$8,FALSE),10))) -> 630 | G25: =IF(ISNA(VLOOKUP($A$5&$C25&$A$8,'Calc-HC1'!$B$6:$AR$1538,G$8,FALSE)),0,(VLOOKUP($A$5&$C25&$A$8,'Calc-HC1'!$B$6:$AR$1538,G$8,FALSE))) -> 0.1728192508 | H25: =IF(ISNA(VLOOKUP($A$5&$C25&$A$8,'Calc-HC1'!$B$6:$AR$1538,H$8,FALSE)),0,(MROUND(VLOOKUP($A$5&$C25&$A$8,'Calc-HC1'!$B$6:$AR$1538,H$8,FALSE),10))) -> 1180 | I25: =IF(ISNA(VLOOKUP($A$5&$C25&$A$8,'Calc-HC1'!$B$6:$AR$1538,I$8,FALSE)),0,(VLOOKUP($A$5&$C25&$A$8,'Calc-HC1'!$B$6:$AR$1538,I$8,FALSE))) -> 0.323762647 | J25: =IF(ISNA(VLOOKUP($A$5&$C25&$A$8,'Calc-HC1'!$B$6:$AR$1538,J$8,FALSE)),0,(MROUND(VLOOKUP($A$5&$C25&$A$8,'Calc-HC1'!$B$6:$AR$1538,J$8,FALSE),10))) -> 1530 | K25: =IF(ISNA(VLOOKUP($A$5&$C25&$A$8,'Calc-HC1'!$B$6:$AR$1538,K$8,FALSE)),0,(VLOOKUP($A$5&$C25&$A$8,'Calc-HC1'!$B$6:$AR$1538,K$8,FALSE))) -> 0.4194695105 | L25: =IF(ISNA(VLOOKUP($A$5&$C25&$A$8,'Calc-HC1'!$B$6:$AR$1538,L$8,FALSE)),0,(MROUND(VLOOKUP($A$5&$C25&$A$8,'Calc-HC1'!$B$6:$AR$1538,L$8,FALSE),10))) -> 3660
C26: Glasgow City | D26: =IF(ISNA(VLOOKUP($A$5&$C26&$A$8,'Calc-HC1'!$B$6:$AR$1538,D$8,FALSE)),0,(MROUND(VLOOKUP($A$5&$C26&$A$8,'Calc-HC1'!$B$6:$AR$1538,D$8,FALSE),10))) -> 620 | E26: =IF(ISNA(VLOOKUP($A$5&$C26&$A$8,'Calc-HC1'!$B$6:$AR$1538,E$8,FALSE)),0,(VLOOKUP($A$5&$C26&$A$8,'Calc-HC1'!$B$6:$AR$1538,E$8,FALSE))) -> 0.1083787107 | F26: =IF(ISNA(VLOOKUP($A$5&$C26&$A$8,'Calc-HC1'!$B$6:$AR$1538,F$8,FALSE)),0,(MROUND(VLOOKUP($A$5&$C26&$A$8,'Calc-HC1'!$B$6:$AR$1538,F$8,FALSE),10))) -> 960 | G26: =IF(ISNA(VLOOKUP($A$5&$C26&$A$8,'Calc-HC1'!$B$6:$AR$1538,G$8,FALSE)),0,(VLOOKUP($A$5&$C26&$A$8,'Calc-HC1'!$B$6:$AR$1538,G$8,FALSE))) -> 0.1688037941 | H26: =IF(ISNA(VLOOKUP($A$5&$C26&$A$8,'Calc-HC1'!$B$6:$AR$1538,H$8,FALSE)),0,(MROUND(VLOOKUP($A$5&$C26&$A$8,'Calc-HC1'!$B$6:$AR$1538,H$8,FALSE),10))) -> 1640 | I26: =IF(ISNA(VLOOKUP($A$5&$C26&$A$8,'Calc-HC1'!$B$6:$AR$1538,I$8,FALSE)),0,(VLOOKUP($A$5&$C26&$A$8,'Calc-HC1'!$B$6:$AR$1538,I$8,FALSE))) -> 0.2873704549 | J26: =IF(ISNA(VLOOKUP($A$5&$C26&$A$8,'Calc-HC1'!$B$6:$AR$1538,J$8,FALSE)),0,(MROUND(VLOOKUP($A$5&$C26&$A$8,'Calc-HC1'!$B$6:$AR$1538,J$8,FALSE),10))) -> 2480 | K26: =IF(ISNA(VLOOKUP($A$5&$C26&$A$8,'Calc-HC1'!$B$6:$AR$1538,K$8,FALSE)),0,(VLOOKUP($A$5&$C26&$A$8,'Calc-HC1'!$B$6:$AR$1538,K$8,FALSE))) -> 0.4354470402 | L26: =IF(ISNA(VLOOKUP($A$5&$C26&$A$8,'Calc-HC1'!$B$6:$AR$1538,L$8,FALSE)),0,(MROUND(VLOOKUP($A$5&$C26&$A$8,'Calc-HC1'!$B$6:$AR$1538,L$8,FALSE),10))) -> 5690
C27: Highland | D27: =IF(ISNA(VLOOKUP($A$5&$C27&$A$8,'Calc-HC1'!$B$6:$AR$1538,D$8,FALSE)),0,(MROUND(VLOOKUP($A$5&$C27&$A$8,'Calc-HC1'!$B$6:$AR$1538,D$8,FALSE),10))) -> 300 | E27: =IF(ISNA(VLOOKUP($A$5&$C27&$A$8,'Calc-HC1'!$B$6:$AR$1538,E$8,FALSE)),0,(VLOOKUP($A$5&$C27&$A$8,'Calc-HC1'!$B$6:$AR$1538,E$8,FALSE))) -> 0.1655665567 | F27: =IF(ISNA(VLOOKUP($A$5&$C27&$A$8,'Calc-HC1'!$B$6:$AR$1538,F$8,FALSE)),0,(MROUND(VLOOKUP($A$5&$C27&$A$8,'Calc-HC1'!$B$6:$AR$1538,F$8,FALSE),10))) -> 370 | G27: =IF(ISNA(VLOOKUP($A$5&$C27&$A$8,'Calc-HC1'!$B$6:$AR$1538,G$8,FALSE)),0,(VLOOKUP($A$5&$C27&$A$8,'Calc-HC1'!$B$6:$AR$1538,G$8,FALSE))) -> 0.202970297 | H27: =IF(ISNA(VLOOKUP($A$5&$C27&$A$8,'Calc-HC1'!$B$6:$AR$1538,H$8,FALSE)),0,(MROUND(VLOOKUP($A$5&$C27&$A$8,'Calc-HC1'!$B$6:$AR$1538,H$8,FALSE),10))) -> 590 | I27: =IF(ISNA(VLOOKUP($A$5&$C27&$A$8,'Calc-HC1'!$B$6:$AR$1538,I$8,FALSE)),0,(VLOOKUP($A$5&$C27&$A$8,'Calc-HC1'!$B$6:$AR$1538,I$8,FALSE))) -> 0.3228822882 | J27: =IF(ISNA(VLOOKUP($A$5&$C27&$A$8,'Calc-HC1'!$B$6:$AR$1538,J$8,FALSE)),0,(MROUND(VLOOKUP($A$5&$C27&$A$8,'Calc-HC1'!$B$6:$AR$1538,J$8,FALSE),10))) -> 560 | K27: =IF(ISNA(VLOOKUP($A$5&$C27&$A$8,'Calc-HC1'!$B$6:$AR$1538,K$8,FALSE)),0,(VLOOKUP($A$5&$C27&$A$8,'Calc-HC1'!$B$6:$AR$1538,K$8,FALSE))) -> 0.3085808581 | L27: =IF(ISNA(VLOOKUP($A$5&$C27&$A$8,'Calc-HC1'!$B$6:$AR$1538,L$8,FALSE)),0,(MROUND(VLOOKUP($A$5&$C27&$A$8,'Calc-HC1'!$B$6:$AR$1538,L$8,FALSE),10))) -> 1820
C28: Inverclyde | D28: =IF(ISNA(VLOOKUP($A$5&$C28&$A$8,'Calc-HC1'!$B$6:$AR$1538,D$8,FALSE)),0,(MROUND(VLOOKUP($A$5&$C28&$A$8,'Calc-HC1'!$B$6:$AR$1538,D$8,FALSE),10))) -> 310 | E28: =IF(ISNA(VLOOKUP($A$5&$C28&$A$8,'Calc-HC1'!$B$6:$AR$1538,E$8,FALSE)),0,(VLOOKUP($A$5&$C28&$A$8,'Calc-HC1'!$B$6:$AR$1538,E$8,FALSE))) -> 0.2443047918 | F28: =IF(ISNA(VLOOKUP($A$5&$C28&$A$8,'Calc-HC1'!$B$6:$AR$1538,F$8,FALSE)),0,(MROUND(VLOOKUP($A$5&$C28&$A$8,'Calc-HC1'!$B$6:$AR$1538,F$8,FALSE),10))) -> 250 | G28: =IF(ISNA(VLOOKUP($A$5&$C28&$A$8,'Calc-HC1'!$B$6:$AR$1538,G$8,FALSE)),0,(VLOOKUP($A$5&$C28&$A$8,'Calc-HC1'!$B$6:$AR$1538,G$8,FALSE))) -> 0.1971720346 | H28: =IF(ISNA(VLOOKUP($A$5&$C28&$A$8,'Calc-HC1'!$B$6:$AR$1538,H$8,FALSE)),0,(MROUND(VLOOKUP($A$5&$C28&$A$8,'Calc-HC1'!$B$6:$AR$1538,H$8,FALSE),10))) -> 440 | I28: =IF(ISNA(VLOOKUP($A$5&$C28&$A$8,'Calc-HC1'!$B$6:$AR$1538,I$8,FALSE)),0,(VLOOKUP($A$5&$C28&$A$8,'Calc-HC1'!$B$6:$AR$1538,I$8,FALSE))) -> 0.3472113119 | J28: =IF(ISNA(VLOOKUP($A$5&$C28&$A$8,'Calc-HC1'!$B$6:$AR$1538,J$8,FALSE)),0,(MROUND(VLOOKUP($A$5&$C28&$A$8,'Calc-HC1'!$B$6:$AR$1538,J$8,FALSE),10))) -> 270 | K28: =IF(ISNA(VLOOKUP($A$5&$C28&$A$8,'Calc-HC1'!$B$6:$AR$1538,K$8,FALSE)),0,(VLOOKUP($A$5&$C28&$A$8,'Calc-HC1'!$B$6:$AR$1538,K$8,FALSE))) -> 0.2113118617 | L28: =IF(ISNA(VLOOKUP($A$5&$C28&$A$8,'Calc-HC1'!$B$6:$AR$1538,L$8,FALSE)),0,(MROUND(VLOOKUP($A$5&$C28&$A$8,'Calc-HC1'!$B$6:$AR$1538,L$8,FALSE),10))) -> 1270
C29: Midlothian | D29: =IF(ISNA(VLOOKUP($A$5&$C29&$A$8,'Calc-HC1'!$B$6:$AR$1538,D$8,FALSE)),0,(MROUND(VLOOKUP($A$5&$C29&$A$8,'Calc-HC1'!$B$6:$AR$1538,D$8,FALSE),10))) -> 150 | E29: =IF(ISNA(VLOOKUP($A$5&$C29&$A$8,'Calc-HC1'!$B$6:$AR$1538,E$8,FALSE)),0,(VLOOKUP($A$5&$C29&$A$8,'Calc-HC1'!$B$6:$AR$1538,E$8,FALSE))) -> 0.1464597478 | F29: =IF(ISNA(VLOOKUP($A$5&$C29&$A$8,'Calc-HC1'!$B$6:$AR$1538,F$8,FALSE)),0,(MROUND(VLOOKUP($A$5&$C29&$A$8,'Calc-HC1'!$B$6:$AR$1538,F$8,FALSE),10))) -> 190 | G29: =IF(ISNA(VLOOKUP($A$5&$C29&$A$8,'Calc-HC1'!$B$6:$AR$1538,G$8,FALSE)),0,(VLOOKUP($A$5&$C29&$A$8,'Calc-HC1'!$B$6:$AR$1538,G$8,FALSE))) -> 0.1794374394 | H29: =IF(ISNA(VLOOKUP($A$5&$C29&$A$8,'Calc-HC1'!$B$6:$AR$1538,H$8,FALSE)),0,(MROUND(VLOOKUP($A$5&$C29&$A$8,'Calc-HC1'!$B$6:$AR$1538,H$8,FALSE),10))) -> 320 | I29: =IF(ISNA(VLOOKUP($A$5&$C29&$A$8,'Calc-HC1'!$B$6:$AR$1538,I$8,FALSE)),0,(VLOOKUP($A$5&$C29&$A$8,'Calc-HC1'!$B$6:$AR$1538,I$8,FALSE))) -> 0.3132880698 | J29: =IF(ISNA(VLOOKUP($A$5&$C29&$A$8,'Calc-HC1'!$B$6:$AR$1538,J$8,FALSE)),0,(MROUND(VLOOKUP($A$5&$C29&$A$8,'Calc-HC1'!$B$6:$AR$1538,J$8,FALSE),10))) -> 370 | K29: =IF(ISNA(VLOOKUP($A$5&$C29&$A$8,'Calc-HC1'!$B$6:$AR$1538,K$8,FALSE)),0,(VLOOKUP($A$5&$C29&$A$8,'Calc-HC1'!$B$6:$AR$1538,K$8,FALSE))) -> 0.360814743 | L29: =IF(ISNA(VLOOKUP($A$5&$C29&$A$8,'Calc-HC1'!$B$6:$AR$1538,L$8,FALSE)),0,(MROUND(VLOOKUP($A$5&$C29&$A$8,'Calc-HC1'!$B$6:$AR$1538,L$8,FALSE),10))) -> 1030
C30: Moray | D30: =IF(ISNA(VLOOKUP($A$5&$C30&$A$8,'Calc-HC1'!$B$6:$AR$1538,D$8,FALSE)),0,(MROUND(VLOOKUP($A$5&$C30&$A$8,'Calc-HC1'!$B$6:$AR$1538,D$8,FALSE),10))) -> 130 | E30: =IF(ISNA(VLOOKUP($A$5&$C30&$A$8,'Calc-HC1'!$B$6:$AR$1538,E$8,FALSE)),0,(VLOOKUP($A$5&$C30&$A$8,'Calc-HC1'!$B$6:$AR$1538,E$8,FALSE))) -> 0.1407407407 | F30: =IF(ISNA(VLOOKUP($A$5&$C30&$A$8,'Calc-HC1'!$B$6:$AR$1538,F$8,FALSE)),0,(MROUND(VLOOKUP($A$5&$C30&$A$8,'Calc-HC1'!$B$6:$AR$1538,F$8,FALSE),10))) -> 130 | G30: =IF(ISNA(VLOOKUP($A$5&$C30&$A$8,'Calc-HC1'!$B$6:$AR$1538,G$8,FALSE)),0,(VLOOKUP($A$5&$C30&$A$8,'Calc-HC1'!$B$6:$AR$1538,G$8,FALSE))) -> 0.1333333333 | H30: =IF(ISNA(VLOOKUP($A$5&$C30&$A$8,'Calc-HC1'!$B$6:$AR$1538,H$8,FALSE)),0,(MROUND(VLOOKUP($A$5&$C30&$A$8,'Calc-HC1'!$B$6:$AR$1538,H$8,FALSE),10))) -> 240 | I30: =IF(ISNA(VLOOKUP($A$5&$C30&$A$8,'Calc-HC1'!$B$6:$AR$1538,I$8,FALSE)),0,(VLOOKUP($A$5&$C30&$A$8,'Calc-HC1'!$B$6:$AR$1538,I$8,FALSE))) -> 0.2571428571 | J30: =IF(ISNA(VLOOKUP($A$5&$C30&$A$8,'Calc-HC1'!$B$6:$AR$1538,J$8,FALSE)),0,(MROUND(VLOOKUP($A$5&$C30&$A$8,'Calc-HC1'!$B$6:$AR$1538,J$8,FALSE),10))) -> 440 | K30: =IF(ISNA(VLOOKUP($A$5&$C30&$A$8,'Calc-HC1'!$B$6:$AR$1538,K$8,FALSE)),0,(VLOOKUP($A$5&$C30&$A$8,'Calc-HC1'!$B$6:$AR$1538,K$8,FALSE))) -> 0.4687830688 | L30: =IF(ISNA(VLOOKUP($A$5&$C30&$A$8,'Calc-HC1'!$B$6:$AR$1538,L$8,FALSE)),0,(MROUND(VLOOKUP($A$5&$C30&$A$8,'Calc-HC1'!$B$6:$AR$1538,L$8,FALSE),10))) -> 950
C31: North Ayrshire | D31: =IF(ISNA(VLOOKUP($A$5&$C31&$A$8,'Calc-HC1'!$B$6:$AR$1538,D$8,FALSE)),0,(MROUND(VLOOKUP($A$5&$C31&$A$8,'Calc-HC1'!$B$6:$AR$1538,D$8,FALSE),10))) -> 480 | E31: =IF(ISNA(VLOOKUP($A$5&$C31&$A$8,'Calc-HC1'!$B$6:$AR$1538,E$8,FALSE)),0,(VLOOKUP($A$5&$C31&$A$8,'Calc-HC1'!$B$6:$AR$1538,E$8,FALSE))) -> 0.2280867107 | F31: =IF(ISNA(VLOOKUP($A$5&$C31&$A$8,'Calc-HC1'!$B$6:$AR$1538,F$8,FALSE)),0,(MROUND(VLOOKUP($A$5&$C31&$A$8,'Calc-HC1'!$B$6:$AR$1538,F$8,FALSE),10))) -> 400 | G31: =IF(ISNA(VLOOKUP($A$5&$C31&$A$8,'Calc-HC1'!$B$6:$AR$1538,G$8,FALSE)),0,(VLOOKUP($A$5&$C31&$A$8,'Calc-HC1'!$B$6:$AR$1538,G$8,FALSE))) -> 0.1894439208 | H31: =IF(ISNA(VLOOKUP($A$5&$C31&$A$8,'Calc-HC1'!$B$6:$AR$1538,H$8,FALSE)),0,(MROUND(VLOOKUP($A$5&$C31&$A$8,'Calc-HC1'!$B$6:$AR$1538,H$8,FALSE),10))) -> 580 | I31: =IF(ISNA(VLOOKUP($A$5&$C31&$A$8,'Calc-HC1'!$B$6:$AR$1538,I$8,FALSE)),0,(VLOOKUP($A$5&$C31&$A$8,'Calc-HC1'!$B$6:$AR$1538,I$8,FALSE))) -> 0.27332705 | J31: =IF(ISNA(VLOOKUP($A$5&$C31&$A$8,'Calc-HC1'!$B$6:$AR$1538,J$8,FALSE)),0,(MROUND(VLOOKUP($A$5&$C31&$A$8,'Calc-HC1'!$B$6:$AR$1538,J$8,FALSE),10))) -> 660 | K31: =IF(ISNA(VLOOKUP($A$5&$C31&$A$8,'Calc-HC1'!$B$6:$AR$1538,K$8,FALSE)),0,(VLOOKUP($A$5&$C31&$A$8,'Calc-HC1'!$B$6:$AR$1538,K$8,FALSE))) -> 0.3091423186 | L31: =IF(ISNA(VLOOKUP($A$5&$C31&$A$8,'Calc-HC1'!$B$6:$AR$1538,L$8,FALSE)),0,(MROUND(VLOOKUP($A$5&$C31&$A$8,'Calc-HC1'!$B$6:$AR$1538,L$8,FALSE),10))) -> 2120
C32: North Lanarkshire | D32: =IF(ISNA(VLOOKUP($A$5&$C32&$A$8,'Calc-HC1'!$B$6:$AR$1538,D$8,FALSE)),0,(MROUND(VLOOKUP($A$5&$C32&$A$8,'Calc-HC1'!$B$6:$AR$1538,D$8,FALSE),10))) -> 430 | E32: =IF(ISNA(VLOOKUP($A$5&$C32&$A$8,'Calc-HC1'!$B$6:$AR$1538,E$8,FALSE)),0,(VLOOKUP($A$5&$C32&$A$8,'Calc-HC1'!$B$6:$AR$1538,E$8,FALSE))) -> 0.1212549463 | F32: =IF(ISNA(VLOOKUP($A$5&$C32&$A$8,'Calc-HC1'!$B$6:$AR$1538,F$8,FALSE)),0,(MROUND(VLOOKUP($A$5&$C32&$A$8,'Calc-HC1'!$B$6:$AR$1538,F$8,FALSE),10))) -> 580 | G32: =IF(ISNA(VLOOKUP($A$5&$C32&$A$8,'Calc-HC1'!$B$6:$AR$1538,G$8,FALSE)),0,(VLOOKUP($A$5&$C32&$A$8,'Calc-HC1'!$B$6:$AR$1538,G$8,FALSE))) -> 0.1639344262 | H32: =IF(ISNA(VLOOKUP($A$5&$C32&$A$8,'Calc-HC1'!$B$6:$AR$1538,H$8,FALSE)),0,(MROUND(VLOOKUP($A$5&$C32&$A$8,'Calc-HC1'!$B$6:$AR$1538,H$8,FALSE),10))) -> 1120 | I32: =IF(ISNA(VLOOKUP($A$5&$C32&$A$8,'Calc-HC1'!$B$6:$AR$1538,I$8,FALSE)),0,(VLOOKUP($A$5&$C32&$A$8,'Calc-HC1'!$B$6:$AR$1538,I$8,FALSE))) -> 0.3157150933 | J32: =IF(ISNA(VLOOKUP($A$5&$C32&$A$8,'Calc-HC1'!$B$6:$AR$1538,J$8,FALSE)),0,(MROUND(VLOOKUP($A$5&$C32&$A$8,'Calc-HC1'!$B$6:$AR$1538,J$8,FALSE),10))) -> 1410 | K32: =IF(ISNA(VLOOKUP($A$5&$C32&$A$8,'Calc-HC1'!$B$6:$AR$1538,K$8,FALSE)),0,(VLOOKUP($A$5&$C32&$A$8,'Calc-HC1'!$B$6:$AR$1538,K$8,FALSE))) -> 0.3990955342 | L32: =IF(ISNA(VLOOKUP($A$5&$C32&$A$8,'Calc-HC1'!$B$6:$AR$1538,L$8,FALSE)),0,(MROUND(VLOOKUP($A$5&$C32&$A$8,'Calc-HC1'!$B$6:$AR$1538,L$8,FALSE),10))) -> 3540
C33: Orkney Islands | D33: =IF(ISNA(VLOOKUP($A$5&$C33&$A$8,'Calc-HC1'!$B$6:$AR$1538,D$8,FALSE)),0,(MROUND(VLOOKUP($A$5&$C33&$A$8,'Calc-HC1'!$B$6:$AR$1538,D$8,FALSE),10))) -> 60 | E33: =IF(ISNA(VLOOKUP($A$5&$C33&$A$8,'Calc-HC1'!$B$6:$AR$1538,E$8,FALSE)),0,(VLOOKUP($A$5&$C33&$A$8,'Calc-HC1'!$B$6:$AR$1538,E$8,FALSE))) -> 0.275862069 | F33: =IF(ISNA(VLOOKUP($A$5&$C33&$A$8,'Calc-HC1'!$B$6:$AR$1538,F$8,FALSE)),0,(MROUND(VLOOKUP($A$5&$C33&$A$8,'Calc-HC1'!$B$6:$AR$1538,F$8,FALSE),10))) -> 30 | G33: =IF(ISNA(VLOOKUP($A$5&$C33&$A$8,'Calc-HC1'!$B$6:$AR$1538,G$8,FALSE)),0,(VLOOKUP($A$5&$C33&$A$8,'Calc-HC1'!$B$6:$AR$1538,G$8,FALSE))) -> 0.1428571429 | H33: =IF(ISNA(VLOOKUP($A$5&$C33&$A$8,'Calc-HC1'!$B$6:$AR$1538,H$8,FALSE)),0,(MROUND(VLOOKUP($A$5&$C33&$A$8,'Calc-HC1'!$B$6:$AR$1538,H$8,FALSE),10))) -> 70 | I33: =IF(ISNA(VLOOKUP($A$5&$C33&$A$8,'Calc-HC1'!$B$6:$AR$1538,I$8,FALSE)),0,(VLOOKUP($A$5&$C33&$A$8,'Calc-HC1'!$B$6:$AR$1538,I$8,FALSE))) -> 0.3349753695 | J33: =IF(ISNA(VLOOKUP($A$5&$C33&$A$8,'Calc-HC1'!$B$6:$AR$1538,J$8,FALSE)),0,(MROUND(VLOOKUP($A$5&$C33&$A$8,'Calc-HC1'!$B$6:$AR$1538,J$8,FALSE),10))) -> 50 | K33: =IF(ISNA(VLOOKUP($A$5&$C33&$A$8,'Calc-HC1'!$B$6:$AR$1538,K$8,FALSE)),0,(VLOOKUP($A$5&$C33&$A$8,'Calc-HC1'!$B$6:$AR$1538,K$8,FALSE))) -> 0.2463054187 | L33: =IF(ISNA(VLOOKUP($A$5&$C33&$A$8,'Calc-HC1'!$B$6:$AR$1538,L$8,FALSE)),0,(MROUND(VLOOKUP($A$5&$C33&$A$8,'Calc-HC1'!$B$6:$AR$1538,L$8,FALSE),10))) -> 200
C34: Perth & Kinross | D34: =IF(ISNA(VLOOKUP($A$5&$C34&$A$8,'Calc-HC1'!$B$6:$AR$1538,D$8,FALSE)),0,(MROUND(VLOOKUP($A$5&$C34&$A$8,'Calc-HC1'!$B$6:$AR$1538,D$8,FALSE),10))) -> 220 | E34: =IF(ISNA(VLOOKUP($A$5&$C34&$A$8,'Calc-HC1'!$B$6:$AR$1538,E$8,FALSE)),0,(VLOOKUP($A$5&$C34&$A$8,'Calc-HC1'!$B$6:$AR$1538,E$8,FALSE))) -> 0.1275014294 | F34: =IF(ISNA(VLOOKUP($A$5&$C34&$A$8,'Calc-HC1'!$B$6:$AR$1538,F$8,FALSE)),0,(MROUND(VLOOKUP($A$5&$C34&$A$8,'Calc-HC1'!$B$6:$AR$1538,F$8,FALSE),10))) -> 250 | G34: =IF(ISNA(VLOOKUP($A$5&$C34&$A$8,'Calc-HC1'!$B$6:$AR$1538,G$8,FALSE)),0,(VLOOKUP($A$5&$C34&$A$8,'Calc-HC1'!$B$6:$AR$1538,G$8,FALSE))) -> 0.1440823328 | H34: =IF(ISNA(VLOOKUP($A$5&$C34&$A$8,'Calc-HC1'!$B$6:$AR$1538,H$8,FALSE)),0,(MROUND(VLOOKUP($A$5&$C34&$A$8,'Calc-HC1'!$B$6:$AR$1538,H$8,FALSE),10))) -> 540 | I34: =IF(ISNA(VLOOKUP($A$5&$C34&$A$8,'Calc-HC1'!$B$6:$AR$1538,I$8,FALSE)),0,(VLOOKUP($A$5&$C34&$A$8,'Calc-HC1'!$B$6:$AR$1538,I$8,FALSE))) -> 0.3076043453 | J34: =IF(ISNA(VLOOKUP($A$5&$C34&$A$8,'Calc-HC1'!$B$6:$AR$1538,J$8,FALSE)),0,(MROUND(VLOOKUP($A$5&$C34&$A$8,'Calc-HC1'!$B$6:$AR$1538,J$8,FALSE),10))) -> 740 | K34: =IF(ISNA(VLOOKUP($A$5&$C34&$A$8,'Calc-HC1'!$B$6:$AR$1538,K$8,FALSE)),0,(VLOOKUP($A$5&$C34&$A$8,'Calc-HC1'!$B$6:$AR$1538,K$8,FALSE))) -> 0.4208118925 | L34: =IF(ISNA(VLOOKUP($A$5&$C34&$A$8,'Calc-HC1'!$B$6:$AR$1538,L$8,FALSE)),0,(MROUND(VLOOKUP($A$5&$C34&$A$8,'Calc-HC1'!$B$6:$AR$1538,L$8,FALSE),10))) -> 1750
C35: Renfrewshire | D35: =IF(ISNA(VLOOKUP($A$5&$C35&$A$8,'Calc-HC1'!$B$6:$AR$1538,D$8,FALSE)),0,(MROUND(VLOOKUP($A$5&$C35&$A$8,'Calc-HC1'!$B$6:$AR$1538,D$8,FALSE),10))) -> 230 | E35: =IF(ISNA(VLOOKUP($A$5&$C35&$A$8,'Calc-HC1'!$B$6:$AR$1538,E$8,FALSE)),0,(VLOOKUP($A$5&$C35&$A$8,'Calc-HC1'!$B$6:$AR$1538,E$8,FALSE))) -> 0.1090564248 | F35: =IF(ISNA(VLOOKUP($A$5&$C35&$A$8,'Calc-HC1'!$B$6:$AR$1538,F$8,FALSE)),0,(MROUND(VLOOKUP($A$5&$C35&$A$8,'Calc-HC1'!$B$6:$AR$1538,F$8,FALSE),10))) -> 320 | G35: =IF(ISNA(VLOOKUP($A$5&$C35&$A$8,'Calc-HC1'!$B$6:$AR$1538,G$8,FALSE)),0,(VLOOKUP($A$5&$C35&$A$8,'Calc-HC1'!$B$6:$AR$1538,G$8,FALSE))) -> 0.1531531532 | H35: =IF(ISNA(VLOOKUP($A$5&$C35&$A$8,'Calc-HC1'!$B$6:$AR$1538,H$8,FALSE)),0,(MROUND(VLOOKUP($A$5&$C35&$A$8,'Calc-HC1'!$B$6:$AR$1538,H$8,FALSE),10))) -> 840 | I35: =IF(ISNA(VLOOKUP($A$5&$C35&$A$8,'Calc-HC1'!$B$6:$AR$1538,I$8,FALSE)),0,(VLOOKUP($A$5&$C35&$A$8,'Calc-HC1'!$B$6:$AR$1538,I$8,FALSE))) -> 0.3992413466 | J35: =IF(ISNA(VLOOKUP($A$5&$C35&$A$8,'Calc-HC1'!$B$6:$AR$1538,J$8,FALSE)),0,(MROUND(VLOOKUP($A$5&$C35&$A$8,'Calc-HC1'!$B$6:$AR$1538,J$8,FALSE),10))) -> 710 | K35: =IF(ISNA(VLOOKUP($A$5&$C35&$A$8,'Calc-HC1'!$B$6:$AR$1538,K$8,FALSE)),0,(VLOOKUP($A$5&$C35&$A$8,'Calc-HC1'!$B$6:$AR$1538,K$8,FALSE))) -> 0.3385490754 | L35: =IF(ISNA(VLOOKUP($A$5&$C35&$A$8,'Calc-HC1'!$B$6:$AR$1538,L$8,FALSE)),0,(MROUND(VLOOKUP($A$5&$C35&$A$8,'Calc-HC1'!$B$6:$AR$1538,L$8,FALSE),10))) -> 2110
C36: Scottish Borders | D36: =IF(ISNA(VLOOKUP($A$5&$C36&$A$8,'Calc-HC1'!$B$6:$AR$1538,D$8,FALSE)),0,(MROUND(VLOOKUP($A$5&$C36&$A$8,'Calc-HC1'!$B$6:$AR$1538,D$8,FALSE),10))) -> 240 | E36: =IF(ISNA(VLOOKUP($A$5&$C36&$A$8,'Calc-HC1'!$B$6:$AR$1538,E$8,FALSE)),0,(VLOOKUP($A$5&$C36&$A$8,'Calc-HC1'!$B$6:$AR$1538,E$8,FALSE))) -> 0.2047177759 | F36: =IF(ISNA(VLOOKUP($A$5&$C36&$A$8,'Calc-HC1'!$B$6:$AR$1538,F$8,FALSE)),0,(MROUND(VLOOKUP($A$5&$C36&$A$8,'Calc-HC1'!$B$6:$AR$1538,F$8,FALSE),10))) -> 240 | G36: =IF(ISNA(VLOOKUP($A$5&$C36&$A$8,'Calc-HC1'!$B$6:$AR$1538,G$8,FALSE)),0,(VLOOKUP($A$5&$C36&$A$8,'Calc-HC1'!$B$6:$AR$1538,G$8,FALSE))) -> 0.2030328559 | H36: =IF(ISNA(VLOOKUP($A$5&$C36&$A$8,'Calc-HC1'!$B$6:$AR$1538,H$8,FALSE)),0,(MROUND(VLOOKUP($A$5&$C36&$A$8,'Calc-HC1'!$B$6:$AR$1538,H$8,FALSE),10))) -> 470 | I36: =IF(ISNA(VLOOKUP($A$5&$C36&$A$8,'Calc-HC1'!$B$6:$AR$1538,I$8,FALSE)),0,(VLOOKUP($A$5&$C36&$A$8,'Calc-HC1'!$B$6:$AR$1538,I$8,FALSE))) -> 0.3967986521 | J36: =IF(ISNA(VLOOKUP($A$5&$C36&$A$8,'Calc-HC1'!$B$6:$AR$1538,J$8,FALSE)),0,(MROUND(VLOOKUP($A$5&$C36&$A$8,'Calc-HC1'!$B$6:$AR$1538,J$8,FALSE),10))) -> 230 | K36: =IF(ISNA(VLOOKUP($A$5&$C36&$A$8,'Calc-HC1'!$B$6:$AR$1538,K$8,FALSE)),0,(VLOOKUP($A$5&$C36&$A$8,'Calc-HC1'!$B$6:$AR$1538,K$8,FALSE))) -> 0.1954507161 | L36: =IF(ISNA(VLOOKUP($A$5&$C36&$A$8,'Calc-HC1'!$B$6:$AR$1538,L$8,FALSE)),0,(MROUND(VLOOKUP($A$5&$C36&$A$8,'Calc-HC1'!$B$6:$AR$1538,L$8,FALSE),10))) -> 1190
C37: Shetland Islands | D37: =IF(ISNA(VLOOKUP($A$5&$C37&$A$8,'Calc-HC1'!$B$6:$AR$1538,D$8,FALSE)),0,(MROUND(VLOOKUP($A$5&$C37&$A$8,'Calc-HC1'!$B$6:$AR$1538,D$8,FALSE),10))) -> 120 | E37: =IF(ISNA(VLOOKUP($A$5&$C37&$A$8,'Calc-HC1'!$B$6:$AR$1538,E$8,FALSE)),0,(VLOOKUP($A$5&$C37&$A$8,'Calc-HC1'!$B$6:$AR$1538,E$8,FALSE))) -> 0.3872053872 | F37: =IF(ISNA(VLOOKUP($A$5&$C37&$A$8,'Calc-HC1'!$B$6:$AR$1538,F$8,FALSE)),0,(MROUND(VLOOKUP($A$5&$C37&$A$8,'Calc-HC1'!$B$6:$AR$1538,F$8,FALSE),10))) -> 50 | G37: =IF(ISNA(VLOOKUP($A$5&$C37&$A$8,'Calc-HC1'!$B$6:$AR$1538,G$8,FALSE)),0,(VLOOKUP($A$5&$C37&$A$8,'Calc-HC1'!$B$6:$AR$1538,G$8,FALSE))) -> 0.1616161616 | H37: =IF(ISNA(VLOOKUP($A$5&$C37&$A$8,'Calc-HC1'!$B$6:$AR$1538,H$8,FALSE)),0,(MROUND(VLOOKUP($A$5&$C37&$A$8,'Calc-HC1'!$B$6:$AR$1538,H$8,FALSE),10))) -> 70 | I37: =IF(ISNA(VLOOKUP($A$5&$C37&$A$8,'Calc-HC1'!$B$6:$AR$1538,I$8,FALSE)),0,(VLOOKUP($A$5&$C37&$A$8,'Calc-HC1'!$B$6:$AR$1538,I$8,FALSE))) -> 0.2188552189 | J37: =IF(ISNA(VLOOKUP($A$5&$C37&$A$8,'Calc-HC1'!$B$6:$AR$1538,J$8,FALSE)),0,(MROUND(VLOOKUP($A$5&$C37&$A$8,'Calc-HC1'!$B$6:$AR$1538,J$8,FALSE),10))) -> 70 | K37: =IF(ISNA(VLOOKUP($A$5&$C37&$A$8,'Calc-HC1'!$B$6:$AR$1538,K$8,FALSE)),0,(VLOOKUP($A$5&$C37&$A$8,'Calc-HC1'!$B$6:$AR$1538,K$8,FALSE))) -> 0.2323232323 | L37: =IF(ISNA(VLOOKUP($A$5&$C37&$A$8,'Calc-HC1'!$B$6:$AR$1538,L$8,FALSE)),0,(MROUND(VLOOKUP($A$5&$C37&$A$8,'Calc-HC1'!$B$6:$AR$1538,L$8,FALSE),10))) -> 300
C38: South Ayrshire | D38: =IF(ISNA(VLOOKUP($A$5&$C38&$A$8,'Calc-HC1'!$B$6:$AR$1538,D$8,FALSE)),0,(MROUND(VLOOKUP($A$5&$C38&$A$8,'Calc-HC1'!$B$6:$AR$1538,D$8,FALSE),10))) -> 170 | E38: =IF(ISNA(VLOOKUP($A$5&$C38&$A$8,'Calc-HC1'!$B$6:$AR$1538,E$8,FALSE)),0,(VLOOKUP($A$5&$C38&$A$8,'Calc-HC1'!$B$6:$AR$1538,E$8,FALSE))) -> 0.09895833333 | F38: =IF(ISNA(VLOOKUP($A$5&$C38&$A$8,'Calc-HC1'!$B$6:$AR$1538,F$8,FALSE)),0,(MROUND(VLOOKUP($A$5&$C38&$A$8,'Calc-HC1'!$B$6:$AR$1538,F$8,FALSE),10))) -> 290 | G38: =IF(ISNA(VLOOKUP($A$5&$C38&$A$8,'Calc-HC1'!$B$6:$AR$1538,G$8,FALSE)),0,(VLOOKUP($A$5&$C38&$A$8,'Calc-HC1'!$B$6:$AR$1538,G$8,FALSE))) -> 0.1689814815 | H38: =IF(ISNA(VLOOKUP($A$5&$C38&$A$8,'Calc-HC1'!$B$6:$AR$1538,H$8,FALSE)),0,(MROUND(VLOOKUP($A$5&$C38&$A$8,'Calc-HC1'!$B$6:$AR$1538,H$8,FALSE),10))) -> 590 | I38: =IF(ISNA(VLOOKUP($A$5&$C38&$A$8,'Calc-HC1'!$B$6:$AR$1538,I$8,FALSE)),0,(VLOOKUP($A$5&$C38&$A$8,'Calc-HC1'!$B$6:$AR$1538,I$8,FALSE))) -> 0.3408564815 | J38: =IF(ISNA(VLOOKUP($A$5&$C38&$A$8,'Calc-HC1'!$B$6:$AR$1538,J$8,FALSE)),0,(MROUND(VLOOKUP($A$5&$C38&$A$8,'Calc-HC1'!$B$6:$AR$1538,J$8,FALSE),10))) -> 680 | K38: =IF(ISNA(VLOOKUP($A$5&$C38&$A$8,'Calc-HC1'!$B$6:$AR$1538,K$8,FALSE)),0,(VLOOKUP($A$5&$C38&$A$8,'Calc-HC1'!$B$6:$AR$1538,K$8,FALSE))) -> 0.3912037037 | L38: =IF(ISNA(VLOOKUP($A$5&$C38&$A$8,'Calc-HC1'!$B$6:$AR$1538,L$8,FALSE)),0,(MROUND(VLOOKUP($A$5&$C38&$A$8,'Calc-HC1'!$B$6:$AR$1538,L$8,FALSE),10))) -> 1730
C39: South Lanarkshire | D39: =IF(ISNA(VLOOKUP($A$5&$C39&$A$8,'Calc-HC1'!$B$6:$AR$1538,D$8,FALSE)),0,(MROUND(VLOOKUP($A$5&$C39&$A$8,'Calc-HC1'!$B$6:$AR$1538,D$8,FALSE),10))) -> 390 | E39: =IF(ISNA(VLOOKUP($A$5&$C39&$A$8,'Calc-HC1'!$B$6:$AR$1538,E$8,FALSE)),0,(VLOOKUP($A$5&$C39&$A$8,'Calc-HC1'!$B$6:$AR$1538,E$8,FALSE))) -> 0.1119977201 | F39: =IF(ISNA(VLOOKUP($A$5&$C39&$A$8,'Calc-HC1'!$B$6:$AR$1538,F$8,FALSE)),0,(MROUND(VLOOKUP($A$5&$C39&$A$8,'Calc-HC1'!$B$6:$AR$1538,F$8,FALSE),10))) -> 570 | G39: =IF(ISNA(VLOOKUP($A$5&$C39&$A$8,'Calc-HC1'!$B$6:$AR$1538,G$8,FALSE)),0,(VLOOKUP($A$5&$C39&$A$8,'Calc-HC1'!$B$6:$AR$1538,G$8,FALSE))) -> 0.16215446 | H39: =IF(ISNA(VLOOKUP($A$5&$C39&$A$8,'Calc-HC1'!$B$6:$AR$1538,H$8,FALSE)),0,(MROUND(VLOOKUP($A$5&$C39&$A$8,'Calc-HC1'!$B$6:$AR$1538,H$8,FALSE),10))) -> 1040 | I39: =IF(ISNA(VLOOKUP($A$5&$C39&$A$8,'Calc-HC1'!$B$6:$AR$1538,I$8,FALSE)),0,(VLOOKUP($A$5&$C39&$A$8,'Calc-HC1'!$B$6:$AR$1538,I$8,FALSE))) -> 0.2975206612 | J39: =IF(ISNA(VLOOKUP($A$5&$C39&$A$8,'Calc-HC1'!$B$6:$AR$1538,J$8,FALSE)),0,(MROUND(VLOOKUP($A$5&$C39&$A$8,'Calc-HC1'!$B$6:$AR$1538,J$8,FALSE),10))) -> 1500 | K39: =IF(ISNA(VLOOKUP($A$5&$C39&$A$8,'Calc-HC1'!$B$6:$AR$1538,K$8,FALSE)),0,(VLOOKUP($A$5&$C39&$A$8,'Calc-HC1'!$B$6:$AR$1538,K$8,FALSE))) -> 0.4283271587 | L39: =IF(ISNA(VLOOKUP($A$5&$C39&$A$8,'Calc-HC1'!$B$6:$AR$1538,L$8,FALSE)),0,(MROUND(VLOOKUP($A$5&$C39&$A$8,'Calc-HC1'!$B$6:$AR$1538,L$8,FALSE),10))) -> 3510
C40: Stirling | D40: =IF(ISNA(VLOOKUP($A$5&$C40&$A$8,'Calc-HC1'!$B$6:$AR$1538,D$8,FALSE)),0,(MROUND(VLOOKUP($A$5&$C40&$A$8,'Calc-HC1'!$B$6:$AR$1538,D$8,FALSE),10))) -> 130 | E40: =IF(ISNA(VLOOKUP($A$5&$C40&$A$8,'Calc-HC1'!$B$6:$AR$1538,E$8,FALSE)),0,(VLOOKUP($A$5&$C40&$A$8,'Calc-HC1'!$B$6:$AR$1538,E$8,FALSE))) -> 0.1064891847 | F40: =IF(ISNA(VLOOKUP($A$5&$C40&$A$8,'Calc-HC1'!$B$6:$AR$1538,F$8,FALSE)),0,(MROUND(VLOOKUP($A$5&$C40&$A$8,'Calc-HC1'!$B$6:$AR$1538,F$8,FALSE),10))) -> 200 | G40: =IF(ISNA(VLOOKUP($A$5&$C40&$A$8,'Calc-HC1'!$B$6:$AR$1538,G$8,FALSE)),0,(VLOOKUP($A$5&$C40&$A$8,'Calc-HC1'!$B$6:$AR$1538,G$8,FALSE))) -> 0.1630615641 | H40: =IF(ISNA(VLOOKUP($A$5&$C40&$A$8,'Calc-HC1'!$B$6:$AR$1538,H$8,FALSE)),0,(MROUND(VLOOKUP($A$5&$C40&$A$8,'Calc-HC1'!$B$6:$AR$1538,H$8,FALSE),10))) -> 360 | I40: =IF(ISNA(VLOOKUP($A$5&$C40&$A$8,'Calc-HC1'!$B$6:$AR$1538,I$8,FALSE)),0,(VLOOKUP($A$5&$C40&$A$8,'Calc-HC1'!$B$6:$AR$1538,I$8,FALSE))) -> 0.2961730449 | J40: =IF(ISNA(VLOOKUP($A$5&$C40&$A$8,'Calc-HC1'!$B$6:$AR$1538,J$8,FALSE)),0,(MROUND(VLOOKUP($A$5&$C40&$A$8,'Calc-HC1'!$B$6:$AR$1538,J$8,FALSE),10))) -> 520 | K40: =IF(ISNA(VLOOKUP($A$5&$C40&$A$8,'Calc-HC1'!$B$6:$AR$1538,K$8,FALSE)),0,(VLOOKUP($A$5&$C40&$A$8,'Calc-HC1'!$B$6:$AR$1538,K$8,FALSE))) -> 0.4342762063 | L40: =IF(ISNA(VLOOKUP($A$5&$C40&$A$8,'Calc-HC1'!$B$6:$AR$1538,L$8,FALSE)),0,(MROUND(VLOOKUP($A$5&$C40&$A$8,'Calc-HC1'!$B$6:$AR$1538,L$8,FALSE),10))) -> 1200
C41: West Dunbartonshire | D41: =IF(ISNA(VLOOKUP($A$5&$C41&$A$8,'Calc-HC1'!$B$6:$AR$1538,D$8,FALSE)),0,(MROUND(VLOOKUP($A$5&$C41&$A$8,'Calc-HC1'!$B$6:$AR$1538,D$8,FALSE),10))) -> 330 | E41: =IF(ISNA(VLOOKUP($A$5&$C41&$A$8,'Calc-HC1'!$B$6:$AR$1538,E$8,FALSE)),0,(VLOOKUP($A$5&$C41&$A$8,'Calc-HC1'!$B$6:$AR$1538,E$8,FALSE))) -> 0.2218476062 | F41: =IF(ISNA(VLOOKUP($A$5&$C41&$A$8,'Calc-HC1'!$B$6:$AR$1538,F$8,FALSE)),0,(MROUND(VLOOKUP($A$5&$C41&$A$8,'Calc-HC1'!$B$6:$AR$1538,F$8,FALSE),10))) -> 310 | G41: =IF(ISNA(VLOOKUP($A$5&$C41&$A$8,'Calc-HC1'!$B$6:$AR$1538,G$8,FALSE)),0,(VLOOKUP($A$5&$C41&$A$8,'Calc-HC1'!$B$6:$AR$1538,G$8,FALSE))) -> 0.2110586649 | H41: =IF(ISNA(VLOOKUP($A$5&$C41&$A$8,'Calc-HC1'!$B$6:$AR$1538,H$8,FALSE)),0,(MROUND(VLOOKUP($A$5&$C41&$A$8,'Calc-HC1'!$B$6:$AR$1538,H$8,FALSE),10))) -> 520 | I41: =IF(ISNA(VLOOKUP($A$5&$C41&$A$8,'Calc-HC1'!$B$6:$AR$1538,I$8,FALSE)),0,(VLOOKUP($A$5&$C41&$A$8,'Calc-HC1'!$B$6:$AR$1538,I$8,FALSE))) -> 0.3506405934 | J41: =IF(ISNA(VLOOKUP($A$5&$C41&$A$8,'Calc-HC1'!$B$6:$AR$1538,J$8,FALSE)),0,(MROUND(VLOOKUP($A$5&$C41&$A$8,'Calc-HC1'!$B$6:$AR$1538,J$8,FALSE),10))) -> 320 | K41: =IF(ISNA(VLOOKUP($A$5&$C41&$A$8,'Calc-HC1'!$B$6:$AR$1538,K$8,FALSE)),0,(VLOOKUP($A$5&$C41&$A$8,'Calc-HC1'!$B$6:$AR$1538,K$8,FALSE))) -> 0.2164531355 | L41: =IF(ISNA(VLOOKUP($A$5&$C41&$A$8,'Calc-HC1'!$B$6:$AR$1538,L$8,FALSE)),0,(MROUND(VLOOKUP($A$5&$C41&$A$8,'Calc-HC1'!$B$6:$AR$1538,L$8,FALSE),10))) -> 1480
C42: West Lothian | D42: =IF(ISNA(VLOOKUP($A$5&$C42&$A$8,'Calc-HC1'!$B$6:$AR$1538,D$8,FALSE)),0,(MROUND(VLOOKUP($A$5&$C42&$A$8,'Calc-HC1'!$B$6:$AR$1538,D$8,FALSE),10))) -> 190 | E42: =IF(ISNA(VLOOKUP($A$5&$C42&$A$8,'Calc-HC1'!$B$6:$AR$1538,E$8,FALSE)),0,(VLOOKUP($A$5&$C42&$A$8,'Calc-HC1'!$B$6:$AR$1538,E$8,FALSE))) -> 0.11027278 | F42: =IF(ISNA(VLOOKUP($A$5&$C42&$A$8,'Calc-HC1'!$B$6:$AR$1538,F$8,FALSE)),0,(MROUND(VLOOKUP($A$5&$C42&$A$8,'Calc-HC1'!$B$6:$AR$1538,F$8,FALSE),10))) -> 310 | G42: =IF(ISNA(VLOOKUP($A$5&$C42&$A$8,'Calc-HC1'!$B$6:$AR$1538,G$8,FALSE)),0,(VLOOKUP($A$5&$C42&$A$8,'Calc-HC1'!$B$6:$AR$1538,G$8,FALSE))) -> 0.1810795125 | H42: =IF(ISNA(VLOOKUP($A$5&$C42&$A$8,'Calc-HC1'!$B$6:$AR$1538,H$8,FALSE)),0,(MROUND(VLOOKUP($A$5&$C42&$A$8,'Calc-HC1'!$B$6:$AR$1538,H$8,FALSE),10))) -> 580 | I42: =IF(ISNA(VLOOKUP($A$5&$C42&$A$8,'Calc-HC1'!$B$6:$AR$1538,I$8,FALSE)),0,(VLOOKUP($A$5&$C42&$A$8,'Calc-HC1'!$B$6:$AR$1538,I$8,FALSE))) -> 0.3372025537 | J42: =IF(ISNA(VLOOKUP($A$5&$C42&$A$8,'Calc-HC1'!$B$6:$AR$1538,J$8,FALSE)),0,(MROUND(VLOOKUP($A$5&$C42&$A$8,'Calc-HC1'!$B$6:$AR$1538,J$8,FALSE),10))) -> 640 | K42: =IF(ISNA(VLOOKUP($A$5&$C42&$A$8,'Calc-HC1'!$B$6:$AR$1538,K$8,FALSE)),0,(VLOOKUP($A$5&$C42&$A$8,'Calc-HC1'!$B$6:$AR$1538,K$8,FALSE))) -> 0.3714451538 | L42: =IF(ISNA(VLOOKUP($A$5&$C42&$A$8,'Calc-HC1'!$B$6:$AR$1538,L$8,FALSE)),0,(MROUND(VLOOKUP($A$5&$C42&$A$8,'Calc-HC1'!$B$6:$AR$1538,L$8,FALSE),10))) -> 1720
C43: Scotland | D43: =IF(ISNA(VLOOKUP($A$5&$C43&$A$8,'Calc-HC1'!$B$6:$AR$1538,D$8,FALSE)),0,(MROUND(VLOOKUP($A$5&$C43&$A$8,'Calc-HC1'!$B$6:$AR$1538,D$8,FALSE),10))) -> 7940 | E43: =IF(ISNA(VLOOKUP($A$5&$C43&$A$8,'Calc-HC1'!$B$6:$AR$1538,E$8,FALSE)),0,(VLOOKUP($A$5&$C43&$A$8,'Calc-HC1'!$B$6:$AR$1538,E$8,FALSE))) -> 0.1331276617 | F43: =IF(ISNA(VLOOKUP($A$5&$C43&$A$8,'Calc-HC1'!$B$6:$AR$1538,F$8,FALSE)),0,(MROUND(VLOOKUP($A$5&$C43&$A$8,'Calc-HC1'!$B$6:$AR$1538,F$8,FALSE),10))) -> 10040 | G43: =IF(ISNA(VLOOKUP($A$5&$C43&$A$8,'Calc-HC1'!$B$6:$AR$1538,G$8,FALSE)),0,(VLOOKUP($A$5&$C43&$A$8,'Calc-HC1'!$B$6:$AR$1538,G$8,FALSE))) -> 0.1683545153 | H43: =IF(ISNA(VLOOKUP($A$5&$C43&$A$8,'Calc-HC1'!$B$6:$AR$1538,H$8,FALSE)),0,(MROUND(VLOOKUP($A$5&$C43&$A$8,'Calc-HC1'!$B$6:$AR$1538,H$8,FALSE),10))) -> 19300 | I43: =IF(ISNA(VLOOKUP($A$5&$C43&$A$8,'Calc-HC1'!$B$6:$AR$1538,I$8,FALSE)),0,(VLOOKUP($A$5&$C43&$A$8,'Calc-HC1'!$B$6:$AR$1538,I$8,FALSE))) -> 0.3235806982 | J43: =IF(ISNA(VLOOKUP($A$5&$C43&$A$8,'Calc-HC1'!$B$6:$AR$1538,J$8,FALSE)),0,(MROUND(VLOOKUP($A$5&$C43&$A$8,'Calc-HC1'!$B$6:$AR$1538,J$8,FALSE),10))) -> 22360 | K43: =IF(ISNA(VLOOKUP($A$5&$C43&$A$8,'Calc-HC1'!$B$6:$AR$1538,K$8,FALSE)),0,(VLOOKUP($A$5&$C43&$A$8,'Calc-HC1'!$B$6:$AR$1538,K$8,FALSE))) -> 0.3749371248 | L43: =IF(ISNA(VLOOKUP($A$5&$C43&$A$8,'Calc-HC1'!$B$6:$AR$1538,L$8,FALSE)),0,(MROUND(VLOOKUP($A$5&$C43&$A$8,'Calc-HC1'!$B$6:$AR$1538,L$8,FALSE),10))) -> 59640
C45: Source: Home Care Census up to 2012, Social Care Survey from 2013
C46: - some figures have been suppressed with a "*" to protect small numbers.
C47: - figures rounded to the nearest 10.

Sheet Table6
B1: ="Distribution of home care hours received for "&A5& " in " &A7&", 1998-Latest" -> Distribution of home care hours received for all clients in Scotland, 1998-Latest
B2: Figures are for the March census week | X2: Main page
A3: 1
A4: 1 | C4: Select area | H4: Select age group
A5: =IF(A6 = "ALL","all clients","clients aged "&A6) -> all clients
A6: =OFFSET(LKPs!D20,A3,0) -> All
A7: =OFFSET(LKPs!A1,A4,0) -> Scotland
A8: =IF(A6="All","",(A6)) ->  | C8: Hours taken | D8: Number / % | E8: 1998 | F8: 1999 | G8: 2000 | H8: 2001 | I8: 2002 | J8: 2003 | K8: 2004 | L8: 2005 | M8: 2006 | N8: 2007 | O8: 2008 | P8: 2009 | Q8: 2010 | R8: 2011 | S8: 2012 | T8: 2013 | U8: 2014 | V8: 2015 | W8: 2016 | X8: 2017
A9: 19 | C9: 2 hours or less | D9: No. of Clients | E9: =IFERROR(IF(ISNA(VLOOKUP(E$8&$A$7&$A$8,'Calc-HC1'!$B$6:$AR$1538,$A9,FALSE)),0,(MROUND(VLOOKUP(E$8&$A$7&$A$8,'Calc-HC1'!$B$6:$AR$1538,$A9,FALSE),10))),"-") -> 25650 | F9: =IFERROR(IF(ISNA(VLOOKUP(F$8&$A$7&$A$8,'Calc-HC1'!$B$6:$AR$1538,$A9,FALSE)),0,(MROUND(VLOOKUP(F$8&$A$7&$A$8,'Calc-HC1'!$B$6:$AR$1538,$A9,FALSE),10))),"-") -> 23540 | G9: =IFERROR(IF(ISNA(VLOOKUP(G$8&$A$7&$A$8,'Calc-HC1'!$B$6:$AR$1538,$A9,FALSE)),0,(MROUND(VLOOKUP(G$8&$A$7&$A$8,'Calc-HC1'!$B$6:$AR$1538,$A9,FALSE),10))),"-") -> 17150 | H9: =IFERROR(IF(ISNA(VLOOKUP(H$8&$A$7&$A$8,'Calc-HC1'!$B$6:$AR$1538,$A9,FALSE)),0,(MROUND(VLOOKUP(H$8&$A$7&$A$8,'Calc-HC1'!$B$6:$AR$1538,$A9,FALSE),10))),"-") -> 14940 | I9: =IFERROR(IF(ISNA(VLOOKUP(I$8&$A$7&$A$8,'Calc-HC1'!$B$6:$AR$1538,$A9,FALSE)),0,(MROUND(VLOOKUP(I$8&$A$7&$A$8,'Calc-HC1'!$B$6:$AR$1538,$A9,FALSE),10))),"-") -> 14080 | J9: =IFERROR(IF(ISNA(VLOOKUP(J$8&$A$7&$A$8,'Calc-HC1'!$B$6:$AR$1538,$A9,FALSE)),0,(MROUND(VLOOKUP(J$8&$A$7&$A$8,'Calc-HC1'!$B$6:$AR$1538,$A9,FALSE),10))),"-") -> 14820 | K9: =IFERROR(IF(ISNA(VLOOKUP(K$8&$A$7&$A$8,'Calc-HC1'!$B$6:$AR$1538,$A9,FALSE)),0,(MROUND(VLOOKUP(K$8&$A$7&$A$8,'Calc-HC1'!$B$6:$AR$1538,$A9,FALSE),10))),"-") -> 14690 | L9: =IFERROR(IF(ISNA(VLOOKUP(L$8&$A$7&$A$8,'Calc-HC1'!$B$6:$AR$1538,$A9,FALSE)),0,(MROUND(VLOOKUP(L$8&$A$7&$A$8,'Calc-HC1'!$B$6:$AR$1538,$A9,FALSE),10))),"-") -> 14300 | M9: =IFERROR(IF(ISNA(VLOOKUP(M$8&$A$7&$A$8,'Calc-HC1'!$B$6:$AR$1538,$A9,FALSE)),0,(MROUND(VLOOKUP(M$8&$A$7&$A$8,'Calc-HC1'!$B$6:$AR$1538,$A9,FALSE),10))),"-") -> 14850 | N9: =IFERROR(IF(ISNA(VLOOKUP(N$8&$A$7&$A$8,'Calc-HC1'!$B$6:$AR$1538,$A9,FALSE)),0,(MROUND(VLOOKUP(N$8&$A$7&$A$8,'Calc-HC1'!$B$6:$AR$1538,$A9,FALSE),10))),"-") -> 13880 | O9: =IFERROR(IF(ISNA(VLOOKUP(O$8&$A$7&$A$8,'Calc-HC1'!$B$6:$AR$1538,$A9,FALSE)),0,(MROUND(VLOOKUP(O$8&$A$7&$A$8,'Calc-HC1'!$B$6:$AR$1538,$A9,FALSE),10))),"-") -> 13070 | P9: =IFERROR(IF(ISNA(VLOOKUP(P$8&$A$7&$A$8,'Calc-HC1'!$B$6:$AR$1538,$A9,FALSE)),0,(MROUND(VLOOKUP(P$8&$A$7&$A$8,'Calc-HC1'!$B$6:$AR$1538,$A9,FALSE),10))),"-") -> 12260 | Q9: =IFERROR(IF(ISNA(VLOOKUP(Q$8&$A$7&$A$8,'Calc-HC1'!$B$6:$AR$1538,$A9,FALSE)),0,(MROUND(VLOOKUP(Q$8&$A$7&$A$8,'Calc-HC1'!$B$6:$AR$1538,$A9,FALSE),10))),"-") -> 11670 | R9: =IFERROR(IF(ISNA(VLOOKUP(R$8&$A$7&$A$8,'Calc-HC1'!$B$6:$AR$1538,$A9,FALSE)),0,(MROUND(VLOOKUP(R$8&$A$7&$A$8,'Calc-HC1'!$B$6:$AR$1538,$A9,FALSE),10))),"-") -> 9710 | S9: =IFERROR(IF(ISNA(VLOOKUP(S$8&$A$7&$A$8,'Calc-HC1'!$B$6:$AR$1538,$A9,FALSE)),0,(MROUND(VLOOKUP(S$8&$A$7&$A$8,'Calc-HC1'!$B$6:$AR$1538,$A9,FALSE),10))),"-") -> 8980 | T9: =IFERROR(IF(ISNA(VLOOKUP(T$8&$A$7&$A$8,'Calc-HC1'!$B$6:$AR$1538,$A9,FALSE)),0,(MROUND(VLOOKUP(T$8&$A$7&$A$8,'Calc-HC1'!$B$6:$AR$1538,$A9,FALSE),10))),"-") -> 10200 | U9: =IFERROR(IF(ISNA(VLOOKUP(U$8&$A$7&$A$8,'Calc-HC1'!$B$6:$AR$1538,$A9,FALSE)),0,(MROUND(VLOOKUP(U$8&$A$7&$A$8,'Calc-HC1'!$B$6:$AR$1538,$A9,FALSE),10))),"-") -> 9640 | V9: =IFERROR(IF(ISNA(VLOOKUP(V$8&$A$7&$A$8,'Calc-HC1'!$B$6:$AR$1538,$A9,FALSE)),0,(MROUND(VLOOKUP(V$8&$A$7&$A$8,'Calc-HC1'!$B$6:$AR$1538,$A9,FALSE),10))),"-") -> 9240 | W9: =IFERROR(IF(ISNA(VLOOKUP(W$8&$A$7&$A$8,'Calc-HC1'!$B$6:$AR$1538,$A9,FALSE)),0,(MROUND(VLOOKUP(W$8&$A$7&$A$8,'Calc-HC1'!$B$6:$AR$1538,$A9,FALSE),10))),"-") -> 8060 | X9: =IFERROR(IF(ISNA(VLOOKUP(X$8&$A$7&$A$8,'Calc-HC1'!$B$6:$AR$1538,$A9,FALSE)),0,(MROUND(VLOOKUP(X$8&$A$7&$A$8,'Calc-HC1'!$B$6:$AR$1538,$A9,FALSE),10))),"-") -> 7940
A10: 20 | D10: % of total | E10: =IF(ISNA(VLOOKUP(E$8&$A$7&$A$8,'Calc-HC1'!$B$6:$AR$1538,$A10,FALSE)),0,(VLOOKUP(E$8&$A$7&$A$8,'Calc-HC1'!$B$6:$AR$1538,$A10,FALSE))) -> 0.32 | F10: =IF(ISNA(VLOOKUP(F$8&$A$7&$A$8,'Calc-HC1'!$B$6:$AR$1538,$A10,FALSE)),0,(VLOOKUP(F$8&$A$7&$A$8,'Calc-HC1'!$B$6:$AR$1538,$A10,FALSE))) -> 0.32 | G10: =IF(ISNA(VLOOKUP(G$8&$A$7&$A$8,'Calc-HC1'!$B$6:$AR$1538,$A10,FALSE)),0,(VLOOKUP(G$8&$A$7&$A$8,'Calc-HC1'!$B$6:$AR$1538,$A10,FALSE))) -> 0.24 | H10: =IF(ISNA(VLOOKUP(H$8&$A$7&$A$8,'Calc-HC1'!$B$6:$AR$1538,$A10,FALSE)),0,(VLOOKUP(H$8&$A$7&$A$8,'Calc-HC1'!$B$6:$AR$1538,$A10,FALSE))) -> 0.23 | I10: =IF(ISNA(VLOOKUP(I$8&$A$7&$A$8,'Calc-HC1'!$B$6:$AR$1538,$A10,FALSE)),0,(VLOOKUP(I$8&$A$7&$A$8,'Calc-HC1'!$B$6:$AR$1538,$A10,FALSE))) -> 0.22 | J10: =IF(ISNA(VLOOKUP(J$8&$A$7&$A$8,'Calc-HC1'!$B$6:$AR$1538,$A10,FALSE)),0,(VLOOKUP(J$8&$A$7&$A$8,'Calc-HC1'!$B$6:$AR$1538,$A10,FALSE))) -> 0.22 | K10: =IF(ISNA(VLOOKUP(K$8&$A$7&$A$8,'Calc-HC1'!$B$6:$AR$1538,$A10,FALSE)),0,(VLOOKUP(K$8&$A$7&$A$8,'Calc-HC1'!$B$6:$AR$1538,$A10,FALSE))) -> 0.21 | L10: =IF(ISNA(VLOOKUP(L$8&$A$7&$A$8,'Calc-HC1'!$B$6:$AR$1538,$A10,FALSE)),0,(VLOOKUP(L$8&$A$7&$A$8,'Calc-HC1'!$B$6:$AR$1538,$A10,FALSE))) -> 0.2 | M10: =IF(ISNA(VLOOKUP(M$8&$A$7&$A$8,'Calc-HC1'!$B$6:$AR$1538,$A10,FALSE)),0,(VLOOKUP(M$8&$A$7&$A$8,'Calc-HC1'!$B$6:$AR$1538,$A10,FALSE))) -> 0.21 | N10: =IF(ISNA(VLOOKUP(N$8&$A$7&$A$8,'Calc-HC1'!$B$6:$AR$1538,$A10,FALSE)),0,(VLOOKUP(N$8&$A$7&$A$8,'Calc-HC1'!$B$6:$AR$1538,$A10,FALSE))) -> 0.2 | O10: =IF(ISNA(VLOOKUP(O$8&$A$7&$A$8,'Calc-HC1'!$B$6:$AR$1538,$A10,FALSE)),0,(VLOOKUP(O$8&$A$7&$A$8,'Calc-HC1'!$B$6:$AR$1538,$A10,FALSE))) -> 0.19 | P10: =IF(ISNA(VLOOKUP(P$8&$A$7&$A$8,'Calc-HC1'!$B$6:$AR$1538,$A10,FALSE)),0,(VLOOKUP(P$8&$A$7&$A$8,'Calc-HC1'!$B$6:$AR$1538,$A10,FALSE))) -> 0.18 | Q10: =IF(ISNA(VLOOKUP(Q$8&$A$7&$A$8,'Calc-HC1'!$B$6:$AR$1538,$A10,FALSE)),0,(VLOOKUP(Q$8&$A$7&$A$8,'Calc-HC1'!$B$6:$AR$1538,$A10,FALSE))) -> 0.18 | R10: =IF(ISNA(VLOOKUP(R$8&$A$7&$A$8,'Calc-HC1'!$B$6:$AR$1538,$A10,FALSE)),0,(VLOOKUP(R$8&$A$7&$A$8,'Calc-HC1'!$B$6:$AR$1538,$A10,FALSE))) -> 0.15 | S10: =IF(ISNA(VLOOKUP(S$8&$A$7&$A$8,'Calc-HC1'!$B$6:$AR$1538,$A10,FALSE)),0,(VLOOKUP(S$8&$A$7&$A$8,'Calc-HC1'!$B$6:$AR$1538,$A10,FALSE))) -> 0.14 | T10: =IF(ISNA(VLOOKUP(T$8&$A$7&$A$8,'Calc-HC1'!$B$6:$AR$1538,$A10,FALSE)),0,(VLOOKUP(T$8&$A$7&$A$8,'Calc-HC1'!$B$6:$AR$1538,$A10,FALSE))) -> 0.1399507793 | U10: =IF(ISNA(VLOOKUP(U$8&$A$7&$A$8,'Calc-HC1'!$B$6:$AR$1538,$A10,FALSE)),0,(VLOOKUP(U$8&$A$7&$A$8,'Calc-HC1'!$B$6:$AR$1538,$A10,FALSE))) -> 0.1560864987 | V10: =IF(ISNA(VLOOKUP(V$8&$A$7&$A$8,'Calc-HC1'!$B$6:$AR$1538,$A10,FALSE)),0,(VLOOKUP(V$8&$A$7&$A$8,'Calc-HC1'!$B$6:$AR$1538,$A10,FALSE))) -> 0.1502739793 | W10: =IF(ISNA(VLOOKUP(W$8&$A$7&$A$8,'Calc-HC1'!$B$6:$AR$1538,$A10,FALSE)),0,(VLOOKUP(W$8&$A$7&$A$8,'Calc-HC1'!$B$6:$AR$1538,$A10,FALSE))) -> 0.1348891677 | X10: =IF(ISNA(VLOOKUP(X$8&$A$7&$A$8,'Calc-HC1'!$B$6:$AR$1538,$A10,FALSE)),0,(VLOOKUP(X$8&$A$7&$A$8,'Calc-HC1'!$B$6:$AR$1538,$A10,FALSE))) -> 0.1331276617
A11: 21 | C11: Between 2 and 4 hours | D11: No. of Clients | E11: =IFERROR(IF(ISNA(VLOOKUP(E$8&$A$7&$A$8,'Calc-HC1'!$B$6:$AR$1538,$A11,FALSE)),0,(MROUND(VLOOKUP(E$8&$A$7&$A$8,'Calc-HC1'!$B$6:$AR$1538,$A11,FALSE),10))),"-") -> 20780 | F11: =IFERROR(IF(ISNA(VLOOKUP(F$8&$A$7&$A$8,'Calc-HC1'!$B$6:$AR$1538,$A11,FALSE)),0,(MROUND(VLOOKUP(F$8&$A$7&$A$8,'Calc-HC1'!$B$6:$AR$1538,$A11,FALSE),10))),"-") -> 20730 | G11: =IFERROR(IF(ISNA(VLOOKUP(G$8&$A$7&$A$8,'Calc-HC1'!$B$6:$AR$1538,$A11,FALSE)),0,(MROUND(VLOOKUP(G$8&$A$7&$A$8,'Calc-HC1'!$B$6:$AR$1538,$A11,FALSE),10))),"-") -> 20840 | H11: =IFERROR(IF(ISNA(VLOOKUP(H$8&$A$7&$A$8,'Calc-HC1'!$B$6:$AR$1538,$A11,FALSE)),0,(MROUND(VLOOKUP(H$8&$A$7&$A$8,'Calc-HC1'!$B$6:$AR$1538,$A11,FALSE),10))),"-") -> 18840 | I11: =IFERROR(IF(ISNA(VLOOKUP(I$8&$A$7&$A$8,'Calc-HC1'!$B$6:$AR$1538,$A11,FALSE)),0,(MROUND(VLOOKUP(I$8&$A$7&$A$8,'Calc-HC1'!$B$6:$AR$1538,$A11,FALSE),10))),"-") -> 17630 | J11: =IFERROR(IF(ISNA(VLOOKUP(J$8&$A$7&$A$8,'Calc-HC1'!$B$6:$AR$1538,$A11,FALSE)),0,(MROUND(VLOOKUP(J$8&$A$7&$A$8,'Calc-HC1'!$B$6:$AR$1538,$A11,FALSE),10))),"-") -> 17440 | K11: =IFERROR(IF(ISNA(VLOOKUP(K$8&$A$7&$A$8,'Calc-HC1'!$B$6:$AR$1538,$A11,FALSE)),0,(MROUND(VLOOKUP(K$8&$A$7&$A$8,'Calc-HC1'!$B$6:$AR$1538,$A11,FALSE),10))),"-") -> 17670 | L11: =IFERROR(IF(ISNA(VLOOKUP(L$8&$A$7&$A$8,'Calc-HC1'!$B$6:$AR$1538,$A11,FALSE)),0,(MROUND(VLOOKUP(L$8&$A$7&$A$8,'Calc-HC1'!$B$6:$AR$1538,$A11,FALSE),10))),"-") -> 17530 | M11: =IFERROR(IF(ISNA(VLOOKUP(M$8&$A$7&$A$8,'Calc-HC1'!$B$6:$AR$1538,$A11,FALSE)),0,(MROUND(VLOOKUP(M$8&$A$7&$A$8,'Calc-HC1'!$B$6:$AR$1538,$A11,FALSE),10))),"-") -> 16920 | N11: =IFERROR(IF(ISNA(VLOOKUP(N$8&$A$7&$A$8,'Calc-HC1'!$B$6:$AR$1538,$A11,FALSE)),0,(MROUND(VLOOKUP(N$8&$A$7&$A$8,'Calc-HC1'!$B$6:$AR$1538,$A11,FALSE),10))),"-") -> 16140 | O11: =IFERROR(IF(ISNA(VLOOKUP(O$8&$A$7&$A$8,'Calc-HC1'!$B$6:$AR$1538,$A11,FALSE)),0,(MROUND(VLOOKUP(O$8&$A$7&$A$8,'Calc-HC1'!$B$6:$AR$1538,$A11,FALSE),10))),"-") -> 14630 | P11: =IFERROR(IF(ISNA(VLOOKUP(P$8&$A$7&$A$8,'Calc-HC1'!$B$6:$AR$1538,$A11,FALSE)),0,(MROUND(VLOOKUP(P$8&$A$7&$A$8,'Calc-HC1'!$B$6:$AR$1538,$A11,FALSE),10))),"-") -> 14690 | Q11: =IFERROR(IF(ISNA(VLOOKUP(Q$8&$A$7&$A$8,'Calc-HC1'!$B$6:$AR$1538,$A11,FALSE)),0,(MROUND(VLOOKUP(Q$8&$A$7&$A$8,'Calc-HC1'!$B$6:$AR$1538,$A11,FALSE),10))),"-") -> 13550 | R11: =IFERROR(IF(ISNA(VLOOKUP(R$8&$A$7&$A$8,'Calc-HC1'!$B$6:$AR$1538,$A11,FALSE)),0,(MROUND(VLOOKUP(R$8&$A$7&$A$8,'Calc-HC1'!$B$6:$AR$1538,$A11,FALSE),10))),"-") -> 12870 | S11: =IFERROR(IF(ISNA(VLOOKUP(S$8&$A$7&$A$8,'Calc-HC1'!$B$6:$AR$1538,$A11,FALSE)),0,(MROUND(VLOOKUP(S$8&$A$7&$A$8,'Calc-HC1'!$B$6:$AR$1538,$A11,FALSE),10))),"-") -> 12120 | T11: =IFERROR(IF(ISNA(VLOOKUP(T$8&$A$7&$A$8,'Calc-HC1'!$B$6:$AR$1538,$A11,FALSE)),0,(MROUND(VLOOKUP(T$8&$A$7&$A$8,'Calc-HC1'!$B$6:$AR$1538,$A11,FALSE),10))),"-") -> 10930 | U11: =IFERROR(IF(ISNA(VLOOKUP(U$8&$A$7&$A$8,'Calc-HC1'!$B$6:$AR$1538,$A11,FALSE)),0,(MROUND(VLOOKUP(U$8&$A$7&$A$8,'Calc-HC1'!$B$6:$AR$1538,$A11,FALSE),10))),"-") -> 10940 | V11: =IFERROR(IF(ISNA(VLOOKUP(V$8&$A$7&$A$8,'Calc-HC1'!$B$6:$AR$1538,$A11,FALSE)),0,(MROUND(VLOOKUP(V$8&$A$7&$A$8,'Calc-HC1'!$B$6:$AR$1538,$A11,FALSE),10))),"-") -> 9980 | W11: =IFERROR(IF(ISNA(VLOOKUP(W$8&$A$7&$A$8,'Calc-HC1'!$B$6:$AR$1538,$A11,FALSE)),0,(MROUND(VLOOKUP(W$8&$A$7&$A$8,'Calc-HC1'!$B$6:$AR$1538,$A11,FALSE),10))),"-") -> 10280 | X11: =IFERROR(IF(ISNA(VLOOKUP(X$8&$A$7&$A$8,'Calc-HC1'!$B$6:$AR$1538,$A11,FALSE)),0,(MROUND(VLOOKUP(X$8&$A$7&$A$8,'Calc-HC1'!$B$6:$AR$1538,$A11,FALSE),10))),"-") -> 10040
A12: 22 | D12: % of total | E12: =IF(ISNA(VLOOKUP(E$8&$A$7&$A$8,'Calc-HC1'!$B$6:$AR$1339,$A12,FALSE)),0,(VLOOKUP(E$8&$A$7&$A$8,'Calc-HC1'!$B$6:$AR$1339,$A12,FALSE))) -> 0.26 | F12: =IF(ISNA(VLOOKUP(F$8&$A$7&$A$8,'Calc-HC1'!$B$6:$AR$1339,$A12,FALSE)),0,(VLOOKUP(F$8&$A$7&$A$8,'Calc-HC1'!$B$6:$AR$1339,$A12,FALSE))) -> 0.28 | G12: =IF(ISNA(VLOOKUP(G$8&$A$7&$A$8,'Calc-HC1'!$B$6:$AR$1339,$A12,FALSE)),0,(VLOOKUP(G$8&$A$7&$A$8,'Calc-HC1'!$B$6:$AR$1339,$A12,FALSE))) -> 0.3 | H12: =IF(ISNA(VLOOKUP(H$8&$A$7&$A$8,'Calc-HC1'!$B$6:$AR$1339,$A12,FALSE)),0,(VLOOKUP(H$8&$A$7&$A$8,'Calc-HC1'!$B$6:$AR$1339,$A12,FALSE))) -> 0.29 | I12: =IF(ISNA(VLOOKUP(I$8&$A$7&$A$8,'Calc-HC1'!$B$6:$AR$1339,$A12,FALSE)),0,(VLOOKUP(I$8&$A$7&$A$8,'Calc-HC1'!$B$6:$AR$1339,$A12,FALSE))) -> 0.27 | J12: =IF(ISNA(VLOOKUP(J$8&$A$7&$A$8,'Calc-HC1'!$B$6:$AR$1339,$A12,FALSE)),0,(VLOOKUP(J$8&$A$7&$A$8,'Calc-HC1'!$B$6:$AR$1339,$A12,FALSE))) -> 0.26 | K12: =IF(ISNA(VLOOKUP(K$8&$A$7&$A$8,'Calc-HC1'!$B$6:$AR$1339,$A12,FALSE)),0,(VLOOKUP(K$8&$A$7&$A$8,'Calc-HC1'!$B$6:$AR$1339,$A12,FALSE))) -> 0.25 | L12: =IF(ISNA(VLOOKUP(L$8&$A$7&$A$8,'Calc-HC1'!$B$6:$AR$1339,$A12,FALSE)),0,(VLOOKUP(L$8&$A$7&$A$8,'Calc-HC1'!$B$6:$AR$1339,$A12,FALSE))) -> 0.25 | M12: =IF(ISNA(VLOOKUP(M$8&$A$7&$A$8,'Calc-HC1'!$B$6:$AR$1339,$A12,FALSE)),0,(VLOOKUP(M$8&$A$7&$A$8,'Calc-HC1'!$B$6:$AR$1339,$A12,FALSE))) -> 0.24 | N12: =IF(ISNA(VLOOKUP(N$8&$A$7&$A$8,'Calc-HC1'!$B$6:$AR$1339,$A12,FALSE)),0,(VLOOKUP(N$8&$A$7&$A$8,'Calc-HC1'!$B$6:$AR$1339,$A12,FALSE))) -> 0.23 | O12: =IF(ISNA(VLOOKUP(O$8&$A$7&$A$8,'Calc-HC1'!$B$6:$AR$1339,$A12,FALSE)),0,(VLOOKUP(O$8&$A$7&$A$8,'Calc-HC1'!$B$6:$AR$1339,$A12,FALSE))) -> 0.21 | P12: =IF(ISNA(VLOOKUP(P$8&$A$7&$A$8,'Calc-HC1'!$B$6:$AR$1339,$A12,FALSE)),0,(VLOOKUP(P$8&$A$7&$A$8,'Calc-HC1'!$B$6:$AR$1339,$A12,FALSE))) -> 0.21 | Q12: =IF(ISNA(VLOOKUP(Q$8&$A$7&$A$8,'Calc-HC1'!$B$6:$AR$1339,$A12,FALSE)),0,(VLOOKUP(Q$8&$A$7&$A$8,'Calc-HC1'!$B$6:$AR$1339,$A12,FALSE))) -> 0.2 | R12: =IF(ISNA(VLOOKUP(R$8&$A$7&$A$8,'Calc-HC1'!$B$6:$AR$1339,$A12,FALSE)),0,(VLOOKUP(R$8&$A$7&$A$8,'Calc-HC1'!$B$6:$AR$1339,$A12,FALSE))) -> 0.2 | S12: =IF(ISNA(VLOOKUP(S$8&$A$7&$A$8,'Calc-HC1'!$B$6:$AR$1339,$A12,FALSE)),0,(VLOOKUP(S$8&$A$7&$A$8,'Calc-HC1'!$B$6:$AR$1339,$A12,FALSE))) -> 0.19 | T12: =IF(ISNA(VLOOKUP(T$8&$A$7&$A$8,'Calc-HC1'!$B$6:$AR$1339,$A12,FALSE)),0,(VLOOKUP(T$8&$A$7&$A$8,'Calc-HC1'!$B$6:$AR$1339,$A12,FALSE))) -> 0.1849384742 | U12: =IF(ISNA(VLOOKUP(U$8&$A$7&$A$8,'Calc-HC1'!$B$6:$AR$1339,$A12,FALSE)),0,(VLOOKUP(U$8&$A$7&$A$8,'Calc-HC1'!$B$6:$AR$1339,$A12,FALSE))) -> 0.1771604438 | V12: =IF(ISNA(VLOOKUP(V$8&$A$7&$A$8,'Calc-HC1'!$B$6:$AR$1339,$A12,FALSE)),0,(VLOOKUP(V$8&$A$7&$A$8,'Calc-HC1'!$B$6:$AR$1339,$A12,FALSE))) -> 0.1622087446 | W12: =IF(ISNA(VLOOKUP(W$8&$A$7&$A$8,'Calc-HC1'!$B$6:$AR$1538,$A12,FALSE)),0,(VLOOKUP(W$8&$A$7&$A$8,'Calc-HC1'!$B$6:$AR$1538,$A12,FALSE))) -> 0.1720451694 | X12: =IF(ISNA(VLOOKUP(X$8&$A$7&$A$8,'Calc-HC1'!$B$6:$AR$1538,$A12,FALSE)),0,(VLOOKUP(X$8&$A$7&$A$8,'Calc-HC1'!$B$6:$AR$1538,$A12,FALSE))) -> 0.1683545153
A13: 23 | C13: Between 4 and 10 hours | D13: No. of Clients | E13: =IFERROR(IF(ISNA(VLOOKUP(E$8&$A$7&$A$8,'Calc-HC1'!$B$6:$AR$1538,$A13,FALSE)),0,(MROUND(VLOOKUP(E$8&$A$7&$A$8,'Calc-HC1'!$B$6:$AR$1538,$A13,FALSE),10))),"-") -> 20770 | F13: =IFERROR(IF(ISNA(VLOOKUP(F$8&$A$7&$A$8,'Calc-HC1'!$B$6:$AR$1538,$A13,FALSE)),0,(MROUND(VLOOKUP(F$8&$A$7&$A$8,'Calc-HC1'!$B$6:$AR$1538,$A13,FALSE),10))),"-") -> 20680 | G13: =IFERROR(IF(ISNA(VLOOKUP(G$8&$A$7&$A$8,'Calc-HC1'!$B$6:$AR$1538,$A13,FALSE)),0,(MROUND(VLOOKUP(G$8&$A$7&$A$8,'Calc-HC1'!$B$6:$AR$1538,$A13,FALSE),10))),"-") -> 21630 | H13: =IFERROR(IF(ISNA(VLOOKUP(H$8&$A$7&$A$8,'Calc-HC1'!$B$6:$AR$1538,$A13,FALSE)),0,(MROUND(VLOOKUP(H$8&$A$7&$A$8,'Calc-HC1'!$B$6:$AR$1538,$A13,FALSE),10))),"-") -> 19980 | I13: =IFERROR(IF(ISNA(VLOOKUP(I$8&$A$7&$A$8,'Calc-HC1'!$B$6:$AR$1538,$A13,FALSE)),0,(MROUND(VLOOKUP(I$8&$A$7&$A$8,'Calc-HC1'!$B$6:$AR$1538,$A13,FALSE),10))),"-") -> 19270 | J13: =IFERROR(IF(ISNA(VLOOKUP(J$8&$A$7&$A$8,'Calc-HC1'!$B$6:$AR$1538,$A13,FALSE)),0,(MROUND(VLOOKUP(J$8&$A$7&$A$8,'Calc-HC1'!$B$6:$AR$1538,$A13,FALSE),10))),"-") -> 19820 | K13: =IFERROR(IF(ISNA(VLOOKUP(K$8&$A$7&$A$8,'Calc-HC1'!$B$6:$AR$1538,$A13,FALSE)),0,(MROUND(VLOOKUP(K$8&$A$7&$A$8,'Calc-HC1'!$B$6:$AR$1538,$A13,FALSE),10))),"-") -> 20710 | L13: =IFERROR(IF(ISNA(VLOOKUP(L$8&$A$7&$A$8,'Calc-HC1'!$B$6:$AR$1538,$A13,FALSE)),0,(MROUND(VLOOKUP(L$8&$A$7&$A$8,'Calc-HC1'!$B$6:$AR$1538,$A13,FALSE),10))),"-") -> 21190 | M13: =IFERROR(IF(ISNA(VLOOKUP(M$8&$A$7&$A$8,'Calc-HC1'!$B$6:$AR$1538,$A13,FALSE)),0,(MROUND(VLOOKUP(M$8&$A$7&$A$8,'Calc-HC1'!$B$6:$AR$1538,$A13,FALSE),10))),"-") -> 20610 | N13: =IFERROR(IF(ISNA(VLOOKUP(N$8&$A$7&$A$8,'Calc-HC1'!$B$6:$AR$1538,$A13,FALSE)),0,(MROUND(VLOOKUP(N$8&$A$7&$A$8,'Calc-HC1'!$B$6:$AR$1538,$A13,FALSE),10))),"-") -> 21200 | O13: =IFERROR(IF(ISNA(VLOOKUP(O$8&$A$7&$A$8,'Calc-HC1'!$B$6:$AR$1538,$A13,FALSE)),0,(MROUND(VLOOKUP(O$8&$A$7&$A$8,'Calc-HC1'!$B$6:$AR$1538,$A13,FALSE),10))),"-") -> 20670 | P13: =IFERROR(IF(ISNA(VLOOKUP(P$8&$A$7&$A$8,'Calc-HC1'!$B$6:$AR$1538,$A13,FALSE)),0,(MROUND(VLOOKUP(P$8&$A$7&$A$8,'Calc-HC1'!$B$6:$AR$1538,$A13,FALSE),10))),"-") -> 21170 | Q13: =IFERROR(IF(ISNA(VLOOKUP(Q$8&$A$7&$A$8,'Calc-HC1'!$B$6:$AR$1538,$A13,FALSE)),0,(MROUND(VLOOKUP(Q$8&$A$7&$A$8,'Calc-HC1'!$B$6:$AR$1538,$A13,FALSE),10))),"-") -> 20170 | R13: =IFERROR(IF(ISNA(VLOOKUP(R$8&$A$7&$A$8,'Calc-HC1'!$B$6:$AR$1538,$A13,FALSE)),0,(MROUND(VLOOKUP(R$8&$A$7&$A$8,'Calc-HC1'!$B$6:$AR$1538,$A13,FALSE),10))),"-") -> 20130 | S13: =IFERROR(IF(ISNA(VLOOKUP(S$8&$A$7&$A$8,'Calc-HC1'!$B$6:$AR$1538,$A13,FALSE)),0,(MROUND(VLOOKUP(S$8&$A$7&$A$8,'Calc-HC1'!$B$6:$AR$1538,$A13,FALSE),10))),"-") -> 20280 | T13: =IFERROR(IF(ISNA(VLOOKUP(T$8&$A$7&$A$8,'Calc-HC1'!$B$6:$AR$1538,$A13,FALSE)),0,(MROUND(VLOOKUP(T$8&$A$7&$A$8,'Calc-HC1'!$B$6:$AR$1538,$A13,FALSE),10))),"-") -> 19160 | U13: =IFERROR(IF(ISNA(VLOOKUP(U$8&$A$7&$A$8,'Calc-HC1'!$B$6:$AR$1538,$A13,FALSE)),0,(MROUND(VLOOKUP(U$8&$A$7&$A$8,'Calc-HC1'!$B$6:$AR$1538,$A13,FALSE),10))),"-") -> 19460 | V13: =IFERROR(IF(ISNA(VLOOKUP(V$8&$A$7&$A$8,'Calc-HC1'!$B$6:$AR$1538,$A13,FALSE)),0,(MROUND(VLOOKUP(V$8&$A$7&$A$8,'Calc-HC1'!$B$6:$AR$1538,$A13,FALSE),10))),"-") -> 19360 | W13: =IFERROR(IF(ISNA(VLOOKUP(W$8&$A$7&$A$8,'Calc-HC1'!$B$6:$AR$1538,$A13,FALSE)),0,(MROUND(VLOOKUP(W$8&$A$7&$A$8,'Calc-HC1'!$B$6:$AR$1538,$A13,FALSE),10))),"-") -> 19540 | X13: =IFERROR(IF(ISNA(VLOOKUP(X$8&$A$7&$A$8,'Calc-HC1'!$B$6:$AR$1538,$A13,FALSE)),0,(MROUND(VLOOKUP(X$8&$A$7&$A$8,'Calc-HC1'!$B$6:$AR$1538,$A13,FALSE),10))),"-") -> 19300
A14: 24 | D14: % of total | E14: =IF(ISNA(VLOOKUP(E$8&$A$7&$A$8,'Calc-HC1'!$B$6:$AR$1339,$A14,FALSE)),0,(VLOOKUP(E$8&$A$7&$A$8,'Calc-HC1'!$B$6:$AR$1339,$A14,FALSE))) -> 0.26 | F14: =IF(ISNA(VLOOKUP(F$8&$A$7&$A$8,'Calc-HC1'!$B$6:$AR$1339,$A14,FALSE)),0,(VLOOKUP(F$8&$A$7&$A$8,'Calc-HC1'!$B$6:$AR$1339,$A14,FALSE))) -> 0.28 | G14: =IF(ISNA(VLOOKUP(G$8&$A$7&$A$8,'Calc-HC1'!$B$6:$AR$1339,$A14,FALSE)),0,(VLOOKUP(G$8&$A$7&$A$8,'Calc-HC1'!$B$6:$AR$1339,$A14,FALSE))) -> 0.31 | H14: =IF(ISNA(VLOOKUP(H$8&$A$7&$A$8,'Calc-HC1'!$B$6:$AR$1339,$A14,FALSE)),0,(VLOOKUP(H$8&$A$7&$A$8,'Calc-HC1'!$B$6:$AR$1339,$A14,FALSE))) -> 0.3 | I14: =IF(ISNA(VLOOKUP(I$8&$A$7&$A$8,'Calc-HC1'!$B$6:$AR$1339,$A14,FALSE)),0,(VLOOKUP(I$8&$A$7&$A$8,'Calc-HC1'!$B$6:$AR$1339,$A14,FALSE))) -> 0.3 | J14: =IF(ISNA(VLOOKUP(J$8&$A$7&$A$8,'Calc-HC1'!$B$6:$AR$1339,$A14,FALSE)),0,(VLOOKUP(J$8&$A$7&$A$8,'Calc-HC1'!$B$6:$AR$1339,$A14,FALSE))) -> 0.29 | K14: =IF(ISNA(VLOOKUP(K$8&$A$7&$A$8,'Calc-HC1'!$B$6:$AR$1339,$A14,FALSE)),0,(VLOOKUP(K$8&$A$7&$A$8,'Calc-HC1'!$B$6:$AR$1339,$A14,FALSE))) -> 0.3 | L14: =IF(ISNA(VLOOKUP(L$8&$A$7&$A$8,'Calc-HC1'!$B$6:$AR$1339,$A14,FALSE)),0,(VLOOKUP(L$8&$A$7&$A$8,'Calc-HC1'!$B$6:$AR$1339,$A14,FALSE))) -> 0.3 | M14: =IF(ISNA(VLOOKUP(M$8&$A$7&$A$8,'Calc-HC1'!$B$6:$AR$1339,$A14,FALSE)),0,(VLOOKUP(M$8&$A$7&$A$8,'Calc-HC1'!$B$6:$AR$1339,$A14,FALSE))) -> 0.29 | N14: =IF(ISNA(VLOOKUP(N$8&$A$7&$A$8,'Calc-HC1'!$B$6:$AR$1339,$A14,FALSE)),0,(VLOOKUP(N$8&$A$7&$A$8,'Calc-HC1'!$B$6:$AR$1339,$A14,FALSE))) -> 0.3 | O14: =IF(ISNA(VLOOKUP(O$8&$A$7&$A$8,'Calc-HC1'!$B$6:$AR$1339,$A14,FALSE)),0,(VLOOKUP(O$8&$A$7&$A$8,'Calc-HC1'!$B$6:$AR$1339,$A14,FALSE))) -> 0.3 | P14: =IF(ISNA(VLOOKUP(P$8&$A$7&$A$8,'Calc-HC1'!$B$6:$AR$1339,$A14,FALSE)),0,(VLOOKUP(P$8&$A$7&$A$8,'Calc-HC1'!$B$6:$AR$1339,$A14,FALSE))) -> 0.31 | Q14: =IF(ISNA(VLOOKUP(Q$8&$A$7&$A$8,'Calc-HC1'!$B$6:$AR$1339,$A14,FALSE)),0,(VLOOKUP(Q$8&$A$7&$A$8,'Calc-HC1'!$B$6:$AR$1339,$A14,FALSE))) -> 0.3 | R14: =IF(ISNA(VLOOKUP(R$8&$A$7&$A$8,'Calc-HC1'!$B$6:$AR$1339,$A14,FALSE)),0,(VLOOKUP(R$8&$A$7&$A$8,'Calc-HC1'!$B$6:$AR$1339,$A14,FALSE))) -> 0.32 | S14: =IF(ISNA(VLOOKUP(S$8&$A$7&$A$8,'Calc-HC1'!$B$6:$AR$1339,$A14,FALSE)),0,(VLOOKUP(S$8&$A$7&$A$8,'Calc-HC1'!$B$6:$AR$1339,$A14,FALSE))) -> 0.32 | T14: =IF(ISNA(VLOOKUP(T$8&$A$7&$A$8,'Calc-HC1'!$B$6:$AR$1339,$A14,FALSE)),0,(VLOOKUP(T$8&$A$7&$A$8,'Calc-HC1'!$B$6:$AR$1339,$A14,FALSE))) -> 0.3272518458 | U14: =IF(ISNA(VLOOKUP(U$8&$A$7&$A$8,'Calc-HC1'!$B$6:$AR$1339,$A14,FALSE)),0,(VLOOKUP(U$8&$A$7&$A$8,'Calc-HC1'!$B$6:$AR$1339,$A14,FALSE))) -> 0.3152506682 | V14: =IF(ISNA(VLOOKUP(V$8&$A$7&$A$8,'Calc-HC1'!$B$6:$AR$1339,$A14,FALSE)),0,(VLOOKUP(V$8&$A$7&$A$8,'Calc-HC1'!$B$6:$AR$1339,$A14,FALSE))) -> 0.3147428497 | W14: =IF(ISNA(VLOOKUP(W$8&$A$7&$A$8,'Calc-HC1'!$B$6:$AR$1538,$A14,FALSE)),0,(VLOOKUP(W$8&$A$7&$A$8,'Calc-HC1'!$B$6:$AR$1538,$A14,FALSE))) -> 0.3268423254 | X14: =IF(ISNA(VLOOKUP(X$8&$A$7&$A$8,'Calc-HC1'!$B$6:$AR$1538,$A14,FALSE)),0,(VLOOKUP(X$8&$A$7&$A$8,'Calc-HC1'!$B$6:$AR$1538,$A14,FALSE))) -> 0.3235806982
A15: 25 | C15: Greater than 10 hours | D15: No. of Clients | E15: =IFERROR(IF(ISNA(VLOOKUP(E$8&$A$7&$A$8,'Calc-HC1'!$B$6:$AR$1538,$A15,FALSE)),0,(MROUND(VLOOKUP(E$8&$A$7&$A$8,'Calc-HC1'!$B$6:$AR$1538,$A15,FALSE),10))),"-") -> 9120 | F15: =IFERROR(IF(ISNA(VLOOKUP(F$8&$A$7&$A$8,'Calc-HC1'!$B$6:$AR$1538,$A15,FALSE)),0,(MROUND(VLOOKUP(F$8&$A$7&$A$8,'Calc-HC1'!$B$6:$AR$1538,$A15,FALSE),10))),"-") -> 9120 | G15: =IFERROR(IF(ISNA(VLOOKUP(G$8&$A$7&$A$8,'Calc-HC1'!$B$6:$AR$1538,$A15,FALSE)),0,(MROUND(VLOOKUP(G$8&$A$7&$A$8,'Calc-HC1'!$B$6:$AR$1538,$A15,FALSE),10))),"-") -> 10600 | H15: =IFERROR(IF(ISNA(VLOOKUP(H$8&$A$7&$A$8,'Calc-HC1'!$B$6:$AR$1538,$A15,FALSE)),0,(MROUND(VLOOKUP(H$8&$A$7&$A$8,'Calc-HC1'!$B$6:$AR$1538,$A15,FALSE),10))),"-") -> 11780 | I15: =IFERROR(IF(ISNA(VLOOKUP(I$8&$A$7&$A$8,'Calc-HC1'!$B$6:$AR$1538,$A15,FALSE)),0,(MROUND(VLOOKUP(I$8&$A$7&$A$8,'Calc-HC1'!$B$6:$AR$1538,$A15,FALSE),10))),"-") -> 13560 | J15: =IFERROR(IF(ISNA(VLOOKUP(J$8&$A$7&$A$8,'Calc-HC1'!$B$6:$AR$1538,$A15,FALSE)),0,(MROUND(VLOOKUP(J$8&$A$7&$A$8,'Calc-HC1'!$B$6:$AR$1538,$A15,FALSE),10))),"-") -> 15190 | K15: =IFERROR(IF(ISNA(VLOOKUP(K$8&$A$7&$A$8,'Calc-HC1'!$B$6:$AR$1538,$A15,FALSE)),0,(MROUND(VLOOKUP(K$8&$A$7&$A$8,'Calc-HC1'!$B$6:$AR$1538,$A15,FALSE),10))),"-") -> 16910 | L15: =IFERROR(IF(ISNA(VLOOKUP(L$8&$A$7&$A$8,'Calc-HC1'!$B$6:$AR$1538,$A15,FALSE)),0,(MROUND(VLOOKUP(L$8&$A$7&$A$8,'Calc-HC1'!$B$6:$AR$1538,$A15,FALSE),10))),"-") -> 18080 | M15: =IFERROR(IF(ISNA(VLOOKUP(M$8&$A$7&$A$8,'Calc-HC1'!$B$6:$AR$1538,$A15,FALSE)),0,(MROUND(VLOOKUP(M$8&$A$7&$A$8,'Calc-HC1'!$B$6:$AR$1538,$A15,FALSE),10))),"-") -> 18270 | N15: =IFERROR(IF(ISNA(VLOOKUP(N$8&$A$7&$A$8,'Calc-HC1'!$B$6:$AR$1538,$A15,FALSE)),0,(MROUND(VLOOKUP(N$8&$A$7&$A$8,'Calc-HC1'!$B$6:$AR$1538,$A15,FALSE),10))),"-") -> 19500 | O15: =IFERROR(IF(ISNA(VLOOKUP(O$8&$A$7&$A$8,'Calc-HC1'!$B$6:$AR$1538,$A15,FALSE)),0,(MROUND(VLOOKUP(O$8&$A$7&$A$8,'Calc-HC1'!$B$6:$AR$1538,$A15,FALSE),10))),"-") -> 20390 | P15: =IFERROR(IF(ISNA(VLOOKUP(P$8&$A$7&$A$8,'Calc-HC1'!$B$6:$AR$1538,$A15,FALSE)),0,(MROUND(VLOOKUP(P$8&$A$7&$A$8,'Calc-HC1'!$B$6:$AR$1538,$A15,FALSE),10))),"-") -> 20210 | Q15: =IFERROR(IF(ISNA(VLOOKUP(Q$8&$A$7&$A$8,'Calc-HC1'!$B$6:$AR$1538,$A15,FALSE)),0,(MROUND(VLOOKUP(Q$8&$A$7&$A$8,'Calc-HC1'!$B$6:$AR$1538,$A15,FALSE),10))),"-") -> 20840 | R15: =IFERROR(IF(ISNA(VLOOKUP(R$8&$A$7&$A$8,'Calc-HC1'!$B$6:$AR$1538,$A15,FALSE)),0,(MROUND(VLOOKUP(R$8&$A$7&$A$8,'Calc-HC1'!$B$6:$AR$1538,$A15,FALSE),10))),"-") -> 20760 | S15: =IFERROR(IF(ISNA(VLOOKUP(S$8&$A$7&$A$8,'Calc-HC1'!$B$6:$AR$1538,$A15,FALSE)),0,(MROUND(VLOOKUP(S$8&$A$7&$A$8,'Calc-HC1'!$B$6:$AR$1538,$A15,FALSE),10))),"-") -> 21460 | T15: =IFERROR(IF(ISNA(VLOOKUP(T$8&$A$7&$A$8,'Calc-HC1'!$B$6:$AR$1538,$A15,FALSE)),0,(MROUND(VLOOKUP(T$8&$A$7&$A$8,'Calc-HC1'!$B$6:$AR$1538,$A15,FALSE),10))),"-") -> 20780 | U15: =IFERROR(IF(ISNA(VLOOKUP(U$8&$A$7&$A$8,'Calc-HC1'!$B$6:$AR$1538,$A15,FALSE)),0,(MROUND(VLOOKUP(U$8&$A$7&$A$8,'Calc-HC1'!$B$6:$AR$1538,$A15,FALSE),10))),"-") -> 21700 | V15: =IFERROR(IF(ISNA(VLOOKUP(V$8&$A$7&$A$8,'Calc-HC1'!$B$6:$AR$1538,$A15,FALSE)),0,(MROUND(VLOOKUP(V$8&$A$7&$A$8,'Calc-HC1'!$B$6:$AR$1538,$A15,FALSE),10))),"-") -> 22930 | W15: =IFERROR(IF(ISNA(VLOOKUP(W$8&$A$7&$A$8,'Calc-HC1'!$B$6:$AR$1538,$A15,FALSE)),0,(MROUND(VLOOKUP(W$8&$A$7&$A$8,'Calc-HC1'!$B$6:$AR$1538,$A15,FALSE),10))),"-") -> 21890 | X15: =IFERROR(IF(ISNA(VLOOKUP(X$8&$A$7&$A$8,'Calc-HC1'!$B$6:$AR$1538,$A15,FALSE)),0,(MROUND(VLOOKUP(X$8&$A$7&$A$8,'Calc-HC1'!$B$6:$AR$1538,$A15,FALSE),10))),"-") -> 22360
A16: 26 | D16: % of total | E16: =IF(ISNA(VLOOKUP(E$8&$A$7&$A$8,'Calc-HC1'!$B$6:$AR$1339,$A16,FALSE)),0,(VLOOKUP(E$8&$A$7&$A$8,'Calc-HC1'!$B$6:$AR$1339,$A16,FALSE))) -> 0.12 | F16: =IF(ISNA(VLOOKUP(F$8&$A$7&$A$8,'Calc-HC1'!$B$6:$AR$1339,$A16,FALSE)),0,(VLOOKUP(F$8&$A$7&$A$8,'Calc-HC1'!$B$6:$AR$1339,$A16,FALSE))) -> 0.12 | G16: =IF(ISNA(VLOOKUP(G$8&$A$7&$A$8,'Calc-HC1'!$B$6:$AR$1339,$A16,FALSE)),0,(VLOOKUP(G$8&$A$7&$A$8,'Calc-HC1'!$B$6:$AR$1339,$A16,FALSE))) -> 0.15 | H16: =IF(ISNA(VLOOKUP(H$8&$A$7&$A$8,'Calc-HC1'!$B$6:$AR$1339,$A16,FALSE)),0,(VLOOKUP(H$8&$A$7&$A$8,'Calc-HC1'!$B$6:$AR$1339,$A16,FALSE))) -> 0.18 | I16: =IF(ISNA(VLOOKUP(I$8&$A$7&$A$8,'Calc-HC1'!$B$6:$AR$1339,$A16,FALSE)),0,(VLOOKUP(I$8&$A$7&$A$8,'Calc-HC1'!$B$6:$AR$1339,$A16,FALSE))) -> 0.21 | J16: =IF(ISNA(VLOOKUP(J$8&$A$7&$A$8,'Calc-HC1'!$B$6:$AR$1339,$A16,FALSE)),0,(VLOOKUP(J$8&$A$7&$A$8,'Calc-HC1'!$B$6:$AR$1339,$A16,FALSE))) -> 0.23 | K16: =IF(ISNA(VLOOKUP(K$8&$A$7&$A$8,'Calc-HC1'!$B$6:$AR$1339,$A16,FALSE)),0,(VLOOKUP(K$8&$A$7&$A$8,'Calc-HC1'!$B$6:$AR$1339,$A16,FALSE))) -> 0.24 | L16: =IF(ISNA(VLOOKUP(L$8&$A$7&$A$8,'Calc-HC1'!$B$6:$AR$1339,$A16,FALSE)),0,(VLOOKUP(L$8&$A$7&$A$8,'Calc-HC1'!$B$6:$AR$1339,$A16,FALSE))) -> 0.25 | M16: =IF(ISNA(VLOOKUP(M$8&$A$7&$A$8,'Calc-HC1'!$B$6:$AR$1339,$A16,FALSE)),0,(VLOOKUP(M$8&$A$7&$A$8,'Calc-HC1'!$B$6:$AR$1339,$A16,FALSE))) -> 0.26 | N16: =IF(ISNA(VLOOKUP(N$8&$A$7&$A$8,'Calc-HC1'!$B$6:$AR$1339,$A16,FALSE)),0,(VLOOKUP(N$8&$A$7&$A$8,'Calc-HC1'!$B$6:$AR$1339,$A16,FALSE))) -> 0.28 | O16: =IF(ISNA(VLOOKUP(O$8&$A$7&$A$8,'Calc-HC1'!$B$6:$AR$1339,$A16,FALSE)),0,(VLOOKUP(O$8&$A$7&$A$8,'Calc-HC1'!$B$6:$AR$1339,$A16,FALSE))) -> 0.3 | P16: =IF(ISNA(VLOOKUP(P$8&$A$7&$A$8,'Calc-HC1'!$B$6:$AR$1339,$A16,FALSE)),0,(VLOOKUP(P$8&$A$7&$A$8,'Calc-HC1'!$B$6:$AR$1339,$A16,FALSE))) -> 0.3 | Q16: =IF(ISNA(VLOOKUP(Q$8&$A$7&$A$8,'Calc-HC1'!$B$6:$AR$1339,$A16,FALSE)),0,(VLOOKUP(Q$8&$A$7&$A$8,'Calc-HC1'!$B$6:$AR$1339,$A16,FALSE))) -> 0.31 | R16: =IF(ISNA(VLOOKUP(R$8&$A$7&$A$8,'Calc-HC1'!$B$6:$AR$1339,$A16,FALSE)),0,(VLOOKUP(R$8&$A$7&$A$8,'Calc-HC1'!$B$6:$AR$1339,$A16,FALSE))) -> 0.33 | S16: =IF(ISNA(VLOOKUP(S$8&$A$7&$A$8,'Calc-HC1'!$B$6:$AR$1339,$A16,FALSE)),0,(VLOOKUP(S$8&$A$7&$A$8,'Calc-HC1'!$B$6:$AR$1339,$A16,FALSE))) -> 0.34 | T16: =IF(ISNA(VLOOKUP(T$8&$A$7&$A$8,'Calc-HC1'!$B$6:$AR$1339,$A16,FALSE)),0,(VLOOKUP(T$8&$A$7&$A$8,'Calc-HC1'!$B$6:$AR$1339,$A16,FALSE))) -> 0.3478589007 | U16: =IF(ISNA(VLOOKUP(U$8&$A$7&$A$8,'Calc-HC1'!$B$6:$AR$1339,$A16,FALSE)),0,(VLOOKUP(U$8&$A$7&$A$8,'Calc-HC1'!$B$6:$AR$1339,$A16,FALSE))) -> 0.3515023892 | V16: =IF(ISNA(VLOOKUP(V$8&$A$7&$A$8,'Calc-HC1'!$B$6:$AR$1339,$A16,FALSE)),0,(VLOOKUP(V$8&$A$7&$A$8,'Calc-HC1'!$B$6:$AR$1339,$A16,FALSE))) -> 0.3727744264 | W16: =IF(ISNA(VLOOKUP(W$8&$A$7&$A$8,'Calc-HC1'!$B$6:$AR$1538,$A16,FALSE)),0,(VLOOKUP(W$8&$A$7&$A$8,'Calc-HC1'!$B$6:$AR$1538,$A16,FALSE))) -> 0.3662066081 | X16: =IF(ISNA(VLOOKUP(X$8&$A$7&$A$8,'Calc-HC1'!$B$6:$AR$1538,$A16,FALSE)),0,(VLOOKUP(X$8&$A$7&$A$8,'Calc-HC1'!$B$6:$AR$1538,$A16,FALSE))) -> 0.3749371248
A17: 11 | C17: Total clients | E17: =IFERROR(IF(ISNA(VLOOKUP(E$8&$A$7&$A$8,'Calc-HC1'!$B$6:$AR$1538,$A17,FALSE)),0,(MROUND(VLOOKUP(E$8&$A$7&$A$8,'Calc-HC1'!$B$6:$AR$1538,$A17,FALSE),10))),"-") -> 79290 | F17: =IFERROR(IF(ISNA(VLOOKUP(F$8&$A$7&$A$8,'Calc-HC1'!$B$6:$AR$1538,$A17,FALSE)),0,(MROUND(VLOOKUP(F$8&$A$7&$A$8,'Calc-HC1'!$B$6:$AR$1538,$A17,FALSE),10))),"-") -> 74060 | G17: =IFERROR(IF(ISNA(VLOOKUP(G$8&$A$7&$A$8,'Calc-HC1'!$B$6:$AR$1538,$A17,FALSE)),0,(MROUND(VLOOKUP(G$8&$A$7&$A$8,'Calc-HC1'!$B$6:$AR$1538,$A17,FALSE),10))),"-") -> 70210 | H17: =IFERROR(IF(ISNA(VLOOKUP(H$8&$A$7&$A$8,'Calc-HC1'!$B$6:$AR$1538,$A17,FALSE)),0,(MROUND(VLOOKUP(H$8&$A$7&$A$8,'Calc-HC1'!$B$6:$AR$1538,$A17,FALSE),10))),"-") -> 65530 | I17: =IFERROR(IF(ISNA(VLOOKUP(I$8&$A$7&$A$8,'Calc-HC1'!$B$6:$AR$1538,$A17,FALSE)),0,(MROUND(VLOOKUP(I$8&$A$7&$A$8,'Calc-HC1'!$B$6:$AR$1538,$A17,FALSE),10))),"-") -> 64550 | J17: =IFERROR(IF(ISNA(VLOOKUP(J$8&$A$7&$A$8,'Calc-HC1'!$B$6:$AR$1538,$A17,FALSE)),0,(MROUND(VLOOKUP(J$8&$A$7&$A$8,'Calc-HC1'!$B$6:$AR$1538,$A17,FALSE),10))),"-") -> 67270 | K17: =IFERROR(IF(ISNA(VLOOKUP(K$8&$A$7&$A$8,'Calc-HC1'!$B$6:$AR$1538,$A17,FALSE)),0,(MROUND(VLOOKUP(K$8&$A$7&$A$8,'Calc-HC1'!$B$6:$AR$1538,$A17,FALSE),10))),"-") -> 69990 | L17: =IFERROR(IF(ISNA(VLOOKUP(L$8&$A$7&$A$8,'Calc-HC1'!$B$6:$AR$1538,$A17,FALSE)),0,(MROUND(VLOOKUP(L$8&$A$7&$A$8,'Calc-HC1'!$B$6:$AR$1538,$A17,FALSE),10))),"-") -> 71090 | M17: =IFERROR(IF(ISNA(VLOOKUP(M$8&$A$7&$A$8,'Calc-HC1'!$B$6:$AR$1538,$A17,FALSE)),0,(MROUND(VLOOKUP(M$8&$A$7&$A$8,'Calc-HC1'!$B$6:$AR$1538,$A17,FALSE),10))),"-") -> 70660 | N17: =IFERROR(IF(ISNA(VLOOKUP(N$8&$A$7&$A$8,'Calc-HC1'!$B$6:$AR$1538,$A17,FALSE)),0,(MROUND(VLOOKUP(N$8&$A$7&$A$8,'Calc-HC1'!$B$6:$AR$1538,$A17,FALSE),10))),"-") -> 70710 | O17: =IFERROR(IF(ISNA(VLOOKUP(O$8&$A$7&$A$8,'Calc-HC1'!$B$6:$AR$1538,$A17,FALSE)),0,(MROUND(VLOOKUP(O$8&$A$7&$A$8,'Calc-HC1'!$B$6:$AR$1538,$A17,FALSE),10))),"-") -> 68760 | P17: =IFERROR(IF(ISNA(VLOOKUP(P$8&$A$7&$A$8,'Calc-HC1'!$B$6:$AR$1538,$A17,FALSE)),0,(MROUND(VLOOKUP(P$8&$A$7&$A$8,'Calc-HC1'!$B$6:$AR$1538,$A17,FALSE),10))),"-") -> 68330 | Q17: =IFERROR(IF(ISNA(VLOOKUP(Q$8&$A$7&$A$8,'Calc-HC1'!$B$6:$AR$1538,$A17,FALSE)),0,(MROUND(VLOOKUP(Q$8&$A$7&$A$8,'Calc-HC1'!$B$6:$AR$1538,$A17,FALSE),10))),"-") -> 66220 | R17: =IFERROR(IF(ISNA(VLOOKUP(R$8&$A$7&$A$8,'Calc-HC1'!$B$6:$AR$1538,$A17,FALSE)),0,(MROUND(VLOOKUP(R$8&$A$7&$A$8,'Calc-HC1'!$B$6:$AR$1538,$A17,FALSE),10))),"-") -> 63460 | S17: =IFERROR(IF(ISNA(VLOOKUP(S$8&$A$7&$A$8,'Calc-HC1'!$B$6:$AR$1538,$A17,FALSE)),0,(MROUND(VLOOKUP(S$8&$A$7&$A$8,'Calc-HC1'!$B$6:$AR$1538,$A17,FALSE),10))),"-") -> 62830 | T17: =IFERROR(IF(ISNA(VLOOKUP(T$8&$A$7&$A$8,'Calc-HC1'!$B$6:$AR$1538,$A17,FALSE)),0,(MROUND(VLOOKUP(T$8&$A$7&$A$8,'Calc-HC1'!$B$6:$AR$1538,$A17,FALSE),10))),"-") -> 61070 | U17: =IFERROR(IF(ISNA(VLOOKUP(U$8&$A$7&$A$8,'Calc-HC1'!$B$6:$AR$1538,$A17,FALSE)),0,(MROUND(VLOOKUP(U$8&$A$7&$A$8,'Calc-HC1'!$B$6:$AR$1538,$A17,FALSE),10))),"-") -> 61740 | V17: =IFERROR(IF(ISNA(VLOOKUP(V$8&$A$7&$A$8,'Calc-HC1'!$B$6:$AR$1538,$A17,FALSE)),0,(MROUND(VLOOKUP(V$8&$A$7&$A$8,'Calc-HC1'!$B$6:$AR$1538,$A17,FALSE),10))),"-") -> 61500 | W17: =IFERROR(IF(ISNA(VLOOKUP(W$8&$A$7&$A$8,'Calc-HC1'!$B$6:$AR$1538,$A17,FALSE)),0,(MROUND(VLOOKUP(W$8&$A$7&$A$8,'Calc-HC1'!$B$6:$AR$1538,$A17,FALSE),10))),"-") -> 59780 | X17: =IFERROR(IF(ISNA(VLOOKUP(X$8&$A$7&$A$8,'Calc-HC1'!$B$6:$AR$1538,$A17,FALSE)),0,(MROUND(VLOOKUP(X$8&$A$7&$A$8,'Calc-HC1'!$B$6:$AR$1538,$A17,FALSE),10))),"-") -> 59640
C19: Source: Home Care Census up to 2012, Social Care Survey from 2013
C20: - some figures have been suppressed with a "*" to protect small numbers.
C21: - age group data only available from 2005
C22: - figures rounded to the nearest 10.
D25: =C9 -> 2 hours or less | E25: =E10 -> 0.32 | F25: =F10 -> 0.32 | G25: =G10 -> 0.24 | H25: 0.23 | I25: 0.22 | J25: 0.22 | K25: 0.21 | L25: 0.2 | M25: 0.21 | N25: =N10 -> 0.2 | O25: =IF($A$6="All",O10,(IF($A$7="Argyll & Bute",0,(IF($A$7="Orkney Islands",0,O10))))) -> 0.19 | P25: =IF($A$6="All",P10,(IF($A$7="Argyll & Bute",0,(IF($A$7="Orkney Islands",0,P10))))) -> 0.18 | Q25: =Q10 -> 0.18 | R25: =IF($A$6="All",R10,(IF($A$7="Argyll & Bute",0,(IF($A$7="Orkney Islands",0,R10))))) -> 0.15 | S25: =IF($A$6="All",S10,(IF($A$7="Argyll & Bute",0,(IF($A$7="Orkney Islands",0,S10))))) -> 0.14 | T25: =T10 -> 0.1399507793 | U25: =U10 -> 0.1560864987 | V25: =V10 -> 0.1502739793 | W25: =W10 -> 0.1348891677 | X25: =X10 -> 0.1331276617
D26: =C11 -> Between 2 and 4 hours | E26: =E12 -> 0.26 | F26: =F12 -> 0.28 | G26: =G12 -> 0.3 | H26: 0.29 | I26: 0.27 | J26: 0.26 | K26: 0.25 | L26: 0.25 | M26: 0.24 | N26: =N12 -> 0.23 | O26: =IF($A$6="All",O12,(IF($A$7="Argyll & Bute",0,(IF($A$7="Orkney Islands",0,O12))))) -> 0.21 | P26: =IF($A$6="All",P12,(IF($A$7="Argyll & Bute",0,(IF($A$7="Orkney Islands",0,P12))))) -> 0.21 | Q26: =Q12 -> 0.2 | R26: =IF($A$6="All",R12,(IF($A$7="Argyll & Bute",0,(IF($A$7="Orkney Islands",0,R12))))) -> 0.2 | S26: =IF($A$6="All",S12,(IF($A$7="Argyll & Bute",0,(IF($A$7="Orkney Islands",0,S12))))) -> 0.19 | T26: =T12 -> 0.1849384742 | U26: =U12 -> 0.1771604438 | V26: =V12 -> 0.1622087446 | W26: =W12 -> 0.1720451694 | X26: =X12 -> 0.1683545153
D27: =C13 -> Between 4 and 10 hours | E27: =E14 -> 0.26 | F27: =F14 -> 0.28 | G27: =G14 -> 0.31 | H27: 0.3 | I27: 0.3 | J27: 0.29 | K27: 0.3 | L27: 0.3 | M27: 0.29 | N27: =N14 -> 0.3 | O27: =IF($A$6="All",O14,(IF($A$7="Argyll & Bute",0,(IF($A$7="Orkney Islands",0,O12))))) -> 0.3 | P27: =IF($A$6="All",P14,(IF($A$7="Argyll & Bute",0,(IF($A$7="Orkney Islands",0,P12))))) -> 0.31 | Q27: =Q14 -> 0.3 | R27: =IF($A$6="All",R14,(IF($A$7="Argyll & Bute",0,(IF($A$7="Orkney Islands",0,R12))))) -> 0.32 | S27: =IF($A$6="All",S14,(IF($A$7="Argyll & Bute",0,(IF($A$7="Orkney Islands",0,S12))))) -> 0.32 | T27: =T14 -> 0.3272518458 | U27: =U14 -> 0.3152506682 | V27: =V14 -> 0.3147428497 | W27: =W14 -> 0.3268423254 | X27: =X14 -> 0.3235806982
D28: =C15 -> Greater than 10 hours | E28: =E16 -> 0.12 | F28: =F16 -> 0.12 | G28: =G16 -> 0.15 | H28: 0.18 | I28: 0.21 | J28: 0.23 | K28: 0.24 | L28: 0.25 | M28: 0.26 | N28: =N16 -> 0.28 | O28: =IF($A$6="All",O16,(IF($A$7="Argyll & Bute",0,(IF($A$7="Orkney Islands",0,O16))))) -> 0.3 | P28: =IF($A$6="All",P16,(IF($A$7="Argyll & Bute",0,(IF($A$7="Orkney Islands",0,P16))))) -> 0.3 | Q28: =Q16 -> 0.31 | R28: =IF($A$6="All",R16,(IF($A$7="Argyll & Bute",0,(IF($A$7="Orkney Islands",0,R16))))) -> 0.33 | S28: =IF($A$6="All",S16,(IF($A$7="Argyll & Bute",0,(IF($A$7="Orkney Islands",0,S16))))) -> 0.34 | T28: =T16 -> 0.3478589007 | U28: =U16 -> 0.3515023892 | V28: =V16 -> 0.3727744264 | W28: =W16 -> 0.3662066081 | X28: =X16 -> 0.3749371248

Sheet LKPs (hidden)
A2: Scotland | D2: All ages | F2: All client groups | G2: 13 | H2: 1998 | J2: All client groups
A3: Aberdeen City | D3: Unknown | F3: People with dementia | G3: 5 | H3: 1999 | J3: People with dementia
A4: Aberdeenshire | D4: 0-17 | F4: People with mental health problems | G4: 6 | H4: 2000 | J4: People with mental health problems
A5: Angus | D5: 18-64 | F5: People with learning disabilities | G5: 7 | H5: 2001 | J5: People with learning disabilities
A6: Argyll & Bute | D6: 65-74 | F6: People with physical disabilities | G6: 8 | H6: 2002 | J6: People with physical disabilities
A7: Clackmannanshire | D7: 75-84 | F7: People in Other groups | G7: 9 | H7: 2003 | J7: People in Other groups
A8: Dumfries & Galloway | D8: 85 plus | F8: Older people (2010 onwards) | G8: 10 | H8: 2004
A9: Dundee City | H9: 2005
A10: East Ayrshire | H10: 2006
A11: East Dunbartonshire | D11: Total | H11: 2007
A12: East Lothian | D12: Unknown | H12: 2008
A13: East Renfrewshire | D13: 0-17 | H13: 2009
A14: Edinburgh, City of | D14: 18-64 | H14: 2010
A15: Eilean Siar | D15: 65 plus | H15: 2011 | J15: Telecare clients receiving a home care service | K15: HC Client
A16: Falkirk | D16: 65-74 | F16: Missing | H16: 2012 | J16: Telecare clients NOT receiving a home care service | K16: TC Client
A17: Fife | D17: 75 plus | F17: Male | H17: 2013 | J17: All telecare clients | K17: SC Client
A18: Glasgow City | D18: 75-84 | F18: Female | H18: 2014
A19: Highland | D19: 85 plus | F19: All | H19: 2015
A20: Inverclyde | H20: 2016
A21: Midlothian | D21: All | H21: 2017
A22: Moray | D22: Under 65 | F22: Clients
A23: North Ayrshire | D23: 65 plus | F23: Expenditure
A24: North Lanarkshire
A25: Orkney Islands | D25: Clients | F25: 2013
A26: Perth & Kinross | D26: Hours
A27: Renfrewshire
A28: Scottish Borders | F28: 2012-13
A29: Shetland Islands | F29: 2013-14
A30: South Ayrshire | F30: 2014-15
A31: South Lanarkshire | F31: 2015-16
A32: Stirling | F32: 2016-17
A33: West Dunbartonshire
A34: West Lothian

Sheet Table7
B1: =IF(A6="All ages",("Client group breakdown of all clients receiving Home Care, by Local Authority in "&A5),("Client group breakdown of clients receiving Home Care, by Local Authority in "&A5)) -> Client group breakdown of clients receiving Home Care, by Local Authority in 2017
B2: Figures are for the March census week | J2: Main page
A3: 1
A4: 20 | C4: Select year
A5: =OFFSET(LKPs!H1,A4,0) -> 2017
A6: =OFFSET(LKPs!D10,A3,0) -> Total | D6: 5 | E6: 6 | F6: 7 | G6: 8 | H6: 10 | I6: 9 | J6: 13
A7: =IF(A6="All ages","Total",IF(A6="Unknown (2010 only)","unknown",A6)) -> Total
A8: =IF(A6="Unknown (2010 only)","unknown",A6) -> Total
C9: Local Authority | D9: People with dementia | E9: People with mental health problems | F9: People with learning disabilities | G9: People with physical disabilities 1 | H9: Older people (2010 onwards) | I9: People in other groups | J9: All people
C10: Aberdeen City | D10: =IFERROR(IF($A$3>1,"NA",IF(VLOOKUP($A$5&$C10&$A$8,'Calc-HC2'!$A$6:$M$5561,D$6,FALSE)="*","*",MROUND(VLOOKUP($A$5&$C10&$A$8,'Calc-HC2'!$A$6:$M$5561,D$6,FALSE),10))),"-") -> 220 | E10: =IFERROR(IF($A$3>1,"NA",IF(VLOOKUP($A$5&$C10&$A$8,'Calc-HC2'!$A$6:$M$5561,E$6,FALSE)="*","*",MROUND(VLOOKUP($A$5&$C10&$A$8,'Calc-HC2'!$A$6:$M$5561,E$6,FALSE),10))),"-") -> 30 | F10: =IFERROR(IF($A$3>1,"NA",IF(VLOOKUP($A$5&$C10&$A$8,'Calc-HC2'!$A$6:$M$5561,F$6,FALSE)="*","*",MROUND(VLOOKUP($A$5&$C10&$A$8,'Calc-HC2'!$A$6:$M$5561,F$6,FALSE),10))),"-") -> 110 | G10: =IFERROR(IF($A$3>1,"NA",IF(VLOOKUP($A$5&$C10&$A$8,'Calc-HC2'!$A$6:$M$5561,G$6,FALSE)="*","*",MROUND(VLOOKUP($A$5&$C10&$A$8,'Calc-HC2'!$A$6:$M$5561,G$6,FALSE),10))),"-") -> - | H10: =IFERROR(IF($A$3>1,"NA",IF(VLOOKUP($A$5&$C10&$A$8,'Calc-HC2'!$A$6:$M$5561,H$6,FALSE)="*","*",MROUND(VLOOKUP($A$5&$C10&$A$8,'Calc-HC2'!$A$6:$M$5561,H$6,FALSE),10))),"-") -> 1170 | I10: =IFERROR(IF($A$3>1,"NA",IF(VLOOKUP($A$5&$C10&$A$8,'Calc-HC2'!$A$6:$M$5561,I$6,FALSE)="*","*",MROUND(VLOOKUP($A$5&$C10&$A$8,'Calc-HC2'!$A$6:$M$5561,I$6,FALSE),10))),"-") -> 210 | J10: =IFERROR(IF($A$3>1,"NA",IF(VLOOKUP($A$5&$C10&$A$8,'Calc-HC2'!$A$6:$M$5561,J$6,FALSE)="*","*",MROUND(VLOOKUP($A$5&$C10&$A$8,'Calc-HC2'!$A$6:$M$5561,J$6,FALSE),10))),"-") -> 1780
C11: Aberdeenshire | D11: =IFERROR(IF($A$3>1,"NA",IF(VLOOKUP($A$5&$C11&$A$8,'Calc-HC2'!$A$6:$M$5561,D$6,FALSE)="*","*",MROUND(VLOOKUP($A$5&$C11&$A$8,'Calc-HC2'!$A$6:$M$5561,D$6,FALSE),10))),"-") -> 150 | E11: =IFERROR(IF($A$3>1,"NA",IF(VLOOKUP($A$5&$C11&$A$8,'Calc-HC2'!$A$6:$M$5561,E$6,FALSE)="*","*",MROUND(VLOOKUP($A$5&$C11&$A$8,'Calc-HC2'!$A$6:$M$5561,E$6,FALSE),10))),"-") -> 40 | F11: =IFERROR(IF($A$3>1,"NA",IF(VLOOKUP($A$5&$C11&$A$8,'Calc-HC2'!$A$6:$M$5561,F$6,FALSE)="*","*",MROUND(VLOOKUP($A$5&$C11&$A$8,'Calc-HC2'!$A$6:$M$5561,F$6,FALSE),10))),"-") -> 120 | G11: =IFERROR(IF($A$3>1,"NA",IF(VLOOKUP($A$5&$C11&$A$8,'Calc-HC2'!$A$6:$M$5561,G$6,FALSE)="*","*",MROUND(VLOOKUP($A$5&$C11&$A$8,'Calc-HC2'!$A$6:$M$5561,G$6,FALSE),10))),"-") -> - | H11: =IFERROR(IF($A$3>1,"NA",IF(VLOOKUP($A$5&$C11&$A$8,'Calc-HC2'!$A$6:$M$5561,H$6,FALSE)="*","*",MROUND(VLOOKUP($A$5&$C11&$A$8,'Calc-HC2'!$A$6:$M$5561,H$6,FALSE),10))),"-") -> 640 | I11: =IFERROR(IF($A$3>1,"NA",IF(VLOOKUP($A$5&$C11&$A$8,'Calc-HC2'!$A$6:$M$5561,I$6,FALSE)="*","*",MROUND(VLOOKUP($A$5&$C11&$A$8,'Calc-HC2'!$A$6:$M$5561,I$6,FALSE),10))),"-") -> 1170 | J11: =IFERROR(IF($A$3>1,"NA",IF(VLOOKUP($A$5&$C11&$A$8,'Calc-HC2'!$A$6:$M$5561,J$6,FALSE)="*","*",MROUND(VLOOKUP($A$5&$C11&$A$8,'Calc-HC2'!$A$6:$M$5561,J$6,FALSE),10))),"-") -> 2300
C12: Angus | D12: =IFERROR(IF($A$3>1,"NA",IF(VLOOKUP($A$5&$C12&$A$8,'Calc-HC2'!$A$6:$M$5561,D$6,FALSE)="*","*",MROUND(VLOOKUP($A$5&$C12&$A$8,'Calc-HC2'!$A$6:$M$5561,D$6,FALSE),10))),"-") -> 140 | E12: =IFERROR(IF($A$3>1,"NA",IF(VLOOKUP($A$5&$C12&$A$8,'Calc-HC2'!$A$6:$M$5561,E$6,FALSE)="*","*",MROUND(VLOOKUP($A$5&$C12&$A$8,'Calc-HC2'!$A$6:$M$5561,E$6,FALSE),10))),"-") -> 60 | F12: =IFERROR(IF($A$3>1,"NA",IF(VLOOKUP($A$5&$C12&$A$8,'Calc-HC2'!$A$6:$M$5561,F$6,FALSE)="*","*",MROUND(VLOOKUP($A$5&$C12&$A$8,'Calc-HC2'!$A$6:$M$5561,F$6,FALSE),10))),"-") -> 200 | G12: =IFERROR(IF($A$3>1,"NA",IF(VLOOKUP($A$5&$C12&$A$8,'Calc-HC2'!$A$6:$M$5561,G$6,FALSE)="*","*",MROUND(VLOOKUP($A$5&$C12&$A$8,'Calc-HC2'!$A$6:$M$5561,G$6,FALSE),10))),"-") -> - | H12: =IFERROR(IF($A$3>1,"NA",IF(VLOOKUP($A$5&$C12&$A$8,'Calc-HC2'!$A$6:$M$5561,H$6,FALSE)="*","*",MROUND(VLOOKUP($A$5&$C12&$A$8,'Calc-HC2'!$A$6:$M$5561,H$6,FALSE),10))),"-") -> 770 | I12: =IFERROR(IF($A$3>1,"NA",IF(VLOOKUP($A$5&$C12&$A$8,'Calc-HC2'!$A$6:$M$5561,I$6,FALSE)="*","*",MROUND(VLOOKUP($A$5&$C12&$A$8,'Calc-HC2'!$A$6:$M$5561,I$6,FALSE),10))),"-") -> 130 | J12: =IFERROR(IF($A$3>1,"NA",IF(VLOOKUP($A$5&$C12&$A$8,'Calc-HC2'!$A$6:$M$5561,J$6,FALSE)="*","*",MROUND(VLOOKUP($A$5&$C12&$A$8,'Calc-HC2'!$A$6:$M$5561,J$6,FALSE),10))),"-") -> 1360
C13: Argyll & Bute | D13: =IFERROR(IF($A$3>1,"NA",IF(VLOOKUP($A$5&$C13&$A$8,'Calc-HC2'!$A$6:$M$5561,D$6,FALSE)="*","*",MROUND(VLOOKUP($A$5&$C13&$A$8,'Calc-HC2'!$A$6:$M$5561,D$6,FALSE),10))),"-") -> 50 | E13: =IFERROR(IF($A$3>1,"NA",IF(VLOOKUP($A$5&$C13&$A$8,'Calc-HC2'!$A$6:$M$5561,E$6,FALSE)="*","*",MROUND(VLOOKUP($A$5&$C13&$A$8,'Calc-HC2'!$A$6:$M$5561,E$6,FALSE),10))),"-") -> 40 | F13: =IFERROR(IF($A$3>1,"NA",IF(VLOOKUP($A$5&$C13&$A$8,'Calc-HC2'!$A$6:$M$5561,F$6,FALSE)="*","*",MROUND(VLOOKUP($A$5&$C13&$A$8,'Calc-HC2'!$A$6:$M$5561,F$6,FALSE),10))),"-") -> 10 | G13: =IFERROR(IF($A$3>1,"NA",IF(VLOOKUP($A$5&$C13&$A$8,'Calc-HC2'!$A$6:$M$5561,G$6,FALSE)="*","*",MROUND(VLOOKUP($A$5&$C13&$A$8,'Calc-HC2'!$A$6:$M$5561,G$6,FALSE),10))),"-") -> - | H13: =IFERROR(IF($A$3>1,"NA",IF(VLOOKUP($A$5&$C13&$A$8,'Calc-HC2'!$A$6:$M$5561,H$6,FALSE)="*","*",MROUND(VLOOKUP($A$5&$C13&$A$8,'Calc-HC2'!$A$6:$M$5561,H$6,FALSE),10))),"-") -> 560 | I13: =IFERROR(IF($A$3>1,"NA",IF(VLOOKUP($A$5&$C13&$A$8,'Calc-HC2'!$A$6:$M$5561,I$6,FALSE)="*","*",MROUND(VLOOKUP($A$5&$C13&$A$8,'Calc-HC2'!$A$6:$M$5561,I$6,FALSE),10))),"-") -> 310 | J13: =IFERROR(IF($A$3>1,"NA",IF(VLOOKUP($A$5&$C13&$A$8,'Calc-HC2'!$A$6:$M$5561,J$6,FALSE)="*","*",MROUND(VLOOKUP($A$5&$C13&$A$8,'Calc-HC2'!$A$6:$M$5561,J$6,FALSE),10))),"-") -> 1070
C14: Clackmannanshire | D14: =IFERROR(IF($A$3>1,"NA",IF(VLOOKUP($A$5&$C14&$A$8,'Calc-HC2'!$A$6:$M$5561,D$6,FALSE)="*","*",MROUND(VLOOKUP($A$5&$C14&$A$8,'Calc-HC2'!$A$6:$M$5561,D$6,FALSE),10))),"-") -> 100 | E14: =IFERROR(IF($A$3>1,"NA",IF(VLOOKUP($A$5&$C14&$A$8,'Calc-HC2'!$A$6:$M$5561,E$6,FALSE)="*","*",MROUND(VLOOKUP($A$5&$C14&$A$8,'Calc-HC2'!$A$6:$M$5561,E$6,FALSE),10))),"-") -> 60 | F14: =IFERROR(IF($A$3>1,"NA",IF(VLOOKUP($A$5&$C14&$A$8,'Calc-HC2'!$A$6:$M$5561,F$6,FALSE)="*","*",MROUND(VLOOKUP($A$5&$C14&$A$8,'Calc-HC2'!$A$6:$M$5561,F$6,FALSE),10))),"-") -> 70 | G14: =IFERROR(IF($A$3>1,"NA",IF(VLOOKUP($A$5&$C14&$A$8,'Calc-HC2'!$A$6:$M$5561,G$6,FALSE)="*","*",MROUND(VLOOKUP($A$5&$C14&$A$8,'Calc-HC2'!$A$6:$M$5561,G$6,FALSE),10))),"-") -> 30 | H14: =IFERROR(IF($A$3>1,"NA",IF(VLOOKUP($A$5&$C14&$A$8,'Calc-HC2'!$A$6:$M$5561,H$6,FALSE)="*","*",MROUND(VLOOKUP($A$5&$C14&$A$8,'Calc-HC2'!$A$6:$M$5561,H$6,FALSE),10))),"-") -> 200 | I14: =IFERROR(IF($A$3>1,"NA",IF(VLOOKUP($A$5&$C14&$A$8,'Calc-HC2'!$A$6:$M$5561,I$6,FALSE)="*","*",MROUND(VLOOKUP($A$5&$C14&$A$8,'Calc-HC2'!$A$6:$M$5561,I$6,FALSE),10))),"-") -> 210 | J14: =IFERROR(IF($A$3>1,"NA",IF(VLOOKUP($A$5&$C14&$A$8,'Calc-HC2'!$A$6:$M$5561,J$6,FALSE)="*","*",MROUND(VLOOKUP($A$5&$C14&$A$8,'Calc-HC2'!$A$6:$M$5561,J$6,FALSE),10))),"-") -> 670
